Workbook

Sheet ENV_CONTROL (hidden)
C3: SELECT ENVIRONMENT:
D4: ="(QA) FIR" & FIRYear & "Planning" -> (QA) FIR2022Planning | E4: ="(QA) FIR" & FIRYear & "Essbase" -> (QA) FIR2022Essbase | F4: ="(PPE) FIR" & FIRYear & "Planning" -> (PPE) FIR2022Planning | G4: ="(PPE) FIR" & FIRYear & "Essbase" -> (PPE) FIR2022Essbase | H4: ="(PROD) FIR" & FIRYear & "Planning" -> (PROD) FIR2022Planning | I4: ="(PROD) FIR" & FIRYear & "Essbase" -> (PROD) FIR2022Essbase
C5: Provider (Connection Type) | D5: Planning | E5: Essbase | F5: Planning | G5: Essbase | H5: Planning | I5: Essbase
C6: Servername | D6: test.efis.fma.csc.gov.on.ca | E6: EssbaseCluster-2 | F6: stage.efis.fma.csc.gov.on.ca | G6: EssbaseCluster-2 | H6: efis.fma.csc.gov.on.ca | I6: EssbaseCluster-2
C7: Application Name | D7: FIR_2022 | E7: =D7 -> FIR_2022 | F7: =D7 -> FIR_2022 | G7: =D7 -> FIR_2022 | H7: =D7 -> FIR_2022 | I7: =D7 -> FIR_2022
C8: Database Name (Leave blank for Metadata App) | D8: FIR2 | E8: =D8 -> FIR2 | F8: FIR2 | G8: FIR2 | H8: FIR2 | I8: FIR2
C9: FormName (with path) | D9: /Forms | F9: /Forms | H9: /Forms
C10: ProviderURL | D10: https://test.efis.fma.csc.gov.on.ca/HyperionPlanning/SmartView | E10: https://test.efis.fma.csc.gov.on.ca/aps/SmartView | F10: https://stage.efis.fma.csc.gov.on.ca/HyperionPlanning/SmartView | G10: https://stage.efis.fma.csc.gov.on.ca/aps/SmartView | H10: https://efis.fma.csc.gov.on.ca/HyperionPlanning/SmartView | I10: https://efis.fma.csc.gov.on.ca/aps/SmartView
C11: Friendly Connection Name | D11: ="SVConnection_PLN_FIR" & FIRYear & "_QA" -> SVConnection_PLN_FIR2022_QA | E11: ="SVConnection_ESS_FIR" & FIRYear & "_QA" -> SVConnection_ESS_FIR2022_QA | F11: ="SVConnection_PLN_FIR" & FIRYear & "_PPE" -> SVConnection_PLN_FIR2022_PPE | G11: ="SVConnection_ESS_FIR" & FIRYear & "_PPE" -> SVConnection_ESS_FIR2022_PPE | H11: ="SVConnection_PLN_FIR" & FIRYear & "_PROD" -> SVConnection_PLN_FIR2022_PROD | I11: ="SVConnection_ESS_FIR" & FIRYear & "_PROD" -> SVConnection_ESS_FIR2022_PROD
C12: Description | D12: ="Smartview Planning Connection for FIR" & FIRYear & "QA" -> Smartview Planning Connection for FIR2022QA | E12: ="Smartview Essbase Connection for FIR" & FIRYear & "QA" -> Smartview Essbase Connection for FIR2022QA | F12: ="Smartview Planning Connection for FIR" & FIRYear & "PPE" -> Smartview Planning Connection for FIR2022PPE | G12: ="Smartview Essbase Connection for FIR" & FIRYear & "PPE" -> Smartview Essbase Connection for FIR2022PPE | H12: ="Smartview Planning Connection for FIR" & FIRYear & "PROD" -> Smartview Planning Connection for FIR2022PROD | I12: ="Smartview Essbase Connection for FIR" & FIRYear & "PROD" -> Smartview Essbase Connection for FIR2022PROD
H17: Development Mode: | I17: 2 | L17: ON
D18: ACTION | E18: DESCRIPTION | I18: SYNC ERROR FLAG | L18: OFF
E19: Synchronize Reference & Municipality Tables
C20: FIR ADMIN CONTROL PANEL | E20: Configure FIR Workbook for Release (Clear Inputs, Reset Blocks, Hide System Columns)
E21: Protect and Hide ENV_CONTROL Worksheet

Sheet ADMIN_CONTROL (hidden)
C4: SELECT A MUNICIPALITY: | E4: Municipality Index: | F4: 405
D6: ACTION | E6: DESCRIPTION | H6: FIR Return Email Template
E7: Return submitted FIR to Municipality. | H7: Email Subject: | I7: FIR Returned for Updates
C8: MFPB WORKFLOW: | E8: Submit updated MFPB Received data into "MFPB Received" Version. | H8: Email Body: | I8: The Submitted FIR has been returned to allow for changes and resubmission. Please delete the current copy, download a new version and initialize. Your returned data will be restored upon initialization.
E9: Submit Clean FIR. This process will copy "MFPB Received" data into
E10: "MFPB Clean" Version.
E11: Re-open Clean FIR. This process will move data from "MFPB Clean"
E12: version to "MFPB Received" version.
C15: FIR DATA RETRIEVE:
D22: ACTION | E22: DESCRIPTION
C23: FIR ADMIN PRINT CONTROL | E23: Print FIR Data by Municipality (must retrieve FIR data for desired municipality first)

Sheet USER_CONTROL
A1: User control interface. To Backup Schedule to ministry, press Ctrl Shift B. To Restore Schedule to ministry, press Ctrl Shift R. To Submit completed FIR to ministry, press Ctrl Shift S. To Refresh status dashboard, press Ctrl Shift T. | C1: Province of Ontario - Ministry of Municipal Affairs and Housing | N1: =NOW() -> 2024-11-22T16:23:06.850 | Q1: X | R1: X | S1: X
D3: ="FIR"& FIRYear & " USER CONTROL PANEL" -> FIR2022 USER CONTROL PANEL
D4: ="Municipality: " & MUNICIPALITY & " (" & MUNASMTCode & ")" -> Municipality: Tillsonburg T (3204)
C6: SMART FIR SCHEDULES BACKUP & RESTORE | J6: SUBMIT SMART FIR
C7: BACKUP | F7: RESTORE
J8: VALIDATION CHECK | L8: SUBMIT FIR
D9: Back-up Schedule data on the | J9: CRITICAL Flagged: | K9: =COUNTIF(CHECK!$D:$D,"CRITICAL") -> 0 | Q9: =COUNTIF(CHECK!$E:$E,"CRITICAL") -> 0 | R9: =IF(COUNTIF(CHECK!$K:$K,"C")<>COUNTIF(CHECK!$L:$L,"C"),1,0) -> 0 | S9: =CONCATENATE("Worksheet Critical Errors: " & rngCriticalFlagged & " Secondary Critical Errors: "&Q9 & " Worksheet Verify Errors: "&rngVerifyFlagged& " Secondary Verify Errors: "& Q10) -> Worksheet Critical Errors: 0 Secondary Critical Errors: 0 Worksheet Verify Errors: 0 Secondary Verify Errors: 50
D10: Ministry server. | G10: Restore Schedule data from the Ministry server. | J10: VERIFY Flagged: | K10: =COUNTIF(CHECK!$D:$D,"VERIFY") -> 0 | M10: Submit FIR Schedules. | Q10: =COUNTIF(CHECK!$E:$E,"VERIFY") -> 50 | R10: =IF(COUNTIF(CHECK!$K:$K,"V")<>COUNTIF(CHECK!$L:$L,"V"),1,0) -> 0 | S10: =CONCATENATE("Worksheet Critical or Verify Flag has been modified") -> Worksheet Critical or Verify Flag has been modified
C11: Last Backup: | D11: 2023-08-28T10:58:18 | F11: Last Restore: | J11: Attach file(s): | L11: Last Submit:
C15: MUNICIPALITY STATUS DASHBOARD
E17: Current Status | F17: Prior Status 1 | G17: Prior Status 2 | H17: Prior Status 3 | I17: Prior Status 4 | J17: Prior Status 5 | K17: Prior Status 6 | L17: Prior Status 7 | M17: Prior Status 8 | N17: Prior Status 9
C18: Workflow Status Flag | E18: Submitted Under Review | F18: MFPB Working Restore | G18: MFPB Working Restore | H18: MFPB Working Restore | I18: MFPB Working Restore | J18: MFPB Working Restore | K18: MFPB Working Restore | L18: Smart FIR Initialized | M18: Smart FIR Initialized | N18: Smart FIR Initialized
C19: Workflow Status Date | E19: 2023-08-28 | F19: 2023-08-21 | G19: 2023-08-21 | H19: 2023-08-21 | I19: 2023-08-21 | J19: 2023-08-21 | K19: 2023-08-21 | L19: 2023-06-14 | M19: 2023-06-14 | N19: 2023-06-14
C20: Backup Date | E20: 2023-08-28 | F20: 2023-08-28 | G20: 2023-08-28 | H20: 2023-08-24 | I20: 2023-08-22 | J20: 2023-08-22 | K20: 2023-08-21 | L20: 2023-08-21 | M20: 2023-08-21 | N20: 2023-08-18
C21: Restore Date

Sheet CONTROL (hidden)
A1: 2022 Financial Information Return - CONTROL Page - This page allows the user to select a municipality from a drop down list and activate initialization for the preloading of data. | C1: Province of Ontario - Ministry of Municipal Affairs and Housing | H1: =NOW() -> 2024-11-22T16:23:06.860
C3: =FIRYear & " FINANCIAL INFORMATION RETURN" -> 2022 FINANCIAL INFORMATION RETURN
C5: ="Welcome to the FIR" & FIRYear & "(PSAB)!" -> Welcome to the FIR2022(PSAB)!
C7: ="To begin completing the FIR" & FIRYear & " using this MS Excel spreadsheet, simply follow the steps below:" -> To begin completing the FIR2022 using this MS Excel spreadsheet, simply follow the steps below:
C9: Please select the Municipality you wish to complete:
C11: Once the Municipality is selected, several Datapoints from the previous year FIR, and other sources will be Pre-Loaded
C12: ="into this FIR" & FIRYear & " Excel spreadsheet, and the FIR" & FIRYear & " Schedules will become visible." -> into this FIR2022 Excel spreadsheet, and the FIR2022 Schedules will become visible.
C14: ="The file will automatically be saved onto your selected folder as FI" & RIGHT( FIRYear, 2) & "xxxx MunicipalityName.xlsm," -> The file will automatically be saved onto your selected folder as FI22xxxx MunicipalityName.xlsm,
C15: where xxxx is the 4-digit Code of the municipality selected above.
C23: If you experience difficulty, please email the Ministry at: | G23: FIR.mah@ontario.ca
G28: CONTROL
F30: Year | G30: 2022
F31: E Municipality | G31: =INDEX(MunName,MUNINDEX,1) -> Tillsonburg T
F32: Mun Asmt Code | G32: =VLOOKUP(MUNICIPALITY,MUNTABLE,2,FALSE) -> 3204
F33: MAH Code | G33: =VLOOKUP(MUNICIPALITY,MUNTABLE,4,FALSE) -> 37402_MAH
F34: MUNTIER | G34: =VLOOKUP(MUNICIPALITY,MUNTABLE,6,FALSE) -> Lower-Tier
F35: MUNTIER CODE | G35: =VLOOKUP(MUNICIPALITY,MUNTABLE,5,FALSE) -> LT_Tier
F36: UPPERTIER | G36: =VLOOKUP(MUNICIPALITY,MUNTABLE,9,FALSE) -> Oxford Co (37_UT)
F37: UPPERTIER CODE | G37: =VLOOKUP(MUNICIPALITY,MUNTABLE,7,FALSE) -> 37_UT
F38: MSO | G38: =VLOOKUP(MUNICIPALITY,MUNTABLE,11,FALSE) -> Western Ontario (15_MSO)
F39: MSO_CODE | G39: =VLOOKUP(MUNICIPALITY,MUNTABLE,10,FALSE) -> 15_MSO
F40: Date | G40: =TODAY() -> 2024-11-22
F41: FILENAME | G41: =CONCATENATE("FI",RIGHT(FIRYear,2),MUNASMTCode," ",MUNICIPALITY) -> FI223204 Tillsonburg T
F43: Submitting | G43: F
F44: Version | G44: 2022.01001
F45: File Download Date | G45: =TODAY() -> 2024-11-22
F46: Operating System | G46: =INFO("osversion") -> Windows (64-bit) NT 10.00
F47: MS Excel Version | G47: =INFO("release") -> 16.0
F48: Operating Environment | G48: =INFO("system") -> pcdos

Sheet HELP
A1: 2022 Financial Information Return - Help Page - This page contains information on completing the FIR as well as contact information should you require assistance. | C1: Province of Ontario - Ministry of Municipal Affairs and Housing | G1: =NOW() -> 2024-11-22T16:23:06.860
C3: H E L P P A G E
C5: IMPORTANT
C6: ="DO NOT change settings which are built into this FIR" & FIRYear& ", or the FIR" & FIRYear & " file will NOT function properly." -> DO NOT change settings which are built into this FIR2022, or the FIR2022 file will NOT function properly.
C7: ="The FIR" & FIRYear & " has been pre-formatted to ensure that every user can complete the FIR Schedules with efficiency and accuracy." -> The FIR2022 has been pre-formatted to ensure that every user can complete the FIR Schedules with efficiency and accuracy.
C9: Do Not CUT and PASTE (or similarly Drag and Drop)
C10: CUT and PASTE (or Drag and Drop) will greatly affect many or all of the background formulas and links that have been incorporated into the
C11: ="FIR" & FIRYear & ". If you cut and paste any information into the FIR file, unfortunately the only way to correct the file is to download a new copy" -> FIR2022. If you cut and paste any information into the FIR file, unfortunately the only way to correct the file is to download a new copy
C12: and start over.
C14: ="It is also recommended that you DO NOT Copy and Paste." & " However, the Copy and Paste feature may be used with caution providing that" -> It is also recommended that you DO NOT Copy and Paste. However, the Copy and Paste feature may be used with caution providing that
C15: ="information is only copied and pasted from an open workbook within the same Excel application that is currently running the FIR" & FIRYear & "." -> information is only copied and pasted from an open workbook within the same Excel application that is currently running the FIR2022.
C16: ="Information that is copied and pasted from one Excel application to another is treated as a cut and paste and will damage the FIR file." -> Information that is copied and pasted from one Excel application to another is treated as a cut and paste and will damage the FIR file.
C17: ="Also, DO NOT Paste into a cell that contains a drop-down LIST, otherwise the LIST, CHECKS and calculations will no longer function." -> Also, DO NOT Paste into a cell that contains a drop-down LIST, otherwise the LIST, CHECKS and calculations will no longer function.
C19: ="Do Not set up the FIR"&FIRYear & " file as a "&"""Shared Workbook""" -> Do Not set up the FIR2022 file as a "Shared Workbook"
C20: Setting up the file as a shared workbook will not allow the macros to function properly.
C22: Failed to Configure Planning Connection
C23: If you encounter "Failed to Configure Planning Connection" during setup, backup or submission of your municipality,
C24: please reset your password.
C26: Text data and quotations
C27: When entering text fields, please avoid using single(' ) or double(") quotes. Text with quotations will cause
C28: serious system loading problems at our end.
C29: For example, Property Class 'C' or Property Class "C" should be entered as Property Class C
C31: Backup and Restore
C32: From time to time please "Backup" your working version from the USER_CONTROL tab.
C33: Should you need to recover your work, click on the "Restore" button.
C35: Upon Completion
C36: After clearing the critical and verify edit checks, please submit your FIR by pressing the "Submit" button on the
C37: User Control Panel and following the instruction prompted. The current workflow status flag will be updated to
C38: "Submitted Under Review".
C41: For assistance: | E41: Email the FIR Team | F41: FIR.mah@ontario.ca
E43: OR
E45: Contact your Municipal Service Office (MSO):
F46: General Inquiry | G46: Toll Free
E47: Central MSO - TORONTO | F47: (416) 585-6226 | G47: 1-800-668-0230
E48: Western MSO - LONDON | F48: (519) 873-4020 | G48: 1-800-265-4736
E49: Eastern MSO - KINGSTON | F49: (613) 545-2100 | G49: 1-800-267-9438
E50: North-Western MSO - THUNDER BAY | F50: (807) 475-1651 | G50: 1-800-465-5027
E51: North-Eastern MSO - SUDBURY | F51: (705) 564-0120 | G51: 1-800-461-1193

Sheet CHECK
A1: 2022 Financial Information Return - CHECK Page - This page contains a list of edit checks. Possible errors will be flagged CRITICAL or VERIFY in the CHECK column. | C1: Province of Ontario - Ministry of Municipal Affairs and Housing | E1: X | H1: X | J1: X | K1: X | L1: X | M1: X | P1: nu | Q1: =NOW() -> 2024-11-22T16:23:06.850 | R1: X | S1: X | T1: X | U1: X | V1: X | X1: X | Y1: X | Z1: X | AA1: X | AB1: X | AC1: X | AD1: X
C2: =CONTROL!$G$44 -> 2022.01001
C3: =CONCATENATE("FIR",FIRYear," DATA VERIFICATION : ",MUNICIPALITY) -> FIR2022 DATA VERIFICATION : Tillsonburg T | Q3: =NOW() -> 2024-11-22T16:23:06.850
C4: ="Asmt Code: "&MUNASMTCode -> Asmt Code: 3204 | Q4: =CONCATENATE("CRITICAL Flagged: ",COUNTIF($D:$D,"CRITICAL")," of ",COUNTIF($K:$K,"C")) -> CRITICAL Flagged: 0 of 417
C5: ="MAH Code: "&LEFT(MUNMAHCode,5) -> MAH Code: 37402 | Q5: =CONCATENATE("VERIFY Flagged: ",COUNTIF($D:$D,"VERIFY")," of ",COUNTIF($K:$K,"V") + COUNTIF($K:$K,"P")) -> VERIFY Flagged: 0 of 1036
D8: ="Please review the following CHECKLIST for possible errors that may exist in the FIR" & FIRYear & " to ensure an accurate FIR" & FIRYear & " is submitted." -> Please review the following CHECKLIST for possible errors that may exist in the FIR2022 to ensure an accurate FIR2022 is submitted. | Q8: * PY refers to Previous Year
D9: Possible Errors are flagged as CRITICAL or VERIFY under the CHECK column. | Q9: ** SLC refers to Schedule, Line, Column numbering of datapoints
AA11: Code | AB11: Description | AC11: Explanation | AD11: PassFail
D13: CHECK | F13: Sched | G13: Code | H13: Old Code | I13: Datapoint | J13: USER | K13: Degree | M13: PY | N13: Description | O13: Numeric Description | P13: Variables | Q13: Explanation | R13: W1 | S13: W2 | T13: W3 | U13: W4 | V13: PassFail
D14: CHECK | F14: Sched | G14: Code | H14: Old Code | I14: Datapoint | J14: USER | K14: Degree | M14: PY | N14: Description | O14: Numeric Description | P14: Variables | Q14: Explanation | R14: W1 | S14: W2 | T14: W3 | U14: W4 | V14: PassFail
D15: =IF(V15=0,"INFO",IF(AND(V15=1,K15="C"),"INFO","INFO")) -> INFO | E15: 99V1 | Q15: Worksheet Critical Errors: 0 Secondary Critical Errors: 0 Worksheet Verify Errors: 0 Secondary Verify Errors: 50 | V15: =IF(OR(USER_CONTROL!Q9<>0,USER_CONTROL!Q10<>0),1,0) -> 1 | Y15: B00 | Z15: S0001 | AA15: =IF(V15=0,"",GetFIRMappingTEXT(G15)) ->  | AC15: =GetFIRMappingTEXT(Q15) ->  | AD15: =IF(V15=0,"",GetFIRMapping(V15)) -> 
D16: =IF(V16=0,"INFO",IF(AND(V16=1,K16="C"),"INFO","INFO")) -> INFO | E16: 99V2 | V16: =IF(OR(USER_CONTROL!R9<>0,USER_CONTROL!R10<>0),1,0) -> 0 | Y16: B00 | Z16: S0002 | AA16: =IF(V16=0,"",GetFIRMappingTEXT(G16)) ->  | AC16: =GetFIRMappingTEXT(Q16) ->  | AD16: =IF(V16=0,"",GetFIRMapping(V16)) -> 
D17: =IF(V17=0,"OK",IF(AND(V17=1,K17="C"),"CRITICAL","VERIFY")) -> OK | E17: =IF(V17=0,"OK",IF(AND(V17=1,L17="C"),"CRITICAL","VERIFY")) -> OK | F17: 02 | G17: 02C 001 | I17: 02 0028 01 | K17: C | L17: C | N17: On the Cover Page, the email address is a required entry. (Please ensure that the email address entered is accurate, since ALL FIR correspondence from the Ministry will be sent to this email address) | O17: 02 0028 01 ¹ 0 | V17: =IF('02'!H60="",1,0) -> 0 | X17: 1 | Y17: B00 | Z17: ="R"&RIGHT("000"&X17,4) -> R0001 | AA17: =IF(V17=0,"",GetFIRMappingTEXT(G17)) ->  | AC17: =GetFIRMappingTEXT(Q17) ->  | AD17: =IF(V17=0,"",GetFIRMapping(V17)) -> 
D18: OK | E18: OK | F18: 02 | G18: 02C 002 | I18: 02 0040 01 | K18: C | L18: C | N18: The municipality must enter a figure for households in SLC 02 0040 01. | O18: 02 0040 01 <> Null | V18: =IF('02'!H91=0,1,0) -> 0 | X18: =X17+1 -> 2 | Y18: B00 | Z18: ="R"&RIGHT("000"&X18,4) -> R0002 | AA18: =IF(V18=0,"",GetFIRMappingTEXT(G18)) ->  | AC18: =GetFIRMappingTEXT(Q18) ->  | AD18: =IF(V18=0,"",GetFIRMapping(V18)) -> 
D19: OK | E19: OK | F19: 02 | G19: 02C 003 | I19: 02 0041 01 | K19: C | L19: C | N19: The municipality must enter a figure for population in SLC 02 0041 01. | O19: 02 0041 01 <> Null | V19: =IF('02'!H92=0,1,0) -> 0 | X19: =X18+1 -> 3 | Y19: B00 | Z19: R0003 | AD19: =IF(V19=0,"",GetFIRMapping(V19)) -> 
D20: OK | E20: OK | F20: 02 | G20: 02C 004 | I20: 02 0042 01 | K20: C | L20: C | N20: The municipality must enter a figure for youth population in SLC 02 0042 01. | O20: 02 0042 01 <> Null | V20: =IF('02'!H93=0,1,0) -> 0 | X20: 4 | Y20: B00 | Z20: R0004 | AD20: =IF(V20=0,"",GetFIRMapping(V20)) -> 
D21: OK | E21: OK | F21: 02 | G21: 02C 005 | I21: 02 0042 01 | K21: C | L21: C | N21: Youth polulation in SLC 02 0042 01 must be less than the total population in SLC 02 0041 01. | O21: 02 0041 01 > 02 0042 01 | V21: =IF('02'!H93>='02'!H92,1,0) -> 0 | X21: 5 | Y21: B00 | Z21: R0005 | AD21: =IF(V21=0,"",GetFIRMapping(V21)) -> 
D22: OK | E22: OK | F22: 02 | G22: 02C 006 | I22: 02 0020 01 | K22: C | L22: C | N22: On the Cover Page, the Name in SLC 02 0020 01 is a required entry. | O22: 02 0020 01 ¹ 'b' | V22: =IF('02'!H57="",1,0) -> 0 | X22: 6 | Y22: B00 | Z22: R0006 | AD22: =IF(V22=0,"",GetFIRMapping(V22)) -> 
D23: OK | E23: OK | F23: 02 | G23: 02C 007 | I23: 02 0022 01 | K23: C | L23: C | N23: On the Cover Page, the Telephone in SLC 02 0022 01 is a required entry. | O23: 02 0022 01 ¹ 'b' | V23: =IF('02'!H58="",1,0) -> 0 | X23: 7 | Y23: B00 | Z23: R0007 | AD23: =IF(V23=0,"",GetFIRMapping(V23)) -> 
D24: OK | E24: OK | F24: 02 | G24: 02C 008 | I24: 02 0090 01 | K24: C | L24: C | N24: On the Cover Page, the Name of the Municipal Treasurer in SLC 02 0090 01 is a required entry. | O24: 02 0090 01 ¹ 'b' | V24: =IF('02'!H67="",1,0) -> 0 | X24: 8 | Y24: B00 | Z24: R0008 | AD24: =IF(V24=0,"",GetFIRMapping(V24)) -> 
D25: OK | E25: OK | F25: 02 | G25: 02C 009 | I25: 02 0093 01 | K25: C | L25: C | N25: On the Cover Page, the Municipal Treasurer 's email address in SLC 02 0093 01 is a required entry. | O25: 02 0093 01 ¹ 'b' | V25: =IF('02'!H68="",1,0) -> 0 | X25: 9 | Y25: B00 | Z25: R0009 | AD25: =IF(V25=0,"",GetFIRMapping(V25)) -> 
D26: OK | E26: OK | F26: 02 | G26: 02C 015 | I26: 02 0095 01 | K26: C | L26: C | N26: On the Cover Page, the Municipal Auditor 's email address in SLC 02 0095 01 is a required entry. | O26: 02 0095 01 ¹ 'b' | V26: =IF('02'!H65="",1,0) -> 0 | X26: 10 | Y26: B00 | Z26: R0010 | AD26: =IF(V26=0,"",GetFIRMapping(V26)) -> 
D27: OK | E27: OK | F27: 02 | G27: 02C 010 | I27: 02 0040 02 | K27: C | L27: C | N27: If a numeric amount has been entered into SLC 02 0040 01(Households), then there must be an entry in SLC 02 0040 02. | O27: IF 02 0040 01 > 0 THEN 02 0040 02 is not = 'b' | V27: =IF('02'!H91>0,IF('02'!I91="",1,0),0) -> 0 | X27: 11 | Y27: B00 | Z27: R0011 | AD27: =IF(V27=0,"",GetFIRMapping(V27)) -> 
D28: OK | E28: OK | F28: 02 | G28: 02C 011 | I28: 02 0041 02 | K28: C | L28: C | N28: If a numeric amount has been entered into SLC 02 0041 01(Population), then there must be an entry in SLC 02 0041 02. | O28: IF 02 0041 01 > 0 THEN 02 0041 02 is not = 'b' | V28: =IF('02'!H92>0,IF('02'!I92="",1,0),0) -> 0 | X28: 12 | Y28: B00 | Z28: R0012 | AD28: =IF(V28=0,"",GetFIRMapping(V28)) -> 
D29: OK | E29: OK | F29: 02 | G29: 02C 012 | I29: 02 0042 02 | K29: C | L29: C | N29: If a numeric amount has been entered into SLC 02 0042 01(Youth Population), then there must be an entry in SLC 02 0042 02. | O29: IF 02 0042 01 > 0 THEN 02 0042 02 is not = 'b' | V29: =IF('02'!H93>0,IF('02'!I93="",1,0),0) -> 0 | X29: 13 | Y29: B00 | Z29: R0013 | AD29: =IF(V29=0,"",GetFIRMapping(V29)) -> 
D30: =IF(OR(V30=0,Q30<>""),"OK",IF(AND(V30=1,K30="C"),"CRITICAL","VERIFY")) -> OK | E30: OK | F30: 02 | G30: 02C 013 | I30: 02 0040 01 | K30: V | L30: V | N30: If the current year's household is greater than last year's household by 25% or decrease less than 25% of last year's household, the entry for this year has to be adjusted. | O30: (TY.02 0040 01-LY.02 0040 01)/(LY.02 0040 01) < 25% OR (TY.02 0040 01-LY.02 0040 01)/(LY.02 0040 01) >- 25% | R30: =PYData!D657 -> 7982 | S30: ='02'!H91 -> 8480 | T30: =IFERROR((S30-R30)/R30,0) -> 0.06239037835 | V30: =IF(OR(T30>0.25,T30<-0.25),1,0) -> 0 | X30: 14 | Y30: B00 | Z30: R0014 | AD30: =IF(V30=0,"",GetFIRMapping(V30)) -> 
D31: OK | E31: OK | F31: 02 | G31: 02C 014 | I31: 02 0041 01 | K31: V | L31: V | N31: If the current year's population is greater than last year's population by 25% or decrease less than 25% of last year's population, the entry for this year has to be adjusted. | O31: (TY.02 0041 01-LY.02 0041 01)/(LY.02 0041 01) < 25% OR (TY.02 0041 01-LY.02 0041 01)/(LY.02 0041 01) >- 25% | R31: =PYData!D658 -> 17809 | S31: ='02'!H92 -> 19000 | T31: =IFERROR((S31-R31)/R31,0) -> 0.0668762985 | V31: =IF(OR(T31>0.25,T31<-0.25),1,0) -> 0 | X31: 15 | Y31: B00 | Z31: R0015 | AD31: =IF(V31=0,"",GetFIRMapping(V31)) -> 
D32: OK | E32: OK | F32: 02 | G32: 02C 016 | I32: 02 0077 02 | K32: C | L32: C | N32: If Program Support is reported in SLC 40 0260 13, then the Method used to allocate Program Support to other functions in Schedule 40 must be selected using the drop-down list in SLC 02 0077 02. | O32: IF SLC 40 0260 13 < 0, THEN 02 0077 02 <> Null | V32: =IF('40'!R14<0,IF('02'!I84="",1,0),0) -> 0 | X32: 16 | Y32: B00 | Z32: R0016 | AD32: =IF(V32=0,"",GetFIRMapping(V32)) -> 
D33: OK | E33: OK | F33: 10 | G33: 10C 002 | H33: 100019 | I33: 10 0695 01 | K33: C | L33: C | N33: If a numeric amount has been entered into SLC 10 0695 01, then a text description of this amount is required. If a description for "Other" has been entered, then an amount must be entered into SLC 10 0695 01. | O33: IF 10 0695 01 ¹ 0 THEN 10 0695 text is not Null AND is not = 'b' IF 10 0695 01 "Other" text is not Null AND is not = 'b' THEN 10 0695 01 > 0 | R33: =IF(AND('10'!K25<>0,'10'!G25=0),1,0) -> 0 | S33: =IF(AND('10'!K25<>0,'10'!G25=""),1,0) -> 0 | T33: =IF(AND('10'!G25<>"",'10'!K25=0),1,0) -> 0 | V33: =IF(OR(R33=1,S33=1,T33=1),1,0) -> 0 | X33: 17 | Y33: B00 | Z33: R0017 | AD33: =IF(V33=0,"",GetFIRMapping(V33)) -> 
D34: OK | E34: OK | F34: 10 | G34: 10C 003 | H34: 100020 | I34: 10 0696 01 | K34: C | L34: C | N34: If a numeric amount has been entered into SLC 10 0696 01, then a text description of this amount is required. If a description for "Other" has been entered, then an amount must be entered into SLC 10 0696 01. | O34: IF 10 0696 01 ¹ 0 THEN 10 0696 text is not Null AND is not = 'b' IF 10 0696 01 "Other" text is not Null AND is not = 'b' THEN 10 0696 01 > 0 | R34: =IF(AND('10'!K26<>0,'10'!G26=0),1,0) -> 0 | S34: =IF(AND('10'!K26<>0,'10'!G26=""),1,0) -> 0 | T34: =IF(AND('10'!G26<>"",'10'!K26=0),1,0) -> 0 | V34: =IF(OR(R34=1,S34=1,T34=1),1,0) -> 0 | X34: 18 | Y34: B00 | Z34: R0018 | AD34: =IF(V34=0,"",GetFIRMapping(V34)) -> 
D35: OK | E35: OK | F35: 10 | G35: 10C 004 | H35: 100021 | I35: 10 0697 01 | K35: C | L35: C | N35: If a numeric amount has been entered into SLC 10 0697 01, then a text description of this amount is required. If a description for "Other" has been entered, then an amount must be entered into SLC 10 0697 01. | O35: IF 10 0697 01 ¹ 0 THEN 10 0697 text is not Null AND is not = 'b' IF 10 0697 01 "Other" text is not Null AND is not = 'b' THEN 10 0697 01 > 0 | R35: =IF(AND('10'!K27<>0,'10'!G27=0),1,0) -> 0 | S35: =IF(AND('10'!K27<>0,'10'!G27=""),1,0) -> 0 | T35: =IF(AND('10'!G27<>"",'10'!K27=0),1,0) -> 0 | V35: 0 | X35: 19 | Y35: B00 | Z35: R0019 | AD35: =IF(V35=0,"",GetFIRMapping(V35)) -> 
D36: OK | E36: OK | F36: 10 | G36: 10C 005 | H36: 100022 | I36: 10 0698 01 | K36: C | L36: C | N36: If a numeric amount has been entered into SLC 10 0698 01, then a text description of this amount is required. If a description for "Other" has been entered, then an amount must be entered into SLC 10 0698 01. | O36: IF 10 0698 01 ¹ 0 THEN 10 0698 text is not Null AND is not = 'b' IF 10 0698 01 "Other" text is not Null AND is not = 'b' THEN 10 0698 01 > 0 | R36: =IF(AND('10'!K28<>0,'10'!G28=0),1,0) -> 0 | S36: =IF(AND('10'!K28<>0,'10'!G28=""),1,0) -> 0 | T36: =IF(AND('10'!G28<>"",'10'!K28=0),1,0) -> 0 | V36: 0 | X36: 20 | Y36: B00 | Z36: R0020 | AD36: =IF(V36=0,"",GetFIRMapping(V36)) -> 
D37: OK | E37: OK | F37: 10 | G37: 10C 016 | I37: 10 1498 01 | K37: C | L37: C | N37: If a numeric amount has been entered into SLC 10 1498 01, then a text description of this amount is required. If a description for "Other" has been entered, then an amount must be entered into SLC 10 1498 01. | O37: IF 10 1498 01 ¹ 0 THEN 10 1498 text is not Null AND is not = 'b' IF 10 1498 01 "Other" text is not Null AND is not = 'b' THEN 10 1498 01 > 0 | R37: =IF(AND('10'!K51<>0,'10'!G51=0),1,0) -> 0 | S37: =IF(AND('10'!K51<>0,'10'!G51=""),1,0) -> 0 | T37: =IF(AND('10'!G51<>"",'10'!K51=0),1,0) -> 0 | V37: 0 | X37: 21 | Y37: B00 | Z37: R0021 | AD37: =IF(V37=0,"",GetFIRMapping(V37)) -> 
D38: OK | E38: OK | F38: 10 | G38: 10C 017 | I38: 10 1698 01 | K38: C | L38: C | N38: If a numeric amount has been entered into SLC 10 1698 01, then a text description of this amount is required. If a description for "Other" has been entered, then an amount must be entered into SLC 10 1698 01. | O38: IF 10 1698 01 ¹ 0 THEN 10 1698 text is not Null AND is not = 'b' IF 10 1698 01 "Other" text is not Null AND is not = 'b' THEN 10 1698 01 > 0 | R38: =IF(AND('10'!K57<>0,'10'!G57=0),1,0) -> 0 | S38: =IF(AND('10'!K57<>0,'10'!G57=""),1,0) -> 0 | T38: =IF(AND('10'!G57<>"",'10'!K57=0),1,0) -> 0 | V38: 0 | X38: 22 | Y38: B00 | Z38: R0022 | AD38: =IF(V38=0,"",GetFIRMapping(V38)) -> 
D39: OK | E39: OK | F39: 10 | G39: 10C 018 | I39: 10 1890 01 | K39: C | L39: C | N39: If a numeric amount has been entered into SLC 10 1890 01, then a text description of this amount is required. If a description for "Other" has been entered, then an amount must be entered into SLC 10 1890 01. | O39: IF 10 1890 10 ¹ 0 THEN 10 1890 text is not Null AND is not = 'b' IF 10 1890 01 "Other" text is not Null AND is not = 'b' THEN 10 1890 01 > 0 | R39: =IF(AND('10'!K73<>0,'10'!G73=0),1,0) -> 0 | S39: =IF(AND('10'!K73<>0,'10'!G73=""),1,0) -> 0 | T39: =IF(AND('10'!G73<>"",'10'!K73=0),1,0) -> 0 | V39: 0 | X39: 23 | Y39: B00 | Z39: R0023 | AD39: =IF(V39=0,"",GetFIRMapping(V39)) -> 
D40: OK | E40: OK | F40: 10 | G40: 10C 019 | I40: 10 1891 01 | K40: C | L40: C | N40: If a numeric amount has been entered into SLC 10 1891 01, then a text description of this amount is required. If a description for "Other" has been entered, then an amount must be entered into SLC 10 1891 01. | O40: IF 10 1891 10 ¹ 0 THEN 10 1891 text is not Null AND is not = 'b' IF 10 1891 01 "Other" text is not Null AND is not = 'b' THEN 10 1891 01 > 0 | R40: =IF(AND('10'!K74<>0,'10'!G74=0),1,0) -> 0 | S40: =IF(AND('10'!K74<>0,'10'!G74=""),1,0) -> 0 | T40: =IF(AND('10'!G74<>"",'10'!K74=0),1,0) -> 0 | V40: 0 | X40: 24 | Y40: B00 | Z40: R0024 | AD40: =IF(V40=0,"",GetFIRMapping(V40)) -> 
D41: OK | E41: OK | F41: 10 | G41: 10C 020 | I41: 10 1892 01 | K41: C | L41: C | N41: If a numeric amount has been entered into SLC 10 1892 01, then a text description of this amount is required. If a description for "Other" has been entered, then an amount must be entered into SLC 10 1892 01. | O41: IF 10 1892 10 ¹ 0 THEN 10 1892 text is not Null AND is not = 'b' IF 10 1892 01 "Other" text is not Null AND is not = 'b' THEN 10 1892 01 > 0 | R41: =IF(AND('10'!K75<>0,'10'!G75=0),1,0) -> 0 | S41: =IF(AND('10'!K75<>0,'10'!G75=""),1,0) -> 0 | T41: =IF(AND('10'!G75<>"",'10'!K75=0),1,0) -> 0 | V41: 0 | X41: 25 | Y41: B00 | Z41: R0025 | AD41: =IF(V41=0,"",GetFIRMapping(V41)) -> 
D42: OK | E42: OK | F42: 10 | G42: 10C 021 | I42: 10 1893 01 | K42: C | L42: C | N42: If a numeric amount has been entered into SLC 10 1893 01, then a text description of this amount is required. If a description for "Other" has been entered, then an amount must be entered into SLC 10 1893 01. | O42: IF 10 1893 10 ¹ 0 THEN 10 1893 text is not Null AND is not = 'b' IF 10 1893 01 "Other" text is not Null AND is not = 'b' THEN 10 1893 01 > 0 | R42: =IF(AND('10'!K76<>0,'10'!G76=0),1,0) -> 0 | S42: =IF(AND('10'!K76<>0,'10'!G76=""),1,0) -> 0 | T42: =IF(AND('10'!G76<>"",'10'!K76=0),1,0) -> 0 | V42: 0 | X42: 26 | Y42: B00 | Z42: R0026 | AD42: =IF(V42=0,"",GetFIRMapping(V42)) -> 
D43: OK | E43: OK | F43: 10 | G43: 10C 022 | I43: 10 1894 01 | K43: C | L43: C | N43: If a numeric amount has been entered into SLC 10 1894 01, then a text description of this amount is required. If a description for "Other" has been entered, then an amount must be entered into SLC 10 1894 01. | O43: IF 10 1894 10 ¹ 0 THEN 10 1894 text is not Null AND is not = 'b' IF 10 1894 01 "Other" text is not Null AND is not = 'b' THEN 10 1894 01 > 0 | R43: =IF(AND('10'!K77<>0,'10'!G77=0),1,0) -> 0 | S43: =IF(AND('10'!K77<>0,'10'!G77=""),1,0) -> 0 | T43: =IF(AND('10'!G77<>"",'10'!K77=0),1,0) -> 0 | V43: 0 | X43: 27 | Y43: B00 | Z43: R0027 | AD43: =IF(V43=0,"",GetFIRMapping(V43)) -> 
D44: OK | E44: OK | F44: 10 | G44: 10C 023 | I44: 10 1895 01 | K44: C | L44: C | N44: If a numeric amount has been entered into SLC 10 1895 01, then a text description of this amount is required. If a description for "Other" has been entered, then an amount must be entered into SLC 10 1895 01. | O44: IF 10 1895 10 ¹ 0 THEN 10 1895 text is not Null AND is not = 'b' IF 10 1895 01 "Other" text is not Null AND is not = 'b' THEN 10 1895 01 > 0 | R44: =IF(AND('10'!K78<>0,'10'!G78=0),1,0) -> 0 | S44: =IF(AND('10'!K78<>0,'10'!G78=""),1,0) -> 0 | T44: =IF(AND('10'!G78<>"",'10'!K78=0),1,0) -> 0 | V44: 0 | X44: 28 | Y44: B00 | Z44: R0028 | AD44: =IF(V44=0,"",GetFIRMapping(V44)) -> 
D45: OK | E45: OK | F45: 10 | G45: 10C 006 | H45: 100023 | I45: 10 1896 01 | K45: C | L45: C | N45: If a numeric amount has been entered into SLC 10 1896 01, then a text description of this amount is required. If a description for "Other" has been entered, then an amount must be entered into SLC 10 1896 01. | O45: IF 10 1896 10 ¹ 0 THEN 10 1896 text is not Null AND is not = 'b' IF 10 1896 01 "Other" text is not Null AND is not = 'b' THEN 10 1896 01 > 0 | R45: =IF(AND('10'!K79<>0,'10'!G79=0),1,0) -> 0 | S45: =IF(AND('10'!K79<>0,'10'!G79=""),1,0) -> 0 | T45: =IF(AND('10'!G79<>"",'10'!K79=0),1,0) -> 0 | V45: 0 | X45: 29 | Y45: B00 | Z45: R0029 | AD45: =IF(V45=0,"",GetFIRMapping(V45)) -> 
D46: OK | E46: OK | F46: 10 | G46: 10C 007 | H46: 100024 | I46: 10 1897 01 | K46: C | L46: C | N46: If a numeric amount has been entered into SLC 10 1897 01, then a text description of this amount is required. If a description for "Other" has been entered, then an amount must be entered into SLC 10 1897 01. | O46: IF 10 1897 01 ¹ 0 THEN 10 1897 text is not Null AND is not = 'b' IF 10 1897 01 "Other" text is not Null AND is not = 'b' THEN 10 1897 01 > 0 | R46: =IF(AND('10'!K80<>0,'10'!G80=0),1,0) -> 0 | S46: =IF(AND('10'!K80<>0,'10'!G80=""),1,0) -> 0 | T46: =IF(AND('10'!G80<>"",'10'!K80=0),1,0) -> 0 | V46: 0 | X46: 30 | Y46: B00 | Z46: R0030 | AD46: =IF(V46=0,"",GetFIRMapping(V46)) -> 
D47: OK | E47: OK | F47: 10 | G47: 10C 008 | H47: 100025 | I47: 10 1898 01 | K47: C | L47: C | N47: If a numeric amount has been entered into SLC 10 1898 01, then a text description of this amount is required. If a description for "Other" has been entered, then an amount must be entered into SLC 10 1898 01. | O47: IF 10 1898 01 ¹ 0 THEN 10 1898 text is not Null AND is not = 'b' IF 10 1898 01 "Other" text is not Null AND is not = 'b' THEN 10 1898 01 > 0 | R47: =IF(AND('10'!K81<>0,'10'!G81=0),1,0) -> 0 | S47: =IF(AND('10'!K81<>0,'10'!G81=""),1,0) -> 0 | T47: =IF(AND('10'!G81<>"",'10'!K81=0),1,0) -> 0 | V47: 0 | X47: 31 | Y47: B00 | Z47: R0031 | AD47: =IF(V47=0,"",GetFIRMapping(V47)) -> 
D48: OK | E48: OK | F48: 10 | G48: 10C 024 | I48: 10 2030 01 | K48: C | L48: C | N48: If a numeric amount has been entered into SLC 10 2030 01, then a text description of this amount is required. If a description for "Other" has been entered, then an amount must be entered into SLC 10 2030 01. | O48: IF 10 2030 01 ¹ 0 THEN 10 2030 text is not Null AND is not = 'b' IF 10 2030 01 "Other" text is not Null AND is not = 'b' THEN 10 2030 01 > 0 | R48: =IF(AND('10'!K97<>0,'10'!G97=0),1,0) -> 0 | S48: =IF(AND('10'!K97<>0,'10'!G97=""),1,0) -> 0 | T48: =IF(AND('10'!G97<>"",'10'!K97=0),1,0) -> 0 | V48: 0 | X48: 32 | Y48: B00 | Z48: R0032 | AD48: =IF(V48=0,"",GetFIRMapping(V48)) -> 
D49: OK | E49: OK | F49: 10 | G49: 10C 025 | I49: 10 2040 01 | K49: C | L49: C | N49: If a numeric amount has been entered into SLC 10 2040 01, then a text description of this amount is required. If a description for "Other" has been entered, then an amount must be entered into SLC 10 2040 01. | O49: IF 10 2040 01 ¹ 0 THEN 10 2040 text is not Null AND is not = 'b' IF 10 2040 01 "Other" text is not Null AND is not = 'b' THEN 10 2040 01 > 0 | R49: =IF(AND('10'!K98<>0,'10'!G98=0),1,0) -> 0 | S49: =IF(AND('10'!K98<>0,'10'!G98=""),1,0) -> 0 | T49: =IF(AND('10'!G98<>"",'10'!K98=0),1,0) -> 0 | V49: 0 | X49: 33 | Y49: B00 | Z49: R0033 | AD49: =IF(V49=0,"",GetFIRMapping(V49)) -> 
D50: OK | E50: OK | F50: 10 | G50: 10C 011 | I50: 10 6060 01 | K50: C | L50: C | N50: If a numeric amount has been entered into SLC 10 6060 01, then a text description of this amount is required. If a description for "Other" has been entered, then an amount must be entered into SLC 10 6060 01. | O50: IF 10 6060 01 ¹ 0 THEN 10 6060 text is not Null AND is not = 'b' IF 10 6060 01 "Other" text is not Null AND is not = 'b' THEN 10 6060 01 > 0 | R50: =IF(AND('10'!K114<>0,'10'!G114=0),1,0) -> 0 | S50: =IF(AND('10'!K114<>0,'10'!G114=""),1,0) -> 0 | T50: =IF(AND('10'!G114<>"",'10'!K114=0),1,0) -> 0 | V50: 0 | X50: 34 | Y50: B00 | Z50: R0034 | AD50: =IF(V50=0,"",GetFIRMapping(V50)) -> 
D51: =IF(OR(V51=0,Q51<>""),"OK",IF(AND(V51=1,K51="C"),"CRITICAL","VERIFY")) -> OK | E51: OK | F51: 10 | G51: 10V 028 | I51: 10 4099 01 | K51: V | L51: V | N51: If the sum of (SLC 10 0831 01 + SLC 10 0825 01) is greater than zero then SLC 10 4099 01 should be greater than zero. Please enter the federal gas tax amount utilized in the acquisition of tangible capital asets in the year. | O51: IF (10 0831 01 + 10 0825 01) > 0, THEN 10 4099 01 > 0 | R51: =IF(('10'!K36+'10'!K34)>0,0,1) -> 0 | S51: =IF('10'!K162>0,0,1) -> 0 | V51: =IF(R51=S51,0,1) -> 0 | X51: 35 | Y51: B00 | Z51: R0035 | AD51: =IF(V51=0,"",GetFIRMapping(V51)) -> 
D52: OK | E52: VERIFY | F52: 10 | G52: 10V 029 | I52: 10 4018 01 | K52: V | L52: V | N52: If the sum of (SLC 60 1042 01 + SLC 12 0631 01 + SLC 12 0632 01) is greater than zero then SLC 10 4018 01 should be greater than zero. Please enter the Provincial gas tax amount utilized for current transit operations in the year. | O52: IF (60 1042 01 + 12 0631 01 + 12 0632 01) > 0, THEN 10 4018 01 > 0 | Q52: yes | R52: =IF(('60'!J46+'12'!L32+'12'!L33)>0,0,1) -> 0 | S52: =IF('10'!K122>0,0,1) -> 1 | V52: =IF(R52=S52,0,1) -> 1 | X52: 36 | Y52: B00 | Z52: R0036 | AD52: =IF(V52=0,"",GetFIRMapping(V52)) -> 
D53: =IF(OR(V53=0,Q53<>""),"OK",IF(AND(V53=1,K53="C"),"CRITICAL","VERIFY")) -> OK | E53: OK | F53: 10 | G53: 10V 030 | I53: 10 4019 01 | K53: V | L53: V | N53: If the sum of (SLC 60 1045 01 + SLC 12 0631 05 + SLC 12 0632 05) is greater than zero then SLC 10 4019 01 should be greater than zero. Please enter the Provincial gas tax amount utilized for the acquisition of transit tangible capital assets in the year. | O53: IF (60 1045 01 + 12 0631 05 + 12 0632 05) > 0, THEN 10 4019 01 > 0 | R53: =IF(('60'!J47+'12'!P32+'12'!P33)>0,0,1) -> 1 | S53: =IF('10'!K123>0,0,1) -> 1 | V53: =IF(R53=S53,0,1) -> 0 | X53: 37 | Y53: B00 | Z53: R0037 | AD53: =IF(V53=0,"",GetFIRMapping(V53)) -> 
D54: OK | E54: OK | F54: 10 | G54: 10C 031 | I54: 10 9950 01 | K54: C | L54: C | N54: Accumulated surplus/deficit at end of year on SLC 10 9950 01 must equal SLC 70 9970 01. | O54: 10 9950 01 = 70 9970 01 | V54: =IF(ROUNDUP('10'!K$106,0)=ROUNDUP('70'!J$124,0),0,1) -> 0 | X54: 38 | Y54: B00 | Z54: R0038 | AD54: =IF(V54=0,"",GetFIRMapping(V54)) -> 
D55: OK | E55: OK | F55: 10 | G55: 10C 032 | I55: 10 4046 01 | K55: C | L55: C | N55: If a numeric amount has been entered into SLC 10 4046 01, then a text description of this amount is required. If a description for "Other" has been entered, then an amount must be entered into SLC 10 4046 01. | O55: IF 10 4046 01 is not = 0 THEN 10 4046 text is not Null AND is not = 'b' IF 10 4046 01 "Other" text is not Null AND is not = 'b' THEN 10 4046 01 > 0 | R55: =IF(AND('10'!K138<>0,'10'!G138=0),1,0) -> 0 | S55: =IF(AND('10'!K138<>0,'10'!G138=""),1,0) -> 0 | T55: =IF(AND('10'!G138<>"",'10'!K138=0),1,0) -> 0 | V55: =IF(OR(R55=1,S55=1,T55=1),1,0) -> 0 | X55: 39 | Y55: B00 | Z55: R0039 | AD55: =IF(V55=0,"",GetFIRMapping(V55)) -> 
D56: =IF(OR(V56=0,Q56<>""),"OK",IF(AND(V56=1,K56="C"),"CRITICAL","VERIFY")) -> OK | E56: OK | F56: 10 | G56: 10V 033 | I56: 10 2060 01 | K56: V | L56: V | M56: Y | N56: The current year’s opening Accumulated Surplus/(Deficit) on SLC 10 2062 01 minus SLC 2061 must agree to the prior year’s closing Accumulated Surplus/(Deficit) on SLC 10 9950 01. | O56: (10 2062 01 - 10 2061 01) = PY 10 9950 01 PY - Previous Year | R56: =PYData!D6 -> 71060744 | U56: ='10'!K104-'10'!K103 -> 71060744 | V56: =IF((ROUND(U56,0))<>ROUND(PYData!D6,0),1,0) -> 0 | X56: 40 | Y56: B00 | Z56: R0040 | AD56: =IF(V56=0,"",GetFIRMapping(V56)) -> 
D57: OK | E57: OK | F57: 10 | G57: 10V 034 | I57: 10 0299 01 | K57: V | L57: V | M57: Y | N57: Taxation - Own Purposes on SLC 10 0299 01 has changed by more than 30 % since last year. Please verify. | O57: [ABS (x - y) / y] * 100 < 30% | P57: x = 10 0299 01 y = PY 10 0299 01 Percent = 30% PY - Previous Year | R57: =IFERROR(((ABS('10'!K11-PYData!D7))/(PYData!D7))*100,0) -> 6.03582189 | V57: =IF(R57>=30,1,0) -> 0 | X57: 41 | Y57: B00 | Z57: R0041 | AD57: =IF(V57=0,"",GetFIRMapping(V57)) -> 
D58: OK | E58: VERIFY | F58: 10 | G58: 10V 035 | I58: 10 0499 01 | K58: V | L58: V | M58: Y | N58: PILs - Own Purposes on SLC 10 0499 01 has changed by more than 30% since last year. Please verify. | O58: [ABS (x - y) / y] * 100 < 30% | P58: x = 10 0499 01 y = PY 10 0499 01 Percent = 30% PY - Previous Year | Q58: yes | R58: =IFERROR(((ABS('10'!K13-PYData!D8))/(PYData!D8))*100,0) -> 122.1479537 | V58: =IF(R58>=30,1,0) -> 1 | X58: 42 | Y58: B00 | Z58: R0042 | AD58: =IF(V58=0,"",GetFIRMapping(V58)) -> 
D59: OK | E59: VERIFY | F59: 10 | G59: 10V 036 | I59: 10 0699 01 | K59: V | L59: V | M59: Y | N59: Ontario Unconditional Grants on SLC 10 0699 01 has changed by more than 30% since last year. Please verify. | O59: [ABS (w - y) / y] * 100 < 30% | P59: w = 10 0699 01 y = PY 10 0699 01 Percent = 30% PY - Previous Year | Q59: yes | R59: =IFERROR(((ABS('10'!K29-PYData!D9))/(PYData!D9))*100,0) -> 35.83941792 | V59: 1 | X59: 43 | Y59: B00 | Z59: R0043 | AD59: =IF(V59=0,"",GetFIRMapping(V59)) -> 
D60: OK | E60: VERIFY | F60: 10 | G60: 10V 037 | I60: 10 0899 01 | K60: V | L60: V | M60: Y | N60: Conditional Grants on SLC 10 0899 01 has changed by more than 30% since last year. Please verify. | O60: [ABS (w - y) / y] * 100 < 30% | P60: w = 10 0899 01 y = PY 10 0899 01 Percent = 30% PY - Previous Year | Q60: yes | R60: =IFERROR(((ABS('10'!K37-PYData!D10))/(PYData!D10))*100,0) -> 94.42563935 | V60: 1 | X60: 44 | Y60: B00 | Z60: R0044 | AD60: =IF(V60=0,"",GetFIRMapping(V60)) -> 
D61: OK | E61: OK | F61: 10 | G61: 10V 038 | I61: 10 1099 01 | K61: V | L61: V | M61: Y | N61: Revenue from Other Municipalities on SLC 10 1099 01 has changed by more than 30% since last year. Please verify. | O61: [ABS (w - y) / y] * 100 < 30% | P61: w = 10 1099 01 y = PY 10 1099 01 Percent = 30% PY - Previous Year | R61: =IFERROR(((ABS('10'!K41-PYData!D11))/(PYData!D11))*100,0) -> 11.9265795 | V61: 0 | X61: 45 | Y61: B00 | Z61: R0045 | AD61: =IF(V61=0,"",GetFIRMapping(V61)) -> 
D62: OK | E62: OK | F62: 10 | G62: 10V 039 | I62: 10 1299 01 | K62: V | L62: V | M62: Y | N62: User Fees and Service Charges on SLC 10 1299 01 has changed by more than 30% since last year. Please verify. | O62: [ABS (w - y) / y] * 100 < 30% | P62: w = 10 1299 01 y = PY 10 1299 01 Percent = 30% PY - Previous Year | R62: =IFERROR(((ABS('10'!K43-PYData!D12))/(PYData!D12))*100,0) -> 16.84235115 | V62: 0 | X62: 46 | Y62: B00 | Z62: R0046 | AD62: =IF(V62=0,"",GetFIRMapping(V62)) -> 
D63: OK | E63: OK | F63: 10 | G63: 10V 040 | I63: 10 1499 01 | K63: V | L63: V | M63: Y | N63: Licences, Permits, Rents, etc. on SLC 10 1499 01 has changed by more than 30% since last year. Please verify. | O63: [ABS (w - y) / y] * 100 < 30% | P63: w = 10 1499 01 y = PY 10 1499 01 Percent = 30% PY - Previous Year | R63: =IFERROR(((ABS('10'!K52-PYData!D13))/(PYData!D13))*100,0) -> 10.28032876 | V63: 0 | X63: 47 | Y63: B00 | Z63: R0047 | AD63: =IF(V63=0,"",GetFIRMapping(V63)) -> 
D64: OK | E64: OK | F64: 10 | G64: 10V 041 | I64: 10 1699 01 | K64: V | L64: V | M64: Y | N64: Fines and Penalties on SLC 10 1699 01 has changed by more than 30% since last year. Please verify. | O64: [ABS (w - y) / y] * 100 < 30% | P64: w = 10 1699 01 y = PY 10 1699 01 Percent = 30% PY - Previous Year | R64: =IFERROR(((ABS('10'!K58-PYData!D14))/(PYData!D14))*100,0) -> 29.39860508 | V64: 0 | X64: 48 | Y64: B00 | Z64: R0048 | AD64: =IF(V64=0,"",GetFIRMapping(V64)) -> 
D65: OK | E65: VERIFY | F65: 10 | G65: 10V 042 | I65: 10 1899 01 | K65: V | L65: V | M65: Y | N65: Other Revenue on SLC 10 1899 01 has changed by more than 30% since last year. Please verify. | O65: [ABS (w - y) / y] * 100 < 30% | P65: w = 10 1899 01 y = PY 10 1899 01 Percent = 30% PY - Previous Year | Q65: yes | R65: =IFERROR(((ABS('10'!K82-PYData!D15))/(PYData!D15))*100,0) -> 58.36514804 | V65: 1 | X65: 49 | Y65: B00 | Z65: R0049 | AD65: =IF(V65=0,"",GetFIRMapping(V65)) -> 
D66: OK | E66: OK | F66: 10 | G66: 10V 043 | I66: 10 0699 01 | K66: V | L66: V | M66: Y | N66: The ratio of Ontario Unconditional Grants to Total Revenues (SLC 10 0699 01 : SLC 10 9910 01) has changed by more than 30% from last year's ratio (PY 10 0699 01 : PY 10 9910 01). Please verify. | O66: [(ABS (w / x) * 100) - (ABS (y / z) * 100)] < 30% | P66: w = 10 0699 01 x = 10 9910 01 y = PY 10 0699 01 z = PY 10 9910 01 Percent = 30% PY - Previous Year | R66: =IFERROR((ABS('10'!K29)/('10'!K90))*100,0) -> 2.057334539 | S66: =IFERROR((ABS(PYData!D9)/(PYData!D16))*100,0) -> 3.353046656 | V66: =IF(ABS(R66-S66)>=30,1,0) -> 0 | X66: 50 | Y66: B00 | Z66: R0050 | AD66: =IF(V66=0,"",GetFIRMapping(V66)) -> 
D67: OK | E67: OK | F67: 10 | G67: 10V 044 | I67: 10 0899 01 | K67: V | L67: V | M67: Y | N67: The ratio of Conditional Grants to Total Revenues (SLC 10 0899 01 : SLC 10 9910 01) has changed by more than 30% from last year's ratio (PY 10 0899 01 : PY 10 9910 01). Please verify. | O67: [(ABS (w / x) * 100) - (ABS (y / z) * 100)] < 30% | P67: w = 10 0899 01 x = 10 9910 01 y = PY 10 0899 01 z = PY 10 9910 01 Percent = 30% PY - Previous Year | R67: =IFERROR((ABS('10'!K37)/('10'!K90))*100,0) -> 17.61534152 | S67: =IFERROR((ABS(PYData!D10)/(PYData!D16))*100,0) -> 9.474155452 | V67: 0 | X67: 51 | Y67: B00 | Z67: R0051 | AD67: =IF(V67=0,"",GetFIRMapping(V67)) -> 
D68: OK | E68: OK | F68: 10 | G68: 10V 045 | I68: 10 1099 01 | K68: V | L68: V | M68: Y | N68: The ratio of Revenue from Other Municipalities to Total Revenues (SLC 10 1099 01 : SLC 10 9910 01) has changed by more than 30% from last year's ratio (PY 10 1099 01 : PY 10 9910 01). Please verify. | O68: [(ABS (w / x) * 100) - (ABS (y / z) * 100)] < 30% | P68: w = 10 1099 01 x = 10 9910 01 y = PY 10 1099 01 z = PY 10 9910 01 Percent = 30% PY - Previous Year | R68: =IFERROR((ABS('10'!K41)/('10'!K90))*100,0) -> 0.7823663011 | S68: =IFERROR((ABS(PYData!D11)/(PYData!D16))*100,0) -> 0.9288984688 | V68: 0 | X68: 52 | Y68: B00 | Z68: R0052 | AD68: =IF(V68=0,"",GetFIRMapping(V68)) -> 
D69: OK | E69: OK | F69: 10 | G69: 10V 046 | I69: 10 1299 01 | K69: V | L69: V | M69: Y | N69: The ratio of User Fees and Service Charges to Total Revenues (SLC 10 1299 01 : SLC 10 9910 01) has changed by more than 30% from last year's ratio (PY 10 1299 01 : PY 10 9910 01). Please verify. | O69: [(ABS (w / x) * 100) - (ABS (y / z) * 100)] < 30% | P69: w = 10 1299 01 x = 10 9910 01 y = PY 10 1299 01 z = PY 10 9910 01 Percent = 30% PY - Previous Year | R69: =IFERROR((ABS('10'!K43)/('10'!K90))*100,0) -> 9.446980544 | S69: =IFERROR((ABS(PYData!D12)/(PYData!D16))*100,0) -> 8.454651447 | V69: 0 | X69: 53 | Y69: B00 | Z69: R0053 | AD69: =IF(V69=0,"",GetFIRMapping(V69)) -> 
D70: OK | E70: OK | F70: 10 | G70: 10V 047 | I70: 10 1499 01 | K70: V | L70: V | M70: Y | N70: The ratio of Licences, Permits, Rents, etc. to Total Revenues (SLC 10 1499 01 : SLC 10 9910 01) has changed by more than 30% from last year's ratio (PY 10 1499 01 : PY 10 9910 01). Please verify. | O70: [(ABS (w / x) * 100) - (ABS (y / z) * 100)] < 30% | P70: w = 10 1499 01 x = 10 9910 01 y = PY 10 1499 01 z = PY 10 9910 01 Percent = 30% PY - Previous Year | R70: =IFERROR((ABS('10'!K52)/('10'!K90))*100,0) -> 7.026792124 | S70: =IFERROR((ABS(PYData!D13)/(PYData!D16))*100,0) -> 8.189783229 | V70: 0 | X70: 54 | Y70: B00 | Z70: R0054 | AD70: =IF(V70=0,"",GetFIRMapping(V70)) -> 
D71: OK | E71: OK | F71: 10 | G71: 10V 048 | I71: 10 1699 01 | K71: V | L71: V | M71: Y | N71: The ratio of Fines and Penalties to Total Revenues (SLC 10 1699 01 : SLC 10 9910 01) has changed by more than 30% from last year's ratio (PY 10 1699 01 : PY 10 9910 01). Please verify. | O71: [(ABS (w / x) * 100) - (ABS (y / z) * 100)] < 30% | P71: w = 10 1699 01 x = 10 9910 01 y = PY 10 1699 01 z = PY 10 9910 01 Percent = 30% PY - Previous Year | R71: =IFERROR((ABS('10'!K58)/('10'!K90))*100,0) -> 0.591058741 | S71: =IFERROR((ABS(PYData!D14)/(PYData!D16))*100,0) -> 0.8754278064 | V71: 0 | X71: 55 | Y71: B00 | Z71: R0055 | AD71: =IF(V71=0,"",GetFIRMapping(V71)) -> 
D72: OK | E72: OK | F72: 10 | G72: 10V 049 | I72: 10 1899 01 | K72: V | L72: V | M72: Y | N72: The ratio of Other Revenue to Total Revenues (SLC 10 1899 01 : SLC 10 9910 01) has changed by more than 30% from last year's ratio (PY 10 1899 01 : PY 10 9910 01). Please verify. | O72: [(ABS (w / x) * 100) - (ABS (y / z) * 100)] < 30% | P72: w = 10 1899 01 x = 10 9910 01 y = PY 10 1899 01 z = PY 10 9910 01 Percent = 30% PY - Previous Year | R72: =IFERROR((ABS('10'!K82)/('10'!K90))*100,0) -> 4.286804018 | S72: =IFERROR((ABS(PYData!D15)/(PYData!D16))*100,0) -> 10.7666248 | V72: 0 | X72: 56 | Y72: B00 | Z72: R0056 | AD72: =IF(V72=0,"",GetFIRMapping(V72)) -> 
D73: OK | E73: OK | F73: 10 | G73: 10C 050 | I73: 10 4084 01 | K73: C | L73: C | N73: If a numeric amount has been entered into SLC 10 4084 01, then a text description of this amount is required. If a description for "Other" has been entered, then an amount must be entered into SLC 10 4084 01. | O73: IF 10 4084 01 is not = 0 THEN 10 4084 text is not Null AND is not = 'b' IF 10 4084 01 "Other" text is not Null AND is not = 'b' THEN 10 4084 01 > 0 OR 10 4084 01 <0 | R73: =IF(AND('10'!K161<>0,'10'!G161=0),1,0) -> 0 | S73: =IF(AND('10'!K161<>0,'10'!G161=""),1,0) -> 0 | T73: =IF(AND('10'!G161<>"",'10'!K161=0),1,0) -> 0 | U73: =IF('10'!G161="0",1,0) -> 0 | V73: =IF(OR(R73=1,S73=1,T73=1,U73=1),1,0) -> 0 | X73: 57 | Y73: B00 | Z73: ="R"&RIGHT("000"&X73,4) -> R0057 | AD73: =IF(V73=0,"",GetFIRMapping(V73)) -> 
D74: OK | E74: OK | F74: 12 | G74: 12C 058 | H74: 120043 | I74: 12 1850 01 | K74: C | L74: C | N74: Entry is not allowed in this cell. No conditional grants or revenue from other municipalities is associated with Tile drainage/shoreline assistance. | O74: 12 1850 01 = 'b' | V74: =IF('12'!L$89="",0,1) -> 0 | X74: 58 | Y74: B00 | Z74: R0058 | AD74: =IF(V74=0,"",GetFIRMapping(V74)) -> 
D75: OK | E75: OK | F75: 12 | G75: 12C 059 | H75: 120044 | I75: 12 1850 02 | K75: C | L75: C | N75: Entry is not allowed in this cell. No conditional grants or revenue from other municipalities is associated with Tile drainage/shoreline assistance. | O75: 12 1850 02 = 'b' | V75: =IF('12'!M$89="",0,1) -> 0 | X75: 59 | Y75: B00 | Z75: R0059 | AD75: =IF(V75=0,"",GetFIRMapping(V75)) -> 
D76: OK | E76: OK | F76: 12 | G76: 12C 060 | H76: 120045 | I76: 12 1850 03 | K76: C | L76: C | N76: Entry is not allowed in this cell. No conditional grants or revenue from other municipalities is associated with Tile drainage/shoreline assistance. | O76: 12 1850 03 = 'b' | V76: =IF('12'!N$89="",0,1) -> 0 | X76: 60 | Y76: B00 | Z76: R0060 | AD76: =IF(V76=0,"",GetFIRMapping(V76)) -> 
D77: OK | E77: OK | F77: 12 | G77: 12C 061 | I77: 12 1850 05 | K77: C | L77: C | N77: Entry is not allowed in this cell. No conditional grants or revenue from other municipalities is associated with Tile drainage/shoreline assistance. | O77: 12 1850 05 = 'b' | V77: =IF('12'!P$89="",0,1) -> 0 | X77: 61 | Y77: B00 | Z77: R0061 | AD77: =IF(V77=0,"",GetFIRMapping(V77)) -> 
D78: OK | E78: OK | F78: 12 | G78: 12C 062 | I78: 12 1850 06 | K78: C | L78: C | N78: Entry is not allowed in this cell. No conditional grants or revenue from other municipalities is associated with Tile drainage/shoreline assistance. | O78: 12 1850 06 = 'b' | V78: =IF('12'!Q$89="",0,1) -> 0 | X78: 62 | Y78: B00 | Z78: R0062 | AD78: =IF(V78=0,"",GetFIRMapping(V78)) -> 
D79: OK | E79: OK | F79: 12 | G79: 12C 097 | I79: 12 1850 07 | K79: C | L79: C | N79: Entry is not allowed in this cell. No conditional grants or revenue from other municipalities is associated with Tile drainage/shoreline assistance. | O79: 12 1850 07 = 'b' | V79: =IF('12'!R$89="",0,1) -> 0 | X79: 63 | Y79: B00 | Z79: R0063 | AD79: =IF(V79=0,"",GetFIRMapping(V79)) -> 
D80: OK | E80: OK | F80: 12 | G80: 12C 063 | I80: 12 1035 01 | K80: C | L80: C | N80: Entry for Ambulance Dispatch - Ontario Conditional Grants is permitted only for 4 municipalities that receive ministry funding. The list includes Niagara R, Toronto C, Ottawa C and Timmins C. | O80: 12 1035 01 <> 'b' for Niagara R, Toronto C, Ottawa C, Timmins C | R80: =IF(OR(MUNMAHCode="18000_MAH",MUNMAHCode="01106_MAH"),1,0) -> 0 | S80: =IF(OR(MUNMAHCode="20107_MAH",MUNMAHCode="81101_MAH"),1,0) -> 0 | T80: =SUM(R80:S80) -> 0 | U80: =IF('12'!L$55="",1,0) -> 1 | V80: =IF(AND(T80=1,U80=1),1,0) -> 0 | X80: 64 | Y80: B00 | Z80: R0064 | AD80: =IF(V80=0,"",GetFIRMapping(V80)) -> 
D81: OK | E81: =IF(V81=0,"OK",IF(AND(V81=1,L81="C"),"CRITICAL","VERIFY")) -> OK | F81: 12 | G81: 12C 067 | I81: 12 1035 01 12 1035 05 | K81: C | L81: C | N81: The sum of (Ontario Conditional Grants plus Ontario Grants -Tangible Capital Assets) for Ambulance Dispatch cannot be 0 for 4 municipalities that receive ministry funding. The list includes Niagara R, Toronto C, Ottawa C and Timmins C. | O81: (12 1035 01+12 1035 05) <> 0 for Niagara R, Toronto C, Ottawa C, Timmins C | R81: =IF(OR(MUNMAHCode="18000_MAH",MUNMAHCode="01106_MAH"),1,0) -> 0 | S81: =IF(OR(MUNMAHCode="20107_MAH",MUNMAHCode="81101_MAH"),1,0) -> 0 | T81: =SUM(R81:S81) -> 0 | U81: =IF(('12'!P$55+'12'!L$55)=0,1,0) -> 1 | V81: =IF(AND(T81=1,U81=1),1,0) -> 0 | X81: 65 | Y81: B00 | Z81: R0065 | AD81: =IF(V81=0,"",GetFIRMapping(V81)) -> 
D82: =IF(OR(V82=0,Q82<>""),"OK",IF(AND(V82=1,K82="C"),"CRITICAL","VERIFY")) -> OK | E82: OK | F82: 12 | G82: 12V 001 | H82: 120082 | I82: 12 0299 xx | K82: V | L82: V | N82: If the sum of Revenues for General Government on Schedule 12 (SLC 12 0299 01 + 02 + 03 + 04 + 05 + 06 + 07) equals zero, then Total Expenses for General Government on Schedule 40 (SLC 40 0299 11) must be greater than or equal to zero. OR If the sum of Revenues for General Government on Schedule 12 (SLC 12 0299 01 + 02 + 03 + 04 + 05 + 06 + 07) is greater than zero, then Total Expenses for General Government on Schedule 40 (SLC 40 0299 11) must be greater than zero. | O82: IF (12 0299 01 + 12 0299 02 + 12 0299 03 + 12 0299 04 + 12 0299 05 + 12 0299 06 + 12 0299 07 = 0) THEN (40 0299 11 ³ 0) OR IF (12 0299 01 + 12 0299 02 + 12 0299 03 + 12 0299 04 + 12 0299 05 + 12 0299 06 + 12 0299 07 > 0) THEN (40 0299 11 > 0) | R82: =IF(AND(SUM('12'!L11:R11)=0,'40'!S15>=0),1,0) -> 0 | S82: =IF(AND(SUM('12'!L11:R11)>0,'40'!S15>0),1,0) -> 1 | V82: =IF(OR(R82=1,S82=1),0,1) -> 0 | X82: 66 | Y82: B00 | Z82: ="R"&RIGHT("000"&X82,4) -> R0066 | AA82: =IF(V82=0,"",GetFIRMappingTEXT(G82)) ->  | AC82: =GetFIRMappingTEXT(Q82) ->  | AD82: =IF(V82=0,"",GetFIRMapping(V82)) -> 
D83: OK | E83: OK | F83: 12 | G83: 12V 002 | H83: 120083 | I83: 12 0410 xx | K83: V | L83: V | N83: If the sum of Revenues for Fire on Schedule 12 (SLC 12 0410 01 + 02 + 03 + 04 + 05 + 06 + 07) equals zero, then Total Expenses for Fire on Schedule 40 (SLC 40 0410 11) must be greater than or equal to zero. OR If the sum of Revenues for Fire on Schedule 12 (SLC 12 0410 01 + 02 + 03 + 04 + 05 + 06 + 07) is greater than zero, then Total Expenses for Fire on Schedule 40 (SLC 40 0410 11) must be greater than zero. | O83: IF (12 0410 01 + 12 0410 02 + 12 0410 03 + 12 0410 04 + 12 0410 05 + 12 0410 06 + 12 0410 07 = 0) THEN (40 0410 11 ³ 0) OR IF (12 0410 01 + 12 0410 02 + 12 0410 03 + 12 0410 04 + 12 0410 05 + 12 0410 06 + 12 0410 07 > 0) THEN (40 0410 11 > 0) | R83: =IF(AND(SUM('12'!L14:R14)=0,'40'!S18>=0),1,0) -> 0 | S83: =IF(AND(SUM('12'!L14:R14)>0,'40'!S18>0),1,0) -> 1 | V83: 0 | X83: =X82+1 -> 67 | Y83: B00 | Z83: R0067 | AD83: =IF(V83=0,"",GetFIRMapping(V83)) -> 
D84: OK | E84: OK | F84: 12 | G84: 12V 003 | H84: 120084 | I84: 12 0420 xx | K84: V | L84: V | N84: If the sum of Revenues for Police on Schedule 12 (SLC 12 0420 01 + 02 + 03 + 04 + 05 + 06 + 07) equals zero, then Total Expenses for Police on Schedule 40 (SLC 40 0420 11) must be greater than or equal to zero. OR If the sum of Revenues for Police on Schedule 12 (SLC 12 0420 01 + 02 + 03 + 04 + 05 + 06 + 07) is greater than zero, then Total Expenses for Police on Schedule 40 (SLC 40 0420 11) must be greater than zero. | O84: IF (12 0420 01 + 12 0420 02 + 12 0420 03 + 12 0420 04 + 12 0420 05 + 12 0420 06 + 12 0420 07 = 0) THEN (40 0420 11 ³ 0) OR IF (12 0420 01 + 12 0420 02 + 12 0420 03 + 12 0420 04 + 12 0420 05 + 12 0420 06 + 12 0420 07 > 0) THEN (40 0420 11 > 0) | R84: =IF(AND(SUM('12'!L15:R15)=0,'40'!S19>=0),1,0) -> 0 | S84: =IF(AND(SUM('12'!L15:R15)>0,'40'!S19>0),1,0) -> 1 | V84: 0 | X84: 68 | Y84: B00 | Z84: R0068 | AD84: =IF(V84=0,"",GetFIRMapping(V84)) -> 
D85: OK | E85: VERIFY | F85: 12 | G85: 12V 069 | I85: 12 0421 xx | K85: V | L85: V | N85: If the sum of Revenues for Court Security on Schedule 12 (SLC 12 0421 01 + 02 + 03 + 04 + 05 + 06 + 07) equals zero, then Total Expenses for Court Security on Schedule 40 (SLC 40 0421 11) must be greater than or equal to zero. OR If the sum of Revenues for Court Security on Schedule 12 (SLC 12 0421 01 + 02 + 03 + 04 + 05 + 06 + 07) is greater than zero, then Total Expenses for Court Security on Schedule 40 (SLC 40 0421 11) must be greater than zero. | O85: IF (12 0421 01 + 12 0421 02 + 12 0421 03 + 12 0421 04 + 12 0421 05 + 12 0421 06 + 12 0421 07 = 0) THEN (40 0421 11 ³ 0) OR IF (12 0421 01 + 12 0421 02 + 12 0421 03 + 12 0421 04 + 12 0421 05 + 12 0421 06 + 12 0421 07 > 0) THEN (40 0421 11 > 0) | Q85: yes | R85: =IF(AND(SUM('12'!L16:R16)=0,'40'!S20>=0),1,0) -> 0 | S85: =IF(AND(SUM('12'!L16:R16)>0,'40'!S20>0),1,0) -> 0 | V85: =IF(OR(R85=1,S85=1),0,1) -> 1 | X85: 69 | Y85: B00 | Z85: R0069 | AD85: =IF(V85=0,"",GetFIRMapping(V85)) -> 
D86: OK | E86: OK | F86: 12 | G86: 12V 070 | I86: 12 0422 xx | K86: V | L86: V | N86: If the sum of Revenues for Prisoner Transportation on Schedule 12 (SLC 12 0422 01 + 02 + 03 + 04 + 05 + 06 + 07) equals zero, then Total Expenses for Court Security on Schedule 40 (SLC 40 0422 11) must be greater than or equal to zero. OR If the sum of Revenues for Prisoner Transportation on Schedule 12 (SLC 12 0422 01 + 02 + 03 + 04 + 05 + 06 + 07) is greater than zero, then Total Expenses for Court Security on Schedule 40 (SLC 40 0422 11) must be greater than zero. | O86: IF (12 0422 01 + 12 0422 02 + 12 0422 03 + 12 0422 04 + 12 0422 05 + 12 0422 06 + 12 0422 07 = 0) THEN (40 0422 11 ³ 0) OR IF (12 0422 01 + 12 0422 02 + 12 0422 03 + 12 0422 04 + 12 0422 05 + 12 0422 06 + 12 0422 07 > 0) THEN (40 0422 11 > 0) | R86: =IF(AND(SUM('12'!L17:R17)=0,'40'!S21>=0),1,0) -> 1 | S86: =IF(AND(SUM('12'!L17:R17)>0,'40'!S21>0),1,0) -> 0 | V86: =IF(OR(R86=1,S86=1),0,1) -> 0 | X86: 70 | Y86: B00 | Z86: R0070 | AD86: =IF(V86=0,"",GetFIRMapping(V86)) -> 
D87: OK | E87: OK | F87: 12 | G87: 12V 004 | H87: 120085 | I87: 12 0430 xx | K87: V | L87: V | N87: If the sum of Revenues for Conservation Authority on Schedule 12 (SLC 12 0430 01 + 02 + 03 + 04 + 05 + 06 + 07) equals zero, then Total Expenses for Conservation Authority on Schedule 40 (SLC 40 0430 11) must be greater than or equal to zero. OR If the sum of Revenues for Conservation Authority on Schedule 12 (SLC 12 0430 01 + 02 + 03 + 04 + 05 + 06 + 07) is greater than zero, then Total Expenses for Conservation Authority on Schedule 40 (SLC 40 0430 11) must be greater than zero. | O87: IF (12 0430 01 + 12 0430 02 + 12 0430 03 + 12 0430 04 + 12 0430 05 + 12 0430 06 + 12 0430 07 = 0) THEN (40 0430 11 ³ 0) OR IF (12 0430 01 + 12 0430 02 + 12 0430 03 + 12 0430 04 + 12 0430 05 + 12 0430 06 + 12 0430 07 > 0) THEN (40 0430 11 > 0) | R87: =IF(AND(SUM('12'!L18:R18)=0,'40'!S22>=0),1,0) -> 1 | S87: =IF(AND(SUM('12'!L18:R18)>0,'40'!S22>0),1,0) -> 0 | V87: 0 | X87: 71 | Y87: B00 | Z87: R0071 | AD87: =IF(V87=0,"",GetFIRMapping(V87)) -> 
D88: OK | E88: OK | F88: 12 | G88: 12V 005 | H88: 120086 | I88: 12 0440 xx | K88: V | L88: V | N88: If the sum of Revenues for Protective Inspection and Control on Schedule 12 (SLC 12 0440 01 + 02 + 03 + 04 + 05 + 06 + 07) equals zero, then Total Expenses for Protective Inspection and Control on Schedule 40 (SLC 40 0440 11) must be greater than or equal to zero. OR If the sum of Revenues for Protective Inspection and Control on Schedule 12 (SLC 12 0440 01 + 02 + 03 + 04 + 05 + 06 + 07) is greater than zero, then Total Expenses for Protective Inspection and Control on Schedule 40 (SLC 40 0440 11) must be greater than zero. | O88: IF (12 0440 01 + 12 0440 02 + 12 0440 03 + 12 0440 04 + 12 0440 05 + 12 0440 06 + 12 0440 07 = 0) THEN (40 0440 11 ³ 0) OR IF (12 0440 01 + 12 0440 02 + 12 0440 03 + 12 0440 04 + 12 0440 05 + 12 0440 06 + 12 0440 07 > 0) THEN (40 0440 11 > 0) | R88: =IF(AND(SUM('12'!L19:R19)=0,'40'!S23>=0),1,0) -> 0 | S88: =IF(AND(SUM('12'!L19:R19)>0,'40'!S23>0),1,0) -> 1 | V88: 0 | X88: 72 | Y88: B00 | Z88: R0072 | AD88: =IF(V88=0,"",GetFIRMapping(V88)) -> 
D89: OK | E89: OK | F89: 12 | G89: 12V 006 | H89: 120087 | I89: 12 0450 xx | K89: V | L89: V | N89: If the sum of Revenues for Emergency Measures on Schedule 12 (SLC 12 0450 01 + 02 + 03 + 04 + 05 + 06 + 07) equals zero, then Total Expenses for Emergency Measures on Schedule 40 (SLC 40 0450 11) must be greater than or equal to zero. OR If the sum of Revenues for Emergency Measures on Schedule 12 (SLC 12 0450 01 + 02 + 03 + 04 + 05 + 06 + 07) is greater than zero, then Total Expenses for Emergency Measures on Schedule 40 (SLC 40 0450 11) must be greater than zero. | O89: IF (12 0450 01 + 12 0450 02 + 12 0450 03 + 12 0450 04 + 12 0450 05 + 12 0450 06 + 12 0450 07 = 0) THEN (40 0450 11 ³ 0) OR IF (12 0450 01 + 12 0450 02 + 12 0450 03 + 12 0450 04 + 12 0450 05 + 12 0450 06 + 12 0450 07 > 0) THEN (40 0450 11 > 0) | R89: =IF(AND(SUM('12'!L21:R21)=0,'40'!S25>=0),1,0) -> 1 | S89: =IF(AND(SUM('12'!L21:R21)>0,'40'!S25>0),1,0) -> 0 | V89: 0 | X89: 73 | Y89: B00 | Z89: R0073 | AD89: =IF(V89=0,"",GetFIRMapping(V89)) -> 
D90: OK | E90: OK | F90: 12 | G90: 12V 007 | H90: 120088 | I90: 12 0498 xx | K90: V | L90: V | N90: If the sum of Revenues on Schedule 12 for line 0498 (SLC 12 0498 01 + 02 + 03 + 04 + 05 + 06 + 07) equals zero, then Total Expenses on Schedule 40 for line 0498 (SLC 40 0498 11) must be greater than or equal to zero. OR If the sum of Revenues on Schedule 12 for line 0498 (SLC 12 0498 01 + 02 + 03 + 04 + 05 + 06 + 07) is greater than zero, then Total Expenses on Schedule 40 for line 0498 (SLC 40 0498 11) must be greater than zero. | O90: IF (12 0498 01 + 12 0498 02 + 12 0498 03 + 12 0498 04 + 12 0498 05 + 12 0498 06 + 12 0498 07 = 0) THEN (40 0498 11 ³ 0) OR IF (12 0498 01 + 12 0498 02 + 12 0498 03 + 12 0498 04 + 12 0498 05 + 12 0498 06 + 12 0498 07 > 0) THEN (40 0498 11 > 0) | R90: =IF(AND(SUM('12'!L23:R23)=0,'40'!S27>=0),1,0) -> 1 | S90: =IF(AND(SUM('12'!L23:R23)>0,'40'!S27>0),1,0) -> 0 | V90: 0 | X90: 74 | Y90: B00 | Z90: R0074 | AD90: =IF(V90=0,"",GetFIRMapping(V90)) -> 
D91: OK | E91: OK | F91: 12 | G91: 12V 071 | H91: 120089 | I91: 12 0611 xx | K91: V | L91: V | N91: If the sum of Revenues for Roads - Paved on Schedule 12 (SLC 12 0611 01 + 02 + 03 + 04 + 05 + 06 + 07) equals zero, then Total Expenses for Roads - Paved on Schedule 40 (SLC 40 0611 11) must be greater than or equal to zero. OR If the sum of Revenues for Roads - Paved on Schedule 12 (SLC 12 0611 01 + 02 + 03 + 04 + 05 + 06 + 07) is greater than zero, then Total Expenses for Roads - Paved on Schedule 40 (SLC 40 0611 11) must be greater than zero. | O91: IF (12 0611 01 + 12 0611 02 + 12 0611 03 + 12 0611 04 + 12 0611 05 + 12 0611 06 + 12 0611 07 = 0) THEN (40 0611 11 ³ 0) OR IF (12 0611 01 + 12 0611 02 + 12 0611 03 + 12 0611 04 + 12 0611 05 + 12 0611 06 + 12 0611 07 > 0) THEN (40 0611 11 > 0) | R91: =IF(AND(SUM('12'!L26:R26)=0,'40'!S31>=0),1,0) -> 0 | S91: =IF(AND(SUM('12'!L26:R26)>0,'40'!S31>0),1,0) -> 1 | V91: =IF(OR(R91=1,S91=1),0,1) -> 0 | X91: 75 | Y91: B00 | Z91: R0075 | AD91: =IF(V91=0,"",GetFIRMapping(V91)) -> 
D92: OK | E92: OK | F92: 12 | G92: 12V 072 | I92: 12 0612 xx | K92: V | L92: V | N92: If the sum of Revenues for Roads - UnPaved on Schedule 12 (SLC 12 0612 01 + 02 + 03 + 04 + 05 + 06 + 07 ) equals zero, then Total Expenses for Roads - UnPaved on Schedule 40 (SLC 40 0612 11) must be greater than or equal to zero. OR If the sum of Revenues for Roads - UnPaved on Schedule 12 (SLC 12 0612 01 + 02 + 03 + 04 + 05 + 06 + 07) is greater than zero, then Total Expenses for Roads - UnPaved on Schedule 40 (SLC 40 0612 11) must be greater than zero. | O92: IF (12 0612 01 + 12 0612 02 + 12 0612 03 + 12 0612 04 + 12 0612 05 + 12 0612 06 + 12 0612 07 = 0) THEN (40 0612 11 ³ 0) OR IF (12 0612 01 + 12 0612 02 + 12 0612 03 + 12 0612 04 + 12 0612 05 + 12 0612 06 + 12 0612 07 > 0) THEN (40 0612 11 > 0) | R92: =IF(AND(SUM('12'!L27:R27)=0,'40'!S32>=0),1,0) -> 1 | S92: =IF(AND(SUM('12'!L27:R27)>0,'40'!S32>0),1,0) -> 0 | V92: =IF(OR(R92=1,S92=1),0,1) -> 0 | X92: 76 | Y92: B00 | Z92: R0076 | AD92: =IF(V92=0,"",GetFIRMapping(V92)) -> 
D93: OK | E93: OK | F93: 12 | G93: 12V 073 | I93: 12 0613 xx | K93: V | L93: V | N93: If the sum of Revenues for Roads - Bridges and Culverts on Schedule 12 (SLC 12 0613 01 + 02 + 03 + 04 + 05 + 06 + 07) equals zero, then Total Expenses for Roads - Bridges and Culverts on Schedule 40 (SLC 40 0613 11) must be greater than or equal to zero. OR If the sum of Revenues for Roads - Bridges and Culverts on Schedule 12 (SLC 12 0613 01 + 02 + 03 + 04 + 05 + 06 + 07) is greater than zero, then Total Expenses for Roads - Bridges and Culverts on Schedule 40 (SLC 40 0613 11) must be greater than zero. | O93: IF (12 0613 01 + 12 0613 02 + 12 0613 03 + 12 0613 04 + 12 0613 05 + 12 0613 06 + 12 0613 07 = 0) THEN (40 0613 11 ³ 0) OR IF (12 0613 01 + 12 0613 02 + 12 0613 03 + 12 0613 04 + 12 0613 05 + 12 0613 06 + 12 0613 07 > 0) THEN (40 0613 11 > 0) | R93: =IF(AND(SUM('12'!L28:R28)=0,'40'!S33>=0),1,0) -> 1 | S93: =IF(AND(SUM('12'!L28:R28)>0,'40'!S33>0),1,0) -> 0 | V93: 0 | X93: 77 | Y93: B00 | Z93: R0077 | AD93: =IF(V93=0,"",GetFIRMapping(V93)) -> 
D94: OK | E94: OK | F94: 12 | G94: 12V 074 | I94: 12 0614 xx | K94: V | L94: V | N94: If the sum of Revenues for Roadways - Traffic Operations & Roadside on Schedule 12 (SLC 12 0614 01 + 02 + 03 + 04 + 05 + 06 + 07) equals zero, then Total Expenses for Roadways - Traffic Operations & Roadside on Schedule 40 (SLC 40 0614 11) must be greater than or equal to zero. OR If the sum of Revenues for Roadways - Traffic Operations & Roadside on Schedule 12 (SLC 12 0614 01 + 02 + 03 + 04 + 05 + 06 + 07) is greater than zero, then Total Expenses for Roadways - Traffic Operations & Roadside on Schedule 40 (SLC 40 0614 11) must be greater than zero. | O94: IF (12 0614 01 + 12 0614 02 + 12 0614 03 + 12 0614 04 + 12 0614 05 + 12 0614 06 + 12 0614 07 = 0) THEN (40 0614 11 ³ 0) OR IF (12 0614 01 + 12 0614 02 + 12 0614 03 + 12 0614 04 + 12 0614 05 + 12 0614 06 + 12 0614 07 > 0) THEN (40 0614 11 > 0) | R94: =IF(AND(SUM('12'!L29:R29)=0,'40'!S34>=0),1,0) -> 1 | S94: =IF(AND(SUM('12'!L29:R29)>0,'40'!S34>0),1,0) -> 0 | V94: 0 | X94: 78 | Y94: B00 | Z94: R0078 | AD94: =IF(V94=0,"",GetFIRMapping(V94)) -> 
D95: OK | E95: OK | F95: 12 | G95: 12V 075 | I95: 12 0621 xx | K95: V | L95: V | N95: If the sum of Revenues for Winter Control - Except sidewalks, Parking Lots on Schedule 12 (SLC 12 0621 01 + 02 + 03 + 04 + 05 + 06 + 07) equals zero, then Total Expenses for Winter Control - Except sidewalks, Parking Lots on Schedule 40 (SLC 40 0621 11) must be greater than or equal to zero. OR If the sum of Revenues for Winter Control - Except sidewalks, Parking Lots on Schedule 12 (SLC 12 0621 01 + 02 + 03 + 04 + 05 + 06 + 07) is greater than zero, then Total Expenses for Winter Control - Except sidewalks, Parking Lots on Schedule 40 (SLC 40 0621 11) must be greater than zero. | O95: IF (12 0621 01 + 12 0621 02 + 12 0621 03 + 12 0621 04 + 12 0621 05 + 12 0621 06 + 12 0621 07 = 0) THEN (40 0621 11 ³ 0) OR IF (12 0621 01 + 12 0621 02 + 12 0621 03 + 12 0621 04 + 12 0621 05 + 12 0621 06 + 12 0621 07 > 0) THEN (40 0621 11 > 0) | R95: =IF(AND(SUM('12'!L30:R30)=0,'40'!S35>=0),1,0) -> 1 | S95: =IF(AND(SUM('12'!L30:R30)>0,'40'!S35>0),1,0) -> 0 | V95: 0 | X95: 79 | Y95: B00 | Z95: R0079 | AD95: =IF(V95=0,"",GetFIRMapping(V95)) -> 
D96: OK | E96: OK | F96: 12 | G96: 12V 076 | I96: 12 0622 xx | K96: V | L96: V | N96: If the sum of Revenues for Winter Control - Sidewalks, Parking Lots Only on Schedule 12 (SLC 12 0622 01 + 02 + 03 + 04 + 05 + 06 + 07) equals zero, then Total Expenses for Winter Control - Sidewalks, Parking Lots Only on Schedule 40 (SLC 40 0622 11) must be greater than or equal to zero. OR If the sum of Revenues for Winter Control - Sidewalks, Parking Lots Only on Schedule 12 (SLC 12 0622 01 + 02 + 03 + 04 + 05 + 06 + 07) is greater than zero, then Total Expenses for Winter Control - Sidewalks, Parking Lots Only on Schedule 40 (SLC 40 0622 11) must be greater than zero. | O96: IF (12 0622 01 + 12 0622 02 + 12 0622 03 + 12 0622 04 + 12 0622 05 + 12 0622 06 + 12 0622 07 = 0) THEN (40 0622 11 ³ 0) OR IF (12 0622 01 + 12 0622 02 + 12 0622 03 + 12 0622 04 + 12 0622 05 + 12 0622 06 + 12 0622 07 > 0) THEN (40 0622 11 > 0) | R96: =IF(AND(SUM('12'!L31:R31)=0,'40'!S36>=0),1,0) -> 1 | S96: =IF(AND(SUM('12'!L31:R31)>0,'40'!S36>0),1,0) -> 0 | V96: 0 | X96: 80 | Y96: B00 | Z96: R0080 | AD96: =IF(V96=0,"",GetFIRMapping(V96)) -> 
D97: OK | E97: OK | F97: 12 | G97: 12V 077 | H97: 120091 | I97: 12 0631 xx | K97: V | L97: V | N97: If the sum of Revenues for Transit - Conventional on Schedule 12 (SLC 12 0631 01 + 02 + 03 + 04 + 05 + 06 + 07) equals zero, then Total Expenses for Transit - Conventional on Schedule 40 (SLC 40 0631 11) must be greater than or equal to zero. OR If the sum of Revenues for Transit - Conventional on Schedule 12 (SLC 12 0631 01 + 02 + 03 + 04 + 05 + 06 + 07) is greater than zero, then Total Expenses for Transit - Conventional on Schedule 40 (SLC 40 0631 11) must be greater than zero. | O97: IF (12 0631 01 + 12 0631 02 + 12 0631 03 + 12 0631 04 + 12 0631 05 + 12 0631 06 + 12 0631 07 = 0) THEN (40 0631 11 ³ 0) OR IF (12 0631 01 + 12 0631 02 + 12 0631 03 + 12 0631 04 + 12 0631 05 + 12 0631 06 + 12 0631 07 > 0) THEN (40 0631 11 > 0) | R97: =IF(AND(SUM('12'!L32:R32)=0,'40'!S37>=0),1,0) -> 0 | S97: =IF(AND(SUM('12'!L32:R32)>0,'40'!S37>0),1,0) -> 1 | V97: 0 | X97: 81 | Y97: B00 | Z97: R0081 | AD97: =IF(V97=0,"",GetFIRMapping(V97)) -> 
D98: OK | E98: OK | F98: 12 | G98: 12V 078 | I98: 12 0632 xx | K98: V | L98: V | N98: If the sum of Revenues for Transit - Disabled & Special needs on Schedule 12 (SLC 12 0632 01 + 02 + 03 + 04 + 05 + 06 + 07) equals zero, then Total Expenses for Transit - Disabled & Special needs on Schedule 40 (SLC 40 0632 11) must be greater than or equal to zero. OR If the sum of Revenues for Transit - Disabled & Special needs on Schedule 12 (SLC 12 0632 01 + 02 + 03 + 04 + 05 + 06 + 07) is greater than zero, then Total Expenses for Transit - Disabled & Special needs on Schedule 40 (SLC 40 0632 11) must be greater than zero. | O98: IF (12 0632 01 + 12 0632 02 + 12 0632 03 + 12 0632 04 + 12 0632 05 + 12 0632 06 + 12 0632 07 = 0) THEN (40 0632 11 ³ 0) OR IF (12 0632 01 + 12 0632 02 + 12 0632 03 + 12 0632 04 + 12 0632 05 + 12 0632 06 + 12 0632 07 > 0) THEN (40 0632 11 > 0) | R98: =IF(AND(SUM('12'!L33:R33)=0,'40'!S38>=0),1,0) -> 1 | S98: =IF(AND(SUM('12'!L33:R33)>0,'40'!S38>0),1,0) -> 0 | V98: 0 | X98: 82 | Y98: B00 | Z98: R0082 | AD98: =IF(V98=0,"",GetFIRMapping(V98)) -> 
D99: OK | E99: OK | F99: 12 | G99: 12V 011 | H99: 120092 | I99: 12 0640 xx | K99: V | L99: V | N99: If the sum of Revenues for Parking on Schedule 12 (SLC 12 0640 01 + 02 + 03 + 04 + 05 + 06 + 07) equals zero, then Total Expenses for Parking on Schedule 40 (SLC 40 0640 11) must be greater than or equal to zero. OR If the sum of Revenues for Parking on Schedule 12 (SLC 12 0640 01 + 02 + 03 + 04 + 05 + 06 + 07) is greater than zero, then Total Expenses for Parking on Schedule 40 (SLC 40 0640 11) must be greater than zero. | O99: IF (12 0640 01 + 12 0640 02 + 12 0640 03 + 12 0640 04 + 12 0640 05 + 12 0640 06 + 12 0640 07 = 0) THEN (40 0640 11 ³ 0) OR IF (12 0640 01 + 12 0640 02 + 12 0640 03 + 12 0640 04 + 12 0640 05 + 12 0640 06 + 12 0640 07 > 0) THEN (40 0640 11 > 0) | R99: =IF(AND(SUM('12'!L34:R34)=0,'40'!S39>=0),1,0) -> 1 | S99: =IF(AND(SUM('12'!L34:R34)>0,'40'!S39>0),1,0) -> 0 | V99: 0 | X99: 83 | Y99: B00 | Z99: R0083 | AD99: =IF(V99=0,"",GetFIRMapping(V99)) -> 
D100: OK | E100: OK | F100: 12 | G100: 12V 012 | H100: 120093 | I100: 12 0650 xx | K100: V | L100: V | N100: If the sum of Revenues for Street Lighting on Schedule 12 (SLC 12 0650 01 + 02 + 03 + 04 + 05 + 06 + 07) equals zero, then Total Expenses for Street Lighting on Schedule 40 (SLC 40 0650 11) must be greater than or equal to zero. OR If the sum of Revenues for Street Lighting on Schedule 12 (SLC 12 0650 01 + 02 + 03 + 04 + 05 + 06 + 07) is greater than zero, then Total Expenses for Street Lighting on Schedule 40 (SLC 40 0650 11) must be greater than zero. | O100: IF (12 0650 01 + 12 0650 02 + 12 0650 03 + 12 0650 04 + 12 0650 05 + 12 0650 06 + 12 0650 07 = 0) THEN (40 0650 11 ³ 0) OR IF (12 0650 01 + 12 0650 02 + 12 0650 03 + 12 0650 04 + 12 0650 05 + 12 0650 06 + 12 0650 07 > 0) THEN (40 0650 11 > 0) | R100: =IF(AND(SUM('12'!L35:R35)=0,'40'!S40>=0),1,0) -> 1 | S100: =IF(AND(SUM('12'!L35:R35)>0,'40'!S40>0),1,0) -> 0 | V100: 0 | X100: 84 | Y100: B00 | Z100: R0084 | AD100: =IF(V100=0,"",GetFIRMapping(V100)) -> 
D101: OK | E101: OK | F101: 12 | G101: 12V 013 | H101: 120094 | I101: 12 0660 xx | K101: V | L101: V | N101: If the sum of Revenues for Air Transportation on Schedule 12 (SLC 12 0660 01 + 02 + 03 + 04 + 05 + 06 + 07) equals zero, then Total Expenses for Air Transportation on Schedule 40 (SLC 40 0660 11) must be greater than or equal to zero. OR If the sum of Revenues for Air Transportation on Schedule 12 (SLC 12 0660 01 + 02 + 03 + 04 + 05 + 06 + 07) is greater than zero, then Total Expenses for Air Transportation on Schedule 40 (SLC 40 0660 11) must be greater than zero. | O101: IF (12 0660 01 + 12 0660 02 + 12 0660 03 + 12 0660 04 + 12 0660 05 + 12 0660 06 + 12 0660 07 = 0) THEN (40 0660 11 ³ 0) OR IF (12 0660 01 + 12 0660 02 + 12 0660 03 + 12 0660 04 + 12 0660 05 + 12 0660 06 + 12 0660 07 > 0) THEN (40 0660 11 > 0) | R101: =IF(AND(SUM('12'!L36:R36)=0,'40'!S41>=0),1,0) -> 0 | S101: =IF(AND(SUM('12'!L36:R36)>0,'40'!S41>0),1,0) -> 1 | V101: 0 | X101: 85 | Y101: B00 | Z101: R0085 | AD101: =IF(V101=0,"",GetFIRMapping(V101)) -> 
D102: OK | E102: OK | F102: 12 | G102: 12V 014 | H102: 120095 | I102: 12 0698 xx | K102: V | L102: V | N102: If the sum of Revenues on Schedule 12 for line 0698 (SLC 12 0698 01 + 02 + 03 + 04 + 05 + 06 + 07) equals zero, then Total Expenses on Schedule 40 for line 0698 (SLC 40 0698 11) must be greater than or equal to zero. OR If the sum of Revenues on Schedule 12 for line 0698 (SLC 12 0698 01 + 02 + 03 + 04 + 05 + 06 + 07) is greater than zero, then Total Expenses on Schedule 40 for line 0698 (SLC 40 0698 11) must be greater than zero. | O102: IF (12 0698 01 + 12 0698 02 + 12 0698 03 + 12 0698 04 + 12 0698 05 + 12 0698 06 + 12 0698 07 = 0) THEN (40 0698 11 ³ 0) OR IF (12 0698 01 + 12 0698 02 + 12 0698 03 + 12 0698 04 + 12 0698 05 + 12 0698 06 + 12 0698 07 > 0) THEN (40 0698 11 > 0) | R102: =IF(AND(SUM('12'!L37:R37)=0,'40'!S42>=0),1,0) -> 1 | S102: =IF(AND(SUM('12'!L37:R37)>0,'40'!S42>0),1,0) -> 0 | V102: 0 | X102: 86 | Y102: B00 | Z102: R0086 | AD102: =IF(V102=0,"",GetFIRMapping(V102)) -> 
D103: OK | E103: OK | F103: 12 | G103: 12V 079 | H103: 120096 | I103: 12 0811 xx | K103: V | L103: V | N103: If the sum of Revenues for Wastewater collection/conveyance on Schedule 12 (SLC 12 0811 01 + 02 + 03 + 04 + 05 + 06 + 07) equals zero, then Total Expenses for Wastewater collection/conveyance on Schedule 40 (SLC 40 0811 11) must be greater than or equal to zero. OR If the sum of Revenues for Wastewater collection/conveyance on Schedule 12 (SLC 12 0811 01 + 02 + 03 + 04 + 05 + 06 + 07) is greater than zero, then Total Expenses for Wastewater collection/conveyance on Schedule 40 (SLC 40 0811 11) must be greater than zero. | O103: IF (12 0811 01 + 12 0811 02 + 12 0811 03 + 12 0811 04 + 12 0811 05 + 12 0811 06 + 12 0811 07 = 0) THEN (40 0811 11 ³ 0) OR IF (12 0811 01 + 12 0811 02 + 12 0811 03 + 12 0811 04 + 12 0811 05 + 12 0811 06 + 12 0811 07 > 0) THEN (40 0811 11 > 0) | R103: =IF(AND(SUM('12'!L40:R40)=0,'40'!S46>=0),1,0) -> 0 | S103: =IF(AND(SUM('12'!L40:R40)>0,'40'!S46>0),1,0) -> 1 | V103: 0 | X103: 87 | Y103: B00 | Z103: R0087 | AD103: =IF(V103=0,"",GetFIRMapping(V103)) -> 
D104: OK | E104: OK | F104: 12 | G104: 12V 080 | I104: 12 0812 xx | K104: V | L104: V | N104: If the sum of Revenues for Wastewater treatment & disposal on Schedule 12 (SLC 12 0812 01 + 02 + 03 + 04 + 05 + 06 + 07) equals zero, then Total Expenses for Wastewater treatment & disposal on Schedule 40 (SLC 40 0812 11) must be greater than or equal to zero. OR If the sum of Revenues for Wastewater treatment & disposal on Schedule 12 (SLC 12 0812 01 + 02 + 03 + 04 + 05 + 06 + 07) is greater than zero, then Total Expenses for Wastewater treatment & disposal on Schedule 40 (SLC 40 0812 11) must be greater than zero. | O104: IF (12 0812 01 + 12 0812 02 + 12 0812 03 + 12 0812 04 + 12 0812 05 + 12 0812 06 + 12 0812 07 = 0) THEN (40 0812 11 ³ 0) OR IF (12 0812 01 + 12 0812 02 + 12 0812 03 + 12 0812 04 + 12 0812 05 + 12 0812 06 + 12 0812 07 > 0) THEN (40 0812 11 > 0) | R104: =IF(AND(SUM('12'!L41:R41)=0,'40'!S47>=0),1,0) -> 1 | S104: =IF(AND(SUM('12'!L41:R41)>0,'40'!S47>0),1,0) -> 0 | V104: 0 | X104: 88 | Y104: B00 | Z104: R0088 | AD104: =IF(V104=0,"",GetFIRMapping(V104)) -> 
D105: OK | E105: OK | F105: 12 | G105: 12V 081 | H105: 120097 | I105: 12 0821 xx | K105: V | L105: V | N105: If the sum of Revenues for Urban storm sewer system on Schedule 12 (SLC 12 0821 01 + 02 + 03 + 04 + 05 + 06 + 07) equals zero, then Total Expenses for Urban storm sewer system on Schedule 40 (SLC 40 0821 11) must be greater than or equal to zero. OR If the sum of Revenues for Urban storm sewer system on Schedule 12 (SLC 12 0821 01 + 02 + 03 + 04 + 05 + 06 + 07) is greater than zero, then Total Expenses for Urban storm sewer system on Schedule 40 (SLC 40 0821 11) must be greater than zero. | O105: IF (12 0821 01 + 12 0821 02 + 12 0821 03 + 12 0821 04 + 12 0821 05 + 12 0821 06 + 12 0821 07 = 0) THEN (40 0821 11 ³ 0) OR IF (12 0821 01 + 12 0821 02 + 12 0821 03 + 12 0821 04 + 12 0821 05 + 12 0821 06 + 12 0821 07 > 0) THEN (40 0821 11 > 0) | R105: =IF(AND(SUM('12'!L42:R42)=0,'40'!S48>=0),1,0) -> 1 | S105: =IF(AND(SUM('12'!L42:R42)>0,'40'!S48>0),1,0) -> 0 | V105: 0 | X105: 89 | Y105: B00 | Z105: R0089 | AD105: =IF(V105=0,"",GetFIRMapping(V105)) -> 
D106: OK | E106: OK | F106: 12 | G106: 12V 082 | I106: 12 0822 xx | K106: V | L106: V | N106: If the sum of Revenues for Rural storm sewer system on Schedule 12 (SLC 12 0822 01 + 02 + 03 + 04 + 05 + 06+ 07) equals zero, then Total Expenses for Rural storm sewer system on Schedule 40 (SLC 40 0822 11) must be greater than or equal to zero. OR If the sum of Revenues for Rural storm sewer system on Schedule 12 (SLC 12 0822 01 + 02 + 03 + 04 + 05 + 06 + 07 ) is greater than zero, then Total Expenses for Rural storm sewer system on Schedule 40 (SLC 40 0822 11) must be greater than zero. | O106: IF (12 0822 01 + 12 0822 02 + 12 0822 03 + 12 0822 04 + 12 0822 05 + 12 0822 06 + 12 0822 07 = 0) THEN (40 0822 11 ³ 0) OR IF (12 0822 01 + 12 0822 02 + 12 0822 03 + 12 0822 04 + 12 0822 05 + 12 0822 06 + 12 0822 07 > 0) THEN (40 0822 11 > 0) | R106: =IF(AND(SUM('12'!L43:R43)=0,'40'!S49>=0),1,0) -> 1 | S106: =IF(AND(SUM('12'!L43:R43)>0,'40'!S49>0),1,0) -> 0 | V106: 0 | X106: 90 | Y106: B00 | Z106: R0090 | AD106: =IF(V106=0,"",GetFIRMapping(V106)) -> 
D107: OK | E107: OK | F107: 12 | G107: 12V 083 | H107: 120098 | I107: 12 0831 xx | K107: V | L107: V | N107: If the sum of Revenues for Water Treatment on Schedule 12 (SLC 12 0831 01 + 02 + 03 + 04 + 05 + 06 + 07) equals zero, then Total Expenses for Water Treatment on Schedule 40 (SLC 40 0831 11) must be greater than or equal to zero. OR If the sum of Revenues for Water Treatment on Schedule 12 (SLC 12 0831 01 + 02 + 03 + 04 + 05 + 06 + 07) is greater than zero, then Total Expenses for Water Treatment on Schedule 40 (SLC 40 0831 11) must be greater than zero. | O107: IF (12 0831 01 + 12 0831 02 + 12 0831 03 + 12 0831 04 + 12 0831 05 + 12 0831 06 + 12 0831 07 = 0) THEN (40 0831 11 ³ 0) OR IF (12 0831 01 + 12 0831 02 + 12 0831 03 + 12 0831 04 + 12 0831 05 + 12 0831 06 + 12 0831 07 > 0) THEN (40 0831 11 > 0) | R107: =IF(AND(SUM('12'!L44:R44)=0,'40'!S50>=0),1,0) -> 1 | S107: =IF(AND(SUM('12'!L44:R44)>0,'40'!S50>0),1,0) -> 0 | V107: 0 | X107: 91 | Y107: B00 | Z107: R0091 | AD107: =IF(V107=0,"",GetFIRMapping(V107)) -> 
D108: OK | E108: OK | F108: 12 | G108: 12V 084 | I108: 12 0832 xx | K108: V | L108: V | N108: If the sum of Revenues for Water distribution/transmission on Schedule 12 (SLC 12 0832 01 + 02 + 03 + 04 + 05 + 06 + 07) equals zero, then Total Expenses for Water distribution/transmission on Schedule 40 (SLC 40 0832 11) must be greater than or equal to zero. OR If the sum of Revenues for Water distribution/transmission on Schedule 12 (SLC 12 0832 01 + 02 + 03 + 04 + 05 + 06 + 07) is greater than zero, then Total Expenses for Water distribution/transmission on Schedule 40 (SLC 40 0832 11) must be greater than zero. | O108: IF (12 0832 01 + 12 0832 02 + 12 0832 03 + 12 0832 04 + 12 0832 05 + 12 0832 06 + 12 0832 07 = 0) THEN (40 0832 11 ³ 0) OR IF (12 0832 01 + 12 0832 02 + 12 0832 03 + 12 0832 04 + 12 0832 05 + 12 0832 06 + 12 0832 07 > 0) THEN (40 0832 11 > 0) | R108: =IF(AND(SUM('12'!L45:R45)=0,'40'!S51>=0),1,0) -> 1 | S108: =IF(AND(SUM('12'!L45:R45)>0,'40'!S51>0),1,0) -> 0 | V108: 0 | X108: 92 | Y108: B00 | Z108: R0092 | AD108: =IF(V108=0,"",GetFIRMapping(V108)) -> 
D109: OK | E109: OK | F109: 12 | G109: 12V 018 | H109: 120099 | I109: 12 0840 xx | K109: V | L109: V | N109: If the sum of Revenues for Solid waste collection on Schedule 12 (SLC 12 0840 01 + 02 + 03 + 04 + 05 + 06 + 07 ) equals zero, then Total Expenses for Solid waste collection on Schedule 40 (SLC 40 0840 11) must be greater than or equal to zero. OR If the sum of Revenues for Solid waste collection on Schedule 12 (SLC 12 0840 01 + 02 + 03 + 04 + 05 + 06 + 07) is greater than zero, then Total Expenses for Solid waste collection on Schedule 40 (SLC 40 0840 11) must be greater than zero. | O109: IF (12 0840 01 + 12 0840 02 + 12 0840 03 + 12 0840 04 + 12 0840 05 + 12 0840 06 + 12 0840 07 = 0) THEN (40 0840 11 ³ 0) OR IF (12 0840 01 + 12 0840 02 + 12 0840 03 + 12 0840 04 + 12 0840 05 + 12 0840 06 + 12 0840 07 > 0) THEN (40 0840 11 > 0) | R109: =IF(AND(SUM('12'!L46:R46)=0,'40'!S52>=0),1,0) -> 1 | S109: =IF(AND(SUM('12'!L46:R46)>0,'40'!S52>0),1,0) -> 0 | V109: 0 | X109: 93 | Y109: B00 | Z109: R0093 | AD109: =IF(V109=0,"",GetFIRMapping(V109)) -> 
D110: OK | E110: OK | F110: 12 | G110: 12V 019 | H110: 120100 | I110: 12 0850 xx | K110: V | L110: V | N110: If the sum of Revenues for Solid waste disposal on Schedule 12 (SLC 12 0850 01 + 02 + 03 + 04 + 05 + 06 + 07) equals zero, then Total Expenses for Solid waste disposal on Schedule 40 (SLC 40 0850 11) must be greater than or equal to zero. OR If the sum of Revenues for Solid wated disposal on Schedule 12 (SLC 12 0850 01 + 02 + 03 + 04 + 05 + 06 + 07) is greater than zero, then Total Expenses for Solid waste disposal on Schedule 40 (SLC 40 0850 11) must be greater than zero. | O110: IF (12 0850 01 + 12 0850 02 + 12 0850 03 + 12 0850 04 + 12 0850 05 + 12 0850 06 + 12 0850 07 = 0) THEN (40 0850 11 ³ 0) OR IF (12 0850 01 + 12 0850 02 + 12 0850 03 + 12 0850 04 + 12 0850 05 + 12 0850 06 + 12 0850 07 > 0) THEN (40 0850 11 > 0) | R110: =IF(AND(SUM('12'!L47:R47)=0,'40'!S53>=0),1,0) -> 1 | S110: =IF(AND(SUM('12'!L47:R47)>0,'40'!S53>0),1,0) -> 0 | V110: 0 | X110: 94 | Y110: B00 | Z110: R0094 | AD110: =IF(V110=0,"",GetFIRMapping(V110)) -> 
D111: OK | E111: OK | F111: 12 | G111: 12V 020 | H111: 120101 | I111: 12 0860 xx | K111: V | L111: V | N111: If the sum of Revenues for Waste diversion on Schedule 12 (SLC 12 0860 01 + 02 + 03 + 04 + 05 + 06 + 07) equals zero, then Total Expenses for Waste diversion on Schedule 40 (SLC 40 0860 11) must be greater than or equal to zero. OR If the sum of Revenues for Waste diversion on Schedule 12 (SLC 12 0860 01 + 02 + 03 + 04 + 05 + 06 + 07) is greater than zero, then Total Expenses for Waste diversion on Schedule 40 (SLC 40 0860 11) must be greater than zero. | O111: IF (12 0860 01 + 12 0860 02 + 12 0860 03 + 12 0860 04 + 12 0860 05 + 12 0860 06 + 12 0860 07 = 0) THEN (40 0860 11 ³ 0) OR IF (12 0860 01 + 12 0860 02 + 12 0860 03 + 12 0860 04 + 12 0860 05 + 12 0860 06 + 12 0860 07 > 0) THEN (40 0860 11 > 0) | R111: =IF(AND(SUM('12'!L48:R48)=0,'40'!S54>=0),1,0) -> 1 | S111: =IF(AND(SUM('12'!L48:R48)>0,'40'!S54>0),1,0) -> 0 | V111: 0 | X111: 95 | Y111: B00 | Z111: R0095 | AD111: =IF(V111=0,"",GetFIRMapping(V111)) -> 
D112: OK | E112: OK | F112: 12 | G112: 12V 021 | H112: 120102 | I112: 12 0898 xx | K112: V | L112: V | N112: If the sum of Revenues on Schedule 12 for line 0898 (SLC 12 0898 01 + 02 + 03 + 04 + 05 + 06 + 07) equals zero, then Total Expenses on Schedule 40 for line 0898 (SLC 40 0898 11) must be greater than or equal to zero. OR If the sum of Revenues on Schedule 12 for line 0898 (SLC 12 0898 01 + 02 + 03 + 04 + 05 + 06 + 07) is greater than zero, then Total Expenses on Schedule 40 for line 0898 (SLC 40 0898 11) must be greater than zero. | O112: IF (12 0898 01 + 12 0898 02 + 12 0898 03 + 12 0898 04 + 12 0898 05 + 12 0898 06 + 12 0898 07 = 0) THEN (40 0898 11 ³ 0) OR IF (12 0898 01 + 12 0898 02 + 12 0898 03 + 12 0898 04 + 12 0898 05 + 12 0898 06 + 12 0898 07 > 0) THEN (40 0898 11 > 0) | R112: =IF(AND(SUM('12'!L49:R49)=0,'40'!S55>=0),1,0) -> 1 | S112: =IF(AND(SUM('12'!L49:R49)>0,'40'!S55>0),1,0) -> 0 | V112: 0 | X112: 96 | Y112: B00 | Z112: R0096 | AD112: =IF(V112=0,"",GetFIRMapping(V112)) -> 
D113: OK | E113: OK | F113: 12 | G113: 12V 022 | H113: 120103 | I113: 12 1010 xx | K113: V | L113: V | N113: If the sum of Revenues for Public Health Services on Schedule 12 (SLC 12 1010 01 + 02 + 03 + 04 + 05 + 06 + 07) equals zero, then Total Expenses for Public Health Services on Schedule 40 (SLC 40 1010 11) must be greater than or equal to zero. OR If the sum of Revenues for Public Health Services on Schedule 12 (SLC 12 1010 01 + 02 + 03 + 04 + 05 + 06 + 07) is greater than zero, then Total Expenses for Public Health Services on Schedule 40 (SLC 40 1010 11) must be greater than zero. | O113: IF (12 1010 01 + 12 1010 02 + 12 1010 03 + 12 1010 04 + 12 1010 05 + 12 1010 06 + 12 1010 07 = 0) THEN (40 1010 11 ³ 0) OR IF (12 1010 01 + 12 1010 02 + 12 1010 03 + 12 1010 04 + 12 1010 05 + 12 1010 06 + 12 1010 07 > 0) THEN (40 1010 11 > 0) | R113: =IF(AND(SUM('12'!L52:R52)=0,'40'!S59>=0),1,0) -> 1 | S113: =IF(AND(SUM('12'!L52:R52)>0,'40'!S59>0),1,0) -> 0 | V113: 0 | X113: 97 | Y113: B00 | Z113: R0097 | AD113: =IF(V113=0,"",GetFIRMapping(V113)) -> 
D114: OK | E114: OK | F114: 12 | G114: 12V 023 | H114: 120104 | I114: 12 1020 xx | K114: V | L114: V | N114: If the sum of Revenues for Hospitals on Schedule 12 (SLC 12 1020 01 + 02 + 03 + 04 + 05 + 06 + 07) equals zero, then Total Expenses for Hospitals on Schedule 40 (SLC 40 1020 11) must be greater than or equal to zero. OR If the sum of Revenues for Hospitals on Schedule 12 (SLC 12 1020 01 + 02 + 03 + 04 + 05 + 06 + 07) is greater than zero, then Total Expenses for Hospitals on Schedule 40 (SLC 40 1020 11) must be greater than zero. | O114: IF (12 1020 01 + 12 1020 02 + 12 1020 03 + 12 1020 04 + 12 1020 05 + 12 1020 06 + 12 1020 07 = 0) THEN (40 1020 11 ³ 0) OR IF (12 1020 01 + 12 1020 02 + 12 1020 03 + 12 1020 04 + 12 1020 05 + 12 1020 06 + 12 1020 07 > 0) THEN (40 1020 11 > 0) | R114: =IF(AND(SUM('12'!L53:R53)=0,'40'!S60>=0),1,0) -> 1 | S114: =IF(AND(SUM('12'!L53:R53)>0,'40'!S60>0),1,0) -> 0 | V114: 0 | X114: 98 | Y114: B00 | Z114: R0098 | AD114: =IF(V114=0,"",GetFIRMapping(V114)) -> 
D115: OK | E115: OK | F115: 12 | G115: 12V 024 | H115: 120105 | I115: 12 1030 xx | K115: V | L115: V | N115: If the sum of Revenues for Ambulance Services on Schedule 12 (SLC 12 1030 01 + 02 + 03 + 04 + 05 + 06 + 07) equals zero, then Total Expenses for Ambulance Services on Schedule 40 (SLC 40 1030 11) must be greater than or equal to zero. OR If the sum of Revenues for Ambulance Services on Schedule 12 (SLC 12 1030 01 + 02 + 03 + 04 + 05 + 06 + 07) is greater than zero, then Total Expenses for Ambulance Services on Schedule 40 (SLC 40 1030 11) must be greater than zero. | O115: IF (12 1030 01 + 12 1030 02 + 12 1030 03 + 12 1030 04 + 12 1030 05 + 12 1030 06 + 12 1030 07 = 0) THEN (40 1030 11 ³ 0) OR IF (12 1030 01 + 12 1030 02 + 12 1030 03 + 12 1030 04 + 12 1030 05 + 12 1030 06 + 12 1030 07 > 0) THEN (40 1030 11 > 0) | R115: =IF(AND(SUM('12'!L54:R54)=0,'40'!S61>=0),1,0) -> 1 | S115: =IF(AND(SUM('12'!L54:R54)>0,'40'!S61>0),1,0) -> 0 | V115: 0 | X115: 99 | Y115: B00 | Z115: R0099 | AD115: =IF(V115=0,"",GetFIRMapping(V115)) -> 
D116: OK | E116: OK | F116: 12 | G116: 12V 025 | H116: 120106 | I116: 12 1040 xx | K116: V | L116: V | N116: If the sum of Revenues for Cemeteries on Schedule 12 (SLC 12 1040 01 + 02 + 03 + 04 + 05 + 06 + 07) equals zero, then Total Expenses for Cemeteries on Schedule 40 (SLC 40 1040 11) must be greater than or equal to zero. OR If the sum of Revenues for Cemeteries on Schedule 12 (SLC 12 1040 01 + 02 + 03 + 04 + 05 + 06 + 07) is greater than zero, then Total Expenses for Cemeteries on Schedule 40 (SLC 40 1040 11) must be greater than zero. | O116: IF (12 1040 01 + 12 1040 02 + 12 1040 03 + 12 1040 04 + 12 1040 05 + 12 1040 06 + 12 1040 07 = 0) THEN (40 1040 11 ³ 0) OR IF (12 1040 01 + 12 1040 02 + 12 1040 03 + 12 1040 04 + 12 1040 05 + 12 1040 06 + 12 1040 07 > 0) THEN (40 1040 11 > 0) | R116: =IF(AND(SUM('12'!L56:R56)=0,'40'!S63>=0),1,0) -> 0 | S116: =IF(AND(SUM('12'!L56:R56)>0,'40'!S63>0),1,0) -> 1 | V116: 0 | X116: 100 | Y116: B00 | Z116: R0100 | AD116: =IF(V116=0,"",GetFIRMapping(V116)) -> 
D117: OK | E117: OK | F117: 12 | G117: 12V 026 | H117: 120107 | I117: 12 1098 xx | K117: V | L117: V | N117: If the sum of Revenues on Schedule 12 for line 1098 (SLC 12 1098 01 + 02 + 03 + 04 + 05 + 06 + 07) equals zero, then Total Expenses on Schedule 40 for line 1098 (SLC 40 1098 11) must be greater than or equal to zero. OR If the sum of Revenues on Schedule 12 for line 1098 (SLC 12 1098 01 + 02 + 03 + 04 + 05 + 06 + 07) is greater than zero, then Total Expenses on Schedule 40 for line 1098 (SLC 40 1098 11) must be greater than zero. | O117: IF (12 1098 01 + 12 1098 02 + 12 1098 03 + 12 1098 04 + 12 1098 05 + 12 1098 06 + 12 1098 07 = 0) THEN (40 1098 11 ³ 0) OR IF (12 1098 01 + 12 1098 02 + 12 1098 03 + 12 1098 04 + 12 1098 05 + 12 1098 06 + 12 1098 07 > 0) THEN (40 1098 11 > 0) | R117: =IF(AND(SUM('12'!L57:R57)=0,'40'!S64>=0),1,0) -> 1 | S117: =IF(AND(SUM('12'!L57:R57)>0,'40'!S64>0),1,0) -> 0 | V117: 0 | X117: 101 | Y117: B00 | Z117: R0101 | AD117: =IF(V117=0,"",GetFIRMapping(V117)) -> 
D118: OK | E118: OK | F118: 12 | G118: 12V 027 | H118: 120108 | I118: 12 1210 xx | K118: V | L118: V | N118: If the sum of Revenues for General Assistance on Schedule 12 (SLC 12 1210 01 + 02 + 03 + 04 + 05 + 06 + 07) equals zero, then Total Expenses for General Assistance on Schedule 40 (SLC 40 1210 11) must be greater than or equal to zero. OR If the sum of Revenues for General Assistance on Schedule 12 (SLC 12 1210 01 + 02 + 03 + 04 + 05 + 06 + 07) is greater than zero, then Total Expenses for General Assistance on Schedule 40 (SLC 40 1210 11) must be greater than zero. | O118: IF (12 1210 01 + 12 1210 02 + 12 1210 03 + 12 1210 04 + 12 1210 05 + 12 1210 06 + 12 1210 07 = 0) THEN (40 1210 11 ³ 0) OR IF (12 1210 01 + 12 1210 02 + 12 1210 03 + 12 1210 04 + 12 1210 05 + 12 1210 06 + 12 1210 07 > 0) THEN (40 1210 11 > 0) | R118: =IF(AND(SUM('12'!L60:R60)=0,'40'!S68>=0),1,0) -> 1 | S118: =IF(AND(SUM('12'!L60:R60)>0,'40'!S68>0),1,0) -> 0 | V118: 0 | X118: 102 | Y118: B00 | Z118: R0102 | AD118: =IF(V118=0,"",GetFIRMapping(V118)) -> 
D119: OK | E119: OK | F119: 12 | G119: 12V 028 | H119: 120109 | I119: 12 1220 xx | K119: V | L119: V | N119: If the sum of Revenues for Assistance to Aged Persons on Schedule 12 (SLC 12 1220 01 + 02 + 03 + 04 + 05 + 06 + 07) equals zero, then Total Expenses for Assistance to Aged Persons on Schedule 40 (SLC 40 1220 11) must be greater than or equal to zero. OR If the sum of Revenues for Assistance to Aged Persons on Schedule 12 (SLC 12 1220 01 + 02 + 03 + 04 + 05 + 06 + 07) is greater than zero, then Total Expenses for Assistance to Aged Persons on Schedule 40 (SLC 40 1220 11) must be greater than zero. | O119: IF (12 1220 01 + 12 1220 02 + 12 1220 03 + 12 1220 04 + 12 1220 05 + 12 1220 06 + 12 1220 07 = 0) THEN (40 1220 11 ³ 0) OR IF (12 1220 01 + 12 1220 02 + 12 1220 03 + 12 1220 04 + 12 1220 05 + 12 1220 06 + 12 1220 07 > 0) THEN (40 1220 11 > 0) | R119: =IF(AND(SUM('12'!L61:R61)=0,'40'!S69>=0),1,0) -> 1 | S119: =IF(AND(SUM('12'!L61:R61)>0,'40'!S69>0),1,0) -> 0 | V119: 0 | X119: 103 | Y119: B00 | Z119: R0103 | AD119: =IF(V119=0,"",GetFIRMapping(V119)) -> 
D120: OK | E120: OK | F120: 12 | G120: 12V 029 | H120: 120110 | I120: 12 1230 xx | K120: V | L120: V | N120: If the sum of Revenues for Child Care on Schedule 12 (SLC 12 1230 01 + 02 + 03 + 04 + 05 + 06 + 07) equals zero, then Total Expenses for Child Care on Schedule 40 (SLC 40 1230 11) must be greater than or equal to zero. OR If the sum of Revenues for Child Care on Schedule 12 (SLC 12 1230 01 + 02 + 03 + 04 + 05 + 06 + 07) is greater than zero, then Total Expenses for Child Care on Schedule 40 (SLC 40 1230 11) must be greater than zero. | O120: IF (12 1230 01 + 12 1230 02 + 12 1230 03 + 12 1230 04 + 12 1230 05 + 12 1230 06 + 12 1230 07 = 0) THEN (40 1230 11 ³ 0) OR IF (12 1230 01 + 12 1230 02 + 12 1230 03 + 12 1230 04 + 12 1230 05 + 12 1230 06 + 12 1230 07 > 0) THEN (40 1230 11 > 0) | R120: =IF(AND(SUM('12'!L62:R62)=0,'40'!S70>=0),1,0) -> 1 | S120: =IF(AND(SUM('12'!L62:R62)>0,'40'!S70>0),1,0) -> 0 | V120: 0 | X120: 104 | Y120: B00 | Z120: R0104 | AD120: =IF(V120=0,"",GetFIRMapping(V120)) -> 
D121: OK | E121: OK | F121: 12 | G121: 12V 030 | H121: 120111 | I121: 12 1298 xx | K121: V | L121: V | N121: If the sum of Revenues on Schedule 12 for line 1298 (SLC 12 1298 01 + 02 + 03 + 04 + 05 + 06 + 07) equals zero, then Total Expenses on Schedule 40 for line 1298 (SLC 40 1298 11) must be greater than or equal to zero. OR If the sum of Revenues on Schedule 12 for line 1298 (SLC 12 1298 01 + 02 + 03 + 04 + 05 + 06 + 07) is greater than zero, then Total Expenses on Schedule 40 for line 1298 (SLC 40 1298 11) must be greater than zero. | O121: IF (12 1298 01 + 12 1298 02 + 12 1298 03 + 12 1298 04 + 12 1298 05 + 12 1298 06 + 12 1298 07 = 0) THEN (40 1298 11 ³ 0) OR IF (12 1298 01 + 12 1298 02 + 12 1298 03 + 12 1298 04 + 12 1298 05 + 12 1298 06 + 12 1298 07 > 0) THEN (40 1298 11 > 0) | R121: =IF(AND(SUM('12'!L63:R63)=0,'40'!S71>=0),1,0) -> 1 | S121: =IF(AND(SUM('12'!L63:R63)>0,'40'!S71>0),1,0) -> 0 | V121: 0 | X121: 105 | Y121: B00 | Z121: R0105 | AD121: =IF(V121=0,"",GetFIRMapping(V121)) -> 
D122: OK | E122: OK | F122: 12 | G122: 12V 085 | I122: 12 1410 xx | K122: V | L122: V | N122: If the sum of Revenues for Public Housing on Schedule 12 (SLC 12 1410 01 + 02 + 03 + 04 + 05 + 06 + 07) equals zero, then Total Expenses for Public Housing on Schedule 40 (SLC 40 1410 11) must be greater than or equal to zero. OR If the sum of Revenues for Public Housing on Schedule 12 (SLC 12 1410 01 + 02 + 03 + 04 + 05 + 06 + 07) is greater than zero, then Total Expenses for Public Housing on Schedule 40 (SLC 40 1410 11) must be greater than zero. | O122: IF (12 1410 01 + 12 1410 02 + 12 1410 03 + 12 1410 04 + 12 1410 05 + 12 1410 06 + 12 1410 07 = 0) THEN (40 1410 11 ³ 0) OR IF (12 1410 01 + 12 1410 02 + 12 1410 03 + 12 1410 04 + 12 1410 05 + 12 1410 06 + 12 1410 07 > 0) THEN (40 1410 11 > 0) | R122: =IF(AND(SUM('12'!L67:R67)=0,'40'!S75>=0),1,0) -> 1 | S122: =IF(AND(SUM('12'!L67:R67)>0,'40'!S75>0),1,0) -> 0 | V122: =IF(OR(R122=1,S122=1),0,1) -> 0 | X122: 106 | Y122: B00 | Z122: R0106 | AD122: =IF(V122=0,"",GetFIRMapping(V122)) -> 
D123: OK | E123: OK | F123: 12 | G123: 12V 086 | I123: 12 1420 xx | K123: V | L123: V | N123: If the sum of Revenues for Non-Profit/Cooperative Housing on Schedule 12 (SLC 12 1420 01 + 02 + 03 + 04 + 05 + 06 + 07) equals zero, then Total Expenses for Non-Profit/Cooperative Housing Schedule 40 (SLC 40 1420 11) must be greater than or equal to zero. OR If the sum of Revenues for Non-Profit/Cooperative Housing on Schedule 12 (SLC 12 1420 01 + 02 + 03 + 04 + 05 + 06 + 07) is greater than zero, then Total Expenses for Non-Profit/Cooperative Housing on Schedule 40 (SLC 40 1420 11) must be greater than zero. | O123: IF (12 1420 01 + 12 1420 02 + 12 1420 03 + 12 1420 04 + 12 1420 05 + 12 1420 06 + 12 1420 07 = 0) THEN (40 1420 11 ³ 0) OR IF (12 1420 01 + 12 1420 02 + 12 1420 03 + 12 1420 04 + 12 1420 05 + 12 1420 06 + 12 1420 07 > 0) THEN (40 1420 11 > 0) | R123: =IF(AND(SUM('12'!L68:R68)=0,'40'!S76>=0),1,0) -> 1 | S123: =IF(AND(SUM('12'!L68:R68)>0,'40'!S76>0),1,0) -> 0 | V123: =IF(OR(R123=1,S123=1),0,1) -> 0 | X123: 107 | Y123: B00 | Z123: R0107 | AD123: =IF(V123=0,"",GetFIRMapping(V123)) -> 
D124: OK | E124: OK | F124: 12 | G124: 12V 087 | I124: 12 1430 xx | K124: V | L124: V | N124: If the sum of Revenues for Rent Supplement Programs on Schedule 12 (SLC 12 1430 01 + 02 + 03 + 04 + 05 + 06 + 07) equals zero, then Total Expenses for Rent Supplement Programs on Schedule 40 (SLC 40 1430 11) must be greater than or equal to zero. OR If the sum of Revenues for Rent Supplement Programs on Schedule 12 (SLC 12 1430 01 + 02 + 03 + 04 + 05 + 06 + 07) is greater than zero, then Total Expenses for Rent Supplement Programs on Schedule 40 (SLC 40 1430 11) must be greater than zero. | O124: IF (12 1430 01 + 12 1430 02 + 12 1430 03 + 12 1430 04 + 12 1430 05 + 12 1430 06 + 12 1430 07 = 0) THEN (40 1430 11 ³ 0) OR IF (12 1430 01 + 12 1430 02 + 12 1430 03 + 12 1430 04 + 12 1430 05 + 12 1430 06 + 12 1430 07 > 0) THEN (40 1430 11 > 0) | R124: =IF(AND(SUM('12'!L69:R69)=0,'40'!S77>=0),1,0) -> 1 | S124: =IF(AND(SUM('12'!L69:R69)>0,'40'!S77>0),1,0) -> 0 | V124: =IF(OR(R124=1,S124=1),0,1) -> 0 | X124: 108 | Y124: B00 | Z124: R0108 | AD124: =IF(V124=0,"",GetFIRMapping(V124)) -> 
D125: OK | E125: OK | F125: 12 | G125: 12V 088 | I125: 12 1497 xx | K125: V | L125: V | N125: If the sum of Revenues for Social Housing - Other on Schedule 12 (SLC 12 1497 01 + 02 + 03 + 04 + 05 + 06 + 07) equals zero, then Total Expenses for Social Housing - Other on Schedule 40 (SLC 40 1497 11) must be greater than or equal to zero. OR If the sum of Revenues for Social Housing - Other on Schedule 12 (SLC 12 1497 01 + 02 + 03 + 04 + 05 + 06 + 07) is greater than zero, then Total Expenses for Social Housing - Other on Schedule 40 (SLC 40 1497 11) must be greater than zero. | O125: IF (12 1497 01 + 12 1497 02 + 12 1497 03 + 12 1497 04 + 12 1497 05 + 12 1497 06 + 12 1497 07 = 0) THEN (40 1497 11 ³ 0) OR IF (12 1497 01 + 12 1497 02 + 12 1497 03 + 12 1497 04 + 12 1497 05 + 12 1497 06 + 12 1497 07 > 0) THEN (40 1497 11 > 0) | R125: =IF(AND(SUM('12'!L70:R70)=0,'40'!S78>=0),1,0) -> 1 | S125: =IF(AND(SUM('12'!L70:R70)>0,'40'!S78>0),1,0) -> 0 | V125: =IF(OR(R125=1,S125=1),0,1) -> 0 | X125: 109 | Y125: B00 | Z125: R0109 | AD125: =IF(V125=0,"",GetFIRMapping(V125)) -> 
D126: OK | E126: OK | F126: 12 | G126: 12V 089 | H126: 120112 | I126: 12 1498 xx | K126: V | L126: V | N126: If the sum of Revenues for Social Housing - Other on Schedule 12 (SLC 12 1498 01 + 02 + 03 + 04 + 05 + 06 + 07) equals zero, then Total Expenses for Social Housing - Other on Schedule 40 (SLC 40 1498 11) must be greater than or equal to zero. OR If the sum of Revenues for Social Housing - Other on Schedule 12 (SLC 12 1498 01 + 02 + 03 + 04 + 05 + 06 + 07) is greater than zero, then Total Expenses for Social Housing - Other on Schedule 40 (SLC 40 1498 11) must be greater than zero. | O126: IF (12 1498 01 + 12 1498 02 + 12 1498 03 + 12 1498 04 + 12 1498 05 + 12 1498 06 + 12 1498 07 = 0) THEN (40 1498 11 ³ 0) OR IF (12 1498 01 + 12 1498 02 + 12 1498 03 + 12 1498 04 + 12 1498 05 + 12 1498 06 + 12 1498 07 > 0) THEN (40 1498 11 > 0) | R126: =IF(AND(SUM('12'!L71:R71)=0,'40'!S79>=0),1,0) -> 1 | S126: =IF(AND(SUM('12'!L71:R71)>0,'40'!S79>0),1,0) -> 0 | V126: =IF(OR(R126=1,S126=1),0,1) -> 0 | X126: 110 | Y126: B00 | Z126: R0110 | AD126: =IF(V126=0,"",GetFIRMapping(V126)) -> 
D127: OK | E127: OK | F127: 12 | G127: 12V 032 | H127: 120113 | I127: 12 1610 xx | K127: V | L127: V | N127: If the sum of Revenues for Parks on Schedule 12 (SLC 12 1610 01 + 02 + 03 + 04 + 05 + 06 + 07) equals zero, then Total Expenses for Parks on Schedule 40 (SLC 40 1610 11) must be greater than or equal to zero. OR If the sum of Revenues for Parks on Schedule 12 (SLC 12 1610 01 + 02 + 03 + 04 + 05 + 06 + 07) is greater than zero, then Total Expenses for Parks on Schedule 40 (SLC 40 1610 11) must be greater than zero. | O127: IF (12 1610 01 + 12 1610 02 + 12 1610 03 + 12 1610 04 + 12 1610 05 + 12 1610 06 + 12 1610 07 = 0) THEN (40 1610 11 ³ 0) OR IF (12 1610 01 + 12 1610 02 + 12 1610 03 + 12 1610 04 + 12 1610 05 + 12 1610 06 + 12 1610 07 > 0) THEN (40 1610 11 > 0) | R127: =IF(AND(SUM('12'!L75:R75)=0,'40'!S84>=0),1,0) -> 0 | S127: =IF(AND(SUM('12'!L75:R75)>0,'40'!S84>0),1,0) -> 1 | V127: =IF(OR(R127=1,S127=1),0,1) -> 0 | X127: 111 | Y127: B00 | Z127: R0111 | AD127: =IF(V127=0,"",GetFIRMapping(V127)) -> 
D128: OK | E128: OK | F128: 12 | G128: 12V 033 | H128: 120114 | I128: 12 1620 xx | K128: V | L128: V | N128: If the sum of Revenues for Recreation Programs on Schedule 12 (SLC 12 1620 01 + 02 + 03 + 04 + 05 + 06 + 07) equals zero, then Total Expenses for Recreation Programs on Schedule 40 (SLC 40 1620 11) must be greater than or equal to zero. OR If the sum of Revenues for Recreation Programs on Schedule 12 (SLC 12 1620 01 + 02 + 03 + 04 + 05 + 06 + 07) is greater than zero, then Total Expenses for Recreation Programs on Schedule 40 (SLC 40 1620 11) must be greater than zero. | O128: IF (12 1620 01 + 12 1620 02 + 12 1620 03 + 12 1620 04 + 12 1620 05 + 12 1620 06 + 12 1620 07 = 0) THEN (40 1620 11 ³ 0) OR IF (12 1620 01 + 12 1620 02 + 12 1620 03 + 12 1620 04 + 12 1620 05 + 12 1620 06 + 12 1620 07 > 0) THEN (40 1620 11 > 0) | R128: =IF(AND(SUM('12'!L76:R76)=0,'40'!S85>=0),1,0) -> 0 | S128: =IF(AND(SUM('12'!L76:R76)>0,'40'!S85>0),1,0) -> 1 | V128: 0 | X128: 112 | Y128: B00 | Z128: R0112 | AD128: =IF(V128=0,"",GetFIRMapping(V128)) -> 
D129: OK | E129: OK | F129: 12 | G129: 12V 034 | H129: 120115 | I129: 12 1631 xx | K129: V | L129: V | N129: If the sum of Revenues for Recreation Facilities - Golf Course, Marina, Ski Hill on Schedule 12 (SLC 12 1631 01 + 02 + 03 + 04 + 05 + 06 + 07) equals zero, then Total Expenses for Recreation Facilities - Golf Course, Marina, Ski Hill on Schedule 40 (SLC 40 1631 11) must be greater than or equal to zero. OR If the sum of Revenues for Recreation Facilities - Golf Course, Marina, Ski Hill on Schedule 12 (SLC 12 1631 01 + 02 + 03 + 04 + 05 + 06 + 07) is greater than zero, then Total Expenses for Recreation Facilities - Golf Course, Marina, Ski Hill on Schedule 40 (SLC 40 1631 11) must be greater than zero. | O129: IF (12 1631 01 + 12 1631 02 + 12 1631 03 + 12 1631 04 + 12 1631 05 + 12 1631 06 + 12 1631 07 = 0) THEN (40 1631 11 ³ 0) OR IF (12 1631 01 + 12 1631 02 + 12 1631 03 + 12 1631 04 + 12 1631 05 + 12 1631 06 + 12 1631 07 > 0) THEN (40 1631 11 > 0) | R129: =IF(AND(SUM('12'!L77:R77)=0,'40'!S86>=0),1,0) -> 1 | S129: =IF(AND(SUM('12'!L77:R77)>0,'40'!S86>0),1,0) -> 0 | V129: 0 | X129: 113 | Y129: B00 | Z129: R0113 | AD129: =IF(V129=0,"",GetFIRMapping(V129)) -> 
D130: OK | E130: OK | F130: 12 | G130: 12V 057 | I130: 12 1634 xx | K130: V | L130: V | N130: If the sum of Revenues for Recreation Facilities - All Other on Schedule 12 (SLC 12 1634 01 + 02 + 03 + 04 + 05 + 06 + 07) equals zero, then Total Expenses for Recreation Facilities - All Other on Schedule 40 (SLC 40 1634 11) must be greater than or equal to zero. OR If the sum of Revenues for Recreation Facilities - All Other on Schedule 12 (SLC 12 1634 01 + 02 + 03 + 04 + 05 + 06 + 07) is greater than zero, then Total Expenses for Recreation Facilities - All Other on Schedule 40 (SLC 40 1634 11) must be greater than zero. | O130: IF (12 1634 01 + 12 1634 02 + 12 1634 03 + 12 1634 04 + 12 1634 05 + 12 1634 06 + 12 1634 07 = 0) THEN (40 1634 11 ³ 0) OR IF (12 1634 01 + 12 1634 02 + 12 1634 03 + 12 1634 04 + 12 1634 05 + 12 1634 06 + 12 1634 07 > 0) THEN (40 1634 11 > 0) | R130: =IF(AND(SUM('12'!L78:R78)=0,'40'!S87>=0),1,0) -> 0 | S130: =IF(AND(SUM('12'!L78:R78)>0,'40'!S87>0),1,0) -> 1 | V130: =IF(OR(R130=1,S130=1),0,1) -> 0 | X130: 114 | Y130: B00 | Z130: R0114 | AD130: =IF(V130=0,"",GetFIRMapping(V130)) -> 
D131: OK | E131: OK | F131: 12 | G131: 12V 035 | H131: 120116 | I131: 12 1640 xx | K131: V | L131: V | N131: If the sum of Revenues for Libraries on Schedule 12 (SLC 12 1640 01 + 02 + 03 + 04 + 05 + 06 + 07) equals zero, then Total Expenses for Libraries on Schedule 40 (SLC 40 1640 11) must be greater than or equal to zero. OR If the sum of Revenues for Libraries on Schedule 12 (SLC 12 1640 01 + 02 + 03 + 04 + 05 + 06 + 07 ) is greater than zero, then Total Expenses for Libraries on Schedule 40 (SLC 40 1640 11) must be greater than zero. | O131: IF (12 1640 01 + 12 1640 02 + 12 1640 03 + 12 1640 04 + 12 1640 05 + 12 1640 06 + 12 1640 07 = 0) THEN (40 1640 11 ³ 0) OR IF (12 1640 01 + 12 1640 02 + 12 1640 03 + 12 1640 04 + 12 1640 05 + 12 1640 06 + 12 1640 07 > 0) THEN (40 1640 11 > 0) | R131: =IF(AND(SUM('12'!L79:R79)=0,'40'!S88>=0),1,0) -> 1 | S131: =IF(AND(SUM('12'!L79:R79)>0,'40'!S88>0),1,0) -> 0 | V131: 0 | X131: 115 | Y131: B00 | Z131: R0115 | AD131: =IF(V131=0,"",GetFIRMapping(V131)) -> 
D132: OK | E132: OK | F132: 12 | G132: 12V 090 | I132: 12 1645 xx | K132: V | L132: V | N132: If the sum of Revenues for Museums on Schedule 12 (SLC 12 1645 01 + 02 + 03 + 04 + 05 + 06 + 07) equals zero, then Total Expenses for Museums on Schedule 40 (SLC 40 1645 11) must be greater than or equal to zero. OR If the sum of Revenues for Museums on Schedule 12 (SLC 12 1645 01 + 02 + 03 + 04 + 05 + 06 + 07) is greater than zero, then Total Expenses for Museums on Schedule 40 (SLC 40 1645 11) must be greater than zero. | O132: IF (12 1645 01 + 12 1645 02 + 12 1645 03 + 12 1645 04 + 12 1645 05 + 12 1645 06 + 12 1645 07 = 0) THEN (40 1645 11 ³ 0) OR IF (12 1645 01 + 12 1645 02 + 12 1645 03 + 12 1645 04 + 12 1645 05 + 12 1645 06 + 12 1645 07 > 0) THEN (40 1645 11 > 0) | R132: =IF(AND(SUM('12'!L80:R80)=0,'40'!S89>=0),1,0) -> 0 | S132: =IF(AND(SUM('12'!L80:R80)>0,'40'!S89>0),1,0) -> 1 | V132: =IF(OR(R132=1,S132=1),0,1) -> 0 | X132: 116 | Y132: B00 | Z132: R0116 | AD132: =IF(V132=0,"",GetFIRMapping(V132)) -> 
D133: OK | E133: OK | F133: 12 | G133: 12V 036 | H133: 120117 | I133: 12 1650 xx | K133: V | L133: V | N133: If the sum of Revenues for Cultural Services on Schedule 12 (SLC 12 1650 01 + 02 + 03 + 04 + 05 + 06 + 07) equals zero, then Total Expenses for Cultural Services on Schedule 40 (SLC 40 1650 11) must be greater than or equal to zero. OR If the sum of Revenues for Cultural Services on Schedule 12 (SLC 12 1650 01 + 02 + 03 + 04 + 05 + 06 + 07) is greater than zero, then Total Expenses for Cultural Services on Schedule 40 (SLC 40 1650 11) must be greater than zero. | O133: IF (12 1650 01 + 12 1650 02 + 12 1650 03 + 12 1650 04 + 12 1650 05 + 12 1650 06 + 12 1650 07 = 0) THEN (40 1650 11 ³ 0) OR IF (12 1650 01 + 12 1650 02 + 12 1650 03 + 12 1650 04 + 12 1650 05 + 12 1650 06 + 12 1650 07 > 0) THEN (40 1650 11 > 0) | R133: =IF(AND(SUM('12'!L81:R81)=0,'40'!S90>=0),1,0) -> 1 | S133: =IF(AND(SUM('12'!L81:R81)>0,'40'!S90>0),1,0) -> 0 | V133: 0 | X133: 117 | Y133: B00 | Z133: R0117 | AD133: =IF(V133=0,"",GetFIRMapping(V133)) -> 
D134: OK | E134: OK | F134: 12 | G134: 12V 037 | H134: 120118 | I134: 12 1698 xx | K134: V | L134: V | N134: If the sum of Revenues on Schedule 12 for line 1698 (SLC 12 1698 01 + 02 + 03 + 04 + 05 + 06 + 07) equals zero, then Total Expenses on Schedule 40 for line 1698 (SLC 40 1698 11) must be greater than or equal to zero. OR If the sum of Revenues on Schedule 12 for line 1698 (SLC 12 1698 01 + 02 + 03 + 04 + 05 + 06 + 07) is greater than zero, then Total Expenses on Schedule 40 for line 1698 (SLC 40 1698 11) must be greater than zero. | O134: IF (12 1698 01 + 12 1698 02 + 12 1698 03 + 12 1698 04 + 12 1698 05 + 12 1698 06 + 12 1698 07 = 0) THEN (40 1698 11 ³ 0) OR IF (12 1698 01 + 12 1698 02 + 12 1698 03 + 12 1698 04 + 12 1698 05 + 12 1698 06 + 12 1698 07 > 0) THEN (40 1698 11 > 0) | R134: =IF(AND(SUM('12'!L82:R82)=0,'40'!S91>=0),1,0) -> 0 | S134: =IF(AND(SUM('12'!L82:R82)>0,'40'!S91>0),1,0) -> 1 | V134: 0 | X134: 118 | Y134: B00 | Z134: R0118 | AD134: =IF(V134=0,"",GetFIRMapping(V134)) -> 
D135: OK | E135: OK | F135: 12 | G135: 12V 038 | H135: 120119 | I135: 12 1810 xx | K135: V | L135: V | N135: If the sum of Revenues for Planning and Zoning on Schedule 12 (SLC 12 1810 01 + 02 + 03 + 04 + 05 + 06 + 07) equals zero, then Total Expenses for Planning and Zoning on Schedule 40 (SLC 40 1810 11) must be greater than or equal to zero. OR If the sum of Revenues for Planning and Zoning on Schedule 12 (SLC 12 1810 01 + 02 + 03 + 04 + 05 + 06 + 07) is greater than zero, then Total Expenses for Planning and Zoning on Schedule 40 (SLC 40 1810 11) must be greater than zero. | O135: IF (12 1810 01 + 12 1810 02 + 12 1810 03 + 12 1810 04 + 12 1810 05 + 12 1810 06 + 12 1810 07 = 0) THEN (40 1810 11 ³ 0) OR IF (12 1810 01 + 12 1810 02 + 12 1810 03 + 12 1810 04 + 12 1810 05 + 12 1810 06 + 12 1810 07 > 0) THEN (40 1810 11 > 0) | R135: =IF(AND(SUM('12'!L85:R85)=0,'40'!S95>=0),1,0) -> 0 | S135: =IF(AND(SUM('12'!L85:R85)>0,'40'!S95>0),1,0) -> 1 | V135: 0 | X135: 119 | Y135: B00 | Z135: R0119 | AD135: =IF(V135=0,"",GetFIRMapping(V135)) -> 
D136: OK | E136: OK | F136: 12 | G136: 12V 039 | H136: 120120 | I136: 12 1820 xx | K136: V | L136: V | N136: If the sum of Revenues for Commercial and Industrial on Schedule 12 (SLC 12 1820 01 + 02 + 03 + 04 + 05 + 06 + 07) equals zero, then Total Expenses for Commercial and Industrial on Schedule 40 (SLC 40 1820 11) must be greater than or equal to zero. OR If the sum of Revenues for Commercial and Industrial on Schedule 12 (SLC 12 1820 01 + 02 + 03 + 04 + 05 + 06 + 07) is greater than zero, then Total Expenses for Commercial and Industrial on Schedule 40 (SLC 40 1820 11) must be greater than zero. | O136: IF (12 1820 01 + 12 1820 02 + 12 1820 03 + 12 1820 04 + 12 1820 05 + 12 1820 06 + 12 1820 07 = 0) THEN (40 1820 11 ³ 0) OR IF (12 1820 01 + 12 1820 02 + 12 1820 03 + 12 1820 04 + 12 1820 05 + 12 1820 06 + 12 1820 07 > 0) THEN (40 1820 11 > 0) | R136: =IF(AND(SUM('12'!L86:R86)=0,'40'!S96>=0),1,0) -> 0 | S136: =IF(AND(SUM('12'!L86:R86)>0,'40'!S96>0),1,0) -> 1 | V136: 0 | X136: 120 | Y136: B00 | Z136: R0120 | AD136: =IF(V136=0,"",GetFIRMapping(V136)) -> 
D137: OK | E137: OK | F137: 12 | G137: 12V 040 | H137: 120121 | I137: 12 1830 xx | K137: V | L137: V | N137: If the sum of Revenues for Residential Development on Schedule 12 (SLC 12 1830 01 + 02 + 03 + 04 + 05 + 06 + 07) equals zero, then Total Expenses for Residential Development on Schedule 40 (SLC 40 1830 11) must be greater than or equal to zero. OR If the sum of Revenues for Residential Development on Schedule 12 (SLC 12 1830 01 + 02 + 03 + 04 + 05 + 06 + 07) is greater than zero, then Total Expenses for Residential Development on Schedule 40 (SLC 40 1830 11) must be greater than zero. | O137: IF (12 1830 01 + 12 1830 02 + 12 1830 03 + 12 1830 04 + 12 1830 05 + 12 1830 06 + 12 1830 07 = 0) THEN (40 1830 11 ³ 0) OR IF (12 1830 01 + 12 1830 02 + 12 1830 03 + 12 1830 04 + 12 1830 05 + 12 1830 06 + 12 1830 07 > 0) THEN (40 1830 11 > 0) | R137: =IF(AND(SUM('12'!L87:R87)=0,'40'!S97>=0),1,0) -> 1 | S137: =IF(AND(SUM('12'!L87:R87)>0,'40'!S97>0),1,0) -> 0 | V137: 0 | X137: 121 | Y137: B00 | Z137: R0121 | AD137: =IF(V137=0,"",GetFIRMapping(V137)) -> 
D138: OK | E138: OK | F138: 12 | G138: 12V 041 | H138: 120122 | I138: 12 1840 xx | K138: V | L138: V | N138: If the sum of Revenues for Agriculture and Reforestation on Schedule 12 (SLC 12 1840 01 + 02 + 03 + 04 + 05 + 06 + 07) equals zero, then Total Expenses for Agriculture and Reforestation on Schedule 40 (SLC 40 1840 11) must be greater than or equal to zero. OR If the sum of Revenues for Agriculture and Reforestation on Schedule 12 (SLC 12 1840 01 + 02 + 03 + 04 + 05 + 06 + 07) is greater than zero, then Total Expenses for Agriculture and Reforestation on Schedule 40 (SLC 40 1840 11) must be greater than zero. | O138: IF (12 1840 01 + 12 1840 02 + 12 1840 03 + 12 1840 04 + 12 1840 05 + 12 1840 06 + 12 1840 07 = 0) THEN (40 1840 11 ³ 0) OR IF (12 1840 01 + 12 1840 02 + 12 1840 03 + 12 1840 04 + 12 1840 05 + 12 1840 06 + 12 1840 07 > 0) THEN (40 1840 11 > 0) | R138: =IF(AND(SUM('12'!L88:R88)=0,'40'!S98>=0),1,0) -> 1 | S138: =IF(AND(SUM('12'!L88:R88)>0,'40'!S98>0),1,0) -> 0 | V138: 0 | X138: 122 | Y138: B00 | Z138: R0122 | AD138: =IF(V138=0,"",GetFIRMapping(V138)) -> 
D139: OK | E139: OK | F139: 12 | G139: 12V 042 | H139: 120123 | I139: 12 1850 xx | K139: V | L139: V | N139: If the sum of Revenues for Tile Drainage/Shoreline Assistance on Schedule 12 (SLC 12 1850 01+ 02 + 03 + 04 + 05 + 06 + 07) equals zero, then Total Expenses for Tile Drainage/Shoreline Assistance on Schedule 40 (SLC 40 1850 11) must be greater than or equal to zero. OR If the sum of Revenues for Tile Drainage/Shoreline Assistance on Schedule 12 (SLC 12 1850 01 + 02 + 03 + 04 + 05 + 06 + 07) is greater than zero, then Total Expenses for Tile Drainage/Shoreline Assistance on Schedule 40 (SLC 40 1850 11) must be greater than zero. | O139: IF (12 1850 01 + 12 1850 02 + 12 1850 03 + 12 1850 04 + 12 1850 05 + 12 1850 06 + 12 1850 07 = 0) THEN (40 1850 11 ³ 0) OR IF (12 1850 01 + 12 1850 02 + 12 1850 03 + 12 1850 04 + 12 1850 05 + 12 1850 06 + 12 1850 07 > 0) THEN (40 1850 11 > 0) | R139: =IF(AND(SUM('12'!L89:R89)=0,'40'!S99>=0),1,0) -> 1 | S139: =IF(AND(SUM('12'!L89:R89)>0,'40'!S99>0),1,0) -> 0 | V139: 0 | X139: 123 | Y139: B00 | Z139: R0123 | AD139: =IF(V139=0,"",GetFIRMapping(V139)) -> 
D140: OK | E140: OK | F140: 12 | G140: 12V 043 | H140: 120124 | I140: 12 1898 xx | K140: V | L140: V | N140: If the sum of Revenues on Schedule 12 for line 1898 (SLC 12 1898 01 + 02 + 03 + 04 + 05 + 06 + 07) equals zero, then Total Expenses on Schedule 40 for line 1898 (SLC 40 1898 11) must be greater than or equal to zero. OR If the sum of Revenues on Schedule 12 for line 1898 (SLC 12 1898 01 + 02 + 03 + 04 + 05 + 06 + 07) is greater than zero, then Total Expenses on Schedule 40 for line 1898 (SLC 40 1898 11) must be greater than zero. | O140: IF (12 1898 01 + 12 1898 02 + 12 1898 03 + 12 1898 04 + 12 1898 05 + 12 1898 06 + 12 1898 07 = 0) THEN (40 1898 11 ³ 0) OR IF (12 1898 01 + 12 1898 02 + 12 1898 03 + 12 1898 04 + 12 1898 05 + 12 1898 06 + 12 1898 07 > 0) THEN (40 1898 11 > 0) | R140: =IF(AND(SUM('12'!L90:R90)=0,'40'!S100>=0),1,0) -> 1 | S140: =IF(AND(SUM('12'!L90:R90)>0,'40'!S100>0),1,0) -> 0 | V140: 0 | X140: 124 | Y140: B00 | Z140: R0124 | AD140: =IF(V140=0,"",GetFIRMapping(V140)) -> 
D141: OK | E141: OK | F141: 12 | G141: 12V 091 | I141: 12 1910 xx | K141: V | L141: V | N141: If the sum of Revenues on Schedule 12 for line 1910 (SLC 12 1910 01 + 02 + 03 + 04 + 05 + 06 + 07) equals zero, then Total Expenses on Schedule 40 for line 1910 (SLC 40 1910 11) must be greater than or equal to zero. OR If the sum of Revenues on Schedule 12 for line 1910 (SLC 12 1910 01 + 02 + 03 + 04 + 05 + 06 + 07) is greater than zero, then Total Expenses on Schedule 40 for line 1910 (SLC 40 1910 11) must be greater than zero. | O141: IF (12 1910 01 + 12 1910 02 + 12 1910 03 + 12 1910 04 + 12 1910 05 + 12 1910 06 + 12 1910 07 = 0) THEN (40 1910 11 ³ 0) OR IF (12 1910 01 + 12 1910 02 + 12 1910 03 + 12 1910 04 + 12 1910 05 + 12 1910 06 + 12 1910 07 > 0) THEN (40 1910 11 > 0) | R141: =IF(AND(SUM('12'!L93:R93)=0,'40'!S103>=0),1,0) -> 0 | S141: =IF(AND(SUM('12'!L93:R93)>0,'40'!S103>0),1,0) -> 1 | V141: =IF(OR(R141=1,S141=1),0,1) -> 0 | X141: 125 | Y141: B00 | Z141: R0125 | AD141: =IF(V141=0,"",GetFIRMapping(V141)) -> 
D142: =IF(V142=0,"OK",IF(AND(V142=1,K142="C"),"CRITICAL","VERIFY")) -> OK | E142: OK | F142: 12 | G142: 12C 047 | I142: 12 0498 xx | K142: C | L142: C | N142: If the sum of Other: Protection Services in SLC 12 0498 01 through SLC 12 0498 07 is not equal to zero, then a text description of this amount is required. If a description for "Other" has been entered, then an amount must be entered into the sum of Other: Protection Services in SLC 12 0498 01 through SLC 12 0498 07. | O142: IF (12 0498 01 + 12 0498 02 + 12 0498 03 + 12 0498 04 + 12 0498 05 + 12 0498 06 + 12 0498 07 <> 0) THEN 12 0498 text is not Null AND is not = 'b' IF 12 0498 "Other" text is not Null AND is not = 'b' THEN (12 0498 01 + 12 0498 02 + 12 0498 03 + 12 0498 04 + 12 0498 05 + 12 0498 06 + 12 0498 07 > 0) | R142: =IF(AND(SUM('12'!L23:R23)<>0,'12'!F23=0),1,0) -> 0 | S142: =IF(AND(SUM('12'!L23:R23)<>0,'12'!F23=""),1,0) -> 0 | T142: =IF(AND(SUM('12'!L23:R23)=0,'12'!F23<>""),1,0) -> 0 | V142: =IF(OR(R142=1,S142=1,T142=1),1,0) -> 0 | X142: 126 | Y142: B00 | Z142: R0126 | AD142: =IF(V142=0,"",GetFIRMapping(V142)) -> 
D143: OK | E143: OK | F143: 12 | G143: 12C 048 | I143: 12 0698 xx | K143: C | L143: C | N143: If the sum of Other: Transportation Services in SLC 12 0698 01 through SLC 12 0698 07 is not equal to zero, then a text description of this amount is required. If a description for "Other" has been entered, then an amount must be entered into the sum of Other: Transportation Services in SLC 12 0698 01 through SLC 12 0698 07. | O143: IF (12 0698 01 + 12 0698 02 + 12 0698 03 + 12 0698 04 + 12 0698 05 + 12 0698 06 + 12 0698 07 <> 0) THEN 12 0698 text is not Null AND is not = 'b' IF 12 0698 "Other" text is not Null AND is not = 'b' THEN (12 0698 01 + 12 0698 02 + 12 0698 03 + 12 0698 04 + 12 0698 05 + 12 0698 06 + 12 0698 07 > 0) | R143: =IF(AND(SUM('12'!L37:R37)<>0,'12'!F37=0),1,0) -> 0 | S143: =IF(AND(SUM('12'!L37:R37)<>0,'12'!F37=""),1,0) -> 0 | T143: =IF(AND(SUM('12'!L37:R37)=0,'12'!F37<>""),1,0) -> 0 | V143: 0 | X143: 127 | Y143: B00 | Z143: R0127 | AD143: =IF(V143=0,"",GetFIRMapping(V143)) -> 
D144: OK | E144: OK | F144: 12 | G144: 12C 049 | I144: 12 0898 xx | K144: C | L144: C | N144: If the sum of Other: Environmental Services in SLC 12 0898 01 through SLC 12 0898 07 is not equal to zero, then a text description of this amount is required. If a description for "Other" has been entered, then an amount must be entered into the sum of Other: Environmental Services in SLC 12 0898 01 through SLC 12 0898 07. | O144: IF (12 0898 01 + 12 0898 02 + 12 0898 03 + 12 0898 04 + 12 0898 05 + 12 0898 06 + 12 0898 07 <> 0) THEN 12 0898 text is not Null AND is not = 'b' IF 12 0898 "Other" text is not Null AND is not = 'b' THEN (12 0898 01 + 12 0898 02 + 12 0898 03 + 12 0898 04 + 12 0898 05 + 12 0898 06 + 12 0898 07> 0) | R144: =IF(AND(SUM('12'!L49:R49)<>0,'12'!F49=0),1,0) -> 0 | S144: =IF(AND(SUM('12'!L49:R49)<>0,'12'!F49=""),1,0) -> 0 | T144: =IF(AND(SUM('12'!L49:R49)=0,'12'!F49<>""),1,0) -> 0 | V144: 0 | X144: 128 | Y144: B00 | Z144: R0128 | AD144: =IF(V144=0,"",GetFIRMapping(V144)) -> 
D145: OK | E145: =IF(V145=0,"OK",IF(AND(V145=1,L145="C"),"CRITICAL","VERIFY")) -> OK | F145: 12 | G145: 12C 050 | I145: 12 1098 xx | K145: C | L145: C | N145: If the sum of Other: Health Services in SLC 12 1098 01 through SLC 12 1098 07 is not equal to zero, then a text description of this amount is required. If a description for "Other" has been entered, then an amount must be entered into the s sum of Other: Health Services in SLC 12 1098 01 through SLC 12 1098 07. | O145: IF (12 1098 01 + 12 1098 02 + 12 1098 03 + 12 1098 04 + 12 1098 05 + 12 1098 06 + 12 1098 07 <> 0) THEN 12 1098 text is not Null AND is not = 'b' IF 12 1098 "Other" text is not Null AND is not = 'b' THEN (12 1098 01 + 12 1098 02 + 12 1098 03 + 12 1098 04 + 12 1098 05 + 12 1098 06 + 12 1098 07> 0) | R145: =IF(AND(SUM('12'!L57:R57)<>0,'12'!F57=0),1,0) -> 0 | S145: =IF(AND(SUM('12'!L57:R57)<>0,'12'!F57=""),1,0) -> 0 | T145: =IF(AND(SUM('12'!L57:R57)=0,'12'!F57<>""),1,0) -> 0 | V145: 0 | X145: 129 | Y145: B00 | Z145: R0129 | AD145: =IF(V145=0,"",GetFIRMapping(V145)) -> 
D146: OK | E146: OK | F146: 12 | G146: 12C 051 | I146: 12 1298 xx | K146: C | L146: C | N146: If the sum of Other: Social and Family Services in SLC 12 1298 01 through SLC 12 1298 07 is not equal to zero, then a text description of this amount is required. If a description for "Other" has been entered, then an amount must be entered into the s sum of Other: Social and Family Services in SLC 12 1298 01 through SLC 12 1298 07. | O146: IF (12 1298 01 + 12 1298 02 + 12 1298 03 + 12 1298 04 + 12 1298 05 + 12 1298 06 + 12 1298 07 <> 0) THEN 12 1298 text is not Null AND is not = 'b' IF 12 1298 "Other" text is not Null AND is not = 'b' THEN (12 1298 01 + 12 1298 02 + 12 1298 03 + 12 1298 04 + 12 1298 05 + 12 1298 06 + 12 1298 07 > 0) | R146: =IF(AND(SUM('12'!L63:R63)<>0,'12'!F63=0),1,0) -> 0 | S146: =IF(AND(SUM('12'!L63:R63)<>0,'12'!F63=""),1,0) -> 0 | T146: =IF(AND(SUM('12'!L63:R63)=0,'12'!F63<>""),1,0) -> 0 | V146: 0 | X146: 130 | Y146: B00 | Z146: ="R"&RIGHT("000"&X146,4) -> R0130 | AA146: =IF(V146=0,"",GetFIRMappingTEXT(G146)) ->  | AC146: =GetFIRMappingTEXT(Q146) ->  | AD146: =IF(V146=0,"",GetFIRMapping(V146)) -> 
D147: OK | E147: OK | F147: 12 | G147: 12C 093 | I147: 12 1497 xx | K147: C | L147: C | N147: If the sum of Other: Social Housing in SLC 12 1497 01 through SLC 12 1497 07 is not equal to zero, then a text description of this amount is required. If a description for "Other" has been entered, then an amount must be entered into the sum of Other: Social Housing in SLC 12 1497 01 through SLC 12 1497 07 | O147: IF (12 1497 01 + 12 1497 02 + 12 1497 03 + 12 1497 04 + 12 1497 05 + 12 1497 06 + 12 1497 07 <> 0) THEN 12 1497 text is not Null AND is not = 'b' IF 12 1497 "Other" text is not Null AND is not = 'b' THEN (12 1497 01 + 12 1497 02 + 12 1497 03 + 12 1497 04 + 12 1497 05 + 12 1497 06 + 12 1497 07 > 0) | R147: =IF(AND(SUM('12'!L70:R70)<>0,'12'!F70=0),1,0) -> 0 | S147: =IF(AND(SUM('12'!L70:R70)<>0,'12'!F70=""),1,0) -> 0 | T147: =IF(AND(SUM('12'!L70:R70)=0,'12'!F70<>""),1,0) -> 0 | V147: 0 | X147: =X146+1 -> 131 | Y147: B00 | Z147: R0131 | AD147: =IF(V147=0,"",GetFIRMapping(V147)) -> 
D148: OK | E148: OK | F148: 12 | G148: 12C 094 | I148: 12 1498 xx | K148: C | L148: C | N148: If the sum of Other: Social Housing in SLC 12 1498 01 through SLC 12 1498 07 is not equal to zero, then a text description of this amount is required. If a description for "Other" has been entered, then an amount must be entered into the sum of Other: Social Housing in SLC 12 1498 01 through SLC 12 1498 07. | O148: IF (12 1498 01 + 12 1498 02 + 12 1498 03 + 12 1498 04 + 12 1498 05 + 12 1498 06 + 12 1498 07 <> 0) THEN 12 1498 text is not Null AND is not = 'b' IF 12 1498 "Other" text is not Null AND is not = 'b' THEN (12 1498 01 + 12 1498 02 + 12 1498 03 + 12 1498 04 + 12 1498 05 + 12 1498 06 + 12 1498 07 > 0) | R148: =IF(AND(SUM('12'!L71:R71)<>0,'12'!F71=0),1,0) -> 0 | S148: =IF(AND(SUM('12'!L71:R71)<>0,'12'!F71=""),1,0) -> 0 | T148: =IF(AND(SUM('12'!L71:R71)=0,'12'!F71<>""),1,0) -> 0 | V148: 0 | X148: 132 | Y148: B00 | Z148: R0132 | AD148: =IF(V148=0,"",GetFIRMapping(V148)) -> 
D149: OK | E149: OK | F149: 12 | G149: 12C 052 | I149: 12 1698 xx | K149: C | L149: C | N149: If the sum of Other: Recreation and Cultural Services in SLC 12 1698 01 through SLC 12 1698 07 is not equal to zero, then a text description of this amount is required. If a description for "Other" has been entered, then an amount must be entered into the sum of Other: Recreation and Cultural Services in SLC 12 1698 01 through SLC 12 1698 07. | O149: IF (12 1698 01 + 12 1698 02 + 12 1698 03 + 12 1698 04 + 12 1698 05 + 12 1698 06 + 12 1698 07 <> 0) THEN 12 1698 text is not Null AND is not = 'b' IF 12 1698 "Other" text is not Null AND is not = 'b' THEN (12 1698 01 + 12 1698 02 + 12 1698 03 + 12 1698 04 + 12 1698 05 + 12 1698 06 + 12 1698 07 > 0) | R149: =IF(AND(SUM('12'!L82:R82)<>0,'12'!F82=0),1,0) -> 0 | S149: =IF(AND(SUM('12'!L82:R82)<>0,'12'!F82=""),1,0) -> 0 | T149: =IF(AND(SUM('12'!L82:R82)=0,'12'!F82<>""),1,0) -> 0 | V149: 0 | X149: 133 | Y149: B00 | Z149: R0133 | AD149: =IF(V149=0,"",GetFIRMapping(V149)) -> 
D150: OK | E150: OK | F150: 12 | G150: 12C 053 | I150: 12 1898 xx | K150: C | L150: C | N150: If the sum of Other: Planning and Development in SLC 12 1898 01 through SLC 12 1898 07 is not equal to zero, then a text description of this amount is required. If a description for "Other" has been entered, then an amount must be entered into the sum of Other: Planning and Development in SLC 12 1898 01 through SLC 12 1898 07. | O150: IF (12 1898 01 + 12 1898 02 + 12 1898 03 + 12 1898 04 + 12 1898 05 + 12 1898 06 + 12 1898 07 <> 0) THEN 12 1898 text is not Null AND is not = 'b' IF 12 1898 "Other" text is not Null AND is not = 'b' THEN (12 1898 01 + 12 1898 02 + 12 1898 03 + 12 1898 04 + 12 1898 05 + 12 1898 06 + 12 1898 07 > 0) | R150: =IF(AND(SUM('12'!L90:R90)<>0,'12'!F90=0),1,0) -> 0 | S150: =IF(AND(SUM('12'!L90:R90)<>0,'12'!F90=""),1,0) -> 0 | T150: =IF(AND(SUM('12'!L90:R90)=0,'12'!F90<>""),1,0) -> 0 | V150: 0 | X150: 134 | Y150: B00 | Z150: R0134 | AD150: =IF(V150=0,"",GetFIRMapping(V150)) -> 
D151: OK | E151: OK | F151: 12 | G151: 12C 095 | I151: 12 1910 xx | K151: C | L151: C | N151: If the sum of Other in SLC 12 1910 01 through SLC 12 1910 07 is not equal to zero, then a text description of this amount is required. If a description for "Other" has been entered, then an amount must be entered into the sum of Other in SLC 12 1910 01 through SLC 12 1910 07. | O151: IF (12 1910 01 + 12 1910 02 + 12 1910 03 + 12 1910 04 + 12 1910 05 + 12 1910 06 + 12 1910 07 <> 0) THEN 12 1910 text is not Null AND is not = 'b' IF 12 1910 "Other" text is not Null AND is not = 'b' THEN (12 1910 01 + 12 1910 02 + 12 1910 03 + 12 1910 04 + 12 1910 05 + 12 1910 06 + 12 1910 07 > 0) | R151: =IF(AND(SUM('12'!L93:R93)<>0,'12'!F93=0),1,0) -> 0 | S151: =IF(AND(SUM('12'!L93:R93)<>0,'12'!F93=""),1,0) -> 0 | T151: =IF(AND(SUM('12'!L93:R93)=0,'12'!F93<>""),1,0) -> 0 | V151: 0 | X151: 135 | Y151: B00 | Z151: R0135 | AD151: =IF(V151=0,"",GetFIRMapping(V151)) -> 
D152: OK | E152: OK | F152: 12 | G152: 12C 098 | I152: 12 1035 02 | K152: C | L152: C | N152: Entry not allowed in this cell. No Canada Conditional Grants is associated with Ambulance dispatch. | O152: 12 1035 02 ≠ 0 | V152: =IF('12'!M$55="",0,1) -> 0 | X152: 136 | Y152: B00 | Z152: R0136 | AD152: =IF(V152=0,"",GetFIRMapping(V152)) -> 
D153: OK | E153: OK | F153: 12 | G153: 12C 099 | I153: 12 1035 03 | K153: C | L153: C | N153: Entry not allowed in this cell. No revenue from Other Municipalities is associated with Ambulance dispatch. | O153: 12 1035 03 ≠ 0 | V153: =IF('12'!N$55="",0,1) -> 0 | X153: 137 | Y153: B00 | Z153: R0137 | AD153: =IF(V153=0,"",GetFIRMapping(V153)) -> 
D154: OK | E154: OK | F154: 12 | G154: 12C 100 | I154: 12 1035 04 | K154: C | L154: C | N154: Entry not allowed in this cell. No User Fees and Service Charges is associated with Ambulance dispatch. | O154: 12 1035 04 ≠ 0 | V154: =IF('12'!O$55="",0,1) -> 0 | X154: 138 | Y154: B00 | Z154: R0138 | AD154: =IF(V154=0,"",GetFIRMapping(V154)) -> 
D155: OK | E155: OK | F155: 12 | G155: 12C 101 | I155: 12 1035 06 | K155: C | L155: C | N155: Entry not allowed in this cell. No Canada Grants - Tangible Capital Assets is associated with Ambulance dispatch. | O155: 12 1035 06 ≠ 0 | V155: =IF('12'!Q$55="",0,1) -> 0 | X155: 139 | Y155: B00 | Z155: R0139 | AD155: =IF(V155=0,"",GetFIRMapping(V155)) -> 
D156: OK | E156: OK | F156: 12 | G156: 12C 102 | I156: 12 1035 07 | K156: C | L156: C | N156: Entry not allowed in this cell. No revenue from Other Municipalities - Tangible Capital Assets is associated with Ambulance dispatch. | O156: 12 1035 07 ≠ 0 | V156: =IF('12'!R$55="",0,1) -> 0 | X156: 140 | Y156: B00 | Z156: R0140 | AD156: =IF(V156=0,"",GetFIRMapping(V156)) -> 
D157: =IF(OR(V157=0,Q157<>""),"OK",IF(AND(V157=1,K157="C"),"CRITICAL","VERIFY")) -> OK | E157: OK | F157: 12 | G157: 12V 138 | I157: 12 0445 xx | K157: V | L157: V | N157: If the sum of Revenues for Building permit and inspection services on Schedule 12 (SLC 12 0445 01 + 02 + 03 + 04 + 05 + 06 +07) equals zero, then Total Expenses for Building permit and inspection services on Schedule 40 (SLC 40 0445 11) must be greater than or equal to zero. OR If the sum of Revenues for Building permit and inspection services on Schedule 12 (SLC 12 0445 01 + 02 + 03 + 04 + 05 + 06 + 07) is greater than zero, then Total Expenses for Building permit and inspection services on Schedule 40 (SLC 40 0445 11) must be greater than zero. | O157: IF (12 0445 01 + 12 0445 02 + 12 0445 03 + 12 0445 04 + 12 0445 05 + 12 0445 06 = 0) THEN (40 0445 11 ≥ 0) OR IF (12 0445 01 + 12 0445 02 + 12 0445 03 + 12 0445 04 + 12 0445 05 + 12 0445 06 > 0) THEN (40 0445 11 > 0) | R157: =IF(AND(SUM('12'!L20:R20)=0,'40'!S24>=0),1,0) -> 0 | S157: =IF(AND(SUM('12'!L20:R20)>0,'40'!S24>0),1,0) -> 1 | V157: =IF(OR(R157=1,S157=1),0,1) -> 0 | X157: 141 | Y157: B00 | Z157: R0141 | AD157: =IF(V157=0,"",GetFIRMapping(V157)) -> 
D158: OK | E158: OK | F158: 12 | G158: 12V 139 | I158: 12 0460 xx | K158: V | L158: V | N158: Entry not allowed in cells 12 0460 01, 12 0460 02 12 0460 04, 12 0460 05, 12 0460 06, 12 0460 07. No conditional grants or revenue from other municipalities is associated with POA | O158: 12 0460 XX ≠ 0 | V158: =IF(AND('12'!L$22="",'12'!M$22="",'12'!O$22="",'12'!P$22="",'12'!Q$22="",'12'!R$22=""),0,1) -> 0 | X158: 142 | Y158: B00 | Z158: R0142 | AD158: =IF(V158=0,"",GetFIRMapping(V158)) -> 
D159: OK | E159: VERIFY | F159: 12 | G159: 12V 103 | I159: 12 9910 01 | K159: V | L159: V | M159: Y | N159: Ontario conditional grants in SLC 12 9910 01 has changed by more than 30% from last year's amount in PY 12 9910 01. Please verify. | O159: [ABS (x - y) / y] * 100 < 30% | P159: x = 12 9910 01 y = PY 12 9910 01 Percent 30% PY - Previous Year | Q159: y | R159: =IFERROR(((ABS('12'!L95-PYData!D17))/(PYData!D17))*100,0) -> 37.90953461 | V159: =IF(R159>=30,1,0) -> 1 | X159: 143 | Y159: B00 | Z159: R0143 | AD159: =IF(V159=0,"",GetFIRMapping(V159)) -> 
D160: OK | E160: VERIFY | F160: 12 | G160: 12V 104 | I160: 12 9910 02 | K160: V | L160: V | M160: Y | N160: Canada Conditional Grants in SLC 12 9910 02 has changed by more than 30% from last year's amount in PY 12 9910 02. Please verify. | O160: [ABS (x - y) / y] * 100 < 30% | P160: x = 12 9910 02 y = PY 12 9910 02 Percent = 30% PY - Previous Year | Q160: y | R160: =IFERROR(((ABS('12'!M95-PYData!D18))/(PYData!D18))*100,0) -> 97.81356759 | V160: =IF(R160>=30,1,0) -> 1 | X160: 144 | Y160: B00 | Z160: R0144 | AD160: =IF(V160=0,"",GetFIRMapping(V160)) -> 
D161: OK | E161: OK | F161: 12 | G161: 12V 105 | I161: 12 9910 03 | K161: V | L161: V | M161: Y | N161: Revenue from Other municipalities in SLC 12 9910 03 has changed by more than 30% from last year's amount in PY 12 9910 03. Please verify. | O161: [ABS (x - y) / y] * 100 < 30% | P161: x = 12 9910 03 y = PY 12 9910 03 Percent = 30% PY - Previous Year | R161: =IFERROR(((ABS('12'!N95-PYData!D19))/(PYData!D19))*100,0) -> 11.9265795 | V161: =IF(R161>=30,1,0) -> 0 | X161: 145 | Y161: B00 | Z161: R0145 | AD161: =IF(V161=0,"",GetFIRMapping(V161)) -> 
D162: OK | E162: OK | F162: 12 | G162: 12V 106 | I162: 12 0299 04 | K162: V | L162: V | M162: Y | N162: The ratio of General Government User Fees and Service Charges to Total User Fees and Service Charges (SLC 12 0299 04 : SLC 12 9910 04) has changed by more than 30% from last year's ratio (PY 12 0299 04 : PY 12 9910 04). Please verify. | O162: [(ABS (w / x) * 100) - (ABS (y / z) * 100)] < 30% | P162: w = 12 0299 04 x = 12 9910 04 y = PY 12 0299 04 z = PY 12 9910 04 Percent = 30% PY - Previous Year | R162: =IFERROR((ABS('12'!O11)/('12'!O95))*100,0) -> 6.401196041 | S162: =IFERROR((ABS(PYData!D21)/(PYData!D20))*100,0) -> 12.69272995 | V162: =IF(ABS(R162-S162)>=30,1,0) -> 0 | X162: 146 | Y162: B00 | Z162: R0146 | AD162: =IF(V162=0,"",GetFIRMapping(V162)) -> 
D163: OK | E163: OK | F163: 12 | G163: 12V 107 | I163: 12 0410 04 | K163: V | L163: V | M163: Y | N163: The ratio of Fire User Fees and Service Charges to Total User Fees and Service Charges (SLC 12 0410 04 : SLC 12 9910 04) has changed by more than 30% from last year's ratio (PY 12 0410 04 : PY 12 9910 04). Please verify. | O163: [(ABS (w / x) * 100) - (ABS (y / z) * 100)] < 30% | P163: w = 12 0410 04 x = 12 9910 04 y = PY 12 0410 04 z = PY 12 9910 04 Percent = 30% PY - Previous Year | R163: =IFERROR((ABS('12'!O14)/('12'!O95))*100,0) -> 27.93132563 | S163: =IFERROR((ABS(PYData!D22)/(PYData!D20))*100,0) -> 24.11906004 | V163: =IF(ABS(R163-S163)>=30,1,0) -> 0 | X163: 147 | Y163: B00 | Z163: R0147 | AD163: =IF(V163=0,"",GetFIRMapping(V163)) -> 
D164: OK | E164: OK | F164: 12 | G164: 12V 108 | I164: 12 0420 04 | K164: V | L164: V | M164: Y | N164: The ratio of Police User Fees and Service Charges to Total User Fees and Service Charges (SLC 12 0420 04 : SLC 12 9910 04) has changed by more than 30% from last year's ratio (PY 12 0420 04 : PY 12 9910 04). Please verify. | O164: [(ABS (w / x) * 100) - (ABS (y / z) * 100)] < 30% | P164: w = 12 0420 04 x = 12 9910 04 y = PY 12 0420 04 z = PY 12 9910 04 Percent = 30% | R164: =IFERROR((ABS('12'!O15)/('12'!O95))*100,0) -> 1.257481917 | S164: =IFERROR((ABS(PYData!D23)/(PYData!D20))*100,0) -> 0.2792160771 | V164: =IF(ABS(R164-S164)>=30,1,0) -> 0 | X164: 148 | Y164: B00 | Z164: R0148 | AD164: =IF(V164=0,"",GetFIRMapping(V164)) -> 
D165: OK | E165: OK | F165: 12 | G165: 12V 109 | I165: 12 0430 04 | K165: V | L165: V | M165: Y | N165: The ratio of Conservation Authority User Fees and Service Charges to Total User Fees and Service Charges (SLC 12 0430 04 : SLC 12 9910 04) has changed by more than 30% from last year's ratio (PY 12 0430 04 : PY 12 9910 04). Please verify. | O165: [(ABS (w / x) * 100) - (ABS (y / z) * 100)] < 30% | P165: w = 12 0430 04 x = 12 9910 04 y = PY 12 0430 04 z = PY 12 9910 04 Ratio Change: 30% PY - Previous Year | R165: =IFERROR((ABS('12'!O18)/('12'!O95))*100,0) -> 0 | S165: =IFERROR((ABS(PYData!D24)/(PYData!D20))*100,0) -> 0 | V165: 0 | X165: 149 | Y165: B00 | Z165: R0149 | AD165: =IF(V165=0,"",GetFIRMapping(V165)) -> 
D166: OK | E166: OK | F166: 12 | G166: 12V 110 | I166: 12 0440 04 | K166: V | L166: V | M166: Y | N166: The ratio of Protective Inspection and Control User Fees and Service Charges to Total User Fees and Service Charges (SLC 12 0440 04 : SLC 12 9910 04) has changed by more than 30% from last year's ratio (PY 12 0440 04 : PY 12 9910 04). Please verify. | O166: [(ABS (w / x) * 100) - (ABS (y / z) * 100)] < 30% | P166: w = 12 0440 04 x = 12 9910 04 y = PY 12 0440 04 z = PY 12 9910 04 Percent = 30% PY - Previous Year | R166: =IFERROR((ABS('12'!O19)/('12'!O95))*100,0) -> 0.9492089259 | S166: =IFERROR((ABS(PYData!D25)/(PYData!D20))*100,0) -> 0.6886187914 | V166: 0 | X166: 150 | Y166: B00 | Z166: R0150 | AD166: =IF(V166=0,"",GetFIRMapping(V166)) -> 
D167: OK | E167: OK | F167: 12 | G167: 12V 111 | I167: 12 0445 04 | K167: V | L167: V | M167: Y | N167: The ratio of Building permit and inspection services User Fees and Service Charges to Total User Fees and Service Charges (SLC 12 0445 04 : SLC 12 9910 04) has changed by more than 30% from last year's ratio (PY 12 0445 04 : PY 12 9910 04). Please verify. | O167: [(ABS (w / x) * 100) - (ABS (y / z) * 100)] < 30% | P167: w = 12 0445 04 x = 12 9910 04 y = PY 12 0445 04 z = PY 12 9910 04 Percent = 30% PY - Previous Year | R167: =IFERROR((ABS('12'!O20)/('12'!O95))*100,0) -> 1.752044824 | S167: =IFERROR((ABS(PYData!D26)/(PYData!D20))*100,0) -> 3.649041119 | V167: 0 | X167: 151 | Y167: B00 | Z167: R0151 | AD167: =IF(V167=0,"",GetFIRMapping(V167)) -> 
D168: OK | E168: OK | F168: 12 | G168: 12V 112 | I168: 12 0450 04 | K168: V | L168: V | M168: Y | N168: The ratio of Emergency Measures User Fees and Service Charges to Total User Fees and Service Charges (SLC 12 0450 04 : SLC 12 9910 04) has changed by more than 30% from last year's ratio (PY 12 0450 04 : PY 12 9910 04). Please verify. | O168: [(ABS (w / x) * 100) - (ABS (y / z) * 100)] < 30% | P168: w = 12 0450 04 x = 12 9910 04 y = PY 12 0450 04 z = PY 12 9910 04 Percent = 30% PY - Previous Year | R168: =IFERROR((ABS('12'!O21)/('12'!O95))*100,0) -> 0 | S168: =IFERROR((ABS(PYData!D27)/(PYData!D20))*100,0) -> 0 | V168: 0 | X168: 152 | Y168: B00 | Z168: R0152 | AD168: =IF(V168=0,"",GetFIRMapping(V168)) -> 
D169: OK | E169: OK | F169: 12 | G169: 12V 113 | I169: 12 0640 04 | K169: V | L169: V | M169: Y | N169: The ratio of Parking User Fees and Service Charges to Total User Fees and Service Charges (SLC 12 0640 04 : SLC 12 9910 04) has changed by more than 30% from last year's ratio (PY 12 0640 04 : PY 12 9910 04). Please verify. | O169: [(ABS (w / x) * 100) - (ABS (y / z) * 100)] < 30% | P169: w = 12 0640 04 x = 12 9910 04 y = PY 12 0640 04 z = PY 12 9910 04 Percent = 30% PY - Previous Year | R169: =IFERROR((ABS('12'!O34)/('12'!O95))*100,0) -> 0 | S169: =IFERROR((ABS(PYData!D28)/(PYData!D20))*100,0) -> 0.3220406288 | V169: 0 | X169: 153 | Y169: B00 | Z169: R0153 | AD169: =IF(V169=0,"",GetFIRMapping(V169)) -> 
D170: OK | E170: OK | F170: 12 | G170: 12V 114 | I170: 12 0650 04 | K170: V | L170: V | M170: Y | N170: The ratio of Street Lighting User Fees and Service Charges to Total User Fees and Service Charges (SLC 12 0650 04 : SLC 12 9910 04) has changed by more than 30% from last year's ratio (PY 12 0650 04 : PY 12 9910 04). Please verify. | O170: [(ABS (w / x) * 100) - (ABS (y / z) * 100)] < 30% | P170: w = 12 0650 04 x = 12 9910 04 y = PY 12 0650 04 z = PY 12 9910 04 Percent = 30% PY - Previous Year | R170: =IFERROR((ABS('12'!O35)/('12'!O95))*100,0) -> 0 | S170: =IFERROR((ABS(PYData!D29)/(PYData!D20))*100,0) -> 0 | V170: 0 | X170: 154 | Y170: B00 | Z170: R0154 | AD170: =IF(V170=0,"",GetFIRMapping(V170)) -> 
D171: OK | E171: OK | F171: 12 | G171: 12V 115 | I171: 12 0660 04 | K171: V | L171: V | M171: Y | N171: The ratio of Air Transportation User Fees and Service Charges to Total User Fees and Service Charges (SLC 12 0660 04 : SLC 12 9910 04) has changed by more than 30% from last year's ratio (PY 12 0660 04 : PY 12 9910 04). Please verify. | O171: [(ABS (w / x) * 100) - (ABS (y / z) * 100)] < 30% | P171: w = 12 0660 04 x = 12 9910 04 y = PY 12 0660 04 z = PY 12 9910 04 Percent = 30% PY - Previous Year | R171: =IFERROR((ABS('12'!O36)/('12'!O95))*100,0) -> 12.83294616 | S171: =IFERROR((ABS(PYData!D30)/(PYData!D20))*100,0) -> 10.64509347 | V171: 0 | X171: 155 | Y171: B00 | Z171: R0155 | AD171: =IF(V171=0,"",GetFIRMapping(V171)) -> 
D172: OK | E172: OK | F172: 12 | G172: 12V 116 | I172: 12 0840 04 | K172: V | L172: V | M172: Y | N172: The ratio of Waste Collection User Fees and Service Charges to Total User Fees and Service Charges (SLC 12 0840 04 : SLC 12 9910 04) has changed by more than 30% from last year's ratio (PY 12 0840 04 : PY 12 9910 04). Please verify. | O172: [(ABS (w / x) * 100) - (ABS (y / z) * 100)] < 30% | P172: w = 12 0840 04 x = 12 9910 04 y = PY 12 0840 04 z = PY 12 9910 04 Percent = 30% PY - Previous Year | R172: =IFERROR((ABS('12'!O46)/('12'!O95))*100,0) -> 0 | S172: =IFERROR((ABS(PYData!D31)/(PYData!D20))*100,0) -> 0 | V172: 0 | X172: 156 | Y172: B00 | Z172: R0156 | AD172: =IF(V172=0,"",GetFIRMapping(V172)) -> 
D173: OK | E173: OK | F173: 12 | G173: 12V 117 | I173: 12 0850 04 | K173: V | L173: V | M173: Y | N173: The ratio of Waste Disposal User Fees and Service Charges to Total User Fees and Service Charges (SLC 12 0850 04 : SLC 12 9910 04) has changed by more than 30% from last year's ratio (PY 12 0850 04 : PY 12 9910 04). Please verify. | O173: [(ABS (w / x) * 100) - (ABS (y / z) * 100)] < 30% | P173: w = 12 0850 04 x = 12 9910 04 y = PY 12 0850 04 z = PY 12 9910 04 Percent = 30% PY - Previous Year | R173: =IFERROR((ABS('12'!O47)/('12'!O95))*100,0) -> 0 | S173: =IFERROR((ABS(PYData!D32)/(PYData!D20))*100,0) -> 2.45267887 | V173: 0 | X173: 157 | Y173: B00 | Z173: R0157 | AD173: =IF(V173=0,"",GetFIRMapping(V173)) -> 
D174: OK | E174: OK | F174: 12 | G174: 12V 118 | I174: 12 0860 04 | K174: V | L174: V | M174: Y | N174: The ratio of Recycling User Fees and Service Charges to Total User Fees and Service Charges (SLC 12 0860 04 : SLC 12 9910 04) has changed by more than 30% from last year's ratio (PY 12 0860 04 : PY 12 9910 04). Please verify. | O174: [(ABS (w / x) * 100) - (ABS (y / z) * 100)] < 30% | P174: w = 12 0860 04 x = 12 9910 04 y = PY 12 0860 04 z = PY 12 9910 04 Percent = 30% PY - Previous Year | R174: =IFERROR((ABS('12'!O48)/('12'!O95))*100,0) -> 0 | S174: =IFERROR((ABS(PYData!D33)/(PYData!D20))*100,0) -> 0 | V174: 0 | X174: 158 | Y174: B00 | Z174: R0158 | AD174: =IF(V174=0,"",GetFIRMapping(V174)) -> 
D175: OK | E175: OK | F175: 12 | G175: 12V 119 | I175: 12 1010 04 | K175: V | L175: V | M175: Y | N175: The ratio of Public Health Services User Fees and Service Charges to Total User Fees and Service Charges (SLC 12 1010 04 : SLC 12 9910 04) has changed by more than 30% from last year's ratio (PY 12 1010 04 : PY 12 9910 04). Please verify. | O175: [(ABS (w / x) * 100) - (ABS (y / z) * 100)] < 30% | P175: w = 12 1010 04 x = 12 9910 04 y = PY 12 1010 04 z = PY 12 9910 04 Ratio Change: 30% PY - Previous Year | R175: =IFERROR((ABS('12'!O52)/('12'!O95))*100,0) -> 0 | S175: =IFERROR((ABS(PYData!D34)/(PYData!D20))*100,0) -> 0 | V175: 0 | X175: 159 | Y175: B00 | Z175: R0159 | AD175: =IF(V175=0,"",GetFIRMapping(V175)) -> 
D176: OK | E176: OK | F176: 12 | G176: 12V 120 | I176: 12 1020 04 | K176: V | L176: V | M176: Y | N176: The ratio of Hospital User Fees and Service Charges to Total User Fees and Service Charges (SLC 12 1020 04 : SLC 12 9910 04) has changed by more than 30% from last year's ratio (PY 12 1020 04 : PY 12 9910 04). Please verify. | O176: [(ABS (w / x) * 100) - (ABS (y / z) * 100)] < 30% | P176: w = 12 1020 04 x = 12 9910 04 y = PY 12 1020 04 z = PY 12 9910 04 Percent = 30% PY - Previous Year | R176: =IFERROR((ABS('12'!O53)/('12'!O95))*100,0) -> 0 | S176: =IFERROR((ABS(PYData!D35)/(PYData!D20))*100,0) -> 0 | V176: 0 | X176: 160 | Y176: B00 | Z176: R0160 | AD176: =IF(V176=0,"",GetFIRMapping(V176)) -> 
D177: OK | E177: OK | F177: 12 | G177: 12V 121 | I177: 12 1030 04 | K177: V | L177: V | M177: Y | N177: The ratio of Ambulance Services User Fees and Service Charges to Total User Fees and Service Charges (SLC 12 1030 04 : SLC 12 9910 04) has changed by more than 30% from last year's ratio (PY 12 1030 04 : PY 12 9910 04). Please verify. | O177: [(ABS (w / x) * 100) - (ABS (y / z) * 100)] < 30% | P177: w = 12 1030 04 x = 12 9910 04 y = PY 12 1030 04 z = PY 12 9910 04 Percent = 30% PY - Previous Year | R177: =IFERROR((ABS('12'!O54)/('12'!O95))*100,0) -> 0 | S177: =IFERROR((ABS(PYData!D36)/(PYData!D20))*100,0) -> 0 | V177: 0 | X177: 161 | Y177: B00 | Z177: R0161 | AD177: =IF(V177=0,"",GetFIRMapping(V177)) -> 
D178: OK | E178: OK | F178: 12 | G178: 12V 122 | I178: 12 1040 04 | K178: V | L178: V | M178: Y | N178: The ratio of Cemeteries User Fees and Service Charges to Total User Fees and Service Charges (SLC 12 1040 04 : SLC 12 9910 04) has changed by more than 30% from last year's ratio (PY 12 1040 04 : PY 12 9910 04). Please verify. | O178: [(ABS (w / x) * 100) - (ABS (y / z) * 100)] < 30% | P178: w = 12 1040 04 x = 12 9910 04 y = PY 12 1040 04 z = PY 12 9910 04 Percent = 30% PY - Previous Year | R178: =IFERROR((ABS('12'!O56)/('12'!O95))*100,0) -> 5.536518954 | S178: =IFERROR((ABS(PYData!D37)/(PYData!D20))*100,0) -> 7.431772703 | V178: 0 | X178: 162 | Y178: B00 | Z178: R0162 | AD178: =IF(V178=0,"",GetFIRMapping(V178)) -> 
D179: OK | E179: OK | F179: 12 | G179: 12V 123 | I179: 12 1210 04 | K179: V | L179: V | M179: Y | N179: The ratio of General Assistance User Fees and Service Charges to Total User Fees and Service Charges (SLC 12 1210 04 : SLC 12 9910 04) has changed by more than 30% from last year's ratio (PY 12 1210 04 : PY 12 9910 04). Please verify. | O179: [(ABS (w / x) * 100) - (ABS (y / z) * 100)] < 30% | P179: w = 12 1210 04 x = 12 9910 04 y = PY 12 1210 04 z = PY 12 9910 04 Percent = 30% PY - Previous Year | R179: =IFERROR((ABS('12'!O60)/('12'!O95))*100,0) -> 0 | S179: =IFERROR((ABS(PYData!D38)/(PYData!D20))*100,0) -> 0 | V179: 0 | X179: 163 | Y179: B00 | Z179: R0163 | AD179: =IF(V179=0,"",GetFIRMapping(V179)) -> 
D180: OK | E180: OK | F180: 12 | G180: 12V 124 | I180: 12 1220 04 | K180: V | L180: V | M180: Y | N180: The ratio of Assistance to Aged Persons User Fees and Service Charges to Total User Fees and Service Charges (SLC 12 1220 04 : SLC 12 9910 04) has changed by more than 30% from last year's ratio (PY 12 1220 04 : PY 12 9910 04). Please verify. | O180: [(ABS (w / x) * 100) - (ABS (y / z) * 100)] < 30% | P180: w = 12 1220 04 x = 12 9910 04 y = PY 12 1220 04 z = PY 12 9910 04 Percent = 30% PY - Previous Year | R180: =IFERROR((ABS('12'!O61)/('12'!O95))*100,0) -> 0 | S180: =IFERROR((ABS(PYData!D39)/(PYData!D20))*100,0) -> 0 | V180: 0 | X180: 164 | Y180: B00 | Z180: R0164 | AD180: =IF(V180=0,"",GetFIRMapping(V180)) -> 
D181: OK | E181: OK | F181: 12 | G181: 12V 125 | I181: 12 1230 04 | K181: V | L181: V | M181: Y | N181: The ratio of Child Care User Fees and Service Charges to Total User Fees and Service Charges (SLC 12 1230 04 : SLC 12 9910 04) has changed by more than 30% from last year's ratio (PY 12 1230 04 : PY 12 9910 04). Please verify. | O181: [(ABS (w / x) * 100) - (ABS (y / z) * 100)] < 30% | P181: w = 12 1230 04 x = 12 9910 04 y = PY 12 1230 04 z = PY 12 9910 04 Percent = 30% PY - Previous Year | R181: =IFERROR((ABS('12'!O62)/('12'!O95))*100,0) -> 0 | S181: =IFERROR((ABS(PYData!D40)/(PYData!D20))*100,0) -> 0 | V181: 0 | X181: 165 | Y181: B00 | Z181: R0165 | AD181: =IF(V181=0,"",GetFIRMapping(V181)) -> 
D182: OK | E182: OK | F182: 12 | G182: 12V 126 | I182: 12 1499 04 | K182: V | L182: V | M182: Y | N182: The ratio of Social Housing User Fees and Service Charges to Total User Fees and Service Charges (SLC 12 1499 04 : SLC 12 9910 04) has changed by more than 30% from last year's ratio (PY 12 1499 04 : PY 12 9910 04). Please verify. | O182: [(ABS (w / x) * 100) - (ABS (y / z) * 100)] < 30% | P182: w = 12 1499 04 x = 12 9910 04 y = PY 12 1499 04 z = PY 12 9910 04 Percent = 30% PY - Previous Year | R182: =IFERROR((ABS('12'!O72)/('12'!O95))*100,0) -> 0 | S182: =IFERROR((ABS(PYData!D41)/(PYData!D20))*100,0) -> 0 | V182: 0 | X182: 166 | Y182: B00 | Z182: R0166 | AD182: =IF(V182=0,"",GetFIRMapping(V182)) -> 
D183: OK | E183: OK | F183: 12 | G183: 12V 127 | I183: 12 1610 04 | K183: V | L183: V | M183: Y | N183: The ratio of Parks User Fees and Service Charges to Total User Fees and Service Charges (SLC 12 1610 04 : SLC 12 9910 04) has changed by more than 30% from last year's ratio (PY 12 1610 04 : PY 12 9910 04). Please verify. | O183: [(ABS (w / x) * 100) - (ABS (y / z) * 100)] < 30% | P183: w = 12 1610 04 x = 12 9910 04 y = PY 12 1610 04 z = PY 12 9910 04 Percent = 30% PY - Previous Year | R183: =IFERROR((ABS('12'!O75)/('12'!O95))*100,0) -> 0.4473157059 | S183: =IFERROR((ABS(PYData!D42)/(PYData!D20))*100,0) -> 0.5090281941 | V183: 0 | X183: 167 | Y183: B00 | Z183: R0167 | AD183: =IF(V183=0,"",GetFIRMapping(V183)) -> 
D184: OK | E184: OK | F184: 12 | G184: 12V 128 | I184: 12 1620 04 | K184: V | L184: V | M184: Y | N184: The ratio of Recreation Programs User Fees and Service Charges to Total User Fees and Service Charges (SLC 12 1620 04 : SLC 12 9910 04) has changed by more than 30% from last year's ratio (PY 12 1620 04 : PY 12 9910 04). Please verify. | O184: [(ABS (w / x) * 100) - (ABS (y / z) * 100)] < 30% | P184: w = 12 1620 04 x = 12 9910 04 y = PY 12 1620 04 z = PY 12 9910 04 Percent = 30% PY - Previous Year | R184: =IFERROR((ABS('12'!O76)/('12'!O95))*100,0) -> 25.87773837 | S184: =IFERROR((ABS(PYData!D43)/(PYData!D20))*100,0) -> 17.71106664 | V184: 0 | X184: 168 | Y184: B00 | Z184: R0168 | AD184: =IF(V184=0,"",GetFIRMapping(V184)) -> 
D185: OK | E185: OK | F185: 12 | G185: 12V 129 | I185: 12 1631 04 | K185: V | L185: V | M185: Y | N185: The ratio of Recreation Facilities - Golf Course, Marina, Ski Hill User Fees and Service Charges to Total User Fees and Service Charges (SLC 12 1631 04 : SLC 12 9910 04) has changed by more than 30% from last year's ratio (PY 12 1631 04 : PY 12 9910 04). Please verify. | O185: [(ABS (w / x) * 100) - (ABS (y / z) * 100)] < 30% | P185: w = 12 1631 04 x = 12 9910 04 y = PY 12 1631 04 z = PY 12 9910 04 Percent = 30% PY - Previous Year | R185: =IFERROR((ABS('12'!O77)/('12'!O95))*100,0) -> 0 | S185: =IFERROR((ABS(PYData!D44)/(PYData!D20))*100,0) -> 0 | V185: 0 | X185: 169 | Y185: B00 | Z185: R0169 | AD185: =IF(V185=0,"",GetFIRMapping(V185)) -> 
D186: OK | E186: OK | F186: 12 | G186: 12V 130 | I186: 12 1634 04 | K186: V | L186: V | M186: Y | N186: The ratio of Recreation Facilities- Other User Fees and Service Charges to Total User Fees and Service Charges (SLC 12 1634 04 : SLC 12 9910 04) has changed by more than 30% from last year's ratio (PY 12 1635 04 : PY 12 9910 04). Please verify. | O186: [(ABS (w / x) * 100) - (ABS (y / z) * 100)] < 30% | P186: w = 12 1634 04 x = 12 9910 04 y = PY 12 1634 04 z = PY 12 9910 04 Percent = 30% PY - Previous Year | R186: =IFERROR((ABS('12'!O78)/('12'!O95))*100,0) -> 0.6900823527 | S186: =IFERROR((ABS(PYData!D45)/(PYData!D20))*100,0) -> 0.7972374271 | V186: 0 | X186: 170 | Y186: B00 | Z186: R0170 | AD186: =IF(V186=0,"",GetFIRMapping(V186)) -> 
D187: OK | E187: OK | F187: 12 | G187: 12V 131 | I187: 12 1640 04 | K187: V | L187: V | M187: Y | N187: The ratio of Libraries User Fees and Service Charges to Total User Fees and Service Charges (SLC 12 1640 04 : SLC 12 9910 04) has changed by more than 30% from last year's ratio (PY 12 1640 04 : PY 12 9910 04). Please verify. | O187: [(ABS (w / x) * 100) - (ABS (y / z) * 100)] < 30% | P187: w = 12 1640 04 x = 12 9910 04 y = PY 12 1640 04 z = PY 12 9910 04 Percent = 30% PY - Previous Year | R187: =IFERROR((ABS('12'!O79)/('12'!O95))*100,0) -> 0 | S187: =IFERROR((ABS(PYData!D46)/(PYData!D20))*100,0) -> 0 | V187: 0 | X187: 171 | Y187: B00 | Z187: R0171 | AD187: =IF(V187=0,"",GetFIRMapping(V187)) -> 
D188: OK | E188: OK | F188: 12 | G188: 12V 132 | I188: 12 1650 04 | K188: V | L188: V | M188: Y | N188: The ratio of Cultural Services User Fees and Service Charges to Total User Fees and Service Charges (SLC 12 1650 04 : SLC 12 9910 04) has changed by more than 30% from last year's ratio (PY 12 1650 04 : PY 12 9910 04). Please verify. | O188: [(ABS (w / x) * 100) - (ABS (y / z) * 100)] < 30% | P188: w = 12 1650 04 x = 12 9910 04 y = PY 12 1650 04 z = PY 12 9910 04 Percent = 30% PY - Previous Year | R188: =IFERROR((ABS('12'!O81)/('12'!O95))*100,0) -> 0 | S188: =IFERROR((ABS(PYData!D47)/(PYData!D20))*100,0) -> 0 | V188: 0 | X188: 172 | Y188: B00 | Z188: R0172 | AD188: =IF(V188=0,"",GetFIRMapping(V188)) -> 
D189: OK | E189: OK | F189: 12 | G189: 12V 133 | I189: 12 1810 04 | K189: V | L189: V | M189: Y | N189: The ratio of Planning and Zoning User Fees and Service Charges to Total User Fees and Service Charges (SLC 12 1810 04 : SLC 12 9910 04) has changed by more than 30% from last year's ratio (PY 12 1810 04 : PY 12 9910 04). Please verify. | O189: [(ABS (w / x) * 100) - (ABS (y / z) * 100)] < 30% | P189: w = 12 1810 04 x = 12 9910 04 y = PY 12 1810 04 z = PY 12 9910 04 Percent = 30% PY - Previous Year | R189: =IFERROR((ABS('12'!O85)/('12'!O95))*100,0) -> 0 | S189: =IFERROR((ABS(PYData!D48)/(PYData!D20))*100,0) -> 0.1845738178 | V189: 0 | X189: 173 | Y189: B00 | Z189: R0173 | AD189: =IF(V189=0,"",GetFIRMapping(V189)) -> 
D190: OK | E190: OK | F190: 12 | G190: 12V 134 | I190: 12 1820 04 | K190: V | L190: V | M190: Y | N190: The ratio of Commercial and Industrial User Fees and Service Charges to Total User Fees and Service Charges (SLC 12 1820 04 : SLC 12 9910 04) has changed by more than 30% from last year's ratio (PY 12 1820 04 : PY 12 9910 04). Please verify. | O190: [(ABS (w / x) * 100) - (ABS (y / z) * 100)] < 30% | P190: w = 12 1820 04 x = 12 9910 04 y = PY 12 1820 04 z = PY 12 9910 04 Percent = 30% PY - Previous Year | R190: =IFERROR((ABS('12'!O86)/('12'!O95))*100,0) -> 0.9798296435 | S190: =IFERROR((ABS(PYData!D49)/(PYData!D20))*100,0) -> 7.579244886 | V190: 0 | X190: 174 | Y190: B00 | Z190: R0174 | AD190: =IF(V190=0,"",GetFIRMapping(V190)) -> 
D191: OK | E191: OK | F191: 12 | G191: 12V 135 | I191: 12 1830 04 | K191: V | L191: V | M191: Y | N191: The ratio of Residential Development User Fees and Service Charges to Total User Fees and Service Charges (SLC 12 1830 04 : SLC 12 9910 04) has changed by more than 30% from last year's ratio (PY 12 1830 04 : PY 12 9910 04). Please verify. | O191: [(ABS (w / x) * 100) - (ABS (y / z) * 100)] < 30% | P191: w = 12 1830 04 x = 12 9910 04 y = PY 12 1830 04 z = PY 12 9910 04 Percent = 30% PY - Previous Year | R191: =IFERROR((ABS('12'!O87)/('12'!O95))*100,0) -> 0 | S191: =IFERROR((ABS(PYData!D50)/(PYData!D20))*100,0) -> 0 | V191: 0 | X191: 175 | Y191: B00 | Z191: R0175 | AD191: =IF(V191=0,"",GetFIRMapping(V191)) -> 
D192: OK | E192: OK | F192: 12 | G192: 12V 136 | I192: 12 1840 04 | K192: V | L192: V | M192: Y | N192: The ratio of Agriculture and Reforestation User Fees and Service Charges to Total User Fees and Service Charges (SLC 12 1840 04 : SLC 12 9910 04) has changed by more than 30% from last year's ratio (PY 12 1840 04 : PY 12 9910 04). Please verify. | O192: [(ABS (w / x) * 100) - (ABS (y / z) * 100)] < 30% | P192: w = 12 1840 04 x = 12 9910 04 y = PY 12 1840 04 z = PY 12 9910 04 Percent = 30% PY - Previous Year | R192: =IFERROR((ABS('12'!O88)/('12'!O95))*100,0) -> 0 | S192: =IFERROR((ABS(PYData!D51)/(PYData!D20))*100,0) -> 0 | V192: 0 | X192: 176 | Y192: B00 | Z192: R0176 | AD192: =IF(V192=0,"",GetFIRMapping(V192)) -> 
D193: OK | E193: OK | F193: 12 | G193: 12V 137 | I193: 12 1850 04 | K193: V | L193: V | M193: Y | N193: The ratio of Tile Drainage/Shoreline Assistance User Fees and Service Charges to Total User Fees and Service Charges (SLC 12 1850 04 : SLC 12 9910 04) has changed by more than 30% from last year's ratio (PY 12 1850 04 : PY 12 9910 04). Please verify. | O193: [(ABS (w / x) * 100) - (ABS (y / z) * 100)] < 30% | P193: w = 12 1850 04 x = 12 9910 04 y = PY 12 1850 04 z = PY 12 9910 04 Percent = 30% PY - Previous Year | R193: =IFERROR((ABS('12'!O89)/('12'!O95))*100,0) -> 0 | S193: =IFERROR((ABS(PYData!D52)/(PYData!D20))*100,0) -> 0 | V193: 0 | X193: 177 | Y193: B00 | Z193: R0177 | AD193: =IF(V193=0,"",GetFIRMapping(V193)) -> 
D194: OK | E194: OK | F194: 12 | G194: 12V 140 | I194: 12 0421 04 | K194: V | L194: V | M194: Y | N194: The ratio of Court Security User Fees and Service Charges to Total User Fees and Service Charges (SLC 12 0421 04 : SLC 12 9910 04) has changed by more than 30% from last year's ratio (PY 12 0421 04 : PY 12 9910 04). Please verify. | O194: [(ABS (w / x) * 100) - (ABS (y / z) * 100)] < 30% | P194: w = 12 0421 04 x = 12 9910 04 y = PY 12 0421 04 z = PY 12 9910 04 Percent = 30% PY - Previous Year | R194: =IFERROR((ABS('12'!O16)/('12'!O95))*100,0) -> 0 | S194: =IFERROR((ABS(PYData!D55)/(PYData!D20))*100,0) -> 0 | V194: 0 | X194: 178 | Y194: B00 | Z194: R0178 | AD194: =IF(V194=0,"",GetFIRMapping(V194)) -> 
D195: OK | E195: OK | F195: 12 | G195: 12V 141 | I195: 12 0422 04 | K195: V | L195: V | M195: Y | N195: The ratio of Prisoner Transportation User Fees and Service Charges to Total User Fees and Service Charges (SLC 12 0422 04 : SLC 12 9910 04) has changed by more than 30% from last year's ratio (PY 12 0422 04 : PY 12 9910 04). Please verify. | O195: [(ABS (w / x) * 100) - (ABS (y / z) * 100)] < 30% | P195: w = 12 0422 04 x = 12 9910 04 y = PY 12 0422 04 z = PY 12 9910 04 Percent = 30% PY - Previous Year | R195: =IFERROR((ABS('12'!O17)/('12'!O95))*100,0) -> 0 | S195: =IFERROR((ABS(PYData!D56)/(PYData!D20))*100,0) -> 0 | V195: 0 | X195: 179 | Y195: B00 | Z195: R0179 | AD195: =IF(V195=0,"",GetFIRMapping(V195)) -> 
D196: OK | E196: OK | F196: 12 | G196: 12V 142 | I196: 12 0460 04 | K196: V | L196: V | M196: Y | N196: The ratio of Provincial Offences Act (POA) User Fees and Service Charges to Total User Fees and Service Charges (SLC 12 0460 04 : SLC 12 9910 04) has changed by more than 30% from last year's ratio (PY 12 0460 04 : PY 12 9910 04). Please verify. | O196: [(ABS (w / x) * 100) - (ABS (y / z) * 100)] < 30% | P196: w = 12 0460 04 x = 12 9910 04 y = PY 12 0460 04 z = PY 12 9910 04 Percent = 30% PY - Previous Year | R196: =IFERROR((ABS('12'!O22)/('12'!O95))*100,0) -> 0 | S196: =IFERROR((ABS(PYData!D57)/(PYData!D20))*100,0) -> 0 | V196: 0 | X196: 180 | Y196: B00 | Z196: R0180 | AD196: =IF(V196=0,"",GetFIRMapping(V196)) -> 
D197: OK | E197: OK | F197: 12 | G197: 12V 144 | I197: 12 0611 04 | K197: V | L197: V | M197: Y | N197: The ratio of Roads - Paved User Fees and Service Charges to Total User Fees and Service Charges (SLC 12 0611 04 : SLC 12 9910 04) has changed by more than 30% from last year's ratio (PY 12 0611 04 : PY 12 9910 04). Please verify. | O197: [(ABS (w / x) * 100) - (ABS (y / z) * 100)] < 30% | P197: w = 12 0611 04 x = 12 9910 04 y = PY 12 0611 04 z = PY 12 9910 04 Percent = 30% PY - Previous Year | R197: =IFERROR((ABS('12'!O26)/('12'!O95))*100,0) -> 6.367743156 | S197: =IFERROR((ABS(PYData!D59)/(PYData!D20))*100,0) -> 9.060701855 | V197: 0 | X197: 181 | Y197: B00 | Z197: R0181 | AD197: =IF(V197=0,"",GetFIRMapping(V197)) -> 
D198: OK | E198: OK | F198: 12 | G198: 12V 145 | I198: 12 0612 04 | K198: V | L198: V | M198: Y | N198: The ratio of Roads - Unpaved User Fees and Service Charges to Total User Fees and Service Charges (SLC 12 0612 04 : SLC 12 9910 04) has changed by more than 30% from last year's ratio (PY 12 0612 04 : PY 12 9910 04). Please verify. | O198: [(ABS (w / x) * 100) - (ABS (y / z) * 100)] < 30% | P198: w = 12 0612 04 x = 12 9910 04 y = PY 12 0612 04 z = PY 12 9910 04 Percent = 30% PY - Previous Year | R198: =IFERROR((ABS('12'!O27)/('12'!O95))*100,0) -> 0 | S198: =IFERROR((ABS(PYData!D60)/(PYData!D20))*100,0) -> 0 | V198: 0 | X198: 182 | Y198: B00 | Z198: R0182 | AD198: =IF(V198=0,"",GetFIRMapping(V198)) -> 
D199: OK | E199: OK | F199: 12 | G199: 12V 146 | I199: 12 0613 04 | K199: V | L199: V | M199: Y | N199: The ratio of Roads - Bridges and Culverts User Fees and Service Charges to Total User Fees and Service Charges (SLC 12 0613 04 : SLC 12 9910 04) has changed by more than 30% from last year's ratio (PY 12 0613 04 : PY 12 9910 04). Please verify. | O199: [(ABS (w / x) * 100) - (ABS (y / z) * 100)] < 30% | P199: w = 12 0613 04 x = 12 9910 04 y = PY 12 0613 04 z = PY 12 9910 04 Percent = 30% PY - Previous Year | R199: =IFERROR((ABS('12'!O28)/('12'!O95))*100,0) -> 0 | S199: =IFERROR((ABS(PYData!D61)/(PYData!D20))*100,0) -> 0 | V199: 0 | X199: 183 | Y199: B00 | Z199: R0183 | AD199: =IF(V199=0,"",GetFIRMapping(V199)) -> 
D200: OK | E200: OK | F200: 12 | G200: 12V 147 | I200: 12 0614 04 | K200: V | L200: V | M200: Y | N200: The ratio of Roads - Traffic Operations & Roadside User Fees and Service Charges to Total User Fees and Service Charges (SLC 12 0614 04 : SLC 12 9910 04) has changed by more than 30% from last year's ratio (PY 12 0614 04 : PY 12 9910 04). Please verify. | O200: [(ABS (w / x) * 100) - (ABS (y / z) * 100)] < 30% | P200: w = 12 0614 04 x = 12 9910 04 y = PY 12 0614 04 z = PY 12 9910 04 Percent = 30% PY - Previous Year | R200: =IFERROR((ABS('12'!O29)/('12'!O95))*100,0) -> 0 | S200: =IFERROR((ABS(PYData!D62)/(PYData!D20))*100,0) -> 0 | V200: 0 | X200: 184 | Y200: B00 | Z200: R0184 | AD200: =IF(V200=0,"",GetFIRMapping(V200)) -> 
D201: OK | E201: OK | F201: 12 | G201: 12V 148 | I201: 1 2 0621 04 | K201: V | L201: V | M201: Y | N201: The ratio of Winter Control - Except Sidewalks, Parking Lots User Fees and Service Charges to Total User Fees and Service Charges (SLC 12 0621 04 : SLC 12 9910 04) has changed by more than 30% from last year's ratio (PY 12 0621 04 : PY 12 9910 04). Please verify. | O201: [(ABS (w / x) * 100) - (ABS (y / z) * 100)] < 30% | P201: w = 12 0621 04 x = 12 9910 04 y = PY 12 0621 04 z = PY 12 9910 04 Percent = 30% PY - Previous Year | R201: =IFERROR((ABS('12'!O30)/('12'!O95))*100,0) -> 0 | S201: =IFERROR((ABS(PYData!D63)/(PYData!D20))*100,0) -> 0 | V201: 0 | X201: 185 | Y201: B00 | Z201: R0185 | AD201: =IF(V201=0,"",GetFIRMapping(V201)) -> 
D202: OK | E202: OK | F202: 12 | G202: 12V 149 | I202: 12 0622 04 | K202: V | L202: V | M202: Y | N202: The ratio of Winter Control - Sidewalks, Parking Lots User Fees and Service Charges to Total User Fees and Service Charges (SLC 12 0622 04 : SLC 12 9910 04) has changed by more than 30% from last year's ratio (PY 12 0622 04 : PY 12 9910 04). Please verify. | O202: [(ABS (w / x) * 100) - (ABS (y / z) * 100)] < 30% | P202: w = 12 0622 04 x = 12 9910 04 y = PY 12 0622 04 z = PY 12 9910 04 Percent = 30% PY - Previous Year | R202: =IFERROR((ABS('12'!O31)/('12'!O95))*100,0) -> 0 | S202: =IFERROR((ABS(PYData!D64)/(PYData!D20))*100,0) -> 0 | V202: 0 | X202: 186 | Y202: B00 | Z202: R0186 | AD202: =IF(V202=0,"",GetFIRMapping(V202)) -> 
D203: OK | E203: OK | F203: 12 | G203: 12V 150 | I203: 12 0631 04 | K203: V | L203: V | M203: Y | N203: The ratio of Transit - Conventional User Fees and Service Charges to Total User Fees and Service Charges (SLC 12 0631 04 : SLC 12 9910 04) has changed by more than 30% from last year's ratio (PY 12 0631 04 : PY 12 9910 04). Please verify. | O203: [(ABS (w / x) * 100) - (ABS (y / z) * 100)] < 30% | P203: w = 12 0631 04 x = 12 9910 04 y = PY 12 0631 04 z = PY 12 9910 04 Percent = 30% PY - Previous Year | R203: =IFERROR((ABS('12'!O32)/('12'!O95))*100,0) -> 1.555025996 | S203: =IFERROR((ABS(PYData!D65)/(PYData!D20))*100,0) -> 1.540360193 | V203: 0 | X203: 187 | Y203: B00 | Z203: R0187 | AD203: =IF(V203=0,"",GetFIRMapping(V203)) -> 
D204: OK | E204: OK | F204: 12 | G204: 12V 151 | I204: 12 0632 04 | K204: V | L204: V | M204: Y | N204: The ratio of Transit - Disabled & Special Needs User Fees and Service Charges to Total User Fees and Service Charges (SLC 12 0632 04 : SLC 12 9910 04) has changed by more than 30% from last year's ratio (PY 12 0632 04 : PY 12 9910 04). Please verify. | O204: [(ABS (w / x) * 100) - (ABS (y / z) * 100)] < 30% | P204: w = 12 0632 04 x = 12 9910 04 y = PY 12 0632 04 z = PY 12 9910 04 Percent = 30% PY - Previous Year | R204: =IFERROR((ABS('12'!O33)/('12'!O95))*100,0) -> 0 | S204: =IFERROR((ABS(PYData!D66)/(PYData!D20))*100,0) -> 0 | V204: 0 | X204: 188 | Y204: B00 | Z204: R0188 | AD204: =IF(V204=0,"",GetFIRMapping(V204)) -> 
... 1265 more rows

Sheet FIRDataMap (hidden)

Sheet SVWorkspace (hidden)

Sheet SVWorkspace_Ess (hidden)

Sheet MUN_TABLE (hidden)
A1: MunName | B1: MunASMTCode | C1: MunMUNIDCode | D1: MunMAHCode | E1: MunTierCode | F1: MunTierDesc | G1: MunUTCode | H1: MunUTNum | I1: MunUTDesc | J1: MunMSOCode | K1: MunMSODesc | L1: MunTypeCode | M1: MunTypeDesc | N1: MunTypeChgDate | O1: MunSGCCode | P1: MunStatusChgDate | Q1: MunLastUpdDate | R1: MunFIRCleanInd | S1: MunFirstSubmitDate
A2: Addington Highlands Tp | B2: 1134 | C2: 11033_MUNID | D2: 57611_MAH | E2: LT_Tier | F2: Lower-Tier | G2: 57_UT | H2: 57 | I2: Lennox and Addington Co (57_UT) | J2: 12_MSO | K2: Eastern Ontario (12_MSO) | L2: 6_MType | M2: Township (6_MType) | N2: 367 | O2: 11035_SGC | P2: 44957 | R2: Smart FIR Initialized
A3: Adelaide-Metcalfe Tp | B3: 3946 | C3: 39010_MUNID | D3: 59618_MAH | E3: LT_Tier | F3: Lower-Tier | G3: 59_UT | H3: 59 | I3: Middlesex Co (59_UT) | J3: 15_MSO | K3: Western Ontario (15_MSO) | L3: 6_MType | M3: Township (6_MType) | N3: 367 | O3: 39047_SGC | R3: Not Started
A4: Adjala-Tosorontio Tp | B4: 4301 | C4: 43002_MUNID | D4: 70619_MAH | E4: LT_Tier | F4: Lower-Tier | G4: 70_UT | H4: 70 | I4: Simcoe Co (70_UT) | J4: 11_MSO | K4: Central Ontario (11_MSO) | L4: 6_MType | M4: Township (6_MType) | N4: 367 | O4: 43003_SGC | R4: Not Started
A5: Admaston-Bromley Tp | B5: 4742 | C5: 47041_MUNID | D5: 69631_MAH | E5: LT_Tier | F5: Lower-Tier | G5: 69_UT | H5: 69 | I5: Renfrew Co (69_UT) | J5: 12_MSO | K5: Eastern Ontario (12_MSO) | L5: 6_MType | M5: Township (6_MType) | N5: 367 | O5: 47043_SGC | R5: Not Started
A6: Ajax T | B6: 1805 | C6: 18005_MUNID | D6: 10401_MAH | E6: LT_Tier | F6: Lower-Tier | G6: 10_UT | H6: 10 | I6: Durham R (10_UT) | J6: 11_MSO | K6: Central Ontario (11_MSO) | L6: 4_MType | M6: Town (4_MType) | N6: 367 | O6: 18005_SGC | R6: Not Started
A7: Alberton Tp | B7: 5911 | C7: 59011_MUNID | D7: 87601_MAH | E7: ST_Tier | F7: Single-Tier | G7: 87_UT | H7: 87 | I7: Rainy River D (87_UT) | J7: 14_MSO | K7: Northwest Ontario (14_MSO) | L7: 6_MType | M7: Township (6_MType) | N7: 367 | O7: 59011_SGC | R7: Not Started
A8: Alfred and Plantagenet Tp | B8: 0231 | C8: 02030_MUNID | D8: 67612_MAH | E8: LT_Tier | F8: Lower-Tier | G8: 67_UT | H8: 67 | I8: Prescott and Russell UCo (67_UT) | J8: 12_MSO | K8: Eastern Ontario (12_MSO) | L8: 6_MType | M8: Township (6_MType) | N8: 367 | O8: 2023_SGC | R8: Not Started
A9: Algonquin Highlands Tp | B9: 4621 | C9: 46020_MUNID | D9: 49613_MAH | E9: LT_Tier | F9: Lower-Tier | G9: 49_UT | H9: 49 | I9: Haliburton Co (49_UT) | J9: 12_MSO | K9: Eastern Ontario (12_MSO) | L9: 6_MType | M9: Township (6_MType) | N9: 367 | O9: 46020_SGC | R9: Not Started
A10: Alnwick-Haldimand Tp | B10: 1450 | C10: 14015_MUNID | D10: 61616_MAH | E10: LT_Tier | F10: Lower-Tier | G10: 61_UT | H10: 61 | I10: Northumberland Co (61_UT) | J10: 12_MSO | K10: Eastern Ontario (12_MSO) | L10: 6_MType | M10: Township (6_MType) | N10: 367 | O10: 14024_SGC | R10: Not Started
A11: Amaranth Tp | B11: 2208 | C11: 22008_MUNID | D11: 43601_MAH | E11: LT_Tier | F11: Lower-Tier | G11: 43_UT | H11: 43 | I11: Dufferin Co (43_UT) | J11: 15_MSO | K11: Western Ontario (15_MSO) | L11: 6_MType | M11: Township (6_MType) | N11: 367 | O11: 22008_SGC | R11: Not Started
A12: Amherstburg T | B12: 3729 | C12: 37025_MUNID | D12: 45409_MAH | E12: LT_Tier | F12: Lower-Tier | G12: 45_UT | H12: 45 | I12: Essex Co (45_UT) | J12: 15_MSO | K12: Western Ontario (15_MSO) | L12: 4_MType | M12: Town (4_MType) | N12: 367 | O12: 37028_SGC | R12: Not Started
A13: Armour Tp | B13: 4919 | C13: 49019_MUNID | D13: 86601_MAH | E13: ST_Tier | F13: Single-Tier | G13: 86_UT | H13: 86 | I13: Parry Sound D (86_UT) | J13: 13_MSO | K13: Northeast Ontario (13_MSO) | L13: 6_MType | M13: Township (6_MType) | N13: 367 | O13: 49019_SGC | R13: Not Started
A14: Armstrong Tp | B14: 5436 | C14: 54036_MUNID | D14: 90601_MAH | E14: ST_Tier | F14: Single-Tier | G14: 90_UT | H14: 90 | I14: Timiskaming D (90_UT) | J14: 13_MSO | K14: Northeast Ontario (13_MSO) | L14: 6_MType | M14: Township (6_MType) | N14: 367 | O14: 54036_SGC | R14: Not Started
A15: Arnprior T | B15: 4702 | C15: 47002_MUNID | D15: 69401_MAH | E15: LT_Tier | F15: Lower-Tier | G15: 69_UT | H15: 69 | I15: Renfrew Co (69_UT) | J15: 12_MSO | K15: Eastern Ontario (12_MSO) | L15: 4_MType | M15: Town (4_MType) | N15: 367 | O15: 47002_SGC | R15: Not Started
A16: Arran-Elderslie M | B16: 4103 | C16: 41037_MUNID | D16: 41621_MAH | E16: LT_Tier | F16: Lower-Tier | G16: 41_UT | H16: 41 | I16: Bruce Co (41_UT) | J16: 15_MSO | K16: Western Ontario (15_MSO) | L16: 6_MType | M16: Township (6_MType) | N16: 367 | O16: 41043_SGC | R16: Not Started
A17: Ashfield-Colborne-Wawanosh Tp | B17: 4070 | C17: 40030_MUNID | D17: 52618_MAH | E17: LT_Tier | F17: Lower-Tier | G17: 52_UT | H17: 52 | I17: Huron Co (52_UT) | J17: 15_MSO | K17: Western Ontario (15_MSO) | L17: 6_MType | M17: Township (6_MType) | N17: 367 | O17: 40063_SGC | R17: Not Started
A18: Asphodel-Norwood Tp | B18: 1501 | C18: 15002_MUNID | D18: 66615_MAH | E18: LT_Tier | F18: Lower-Tier | G18: 66_UT | H18: 66 | I18: Peterborough Co (66_UT) | J18: 12_MSO | K18: Eastern Ontario (12_MSO) | L18: 6_MType | M18: Township (6_MType) | N18: 367 | O18: 15003_SGC | R18: Not Started
A19: Assiginack Tp | B19: 5111 | C19: 51011_MUNID | D19: 83601_MAH | E19: ST_Tier | F19: Single-Tier | G19: 83_UT | H19: 83 | I19: Manitoulin D (83_UT) | J19: 13_MSO | K19: Northeast Ontario (13_MSO) | L19: 6_MType | M19: Township (6_MType) | N19: 367 | O19: 51011_SGC | R19: Not Started
A20: Athens Tp | B20: 0819 | C20: 07040_MUNID | D20: 56619_MAH | E20: LT_Tier | F20: Lower-Tier | G20: 56_UT | H20: 56 | I20: Leeds and Grenville UCo (56_UT) | J20: 12_MSO | K20: Eastern Ontario (12_MSO) | L20: 6_MType | M20: Township (6_MType) | N20: 367 | O20: 7042_SGC | R20: Not Started
A21: Atikokan Tp | B21: 5901 | C21: 59001_MUNID | D21: 87602_MAH | E21: ST_Tier | F21: Single-Tier | G21: 87_UT | H21: 87 | I21: Rainy River D (87_UT) | J21: 14_MSO | K21: Northwest Ontario (14_MSO) | L21: 6_MType | M21: Township (6_MType) | N21: 367 | O21: 59001_SGC | R21: Not Started
A22: Augusta Tp | B22: 0706 | C22: 07006_MUNID | D22: 56601_MAH | E22: LT_Tier | F22: Lower-Tier | G22: 56_UT | H22: 56 | I22: Leeds and Grenville UCo (56_UT) | J22: 12_MSO | K22: Eastern Ontario (12_MSO) | L22: 6_MType | M22: Township (6_MType) | N22: 367 | O22: 7006_SGC | R22: Not Started
A23: Aurora T | B23: 1946 | C23: 19046_MUNID | D23: 27401_MAH | E23: LT_Tier | F23: Lower-Tier | G23: 27_UT | H23: 27 | I23: York R (27_UT) | J23: 11_MSO | K23: Central Ontario (11_MSO) | L23: 4_MType | M23: Town (4_MType) | N23: 367 | O23: 19046_SGC | R23: Not Started
A24: Aylmer T | B24: 3411 | C24: 34011_MUNID | D24: 44401_MAH | E24: LT_Tier | F24: Lower-Tier | G24: 44_UT | H24: 44 | I24: Elgin Co (44_UT) | J24: 15_MSO | K24: Western Ontario (15_MSO) | L24: 4_MType | M24: Town (4_MType) | N24: 367 | O24: 34011_SGC | R24: Not Started
A25: Baldwin Tp | B25: 5228 | C25: 52028_MUNID | D25: 88601_MAH | E25: ST_Tier | F25: Single-Tier | G25: 88_UT | H25: 88 | I25: Sudbury D (88_UT) | J25: 13_MSO | K25: Northeast Ontario (13_MSO) | L25: 6_MType | M25: Township (6_MType) | N25: 367 | O25: 52028_SGC | R25: Not Started
A26: Bancroft T | B26: 1262 | C26: 12061_MUNID | D26: 51403_MAH | E26: LT_Tier | F26: Lower-Tier | G26: 51_UT | H26: 51 | I26: Hastings Co (51_UT) | J26: 12_MSO | K26: Eastern Ontario (12_MSO) | L26: 4_MType | M26: Town (4_MType) | N26: 367 | O26: 12061_SGC | R26: Not Started
A27: Barrie C | B27: 4342 | C27: 43042_MUNID | D27: 70101_MAH | E27: ST_Tier | F27: Single-Tier | G27: 70_UT | H27: 70 | I27: Simcoe Co (70_UT) | J27: 11_MSO | K27: Central Ontario (11_MSO) | L27: 1_MType | M27: City (1_MType) | N27: 367 | O27: 43042_SGC | R27: Not Started
A28: Bayham M | B28: 3401 | C28: 34003_MUNID | D28: 44609_MAH | E28: LT_Tier | F28: Lower-Tier | G28: 44_UT | H28: 44 | I28: Elgin Co (44_UT) | J28: 15_MSO | K28: Western Ontario (15_MSO) | L28: 6_MType | M28: Township (6_MType) | N28: 367 | O28: 34005_SGC | R28: Not Started
A29: Beckwith Tp | B29: 0924 | C29: 09024_MUNID | D29: 55602_MAH | E29: LT_Tier | F29: Lower-Tier | G29: 55_UT | H29: 55 | I29: Lanark Co (55_UT) | J29: 12_MSO | K29: Eastern Ontario (12_MSO) | L29: 6_MType | M29: Township (6_MType) | N29: 367 | O29: 9024_SGC | R29: Not Started
A30: Belleville C | B30: 1208 | C30: 12005_MUNID | D30: 51103_MAH | E30: ST_Tier | F30: Single-Tier | G30: 51_UT | H30: 51 | I30: Hastings Co (51_UT) | J30: 12_MSO | K30: Eastern Ontario (12_MSO) | L30: 1_MType | M30: City (1_MType) | N30: 367 | O30: 12005_SGC | R30: Not Started
A31: Billings Tp | B31: 5121 | C31: 51021_MUNID | D31: 83603_MAH | E31: ST_Tier | F31: Single-Tier | G31: 83_UT | H31: 83 | I31: Manitoulin D (83_UT) | J31: 13_MSO | K31: Northeast Ontario (13_MSO) | L31: 6_MType | M31: Township (6_MType) | N31: 367 | O31: 51021_SGC | R31: Not Started
A32: Black River - Matheson Tp | B32: 5614 | C32: 56014_MUNID | D32: 81601_MAH | E32: ST_Tier | F32: Single-Tier | G32: 81_UT | H32: 81 | I32: Cochrane D (81_UT) | J32: 13_MSO | K32: Northeast Ontario (13_MSO) | L32: 6_MType | M32: Township (6_MType) | N32: 367 | O32: 56014_SGC | R32: Not Started
A33: Blandford - Blenheim Tp | B33: 3245 | C33: 32045_MUNID | D33: 37601_MAH | E33: LT_Tier | F33: Lower-Tier | G33: 37_UT | H33: 37 | I33: Oxford Co (37_UT) | J33: 15_MSO | K33: Western Ontario (15_MSO) | L33: 6_MType | M33: Township (6_MType) | N33: 367 | O33: 32045_SGC | R33: Not Started
A34: Blind River T | B34: 5738 | C34: 57038_MUNID | D34: 80401_MAH | E34: ST_Tier | F34: Single-Tier | G34: 80_UT | H34: 80 | I34: Algoma D (80_UT) | J34: 13_MSO | K34: Northeast Ontario (13_MSO) | L34: 4_MType | M34: Town (4_MType) | N34: 367 | O34: 57038_SGC | R34: Not Started
A35: Bluewater M | B35: 4020 | C35: 40010_MUNID | D35: 52406_MAH | E35: LT_Tier | F35: Lower-Tier | G35: 52_UT | H35: 52 | I35: Huron Co (52_UT) | J35: 15_MSO | K35: Western Ontario (15_MSO) | L35: 4_MType | M35: Town (4_MType) | N35: 367 | O35: 40010_SGC | R35: Not Started
A36: Bonfield Tp | B36: 4826 | C36: 48026_MUNID | D36: 85602_MAH | E36: ST_Tier | F36: Single-Tier | G36: 85_UT | H36: 85 | I36: Nipissing D (85_UT) | J36: 13_MSO | K36: Northeast Ontario (13_MSO) | L36: 6_MType | M36: Township (6_MType) | N36: 367 | O36: 48027_SGC | R36: Not Started
A37: Bonnechere Valley Tp | B37: 4738 | C37: 47015_MUNID | D37: 69635_MAH | E37: LT_Tier | F37: Lower-Tier | G37: 69_UT | H37: 69 | I37: Renfrew Co (69_UT) | J37: 12_MSO | K37: Eastern Ontario (12_MSO) | L37: 6_MType | M37: Township (6_MType) | N37: 367 | O37: 47035_SGC | R37: Not Started
A38: Bracebridge T | B38: 4418 | C38: 44018_MUNID | D38: 33401_MAH | E38: LT_Tier | F38: Lower-Tier | G38: 33_UT | H38: 33 | I38: Muskoka D (33_UT) | J38: 11_MSO | K38: Central Ontario (11_MSO) | L38: 4_MType | M38: Town (4_MType) | N38: 367 | O38: 44018_SGC | R38: Not Started
A39: Bradford West Gwillimbury T | B39: 4312 | C39: 43013_MUNID | D39: 70410_MAH | E39: LT_Tier | F39: Lower-Tier | G39: 70_UT | H39: 70 | I39: Simcoe Co (70_UT) | J39: 11_MSO | K39: Central Ontario (11_MSO) | L39: 4_MType | M39: Town (4_MType) | N39: 367 | O39: 43014_SGC | R39: Not Started
A40: Brampton C | B40: 2110 | C40: 21010_MUNID | D40: 21101_MAH | E40: LT_Tier | F40: Lower-Tier | G40: 21_UT | H40: 21 | I40: Peel R (21_UT) | J40: 11_MSO | K40: Central Ontario (11_MSO) | L40: 1_MType | M40: City (1_MType) | N40: 367 | O40: 21010_SGC | R40: Not Started
A41: Brant County | B41: 2920 | C41: 29002_MUNID | D41: 40102_MAH | E41: ST_Tier | F41: Single-Tier | G41: 40_UT | H41: 40 | J41: 15_MSO | K41: Western Ontario (15_MSO) | L41: 1_MType | M41: City (1_MType) | N41: 367 | O41: 29005_SGC | R41: Not Started
A42: Brantford C | B42: 2906 | C42: 29006_MUNID | D42: 40101_MAH | E42: ST_Tier | F42: Single-Tier | G42: 40_UT | H42: 40 | J42: 15_MSO | K42: Western Ontario (15_MSO) | L42: 1_MType | M42: City (1_MType) | N42: 367 | O42: 29006_SGC | R42: Not Started
A43: Brethour Tp | B43: 5432 | C43: 54032_MUNID | D43: 90602_MAH | E43: ST_Tier | F43: Single-Tier | G43: 90_UT | H43: 90 | I43: Timiskaming D (90_UT) | J43: 13_MSO | K43: Northeast Ontario (13_MSO) | L43: 6_MType | M43: Township (6_MType) | N43: 367 | O43: 54032_SGC | R43: Not Started
A44: Brighton M | B44: 1408 | C44: 14005_MUNID | D44: 61407_MAH | E44: LT_Tier | F44: Lower-Tier | G44: 61_UT | H44: 61 | I44: Northumberland Co (61_UT) | J44: 12_MSO | K44: Eastern Ontario (12_MSO) | L44: 4_MType | M44: Town (4_MType) | N44: 367 | O44: 14004_SGC | R44: Not Started
A45: Brock Tp | B45: 1839 | C45: 18039_MUNID | D45: 10601_MAH | E45: LT_Tier | F45: Lower-Tier | G45: 10_UT | H45: 10 | I45: Durham R (10_UT) | J45: 11_MSO | K45: Central Ontario (11_MSO) | L45: 6_MType | M45: Township (6_MType) | N45: 367 | O45: 18039_SGC | R45: Not Started
A46: Brockton M | B46: 4104 | C46: 41030_MUNID | D46: 41622_MAH | E46: LT_Tier | F46: Lower-Tier | G46: 41_UT | H46: 41 | I46: Bruce Co (41_UT) | J46: 15_MSO | K46: Western Ontario (15_MSO) | L46: 6_MType | M46: Township (6_MType) | N46: 367 | O46: 41032_SGC | R46: Not Started
A47: Brockville C | B47: 0802 | C47: 07015_MUNID | D47: 56101_MAH | E47: ST_Tier | F47: Single-Tier | G47: 56_UT | H47: 56 | I47: Leeds and Grenville UCo (56_UT) | J47: 12_MSO | K47: Eastern Ontario (12_MSO) | L47: 1_MType | M47: City (1_MType) | N47: 367 | O47: 7015_SGC | R47: Not Started
A48: Brooke-Alvinston M | B48: 3815 | C48: 38011_MUNID | D48: 54613_MAH | E48: LT_Tier | F48: Lower-Tier | G48: 54_UT | H48: 54 | I48: Lambton Co (54_UT) | J48: 15_MSO | K48: Western Ontario (15_MSO) | L48: 6_MType | M48: Township (6_MType) | N48: 367 | O48: 38015_SGC | R48: Not Started
A49: Bruce Co | B49: 4100 | C49: 41000_MUNID | D49: 41000_MAH | E49: UT_Tier | F49: Upper-Tier | G49: 41_UT | H49: 41 | I49: Bruce Co (41_UT) | J49: 15_MSO | K49: Western Ontario (15_MSO) | L49: 0_MType | M49: Upper Tier (0_MType) | N49: 367 | O49: 41000_SGC | R49: Not Started
A50: Bruce Mines T | B50: 5721 | C50: 57021_MUNID | D50: 80402_MAH | E50: ST_Tier | F50: Single-Tier | G50: 80_UT | H50: 80 | I50: Algoma D (80_UT) | J50: 13_MSO | K50: Northeast Ontario (13_MSO) | L50: 4_MType | M50: Town (4_MType) | N50: 367 | O50: 57021_SGC | R50: Not Started
A51: Brudenell, Lyndoch and Raglan Tp | B51: 4719 | C51: 47018_MUNID | D51: 69629_MAH | E51: LT_Tier | F51: Lower-Tier | G51: 69_UT | H51: 69 | I51: Renfrew Co (69_UT) | J51: 12_MSO | K51: Eastern Ontario (12_MSO) | L51: 6_MType | M51: Township (6_MType) | N51: 367 | O51: 47020_SGC | R51: Not Started
A52: Burk's Falls V | B52: 4922 | C52: 49022_MUNID | D52: 86501_MAH | E52: ST_Tier | F52: Single-Tier | G52: 86_UT | H52: 86 | I52: Parry Sound D (86_UT) | J52: 13_MSO | K52: Northeast Ontario (13_MSO) | L52: 5_MType | M52: Village (5_MType) | N52: 367 | O52: 49022_SGC | R52: Not Started
A53: Burlington C | B53: 2402 | C53: 24002_MUNID | D53: 14101_MAH | E53: LT_Tier | F53: Lower-Tier | G53: 14_UT | H53: 14 | I53: Halton R (14_UT) | J53: 11_MSO | K53: Central Ontario (11_MSO) | L53: 1_MType | M53: City (1_MType) | N53: 367 | O53: 24002_SGC | R53: Not Started
A54: Burpee and Mills Tp | B54: 5128 | C54: 51028_MUNID | D54: 83604_MAH | E54: ST_Tier | F54: Single-Tier | G54: 83_UT | H54: 83 | I54: Manitoulin D (83_UT) | J54: 13_MSO | K54: Northeast Ontario (13_MSO) | L54: 6_MType | M54: Township (6_MType) | N54: 367 | O54: 51028_SGC | R54: Not Started
A55: Caledon T | B55: 2124 | C55: 21024_MUNID | D55: 21401_MAH | E55: LT_Tier | F55: Lower-Tier | G55: 21_UT | H55: 21 | I55: Peel R (21_UT) | J55: 11_MSO | K55: Central Ontario (11_MSO) | L55: 4_MType | M55: Town (4_MType) | N55: 367 | O55: 21024_SGC | R55: Not Started
A56: Callander M | B56: 4966 | C56: 49066_MUNID | D56: 86607_MAH | E56: ST_Tier | F56: Single-Tier | G56: 86_UT | H56: 86 | I56: Parry Sound D (86_UT) | J56: 13_MSO | K56: Northeast Ontario (13_MSO) | L56: 6_MType | M56: Township (6_MType) | N56: 367 | O56: 49066_SGC | R56: Not Started
A57: Calvin Tp | B57: 4822 | C57: 48022_MUNID | D57: 85604_MAH | E57: ST_Tier | F57: Single-Tier | G57: 85_UT | H57: 85 | I57: Nipissing D (85_UT) | J57: 13_MSO | K57: Northeast Ontario (13_MSO) | L57: 6_MType | M57: Township (6_MType) | N57: 367 | O57: 48022_SGC | R57: Not Started
A58: Cambridge C | B58: 3006 | C58: 30006_MUNID | D58: 25101_MAH | E58: LT_Tier | F58: Lower-Tier | G58: 25_UT | H58: 25 | I58: Waterloo R (25_UT) | J58: 15_MSO | K58: Western Ontario (15_MSO) | L58: 1_MType | M58: City (1_MType) | N58: 367 | O58: 30010_SGC | R58: Not Started
A59: Carleton Place T | B59: 0928 | C59: 09028_MUNID | D59: 55402_MAH | E59: LT_Tier | F59: Lower-Tier | G59: 55_UT | H59: 55 | I59: Lanark Co (55_UT) | J59: 12_MSO | K59: Eastern Ontario (12_MSO) | L59: 4_MType | M59: Town (4_MType) | N59: 367 | O59: 9028_SGC | R59: Not Started
A60: Carling Tp | B60: 4936 | C60: 49036_MUNID | D60: 86602_MAH | E60: ST_Tier | F60: Single-Tier | G60: 86_UT | H60: 86 | I60: Parry Sound D (86_UT) | J60: 13_MSO | K60: Northeast Ontario (13_MSO) | L60: 6_MType | M60: Township (6_MType) | N60: 367 | O60: 49036_SGC | R60: Not Started
A61: Carlow-Mayo Tp | B61: 1270 | C61: 12067_MUNID | D61: 51625_MAH | E61: LT_Tier | F61: Lower-Tier | G61: 51_UT | H61: 51 | I61: Hastings Co (51_UT) | J61: 12_MSO | K61: Eastern Ontario (12_MSO) | L61: 6_MType | M61: Township (6_MType) | N61: 367 | O61: 12065_SGC | R61: Not Started
A62: Casey Tp | B62: 5429 | C62: 54029_MUNID | D62: 90604_MAH | E62: ST_Tier | F62: Single-Tier | G62: 90_UT | H62: 90 | I62: Timiskaming D (90_UT) | J62: 13_MSO | K62: Northeast Ontario (13_MSO) | L62: 6_MType | M62: Township (6_MType) | N62: 367 | O62: 54029_SGC | R62: Not Started
A63: Casselman M | B63: 0302 | C63: 02044_MUNID | D63: 67502_MAH | E63: LT_Tier | F63: Lower-Tier | G63: 67_UT | H63: 67 | I63: Prescott and Russell UCo (67_UT) | J63: 12_MSO | K63: Eastern Ontario (12_MSO) | L63: 5_MType | M63: Village (5_MType) | N63: 367 | O63: 2044_SGC | R63: Not Started
A64: Cavan Monaghan Tp | B64: 1509 | C64: 15012_MUNID | D64: 66617_MAH | E64: LT_Tier | F64: Lower-Tier | G64: 66_UT | H64: 66 | I64: Peterborough Co (66_UT) | J64: 12_MSO | K64: Eastern Ontario (12_MSO) | L64: 6_MType | M64: Township (6_MType) | N64: 367 | O64: 15013_SGC | R64: Not Started
A65: Central Elgin M | B65: 3418 | C65: 34015_MUNID | D65: 44610_MAH | E65: LT_Tier | F65: Lower-Tier | G65: 44_UT | H65: 44 | I65: Elgin Co (44_UT) | J65: 15_MSO | K65: Western Ontario (15_MSO) | L65: 6_MType | M65: Township (6_MType) | N65: 367 | O65: 34020_SGC | R65: Not Started
A66: Central Frontenac Tp | B66: 1039 | C66: 10025_MUNID | D66: 46616_MAH | E66: LT_Tier | F66: Lower-Tier | G66: 46_UT | H66: 46 | I66: Frontenac BM (46_UT) | J66: 12_MSO | K66: Eastern Ontario (12_MSO) | L66: 6_MType | M66: Township (6_MType) | N66: 367 | O66: 10035_SGC | R66: Not Started
A67: Central Huron M | B67: 4030 | C67: 40025_MUNID | D67: 52617_MAH | E67: LT_Tier | F67: Lower-Tier | G67: 52_UT | H67: 52 | I67: Huron Co (52_UT) | J67: 15_MSO | K67: Western Ontario (15_MSO) | L67: 6_MType | M67: Township (6_MType) | N67: 367 | O67: 40025_SGC | R67: Not Started
A68: Central Manitoulin M | B68: 5104 | C68: 51009_MUNID | D68: 83613_MAH | E68: ST_Tier | F68: Single-Tier | G68: 83_UT | H68: 83 | I68: Manitoulin D (83_UT) | J68: 13_MSO | K68: Northeast Ontario (13_MSO) | L68: 6_MType | M68: Township (6_MType) | N68: 367 | O68: 51006_SGC | R68: Not Started
A69: Centre Hastings M | B69: 1230 | C69: 12023_MUNID | D69: 51620_MAH | E69: LT_Tier | F69: Lower-Tier | G69: 51_UT | H69: 51 | I69: Hastings Co (51_UT) | J69: 12_MSO | K69: Eastern Ontario (12_MSO) | L69: 6_MType | M69: Township (6_MType) | N69: 367 | O69: 12026_SGC | R69: Not Started
A70: Centre Wellington Tp | B70: 2326 | C70: 23010_MUNID | D70: 75614_MAH | E70: LT_Tier | F70: Lower-Tier | G70: 75_UT | H70: 75 | I70: Wellington Co (75_UT) | J70: 15_MSO | K70: Western Ontario (15_MSO) | L70: 6_MType | M70: Township (6_MType) | N70: 367 | O70: 23025_SGC | R70: Not Started
A71: Chamberlain Tp | B71: 5454 | C71: 54054_MUNID | D71: 90605_MAH | E71: ST_Tier | F71: Single-Tier | G71: 90_UT | H71: 90 | I71: Timiskaming D (90_UT) | J71: 13_MSO | K71: Northeast Ontario (13_MSO) | L71: 6_MType | M71: Township (6_MType) | N71: 367 | O71: 54054_SGC | R71: Not Started
A72: Champlain Tp | B72: 0209 | C72: 02005_MUNID | D72: 67613_MAH | E72: LT_Tier | F72: Lower-Tier | G72: 67_UT | H72: 67 | I72: Prescott and Russell UCo (67_UT) | J72: 12_MSO | K72: Eastern Ontario (12_MSO) | L72: 6_MType | M72: Township (6_MType) | N72: 367 | O72: 2010_SGC | R72: Not Started
A73: Chapleau Tp | B73: 5292 | C73: 52092_MUNID | D73: 88606_MAH | E73: ST_Tier | F73: Single-Tier | G73: 88_UT | H73: 88 | I73: Sudbury D (88_UT) | J73: 13_MSO | K73: Northeast Ontario (13_MSO) | L73: 6_MType | M73: Township (6_MType) | N73: 367 | O73: 52092_SGC | R73: Not Started
A74: Chapple Tp | B74: 5924 | C74: 59024_MUNID | D74: 87605_MAH | E74: ST_Tier | F74: Single-Tier | G74: 87_UT | H74: 87 | I74: Rainy River D (87_UT) | J74: 14_MSO | K74: Northwest Ontario (14_MSO) | L74: 6_MType | M74: Township (6_MType) | N74: 367 | O74: 59024_SGC | R74: Not Started
A75: Charlton-Dack M | B75: 5447 | C75: 54047_MUNID | D75: 90620_MAH | E75: ST_Tier | F75: Single-Tier | G75: 90_UT | H75: 90 | I75: Timiskaming D (90_UT) | J75: 13_MSO | K75: Northeast Ontario (13_MSO) | L75: 6_MType | M75: Township (6_MType) | N75: 367 | O75: 54047_SGC | R75: Not Started
A76: Chatham-Kent M | B76: 3650 | C76: 36003_MUNID | D76: 53102_MAH | E76: ST_Tier | F76: Single-Tier | G76: 53_UT | H76: 53 | J76: 15_MSO | K76: Western Ontario (15_MSO) | L76: 1_MType | M76: City (1_MType) | N76: 367 | O76: 36020_SGC | R76: Not Started
A77: Chatsworth Tp | B77: 4204 | C77: 42031_MUNID | D77: 47619_MAH | E77: LT_Tier | F77: Lower-Tier | G77: 47_UT | H77: 47 | I77: Grey Co (47_UT) | J77: 15_MSO | K77: Western Ontario (15_MSO) | L77: 6_MType | M77: Township (6_MType) | N77: 367 | O77: 42037_SGC | R77: Not Started
A78: Chisholm Tp | B78: 4831 | C78: 48031_MUNID | D78: 85605_MAH | E78: ST_Tier | F78: Single-Tier | G78: 85_UT | H78: 85 | I78: Nipissing D (85_UT) | J78: 13_MSO | K78: Northeast Ontario (13_MSO) | L78: 6_MType | M78: Township (6_MType) | N78: 367 | O78: 48031_SGC | R78: Not Started
A79: Clarence-Rockland C | B79: 0316 | C79: 02036_MUNID | D79: 67101_MAH | E79: LT_Tier | F79: Lower-Tier | G79: 67_UT | H79: 67 | I79: Prescott and Russell UCo (67_UT) | J79: 12_MSO | K79: Eastern Ontario (12_MSO) | L79: 1_MType | M79: City (1_MType) | N79: 367 | O79: 2036_SGC | R79: Not Started
A80: Clarington M | B80: 1817 | C80: 18017_MUNID | D80: 10402_MAH | E80: LT_Tier | F80: Lower-Tier | G80: 10_UT | H80: 10 | I80: Durham R (10_UT) | J80: 11_MSO | K80: Central Ontario (11_MSO) | L80: 4_MType | M80: Town (4_MType) | N80: 367 | O80: 18017_SGC | R80: Not Started
A81: Clearview Tp | B81: 4329 | C81: 43030_MUNID | D81: 70620_MAH | E81: LT_Tier | F81: Lower-Tier | G81: 70_UT | H81: 70 | I81: Simcoe Co (70_UT) | J81: 11_MSO | K81: Central Ontario (11_MSO) | L81: 6_MType | M81: Township (6_MType) | N81: 367 | O81: 43005_SGC | R81: Not Started
A82: Cobalt T | B82: 5408 | C82: 54008_MUNID | D82: 90402_MAH | E82: ST_Tier | F82: Single-Tier | G82: 90_UT | H82: 90 | I82: Timiskaming D (90_UT) | J82: 13_MSO | K82: Northeast Ontario (13_MSO) | L82: 4_MType | M82: Town (4_MType) | N82: 367 | O82: 54008_SGC | R82: Not Started
A83: Cobourg T | B83: 1421 | C83: 14021_MUNID | D83: 61403_MAH | E83: LT_Tier | F83: Lower-Tier | G83: 61_UT | H83: 61 | I83: Northumberland Co (61_UT) | J83: 12_MSO | K83: Eastern Ontario (12_MSO) | L83: 4_MType | M83: Town (4_MType) | N83: 367 | O83: 14021_SGC | R83: Not Started
A84: Cochrane T | B84: 5639 | C84: 56037_MUNID | D84: 81407_MAH | E84: ST_Tier | F84: Single-Tier | G84: 81_UT | H84: 81 | I84: Cochrane D (81_UT) | J84: 13_MSO | K84: Northeast Ontario (13_MSO) | L84: 4_MType | M84: Town (4_MType) | N84: 367 | O84: 56042_SGC | R84: Not Started
A85: Cockburn Island Tp | B85: 5134 | C85: 51034_MUNID | D85: 83606_MAH | E85: ST_Tier | F85: Single-Tier | G85: 83_UT | H85: 83 | I85: Manitoulin D (83_UT) | J85: 13_MSO | K85: Northeast Ontario (13_MSO) | L85: 6_MType | M85: Township (6_MType) | N85: 367 | O85: 51034_SGC | R85: Not Started
A86: Coleman Tp | B86: 5401 | C86: 54001_MUNID | D86: 90606_MAH | E86: ST_Tier | F86: Single-Tier | G86: 90_UT | H86: 90 | I86: Timiskaming D (90_UT) | J86: 13_MSO | K86: Northeast Ontario (13_MSO) | L86: 6_MType | M86: Township (6_MType) | N86: 367 | O86: 54001_SGC | R86: Not Started
A87: Collingwood T | B87: 4331 | C87: 43031_MUNID | D87: 70403_MAH | E87: LT_Tier | F87: Lower-Tier | G87: 70_UT | H87: 70 | I87: Simcoe Co (70_UT) | J87: 11_MSO | K87: Central Ontario (11_MSO) | L87: 4_MType | M87: Town (4_MType) | N87: 367 | O87: 43031_SGC | R87: Not Started
A88: Conmee Tp | B88: 5819 | C88: 58019_MUNID | D88: 89601_MAH | E88: ST_Tier | F88: Single-Tier | G88: 89_UT | H88: 89 | I88: Thunder Bay D (89_UT) | J88: 14_MSO | K88: Northwest Ontario (14_MSO) | L88: 6_MType | M88: Township (6_MType) | N88: 367 | O88: 58019_SGC | R88: Not Started
A89: Cornwall C | B89: 0402 | C89: 01012_MUNID | D89: 71101_MAH | E89: ST_Tier | F89: Single-Tier | G89: 71_UT | H89: 71 | I89: Stormont, Dundas and Glengarry UCo (71_UT) | J89: 12_MSO | K89: Eastern Ontario (12_MSO) | L89: 1_MType | M89: City (1_MType) | N89: 367 | O89: 1012_SGC | R89: Not Started
A90: Cramahe Tp | B90: 1411 | C90: 14010_MUNID | D90: 61617_MAH | E90: LT_Tier | F90: Lower-Tier | G90: 61_UT | H90: 61 | I90: Northumberland Co (61_UT) | J90: 12_MSO | K90: Eastern Ontario (12_MSO) | L90: 6_MType | M90: Township (6_MType) | N90: 367 | O90: 14014_SGC | R90: Not Started
A91: Dawn-Euphemia Tp | B91: 3806 | C91: 38005_MUNID | D91: 54611_MAH | E91: LT_Tier | F91: Lower-Tier | G91: 54_UT | H91: 54 | I91: Lambton Co (54_UT) | J91: 15_MSO | K91: Western Ontario (15_MSO) | L91: 6_MType | M91: Township (6_MType) | N91: 367 | O91: 38007_SGC | R91: Not Started
A92: Dawson Tp | B92: 5934 | C92: 59040_MUNID | D92: 87613_MAH | E92: ST_Tier | F92: Single-Tier | G92: 87_UT | H92: 87 | I92: Rainy River D (87_UT) | J92: 14_MSO | K92: Northwest Ontario (14_MSO) | L92: 6_MType | M92: Township (6_MType) | N92: 367 | O92: 59040_SGC | R92: Not Started
A93: Deep River T | B93: 4796 | C93: 47096_MUNID | D93: 69402_MAH | E93: LT_Tier | F93: Lower-Tier | G93: 69_UT | H93: 69 | I93: Renfrew Co (69_UT) | J93: 12_MSO | K93: Eastern Ontario (12_MSO) | L93: 4_MType | M93: Town (4_MType) | N93: 367 | O93: 47096_SGC | R93: Not Started
A94: Deseronto T | B94: 1202 | C94: 12002_MUNID | D94: 51401_MAH | E94: LT_Tier | F94: Lower-Tier | G94: 51_UT | H94: 51 | I94: Hastings Co (51_UT) | J94: 12_MSO | K94: Eastern Ontario (12_MSO) | L94: 4_MType | M94: Town (4_MType) | N94: 367 | O94: 12002_SGC | R94: Not Started
A95: Dorion Tp | B95: 5834 | C95: 58034_MUNID | D95: 89602_MAH | E95: ST_Tier | F95: Single-Tier | G95: 89_UT | H95: 89 | I95: Thunder Bay D (89_UT) | J95: 14_MSO | K95: Northwest Ontario (14_MSO) | L95: 6_MType | M95: Township (6_MType) | N95: 367 | O95: 58034_SGC | R95: Not Started
A96: Douro-Dummer Tp | B96: 1522 | C96: 15021_MUNID | D96: 66618_MAH | E96: LT_Tier | F96: Lower-Tier | G96: 66_UT | H96: 66 | I96: Peterborough Co (66_UT) | J96: 12_MSO | K96: Eastern Ontario (12_MSO) | L96: 6_MType | M96: Township (6_MType) | N96: 367 | O96: 15023_SGC | R96: Not Started
A97: Drummond-North Elmsley Tp | B97: 0919 | C97: 09007_MUNID | D97: 55616_MAH | E97: LT_Tier | F97: Lower-Tier | G97: 55_UT | H97: 55 | I97: Lanark Co (55_UT) | J97: 12_MSO | K97: Eastern Ontario (12_MSO) | L97: 6_MType | M97: Township (6_MType) | N97: 367 | O97: 9010_SGC | R97: Not Started
A98: Dryden C | B98: 6026 | C98: 60025_MUNID | D98: 82101_MAH | E98: ST_Tier | F98: Single-Tier | G98: 82_UT | H98: 82 | I98: Kenora D (82_UT) | J98: 14_MSO | K98: Northwest Ontario (14_MSO) | L98: 1_MType | M98: City (1_MType) | N98: 367 | O98: 60027_SGC | R98: Not Started
A99: Dubreuilville Tp | B99: 5779 | C99: 57079_MUNID | D99: 80619_MAH | E99: ST_Tier | F99: Single-Tier | G99: 80_UT | H99: 80 | I99: Algoma D (80_UT) | J99: 13_MSO | K99: Northeast Ontario (13_MSO) | L99: 6_MType | M99: Township (6_MType) | N99: 367 | O99: 57079_SGC | R99: Not Started
A100: Dufferin Co | B100: 2200 | C100: 22000_MUNID | D100: 43000_MAH | E100: UT_Tier | F100: Upper-Tier | G100: 43_UT | H100: 43 | I100: Dufferin Co (43_UT) | J100: 15_MSO | K100: Western Ontario (15_MSO) | L100: 0_MType | M100: Upper Tier (0_MType) | N100: 367 | O100: 22000_SGC | R100: Not Started
A101: Durham R | B101: 1800 | C101: 18000_MUNID | D101: 10000_MAH | E101: UT_Tier | F101: Upper-Tier | G101: 10_UT | H101: 10 | I101: Durham R (10_UT) | J101: 11_MSO | K101: Central Ontario (11_MSO) | L101: 0_MType | M101: Upper Tier (0_MType) | N101: 367 | O101: 18000_SGC | R101: Not Started
A102: Dutton-Dunwich M | B102: 3429 | C102: 34028_MUNID | D102: 44611_MAH | E102: LT_Tier | F102: Lower-Tier | G102: 44_UT | H102: 44 | I102: Elgin Co (44_UT) | J102: 15_MSO | K102: Western Ontario (15_MSO) | L102: 6_MType | M102: Township (6_MType) | N102: 367 | O102: 34030_SGC | R102: Not Started
A103: Dysart et al Tp | B103: 4624 | C103: 46024_MUNID | D103: 49603_MAH | E103: LT_Tier | F103: Lower-Tier | G103: 49_UT | H103: 49 | I103: Haliburton Co (49_UT) | J103: 12_MSO | K103: Eastern Ontario (12_MSO) | L103: 6_MType | M103: Township (6_MType) | N103: 367 | O103: 46024_SGC | R103: Not Started
A104: Ear Falls Tp | B104: 6042 | C104: 60042_MUNID | D104: 82605_MAH | E104: ST_Tier | F104: Single-Tier | G104: 82_UT | H104: 82 | I104: Kenora D (82_UT) | J104: 14_MSO | K104: Northwest Ontario (14_MSO) | L104: 6_MType | M104: Township (6_MType) | N104: 367 | O104: 60032_SGC | R104: Not Started
A105: East Ferris M | B105: 4834 | C105: 48034_MUNID | D105: 85606_MAH | E105: ST_Tier | F105: Single-Tier | G105: 85_UT | H105: 85 | I105: Nipissing D (85_UT) | J105: 13_MSO | K105: Northeast Ontario (13_MSO) | L105: 6_MType | M105: Township (6_MType) | N105: 367 | O105: 48034_SGC | R105: Not Started
A106: East Garafraxa Tp | B106: 2201 | C106: 22001_MUNID | D106: 43602_MAH | E106: LT_Tier | F106: Lower-Tier | G106: 43_UT | H106: 43 | I106: Dufferin Co (43_UT) | J106: 15_MSO | K106: Western Ontario (15_MSO) | L106: 6_MType | M106: Township (6_MType) | N106: 367 | O106: 22001_SGC | R106: Not Started
A107: East Gwillimbury T | B107: 1954 | C107: 19054_MUNID | D107: 27407_MAH | E107: LT_Tier | F107: Lower-Tier | G107: 27_UT | H107: 27 | I107: York R (27_UT) | J107: 11_MSO | K107: Central Ontario (11_MSO) | L107: 4_MType | M107: Town (4_MType) | N107: 367 | O107: 19054_SGC | R107: Not Started
A108: East Hawkesbury Tp | B108: 0201 | C108: 02001_MUNID | D108: 67606_MAH | E108: LT_Tier | F108: Lower-Tier | G108: 67_UT | H108: 67 | I108: Prescott and Russell UCo (67_UT) | J108: 12_MSO | K108: Eastern Ontario (12_MSO) | L108: 6_MType | M108: Township (6_MType) | N108: 367 | O108: 2001_SGC | R108: Not Started
A109: East Zorra - Tavistock Tp | B109: 3238 | C109: 32038_MUNID | D109: 37602_MAH | E109: LT_Tier | F109: Lower-Tier | G109: 37_UT | H109: 37 | I109: Oxford Co (37_UT) | J109: 15_MSO | K109: Western Ontario (15_MSO) | L109: 6_MType | M109: Township (6_MType) | N109: 367 | O109: 32038_SGC | R109: Not Started
A110: Edwardsburgh-Cardinal Tp | B110: 0701 | C110: 07003_MUNID | D110: 56620_MAH | E110: LT_Tier | F110: Lower-Tier | G110: 56_UT | H110: 56 | I110: Leeds and Grenville UCo (56_UT) | J110: 12_MSO | K110: Eastern Ontario (12_MSO) | L110: 6_MType | M110: Township (6_MType) | N110: 367 | O110: 7004_SGC | R110: Not Started
A111: Elgin Co | B111: 3400 | C111: 34000_MUNID | D111: 44000_MAH | E111: UT_Tier | F111: Upper-Tier | G111: 44_UT | H111: 44 | I111: Elgin Co (44_UT) | J111: 15_MSO | K111: Western Ontario (15_MSO) | L111: 0_MType | M111: Upper Tier (0_MType) | N111: 367 | O111: 34000_SGC | R111: Not Started
A112: Elizabethtown-Kitley Tp | B112: 0801 | C112: 07011_MUNID | D112: 56622_MAH | E112: LT_Tier | F112: Lower-Tier | G112: 56_UT | H112: 56 | I112: Leeds and Grenville UCo (56_UT) | J112: 12_MSO | K112: Eastern Ontario (12_MSO) | L112: 6_MType | M112: Township (6_MType) | N112: 367 | O112: 7014_SGC | R112: Not Started
A113: Elliot Lake C | B113: 5741 | C113: 57041_MUNID | D113: 80102_MAH | E113: ST_Tier | F113: Single-Tier | G113: 80_UT | H113: 80 | I113: Algoma D (80_UT) | J113: 13_MSO | K113: Northeast Ontario (13_MSO) | L113: 1_MType | M113: City (1_MType) | N113: 367 | O113: 57041_SGC | R113: Not Started
A114: Emo Tp | B114: 5919 | C114: 59019_MUNID | D114: 87607_MAH | E114: ST_Tier | F114: Single-Tier | G114: 87_UT | H114: 87 | I114: Rainy River D (87_UT) | J114: 14_MSO | K114: Northwest Ontario (14_MSO) | L114: 6_MType | M114: Township (6_MType) | N114: 367 | O114: 59019_SGC | R114: Not Started
A115: Englehart T | B115: 5452 | C115: 54052_MUNID | D115: 90403_MAH | E115: ST_Tier | F115: Single-Tier | G115: 90_UT | H115: 90 | I115: Timiskaming D (90_UT) | J115: 13_MSO | K115: Northeast Ontario (13_MSO) | L115: 4_MType | M115: Town (4_MType) | N115: 367 | O115: 54052_SGC | R115: Not Started
A116: Enniskillen Tp | B116: 3816 | C116: 38016_MUNID | D116: 54604_MAH | E116: LT_Tier | F116: Lower-Tier | G116: 54_UT | H116: 54 | I116: Lambton Co (54_UT) | J116: 15_MSO | K116: Western Ontario (15_MSO) | L116: 6_MType | M116: Township (6_MType) | N116: 367 | O116: 38016_SGC | R116: Not Started
A117: Erin T | B117: 2316 | C117: 23015_MUNID | D117: 75405_MAH | E117: LT_Tier | F117: Lower-Tier | G117: 75_UT | H117: 75 | I117: Wellington Co (75_UT) | J117: 15_MSO | K117: Western Ontario (15_MSO) | L117: 4_MType | M117: Town (4_MType) | N117: 367 | O117: 23017_SGC | R117: Not Started
A118: Espanola T | B118: 5226 | C118: 52026_MUNID | D118: 88405_MAH | E118: ST_Tier | F118: Single-Tier | G118: 88_UT | H118: 88 | I118: Sudbury D (88_UT) | J118: 13_MSO | K118: Northeast Ontario (13_MSO) | L118: 4_MType | M118: Town (4_MType) | N118: 367 | O118: 52026_SGC | R118: Not Started
A119: Essa Tp | B119: 4321 | C119: 43021_MUNID | D119: 70602_MAH | E119: LT_Tier | F119: Lower-Tier | G119: 70_UT | H119: 70 | I119: Simcoe Co (70_UT) | J119: 11_MSO | K119: Central Ontario (11_MSO) | L119: 6_MType | M119: Township (6_MType) | N119: 367 | O119: 43021_SGC | R119: Not Started
A120: Essex Co | B120: 3700 | C120: 37000_MUNID | D120: 45000_MAH | E120: UT_Tier | F120: Upper-Tier | G120: 45_UT | H120: 45 | I120: Essex Co (45_UT) | J120: 15_MSO | K120: Western Ontario (15_MSO) | L120: 0_MType | M120: Upper Tier (0_MType) | N120: 367 | O120: 37000_SGC | R120: Not Started
A121: Essex T | B121: 3754 | C121: 37020_MUNID | D121: 45410_MAH | E121: LT_Tier | F121: Lower-Tier | G121: 45_UT | H121: 45 | I121: Essex Co (45_UT) | J121: 15_MSO | K121: Western Ontario (15_MSO) | L121: 4_MType | M121: Town (4_MType) | N121: 367 | O121: 37016_SGC | R121: Not Started
A122: Evanturel Tp | B122: 5449 | C122: 54049_MUNID | D122: 90609_MAH | E122: ST_Tier | F122: Single-Tier | G122: 90_UT | H122: 90 | I122: Timiskaming D (90_UT) | J122: 13_MSO | K122: Northeast Ontario (13_MSO) | L122: 6_MType | M122: Township (6_MType) | N122: 367 | O122: 54049_SGC | R122: Not Started
A123: Faraday Tp | B123: 1258 | C123: 12058_MUNID | D123: 51605_MAH | E123: LT_Tier | F123: Lower-Tier | G123: 51_UT | H123: 51 | I123: Hastings Co (51_UT) | J123: 12_MSO | K123: Eastern Ontario (12_MSO) | L123: 6_MType | M123: Township (6_MType) | N123: 367 | O123: 12058_SGC | R123: Not Started
A124: Fauquier-Strickland Tp | B124: 5652 | C124: 56052_MUNID | D124: 81608_MAH | E124: ST_Tier | F124: Single-Tier | G124: 81_UT | H124: 81 | I124: Cochrane D (81_UT) | J124: 13_MSO | K124: Northeast Ontario (13_MSO) | L124: 6_MType | M124: Township (6_MType) | N124: 367 | O124: 56052_SGC | R124: Not Started
A125: Fort Erie T | B125: 2703 | C125: 26003_MUNID | D125: 18401_MAH | E125: LT_Tier | F125: Lower-Tier | G125: 18_UT | H125: 18 | I125: Niagara R (18_UT) | J125: 11_MSO | K125: Central Ontario (11_MSO) | L125: 4_MType | M125: Town (4_MType) | N125: 367 | O125: 26003_SGC | R125: Not Started
A126: Fort Frances T | B126: 5912 | C126: 59012_MUNID | D126: 87401_MAH | E126: ST_Tier | F126: Single-Tier | G126: 87_UT | H126: 87 | I126: Rainy River D (87_UT) | J126: 14_MSO | K126: Northwest Ontario (14_MSO) | L126: 4_MType | M126: Town (4_MType) | N126: 367 | O126: 59012_SGC | R126: Not Started
A127: French River M | B127: 5201 | C127: 52001_MUNID | D127: 88410_MAH | E127: ST_Tier | F127: Single-Tier | G127: 88_UT | H127: 88 | I127: Sudbury D (88_UT) | J127: 13_MSO | K127: Northeast Ontario (13_MSO) | L127: 4_MType | M127: Town (4_MType) | N127: 367 | O127: 52001_SGC | R127: Not Started
A128: Front of Yonge Tp | B128: 0806 | C128: 07017_MUNID | D128: 56615_MAH | E128: LT_Tier | F128: Lower-Tier | G128: 56_UT | H128: 56 | I128: Leeds and Grenville UCo (56_UT) | J128: 12_MSO | K128: Eastern Ontario (12_MSO) | L128: 6_MType | M128: Township (6_MType) | N128: 367 | O128: 7017_SGC | R128: Not Started
A129: Frontenac Co | B129: 1000 | C129: 10000_MUNID | D129: 46000_MAH | E129: UT_Tier | F129: Upper-Tier | G129: 46_UT | H129: 46 | I129: Frontenac BM (46_UT) | J129: 12_MSO | K129: Eastern Ontario (12_MSO) | L129: 0_MType | M129: Upper Tier (0_MType) | N129: 367 | O129: 10000_SGC | R129: Not Started
A130: Frontenac Islands Tp | B130: 1001 | C130: 10002_MUNID | D130: 46617_MAH | E130: LT_Tier | F130: Lower-Tier | G130: 46_UT | H130: 46 | I130: Frontenac BM (46_UT) | J130: 12_MSO | K130: Eastern Ontario (12_MSO) | L130: 6_MType | M130: Township (6_MType) | N130: 367 | O130: 10005_SGC | R130: Not Started
A131: Gananoque ST | B131: 0814 | C131: 07024_MUNID | D131: 56301_MAH | E131: ST_Tier | F131: Single-Tier | G131: 56_UT | H131: 56 | I131: Leeds and Grenville UCo (56_UT) | J131: 12_MSO | K131: Eastern Ontario (12_MSO) | L131: 3_MType | M131: Separated Town (3_MType) | N131: 367 | O131: 7024_SGC | R131: Not Started
A132: Gauthier Tp | B132: 5466 | C132: 54066_MUNID | D132: 90618_MAH | E132: ST_Tier | F132: Single-Tier | G132: 90_UT | H132: 90 | I132: Timiskaming D (90_UT) | J132: 13_MSO | K132: Northeast Ontario (13_MSO) | L132: 6_MType | M132: Township (6_MType) | N132: 367 | O132: 54066_SGC | R132: Not Started
A133: Georgian Bay Tp | B133: 4465 | C133: 44065_MUNID | D133: 33601_MAH | E133: LT_Tier | F133: Lower-Tier | G133: 33_UT | H133: 33 | I133: Muskoka D (33_UT) | J133: 11_MSO | K133: Central Ontario (11_MSO) | L133: 6_MType | M133: Township (6_MType) | N133: 367 | O133: 44065_SGC | R133: Not Started
A134: Georgian Bluffs Tp | B134: 4203 | C134: 42055_MUNID | D134: 47622_MAH | E134: LT_Tier | F134: Lower-Tier | G134: 47_UT | H134: 47 | I134: Grey Co (47_UT) | J134: 15_MSO | K134: Western Ontario (15_MSO) | L134: 6_MType | M134: Township (6_MType) | N134: 367 | O134: 42053_SGC | R134: Not Started
A135: Georgina T | B135: 1970 | C135: 19070_MUNID | D135: 27408_MAH | E135: LT_Tier | F135: Lower-Tier | G135: 27_UT | H135: 27 | I135: York R (27_UT) | J135: 11_MSO | K135: Central Ontario (11_MSO) | L135: 4_MType | M135: Town (4_MType) | N135: 367 | O135: 19070_SGC | R135: Not Started
A136: Gillies Tp | B136: 5812 | C136: 58012_MUNID | D136: 89603_MAH | E136: ST_Tier | F136: Single-Tier | G136: 89_UT | H136: 89 | I136: Thunder Bay D (89_UT) | J136: 14_MSO | K136: Northwest Ontario (14_MSO) | L136: 6_MType | M136: Township (6_MType) | N136: 367 | O136: 58012_SGC | R136: Not Started
A137: Goderich T | B137: 4028 | C137: 40028_MUNID | D137: 52403_MAH | E137: LT_Tier | F137: Lower-Tier | G137: 52_UT | H137: 52 | I137: Huron Co (52_UT) | J137: 15_MSO | K137: Western Ontario (15_MSO) | L137: 4_MType | M137: Town (4_MType) | N137: 367 | O137: 40028_SGC | R137: Not Started
A138: Gordon-Barrie Island M | B138: 5125 | C138: 51025_MUNID | D138: 83614_MAH | E138: ST_Tier | F138: Single-Tier | G138: 83_UT | H138: 83 | I138: Manitoulin D (83_UT) | J138: 13_MSO | K138: Northeast Ontario (13_MSO) | L138: 6_MType | M138: Township (6_MType) | N138: 367 | O138: 51025_SGC | R138: Not Started
A139: Gore Bay T | B139: 5126 | C139: 51026_MUNID | D139: 83401_MAH | E139: ST_Tier | F139: Single-Tier | G139: 83_UT | H139: 83 | I139: Manitoulin D (83_UT) | J139: 13_MSO | K139: Northeast Ontario (13_MSO) | L139: 4_MType | M139: Town (4_MType) | N139: 367 | O139: 51026_SGC | R139: Not Started
A140: Grand Valley T | B140: 2204 | C140: 22005_MUNID | D140: 43404_MAH | E140: LT_Tier | F140: Lower-Tier | G140: 43_UT | H140: 43 | I140: Dufferin Co (43_UT) | J140: 15_MSO | K140: Western Ontario (15_MSO) | L140: 4_MType | M140: Town (4_MType) | N140: 367 | O140: 22010_SGC | R140: Not Started
A141: Gravenhurst T | B141: 4402 | C141: 44002_MUNID | D141: 33402_MAH | E141: LT_Tier | F141: Lower-Tier | G141: 33_UT | H141: 33 | I141: Muskoka D (33_UT) | J141: 11_MSO | K141: Central Ontario (11_MSO) | L141: 4_MType | M141: Town (4_MType) | N141: 367 | O141: 44002_SGC | R141: Not Started
A142: Greater Madawaska Tp | B142: 4706 | C142: 47007_MUNID | D142: 69637_MAH | E142: LT_Tier | F142: Lower-Tier | G142: 69_UT | H142: 69 | I142: Renfrew Co (69_UT) | J142: 12_MSO | K142: Eastern Ontario (12_MSO) | L142: 6_MType | M142: Township (6_MType) | N142: 367 | O142: 47008_SGC | R142: Not Started
A143: Greater Napanee T | B143: 1121 | C143: 11010_MUNID | D143: 57402_MAH | E143: LT_Tier | F143: Lower-Tier | G143: 57_UT | H143: 57 | I143: Lennox and Addington Co (57_UT) | J143: 12_MSO | K143: Eastern Ontario (12_MSO) | L143: 4_MType | M143: Town (4_MType) | N143: 367 | O143: 11015_SGC | R143: Not Started
A144: Greater Sudbury C | B144: 5307 | C144: 53005_MUNID | D144: 23103_MAH | E144: ST_Tier | F144: Single-Tier | G144: 23_UT | H144: 23 | J144: 13_MSO | K144: Northeast Ontario (13_MSO) | L144: 1_MType | M144: City (1_MType) | N144: 367 | O144: 53005_SGC | R144: Not Started
A145: Greenstone M | B145: 5876 | C145: 58058_MUNID | D145: 89404_MAH | E145: ST_Tier | F145: Single-Tier | G145: 89_UT | H145: 89 | I145: Thunder Bay D (89_UT) | J145: 14_MSO | K145: Northwest Ontario (14_MSO) | L145: 4_MType | M145: Town (4_MType) | N145: 367 | O145: 58075_SGC | R145: Not Started
A146: Grey Co | B146: 4200 | C146: 42000_MUNID | D146: 47000_MAH | E146: UT_Tier | F146: Upper-Tier | G146: 47_UT | H146: 47 | I146: Grey Co (47_UT) | J146: 15_MSO | K146: Western Ontario (15_MSO) | L146: 0_MType | M146: Upper Tier (0_MType) | N146: 367 | O146: 42000_SGC | R146: Not Started
A147: Grey Highlands M | B147: 4208 | C147: 42013_MUNID | D147: 47623_MAH | E147: LT_Tier | F147: Lower-Tier | G147: 47_UT | H147: 47 | I147: Grey Co (47_UT) | J147: 15_MSO | K147: Western Ontario (15_MSO) | L147: 6_MType | M147: Township (6_MType) | N147: 367 | O147: 42015_SGC | R147: Not Started
A148: Grimsby T | B148: 2615 | C148: 26065_MUNID | D148: 18402_MAH | E148: LT_Tier | F148: Lower-Tier | G148: 18_UT | H148: 18 | I148: Niagara R (18_UT) | J148: 11_MSO | K148: Central Ontario (11_MSO) | L148: 4_MType | M148: Town (4_MType) | N148: 367 | O148: 26065_SGC | R148: Not Started
A149: Guelph C | B149: 2308 | C149: 23008_MUNID | D149: 75101_MAH | E149: ST_Tier | F149: Single-Tier | G149: 75_UT | H149: 75 | I149: Wellington Co (75_UT) | J149: 15_MSO | K149: Western Ontario (15_MSO) | L149: 1_MType | M149: City (1_MType) | N149: 367 | O149: 23008_SGC | R149: Not Started
A150: Guelph-Eramosa Tp | B150: 2311 | C150: 23005_MUNID | D150: 75615_MAH | E150: LT_Tier | F150: Lower-Tier | G150: 75_UT | H150: 75 | I150: Wellington Co (75_UT) | J150: 15_MSO | K150: Western Ontario (15_MSO) | L150: 6_MType | M150: Township (6_MType) | N150: 367 | O150: 23009_SGC | R150: Not Started
A151: Haldimand County | B151: 2810 | C151: 28005_MUNID | D151: 12102_MAH | E151: ST_Tier | F151: Single-Tier | G151: 12_UT | H151: 12 | J151: 15_MSO | K151: Western Ontario (15_MSO) | L151: 1_MType | M151: City (1_MType) | N151: 367 | O151: 28018_SGC | R151: Not Started
A152: Haliburton Co | B152: 4600 | C152: 46000_MUNID | D152: 49000_MAH | E152: UT_Tier | F152: Upper-Tier | G152: 49_UT | H152: 49 | I152: Haliburton Co (49_UT) | J152: 12_MSO | K152: Eastern Ontario (12_MSO) | L152: 0_MType | M152: Upper Tier (0_MType) | N152: 367 | O152: 46000_SGC | R152: Not Started
A153: Halton Hills T | B153: 2415 | C153: 24015_MUNID | D153: 14401_MAH | E153: LT_Tier | F153: Lower-Tier | G153: 14_UT | H153: 14 | I153: Halton R (14_UT) | J153: 11_MSO | K153: Central Ontario (11_MSO) | L153: 4_MType | M153: Town (4_MType) | N153: 367 | O153: 24015_SGC | R153: Not Started
A154: Halton R | B154: 2400 | C154: 24000_MUNID | D154: 14000_MAH | E154: UT_Tier | F154: Upper-Tier | G154: 14_UT | H154: 14 | I154: Halton R (14_UT) | J154: 11_MSO | K154: Central Ontario (11_MSO) | L154: 0_MType | M154: Upper Tier (0_MType) | N154: 367 | O154: 24000_SGC | R154: Not Started
A155: Hamilton C | B155: 2518 | C155: 25005_MUNID | D155: 16103_MAH | E155: ST_Tier | F155: Single-Tier | G155: 16_UT | H155: 16 | J155: 11_MSO | K155: Central Ontario (11_MSO) | L155: 1_MType | M155: City (1_MType) | N155: 367 | O155: 25005_SGC | R155: Not Started
A156: Hamilton Tp | B156: 1419 | C156: 14019_MUNID | D156: 61609_MAH | E156: LT_Tier | F156: Lower-Tier | G156: 61_UT | H156: 61 | I156: Northumberland Co (61_UT) | J156: 12_MSO | K156: Eastern Ontario (12_MSO) | L156: 6_MType | M156: Township (6_MType) | N156: 367 | O156: 14019_SGC | R156: Not Started
A157: Hanover T | B157: 4229 | C157: 42029_MUNID | D157: 47402_MAH | E157: LT_Tier | F157: Lower-Tier | G157: 47_UT | H157: 47 | I157: Grey Co (47_UT) | J157: 15_MSO | K157: Western Ontario (15_MSO) | L157: 4_MType | M157: Town (4_MType) | N157: 367 | O157: 42029_SGC | R157: Not Started
A158: Harley Tp | B158: 5426 | C158: 54026_MUNID | D158: 90610_MAH | E158: ST_Tier | F158: Single-Tier | G158: 90_UT | H158: 90 | I158: Timiskaming D (90_UT) | J158: 13_MSO | K158: Northeast Ontario (13_MSO) | L158: 6_MType | M158: Township (6_MType) | N158: 367 | O158: 54026_SGC | R158: Not Started
A159: Harris Tp | B159: 5414 | C159: 54014_MUNID | D159: 90611_MAH | E159: ST_Tier | F159: Single-Tier | G159: 90_UT | H159: 90 | I159: Timiskaming D (90_UT) | J159: 13_MSO | K159: Northeast Ontario (13_MSO) | L159: 6_MType | M159: Township (6_MType) | N159: 367 | O159: 54014_SGC | R159: Not Started
A160: Hastings Co | B160: 1200 | C160: 12000_MUNID | D160: 51000_MAH | E160: UT_Tier | F160: Upper-Tier | G160: 51_UT | H160: 51 | I160: Hastings Co (51_UT) | J160: 12_MSO | K160: Eastern Ontario (12_MSO) | L160: 0_MType | M160: Upper Tier (0_MType) | N160: 367 | O160: 12000_SGC | R160: Not Started
A161: Hastings Highlands M | B161: 1290 | C161: 12073_MUNID | D161: 51624_MAH | E161: LT_Tier | F161: Lower-Tier | G161: 51_UT | H161: 51 | I161: Hastings Co (51_UT) | J161: 12_MSO | K161: Eastern Ontario (12_MSO) | L161: 6_MType | M161: Township (6_MType) | N161: 367 | O161: 12076_SGC | R161: Not Started
A162: Havelock-Belmont-Methuen Tp | B162: 1531 | C162: 15030_MUNID | D162: 66620_MAH | E162: LT_Tier | F162: Lower-Tier | G162: 66_UT | H162: 66 | I162: Peterborough Co (66_UT) | J162: 12_MSO | K162: Eastern Ontario (12_MSO) | L162: 6_MType | M162: Township (6_MType) | N162: 367 | O162: 15030_SGC | R162: Not Started
A163: Hawkesbury T | B163: 0208 | C163: 02008_MUNID | D163: 67401_MAH | E163: LT_Tier | F163: Lower-Tier | G163: 67_UT | H163: 67 | I163: Prescott and Russell UCo (67_UT) | J163: 12_MSO | K163: Eastern Ontario (12_MSO) | L163: 4_MType | M163: Town (4_MType) | N163: 367 | O163: 2008_SGC | R163: Not Started
A164: Head, Clara and Maria Tp | B164: 4798 | C164: 47098_MUNID | D164: 69612_MAH | E164: LT_Tier | F164: Lower-Tier | G164: 69_UT | H164: 69 | I164: Renfrew Co (69_UT) | J164: 12_MSO | K164: Eastern Ontario (12_MSO) | L164: 6_MType | M164: Township (6_MType) | N164: 367 | O164: 47098_SGC | R164: Not Started
A165: Hearst T | B165: 5676 | C165: 56076_MUNID | D165: 81402_MAH | E165: ST_Tier | F165: Single-Tier | G165: 81_UT | H165: 81 | I165: Cochrane D (81_UT) | J165: 13_MSO | K165: Northeast Ontario (13_MSO) | L165: 4_MType | M165: Town (4_MType) | N165: 367 | O165: 56076_SGC | R165: Not Started
A166: Highlands East M | B166: 4601 | C166: 46002_MUNID | D166: 49612_MAH | E166: LT_Tier | F166: Lower-Tier | G166: 49_UT | H166: 49 | I166: Haliburton Co (49_UT) | J166: 12_MSO | K166: Eastern Ontario (12_MSO) | L166: 6_MType | M166: Township (6_MType) | N166: 367 | O166: 46005_SGC | R166: Not Started
A167: Hilliard Tp | B167: 5434 | C167: 54034_MUNID | D167: 90612_MAH | E167: ST_Tier | F167: Single-Tier | G167: 90_UT | H167: 90 | I167: Timiskaming D (90_UT) | J167: 13_MSO | K167: Northeast Ontario (13_MSO) | L167: 6_MType | M167: Township (6_MType) | N167: 367 | O167: 54034_SGC | R167: Not Started
A168: Hilton Beach V | B168: 5706 | C168: 57006_MUNID | D168: 80501_MAH | E168: ST_Tier | F168: Single-Tier | G168: 80_UT | H168: 80 | I168: Algoma D (80_UT) | J168: 13_MSO | K168: Northeast Ontario (13_MSO) | L168: 5_MType | M168: Village (5_MType) | N168: 367 | O168: 57006_SGC | R168: Not Started
A169: Hilton Tp | B169: 5704 | C169: 57004_MUNID | D169: 80603_MAH | E169: ST_Tier | F169: Single-Tier | G169: 80_UT | H169: 80 | I169: Algoma D (80_UT) | J169: 13_MSO | K169: Northeast Ontario (13_MSO) | L169: 6_MType | M169: Township (6_MType) | N169: 367 | O169: 57004_SGC | R169: Not Started
A170: Hornepayne Tp | B170: 5796 | C170: 57096_MUNID | D170: 80615_MAH | E170: ST_Tier | F170: Single-Tier | G170: 80_UT | H170: 80 | I170: Algoma D (80_UT) | J170: 13_MSO | K170: Northeast Ontario (13_MSO) | L170: 6_MType | M170: Township (6_MType) | N170: 367 | O170: 57096_SGC | R170: Not Started
A171: Horton Tp | B171: 4746 | C171: 47046_MUNID | D171: 69613_MAH | E171: LT_Tier | F171: Lower-Tier | G171: 69_UT | H171: 69 | I171: Renfrew Co (69_UT) | J171: 12_MSO | K171: Eastern Ontario (12_MSO) | L171: 6_MType | M171: Township (6_MType) | N171: 367 | O171: 47046_SGC | R171: Not Started
A172: Howick Tp | B172: 4046 | C172: 40046_MUNID | D172: 52606_MAH | E172: LT_Tier | F172: Lower-Tier | G172: 52_UT | H172: 52 | I172: Huron Co (52_UT) | J172: 15_MSO | K172: Western Ontario (15_MSO) | L172: 6_MType | M172: Township (6_MType) | N172: 367 | O172: 40046_SGC | R172: Not Started
A173: Hudson Tp | B173: 5421 | C173: 54021_MUNID | D173: 90613_MAH | E173: ST_Tier | F173: Single-Tier | G173: 90_UT | H173: 90 | I173: Timiskaming D (90_UT) | J173: 13_MSO | K173: Northeast Ontario (13_MSO) | L173: 6_MType | M173: Township (6_MType) | N173: 367 | O173: 54021_SGC | R173: Not Started
A174: Huntsville T | B174: 4442 | C174: 44042_MUNID | D174: 33403_MAH | E174: LT_Tier | F174: Lower-Tier | G174: 33_UT | H174: 33 | I174: Muskoka D (33_UT) | J174: 11_MSO | K174: Central Ontario (11_MSO) | L174: 4_MType | M174: Town (4_MType) | N174: 367 | O174: 44042_SGC | R174: Not Started
A175: Huron Co | B175: 4000 | C175: 40000_MUNID | D175: 52000_MAH | E175: UT_Tier | F175: Upper-Tier | G175: 52_UT | H175: 52 | I175: Huron Co (52_UT) | J175: 15_MSO | K175: Western Ontario (15_MSO) | L175: 0_MType | M175: Upper Tier (0_MType) | N175: 367 | O175: 40000_SGC | R175: Not Started
A176: Huron East M | B176: 4040 | C176: 40015_MUNID | D176: 52408_MAH | E176: LT_Tier | F176: Lower-Tier | G176: 52_UT | H176: 52 | I176: Huron Co (52_UT) | J176: 15_MSO | K176: Western Ontario (15_MSO) | L176: 4_MType | M176: Town (4_MType) | N176: 367 | O176: 40040_SGC | R176: Not Started
A177: Huron Shores M | B177: 5724 | C177: 57023_MUNID | D177: 80620_MAH | E177: ST_Tier | F177: Single-Tier | G177: 80_UT | H177: 80 | I177: Algoma D (80_UT) | J177: 13_MSO | K177: Northeast Ontario (13_MSO) | L177: 6_MType | M177: Township (6_MType) | N177: 367 | O177: 57035_SGC | R177: Not Started
A178: Huron-Kinloss Tp | B178: 4107 | C178: 41010_MUNID | D178: 41624_MAH | E178: LT_Tier | F178: Lower-Tier | G178: 41_UT | H178: 41 | I178: Bruce Co (41_UT) | J178: 15_MSO | K178: Western Ontario (15_MSO) | L178: 6_MType | M178: Township (6_MType) | N178: 367 | O178: 41015_SGC | R178: Not Started
A179: Ignace Tp | B179: 6001 | C179: 60001_MUNID | D179: 82601_MAH | E179: ST_Tier | F179: Single-Tier | G179: 82_UT | H179: 82 | I179: Kenora D (82_UT) | J179: 14_MSO | K179: Northwest Ontario (14_MSO) | L179: 6_MType | M179: Township (6_MType) | N179: 367 | O179: 60001_SGC | R179: Not Started
A180: Ingersoll T | B180: 3218 | C180: 32018_MUNID | D180: 37401_MAH | E180: LT_Tier | F180: Lower-Tier | G180: 37_UT | H180: 37 | I180: Oxford Co (37_UT) | J180: 15_MSO | K180: Western Ontario (15_MSO) | L180: 4_MType | M180: Town (4_MType) | N180: 367 | O180: 32018_SGC | R180: Not Started
A181: Innisfil T | B181: 4316 | C181: 43017_MUNID | D181: 70409_MAH | E181: LT_Tier | F181: Lower-Tier | G181: 70_UT | H181: 70 | I181: Simcoe Co (70_UT) | J181: 11_MSO | K181: Central Ontario (11_MSO) | L181: 4_MType | M181: Town (4_MType) | N181: 367 | O181: 43017_SGC | R181: Not Started
A182: Iroquois Falls T | B182: 5631 | C182: 56031_MUNID | D182: 81403_MAH | E182: ST_Tier | F182: Single-Tier | G182: 81_UT | H182: 81 | I182: Cochrane D (81_UT) | J182: 13_MSO | K182: Northeast Ontario (13_MSO) | L182: 4_MType | M182: Town (4_MType) | N182: 367 | O182: 56031_SGC | R182: Not Started
A183: James Tp | B183: 5442 | C183: 54042_MUNID | D183: 90614_MAH | E183: ST_Tier | F183: Single-Tier | G183: 90_UT | H183: 90 | I183: Timiskaming D (90_UT) | J183: 13_MSO | K183: Northeast Ontario (13_MSO) | L183: 6_MType | M183: Township (6_MType) | N183: 367 | O183: 54042_SGC | R183: Not Started
A184: Jocelyn Tp | B184: 5701 | C184: 57001_MUNID | D184: 80604_MAH | E184: ST_Tier | F184: Single-Tier | G184: 80_UT | H184: 80 | I184: Algoma D (80_UT) | J184: 13_MSO | K184: Northeast Ontario (13_MSO) | L184: 6_MType | M184: Township (6_MType) | N184: 367 | O184: 57001_SGC | R184: Not Started
A185: Johnson Tp | B185: 5716 | C185: 57016_MUNID | D185: 80605_MAH | E185: ST_Tier | F185: Single-Tier | G185: 80_UT | H185: 80 | I185: Algoma D (80_UT) | J185: 13_MSO | K185: Northeast Ontario (13_MSO) | L185: 6_MType | M185: Township (6_MType) | N185: 367 | O185: 57016_SGC | R185: Not Started
A186: Joly Tp | B186: 4951 | C186: 49051_MUNID | D186: 86610_MAH | E186: ST_Tier | F186: Single-Tier | G186: 86_UT | H186: 86 | I186: Parry Sound D (86_UT) | J186: 13_MSO | K186: Northeast Ontario (13_MSO) | L186: 6_MType | M186: Township (6_MType) | N186: 367 | O186: 49051_SGC | R186: Not Started
A187: Kapuskasing T | B187: 5666 | C187: 56066_MUNID | D187: 81404_MAH | E187: ST_Tier | F187: Single-Tier | G187: 81_UT | H187: 81 | I187: Cochrane D (81_UT) | J187: 13_MSO | K187: Northeast Ontario (13_MSO) | L187: 4_MType | M187: Town (4_MType) | N187: 367 | O187: 56066_SGC | R187: Not Started
A188: Kawartha Lakes C | B188: 1651 | C188: 16002_MUNID | D188: 72101_MAH | E188: ST_Tier | F188: Single-Tier | G188: 72_UT | H188: 72 | J188: 12_MSO | K188: Eastern Ontario (12_MSO) | L188: 1_MType | M188: City (1_MType) | N188: 367 | O188: 16010_SGC | R188: Not Started
A189: Kearney T | B189: 4918 | C189: 49018_MUNID | D189: 86401_MAH | E189: ST_Tier | F189: Single-Tier | G189: 86_UT | H189: 86 | I189: Parry Sound D (86_UT) | J189: 13_MSO | K189: Northeast Ontario (13_MSO) | L189: 4_MType | M189: Town (4_MType) | N189: 367 | O189: 49018_SGC | R189: Not Started
A190: Kenora C | B190: 6016 | C190: 60011_MUNID | D190: 82102_MAH | E190: ST_Tier | F190: Single-Tier | G190: 82_UT | H190: 82 | I190: Kenora D (82_UT) | J190: 14_MSO | K190: Northwest Ontario (14_MSO) | L190: 1_MType | M190: City (1_MType) | N190: 367 | O190: 60010_SGC | R190: Not Started
A191: Kerns Tp | B191: 5424 | C191: 54024_MUNID | D191: 90615_MAH | E191: ST_Tier | F191: Single-Tier | G191: 90_UT | H191: 90 | I191: Timiskaming D (90_UT) | J191: 13_MSO | K191: Northeast Ontario (13_MSO) | L191: 6_MType | M191: Township (6_MType) | N191: 367 | O191: 54024_SGC | R191: Not Started
A192: Killaloe, Hagarty and Richards Tp | B192: 4731 | C192: 47030_MUNID | D192: 69633_MAH | E192: LT_Tier | F192: Lower-Tier | G192: 69_UT | H192: 69 | I192: Renfrew Co (69_UT) | J192: 12_MSO | K192: Eastern Ontario (12_MSO) | L192: 6_MType | M192: Township (6_MType) | N192: 367 | O192: 47033_SGC | R192: Not Started
A193: Killarney M | B193: 5136 | C193: 52003_MUNID | D193: 88411_MAH | E193: ST_Tier | F193: Single-Tier | G193: 88_UT | H193: 88 | I193: Sudbury D (88_UT) | J193: 13_MSO | K193: Northeast Ontario (13_MSO) | L193: 4_MType | M193: Town (4_MType) | N193: 367 | O193: 52003_SGC | R193: Not Started
A194: Kincardine M | B194: 4108 | C194: 41020_MUNID | D194: 41625_MAH | E194: LT_Tier | F194: Lower-Tier | G194: 41_UT | H194: 41 | I194: Bruce Co (41_UT) | J194: 15_MSO | K194: Western Ontario (15_MSO) | L194: 6_MType | M194: Township (6_MType) | N194: 367 | O194: 41024_SGC | R194: Not Started
A195: King Tp | B195: 1949 | C195: 19049_MUNID | D195: 27603_MAH | E195: LT_Tier | F195: Lower-Tier | G195: 27_UT | H195: 27 | I195: York R (27_UT) | J195: 11_MSO | K195: Central Ontario (11_MSO) | L195: 6_MType | M195: Township (6_MType) | N195: 367 | O195: 19049_SGC | R195: Not Started
A196: Kingston C | B196: 1011 | C196: 10005_MUNID | D196: 46102_MAH | E196: ST_Tier | F196: Single-Tier | G196: 46_UT | H196: 46 | I196: Frontenac BM (46_UT) | J196: 12_MSO | K196: Eastern Ontario (12_MSO) | L196: 1_MType | M196: City (1_MType) | N196: 367 | O196: 10010_SGC | R196: Not Started
A197: Kingsville T | B197: 3711 | C197: 37008_MUNID | D197: 45411_MAH | E197: LT_Tier | F197: Lower-Tier | G197: 45_UT | H197: 45 | I197: Essex Co (45_UT) | J197: 15_MSO | K197: Western Ontario (15_MSO) | L197: 4_MType | M197: Town (4_MType) | N197: 367 | O197: 37013_SGC | R197: Not Started
A198: Kirkland Lake T | B198: 5468 | C198: 54068_MUNID | D198: 90405_MAH | E198: ST_Tier | F198: Single-Tier | G198: 90_UT | H198: 90 | I198: Timiskaming D (90_UT) | J198: 13_MSO | K198: Northeast Ontario (13_MSO) | L198: 4_MType | M198: Town (4_MType) | N198: 367 | O198: 54068_SGC | R198: Not Started
A199: Kitchener C | B199: 3012 | C199: 30012_MUNID | D199: 25102_MAH | E199: LT_Tier | F199: Lower-Tier | G199: 25_UT | H199: 25 | I199: Waterloo R (25_UT) | J199: 15_MSO | K199: Western Ontario (15_MSO) | L199: 1_MType | M199: City (1_MType) | N199: 367 | O199: 30013_SGC | R199: Not Started
A200: La Vallee Tp | B200: 5916 | C200: 59016_MUNID | D200: 87608_MAH | E200: ST_Tier | F200: Single-Tier | G200: 87_UT | H200: 87 | I200: Rainy River D (87_UT) | J200: 14_MSO | K200: Northwest Ontario (14_MSO) | L200: 6_MType | M200: Township (6_MType) | N200: 367 | O200: 59016_SGC | R200: Not Started
... 245 more rows

Sheet UT_TABLE (hidden)
A1: MunASMTCode | B1: MunMAHCode | C1: MunMUNIDCode | D1: MunName | E1: MunTierCode | F1: MunUTCode | G1: LT1 | H1: LT2 | I1: LT3 | J1: LT4 | K1: LT5 | L1: LT6 | M1: LT7 | N1: LT8 | O1: LT9 | P1: LT10 | Q1: LT11 | R1: LT12 | S1: LT13 | T1: LT14 | U1: LT15 | V1: LT16 | W1: LT17
A2: 1800 | B2: 10000_MAH | C2: 18000_MUNID | D2: Durham R | E2: UT_Tier | F2: 10_UT | G2: 1813 | H2: 1801 | I2: 1805 | J2: 1817 | K2: 1809 | L2: 1839 | M2: 1820 | N2: 1829
A3: 2400 | B3: 14000_MAH | C3: 24000_MUNID | D3: Halton R | E3: UT_Tier | F3: 14_UT | G3: 2402 | H3: 2415 | I3: 2409 | J3: 2401
A4: 2600 | B4: 18000_MAH | C4: 26000_MUNID | D4: Niagara R | E4: UT_Tier | F4: 18_UT | G4: 2725 | H4: 2711 | I4: 2629 | J4: 2719 | K4: 2731 | L4: 2703 | M4: 2615 | N4: 2622 | O4: 2627 | P4: 2732 | Q4: 2714 | R4: 2602
A5: 2100 | B5: 21000_MAH | C5: 21000_MUNID | D5: Peel R | E5: UT_Tier | F5: 21_UT | G5: 2110 | H5: 2105 | I5: 2124
A6: 3000 | B6: 25000_MAH | C6: 30000_MUNID | D6: Waterloo R | E6: UT_Tier | F6: 25_UT | G6: 3006 | H6: 3012 | I6: 3016 | J6: 3001 | K6: 3024 | L6: 3018 | M6: 3029
A7: 2000 | B7: 27000_MAH | C7: 19000_MUNID | D7: York R | E7: UT_Tier | F7: 27_UT | G7: 1928 | H7: 1936 | I7: 1938 | J7: 1946 | K7: 1948 | L7: 1944 | M7: 1954 | N7: 1970 | O7: 1949
A8: 4400 | B8: 33000_MAH | C8: 44000_MUNID | D8: Muskoka D | E8: UT_Tier | F8: 33_UT | G8: 4418 | H8: 4402 | I8: 4442 | J8: 4465 | K8: 4427 | L8: 4453
A9: 3200 | B9: 37000_MAH | C9: 32000_MUNID | D9: Oxford Co | E9: UT_Tier | F9: 37_UT | G9: 3242 | H9: 3218 | I9: 3204 | J9: 3245 | K9: 3238 | L9: 3202 | M9: 3211 | N9: 3227
A10: 4100 | B10: 41000_MAH | C10: 41000_MUNID | D10: Bruce Co | E10: UT_Tier | F10: 41_UT | G10: 4102 | H10: 4110 | I10: 4103 | J10: 4104 | K10: 4109 | L10: 4107 | M10: 4108 | N10: 4105
A11: 2200 | B11: 43000_MAH | C11: 22000_MUNID | D11: Dufferin Co | E11: UT_Tier | F11: 43_UT | G11: 2214 | H11: 2221 | I11: 2212 | J11: 2204 | K11: 2208 | L11: 2201 | M11: 2219 | N11: 2216
A12: 3400 | B12: 44000_MAH | C12: 34000_MUNID | D12: Elgin Co | E12: UT_Tier | F12: 44_UT | G12: 3411 | H12: 3424 | I12: 3401 | J12: 3418 | K12: 3429 | L12: 3408 | M12: 3434
A13: 3700 | B13: 45000_MAH | C13: 37000_MUNID | D13: Essex Co | E13: UT_Tier | F13: 45_UT | G13: 3734 | H13: 3729 | I13: 3754 | J13: 3711 | K13: 3751 | L13: 3706 | M13: 3744
A14: 1000 | B14: 46000_MAH | C14: 10000_MUNID | D14: Frontenac Co | E14: UT_Tier | F14: 46_UT | G14: 1039 | H14: 1001 | I14: 1042 | J14: 1029
A15: 4200 | B15: 47000_MAH | C15: 42000_MUNID | D15: Grey Co | E15: UT_Tier | F15: 47_UT | G15: 4259 | H15: 4229 | I15: 4242 | J15: 4210 | K15: 4204 | L15: 4207 | M15: 4203 | N15: 4208 | O15: 4205
A16: 4600 | B16: 49000_MAH | C16: 46000_MUNID | D16: Haliburton Co | E16: UT_Tier | F16: 49_UT | G16: 4624 | H16: 4616 | I16: 4601 | J16: 4621
A17: 1200 | B17: 51000_MAH | C17: 12000_MUNID | D17: Hastings Co | E17: UT_Tier | F17: 51_UT | G17: 1202 | H17: 1262 | I17: 1258 | J17: 1251 | K17: 1236 | L17: 1248 | M17: 1201 | N17: 1254 | O17: 1230 | P17: 1220 | Q17: 1231 | R17: 1290 | S17: 1270 | T17: 1241
A18: 4000 | B18: 52000_MAH | C18: 40000_MUNID | D18: Huron Co | E18: UT_Tier | F18: 52_UT | G18: 4028 | H18: 4020 | I18: 4010 | J18: 4040 | K18: 4046 | L18: 4030 | M18: 4070 | N18: 4060 | O18: 4050
A19: 3800 | B19: 54000_MAH | C19: 38000_MUNID | D19: Lambton Co | E19: UT_Tier | F19: 54_UT | G19: 3829 | H19: 3845 | I19: 3819 | J19: 3835 | K19: 3818 | L19: 3831 | M19: 3816 | N19: 3806 | O19: 3841 | P19: 3815 | Q19: 3805
A20: 0900 | B20: 55000_MAH | C20: 09000_MUNID | D20: Lanark Co | E20: UT_Tier | F20: 55_UT | G20: 0928 | H20: 0921 | I20: 0931 | J20: 0924 | K20: 0901 | L20: 0940 | M20: 0919 | N20: 0911
A21: 0700 | B21: 56000_MAH | C21: 07000_MUNID | D21: Leeds and Grenville UCo | E21: UT_Tier | F21: 56_UT | G21: 0842 | H21: 0714 | I21: 0706 | J21: 0806 | K21: 0719 | L21: 0831 | M21: 0819 | N21: 0701 | O21: 0812 | P21: 0801
A22: 1100 | B22: 57000_MAH | C22: 11000_MUNID | D22: Lennox and Addington Co | E22: UT_Tier | F22: 57_UT | G22: 1121 | H22: 1134 | I22: 1104 | J22: 1124
A23: 3900 | B23: 59000_MAH | C23: 39000_MUNID | D23: Middlesex Co | E23: UT_Tier | F23: 59_UT | G23: 3902 | H23: 3939 | I23: 3958 | J23: 3946 | K23: 3954 | L23: 3906 | M23: 3916 | N23: 3926
A24: 1400 | B24: 61074_MAH | C24: 14000_MUNID | D24: Northumberland Co | E24: UT_Tier | F24: 61_UT | G24: 1421 | H24: 1408 | I24: 1435 | J24: 1423 | K24: 1419 | L24: 1450 | M24: 1411
A25: 3100 | B25: 65000_MAH | C25: 31000_MUNID | D25: Perth Co | E25: UT_Tier | F25: 65_UT | G25: 3140 | H25: 3110 | I25: 3120 | J25: 3130
A26: 1500 | B26: 66000_MAH | C26: 15000_MUNID | D26: Peterborough Co | E26: UT_Tier | F26: 66_UT | G26: 1501 | H26: 1536 | I26: 1509 | J26: 1522 | K26: 1542 | L26: 1531 | M26: 1506 | N26: 1516
A27: 0200 | B27: 67000_MAH | C27: 02000_MUNID | D27: Prescott and Russell UCo | E27: UT_Tier | F27: 67_UT | G27: 0316 | H27: 0208 | I27: 0302 | J27: 0201 | K27: 0306 | L27: 0231 | M27: 0209 | N27: 0212
A28: 4700 | B28: 69000_MAH | C28: 47000_MUNID | D28: Renfrew Co | E28: UT_Tier | F28: 69_UT | G28: 4702 | H28: 4796 | I28: 4748 | J28: 4779 | K28: 4792 | L28: 4798 | M28: 4746 | N28: 4701 | O28: 4719 | P28: 4769 | Q28: 4742 | R28: 4766 | S28: 4731 | T28: 4726 | U28: 4738 | V28: 4758 | W28: 4706
A29: 4300 | B29: 70000_MAH | C29: 43000_MUNID | D29: Simcoe Co | E29: UT_Tier | F29: 70_UT | G29: 4331 | H29: 4374 | I29: 4372 | J29: 4364 | K29: 4316 | L29: 4312 | M29: 4324 | N29: 4321 | O29: 4368 | P29: 4301 | Q29: 4329 | R29: 4346 | S29: 4348 | T29: 4351 | U29: 4341 | V29: 4353
A30: 0100 | B30: 71000_MAH | C30: 01000_MUNID | D30: Stormont, Dundas and Glengarry UCo | E30: UT_Tier | F30: 71_UT | G30: 0511 | H30: 0506 | I30: 0111 | J30: 0101 | K30: 0411 | L30: 0406
A31: 2300 | B31: 75000_MAH | C31: 23000_MUNID | D31: Wellington Co | E31: UT_Tier | F31: 75_UT | G31: 2316 | H31: 2341 | I31: 2301 | J31: 2326 | K31: 2311 | L31: 2332 | M31: 2349

Sheet REF_TABLES (hidden)
B1: eDataSource Code | C1: eDataSource Active Flag | D1: eDataSource SortSeq | E1: PSOM Description | F1: PSOM Code | G1: PSOM Active Flag | H1: PSOM SortSeq | I1: ePhasein Year | J1: ePhasein Year Active Flag | K1: ePhasein Year SortSeq | L1: Service Meas Code | M1: Service Meas Active Flag | N1: Service Meas SortSeq | O1: Service Code | P1: Service Description | Q1: Service Line Number | R1: Service Active Flag | S1: Service SortSeq | T1: DSSAB Description | U1: DSSAB Active Flag | V1: DSSAB SortSeq | W1: Health Unit Description | X1: Health Unit Active Flag | Y1: Health Unit SortSeq | Z1: S40Function Code | AA1: S40Function Description | AB1: S40Function Line Number | AC1: S40Function Active Flag | AD1: S40Function SortSeq | AE1: Board Code | AF1: Board Description | AG1: Board Line Number | AH1: Board Active Flag | AI1: Board SortSeq | AJ1: CVM Description | AK1: CVM Code | AL1: CVM Active Flag | AM1: CVM SortSeq | AN1: ADRL Interest | AO1: ADRL Interest Active Flag | AP1: ADRL Interest SortSeq | AQ1: ADRL Term Year | AR1: ADRL Term Active Flag | AS1: ADRL Term SortSeq | AT1: RTG Code | AU1: RTG Description | AV1: RTG Active Flag | AW1: RTG SortSeq | AX1: RTC Code | AY1: RTC Description | AZ1: RTC Group Code | BA1: RTC Band 0 Flag | BB1: RTC Active Flag | BC1: RTC SortSeq | BD1: Tax Band Code | BE1: Tax Band Number | BF1: Tax Band Description | BG1: Tax Band 0 Flag | BH1: Tax Band Active Flag | BI1: Tax Band SortSeq | BJ1: RTQ Code | BK1: RTQ Description | BL1: RTQ PIL Flag | BM1: RTQ Band 0 Flag | BN1: Full Occupied Flag | BO1: General Only Flag | BP1: RTQ Disc 100 Flag | BQ1: RTQ Active Flag | BR1: RTQ SortSeq | BS1: Tax RTC RTQ Band | BT1: Tax Line Number | BU1: Tax Active Flag | BV1: Tax SortSeq | BW1: Tax Classes Code | BX1: Tax Classes Active Flag | BY1: Tax Classes SortSeq | BZ1: PIL RTC RTQ Band | CA1: PIL Line Number | CB1: PIL Active Flag | CC1: PIL SortSeq | CD1: PIL Classes Code | CE1: PIL Classes Active Flag | CF1: PIL Classes SortSeq | CG1: Levy Type Description | CH1: Levy Type Number | CI1: Levy Type Active Flag | CJ1: Levy Type SortSeq | CK1: Levy Area MAH Number | CL1: Levy Area Assessment Number | CM1: Levy Area MUNID Number | CN1: Levy Area Municipality Name | CO1: Levy Area MAID Code | CP1: Levy Area MAID Name | CQ1: Levy Area MAID Assessment Number | CR1: Levy Area Active Flag | CS1: Levy Area SortSeq
A2: R0000r | B2: RefeDataSource | C2: RefeDataSource | D2: RefeDataSource | E2: RefPSOM | F2: RefPSOM | G2: RefPSOM | H2: RefPSOM | I2: RefePhasein | J2: RefePhasein | K2: RefePhasein | L2: RefServiceMeas | M2: RefServiceMeas | N2: RefServiceMeas | O2: RefService | P2: RefService | Q2: RefService | R2: RefService | S2: RefService | T2: RefDSSAB | U2: RefDSSAB | V2: RefDSSAB | W2: RefHealth | X2: RefHealth | Y2: RefHealth | Z2: RefS40Function | AA2: RefS40Function | AB2: RefS40Function | AC2: RefS40Function | AD2: RefS40Function | AE2: RefBoard | AF2: RefBoard | AG2: RefBoard | AH2: RefBoard | AI2: RefBoard | AJ2: RefCVM | AK2: RefCVM | AL2: RefCVM | AM2: RefCVM | AN2: RefADRLInterest | AO2: RefADRLInterest | AP2: RefADRLInterest | AQ2: RefADRLTerm | AR2: RefADRLTerm | AS2: RefADRLTerm | AT2: RefRTG | AU2: RefRTG | AV2: RefRTG | AW2: RefRTG | AX2: RefRTC | AY2: RefRTC | AZ2: RefRTC | BA2: RefRTC | BB2: RefRTC | BC2: RefRTC | BD2: RefBand | BE2: RefBand | BF2: RefBand | BG2: RefBand | BH2: RefBand | BI2: RefBand | BJ2: RefRTQ | BK2: RefRTQ | BL2: RefRTQ | BM2: RefRTQ | BN2: RefRTQ | BO2: RefRTQ | BP2: RefRTQ | BQ2: RefRTQ | BR2: RefRTQ | BS2: RefTaxMapping | BT2: RefTaxMapping | BU2: RefTaxMapping | BV2: RefTaxMapping | BW2: RefTaxClasses | BX2: RefTaxClasses | BY2: RefTaxClasses | BZ2: RefPILMapping | CA2: RefPILMapping | CB2: RefPILMapping | CC2: RefPILMapping | CD2: RefPILClasses | CE2: RefPILClasses | CF2: RefPILClasses | CG2: RefLevyType | CH2: RefLevyType | CI2: RefLevyType | CJ2: RefLevyType | CK2: RefLevyArea | CL2: RefLevyArea | CM2: RefLevyArea | CN2: RefLevyArea | CO2: RefLevyArea | CP2: RefLevyArea | CQ2: RefLevyArea | CR2: RefLevyArea | CS2: RefLevyArea
A3: R0000s | BA3: RefRTCBand0Flag | BG3: RefTaxBand0Flag | BH3: RefTaxBandActiveFlag | BL3: RefRTQPILFlag | BM3: RefRTQBand0Flag | BN3: RefFullOccupiedFlag | BO3: RefGeneralOnlyFlag | BP3: RefRTQDisc100Flag
A4: R0001 | B4: Municipal | C4: Y | D4: 1 | E4: OMBI Method | F4: 1 | G4: Y | H4: 1 | I4: 1998 | J4: Y | K4: 1 | L4: Sq. Foot | M4: Y | N4: 1 | O4: 110 | P4: Administration Studies | Q4: 110 | R4: Y | S4: 2435 | T4: DSSAB Algoma D | U4: Y | V4: 1 | W4: District of Algoma | X4: Y | Y4: 1 | Z4: 240 | AA4: Governance | AB4: 240 | AC4: Y | AD4: 2361 | AE4: 201 | AF4: Management Board | AG4: 201 | AH4: Y | AI4: 2319 | AJ4: Hanscomb Yardsticks for Costing | AK4: 1 | AL4: Y | AM4: 1 | AN4: 0.1 | AO4: Y | AP4: 1 | AQ4: 25 | AR4: Y | AS4: 1 | AT4: R | AU4: Residential | AV4: Y | AW4: 1 | AX4: R | AY4: Residential | AZ4: R | BA4: R | BB4: Y | BC4: 1 | BD4: 0 | BE4: 0 | BF4: No Tax Bands | BG4: 0 | BH4: 0 | BI4: 1 | BJ4: T | BK4: Full Occupied | BL4: F | BM4: D | BN4: T | BO4: M | BP4: A | BQ4: Y | BR4: 1 | BS4: RT0 | BT4: 10 | BU4: Y | BV4: 1 | BW4: RT | BX4: Y | BY4: 1 | BZ4: RF0 | CA4: 1010 | CB4: Y | CC4: 386 | CD4: RF | CE4: Y | CF4: 1 | CG4: Special Budgetary Levy | CH4: 105 | CI4: Y | CJ4: 1 | CK4: 45410 | CL4: 3754 | CM4: 37020 | CN4: Essex T | CO4: e | CP4: Former Essex T | CR4: Y | CS4: 1
A5: R0002 | B5: MPAC | C5: Y | D5: 2 | E5: Modified OMBI Method | F5: 4 | G5: Y | H5: 2 | I5: 2001 | J5: Y | K5: 2 | L5: Sq. Metre | M5: Y | N5: 2 | O5: 130 | P5: Ambulance | Q5: 130 | R5: Y | S5: 2436 | T5: DSSAB Sault Ste. Marie | U5: Y | V5: 2 | W5: Brant County | X5: Y | Y5: 2 | Z5: 250 | AA5: Corporate Management | AB5: 250 | AC5: Y | AD5: 2362 | AE5: 202 | AF5: Committee of Adjustment | AG5: 202 | AH5: Y | AI5: 2320 | AJ5: TACBOC Construction Value Standard | AK5: 2 | AL5: Y | AM5: 2 | AN5: 0.0975 | AO5: Y | AP5: 2 | AQ5: 20 | AR5: Y | AS5: 2 | AT5: M | AU5: Multi-Residential | AV5: Y | AW5: 5 | AX5: M | AY5: Multi-Residential | AZ5: M | BA5: M | BB5: Y | BC5: 5 | BD5: L | BE5: 1 | BF5: Low Tax Band | BH5: L | BI5: 2 | BJ5: H | BK5: Full Occupied, Shared PIL | BL5: P | BM5: 4 | BN5: H | BO5: G | BP5: U | BQ5: Y | BR5: 2 | BS5: RH0 | BT5: 12 | BU5: Y | BV5: 2 | BW5: RH | BX5: Y | BY5: 2 | BZ5: RP0 | CA5: 1015 | CB5: Y | CC5: 387 | CD5: RP | CE5: Y | CF5: 2 | CG5: Municipal Restructuring | CH5: 107 | CI5: Y | CJ5: 2 | CK5: 45410 | CL5: 3754 | CM5: 37020 | CN5: Essex T | CO5: h | CP5: Former Harrow T | CR5: Y | CS5: 2
A6: R0003 | B6: Stats Can | C6: Y | D6: 3 | E6: Percentage of Total Expenditures | F6: 2 | G6: Y | H6: 3 | I6: 2003 | J6: Y | K6: 3 | L6: Hectare | M6: Y | N6: 3 | O6: 150 | P6: Childcare Services | Q6: 150 | R6: Y | S6: 2437 | T6: DSSAB Cochrane D | U6: Y | V6: 3 | W6: Chatham-Kent | X6: Y | Y6: 3 | Z6: 260 | AA6: Program Support | AB6: 260 | AC6: Y | AD6: 2363 | AE6: 401 | AF6: Fire Board | AG6: 401 | AH6: Y | AI6: 2321 | AJ6: Toronto Real Estate Bd.'s Guide to Construction Costs | AK6: 3 | AL6: Y | AM6: 3 | AN6: 0.095 | AO6: Y | AP6: 3 | AQ6: 15 | AR6: Y | AS6: 3 | AT6: F | AU6: Farmland | AV6: Y | AW6: 10 | AX6: N | AY6: New Multi-Residential | AZ6: M | BA6: N | BB6: Y | BC6: 7 | BD6: M | BE6: 2 | BF6: Middle Tax Band | BH6: M | BI6: 3 | BJ6: 7 | BK6: Small Scale On Farm Business | BL6: G | BM6: 2 | BN6: D | BO6: 3 | BP6: K | BQ6: Y | BR6: 3 | BS6: RD0 | BT6: 27 | BU6: Y | BV6: 3 | BW6: RD | BX6: Y | BY6: 3 | BZ6: RG0 | CA6: 1028 | CB6: Y | CC6: 388 | CD6: RG | CE6: Y | CF6: 3 | CG6: Transitional Adjustment | CH6: 110 | CI6: Y | CJ6: 3 | CK6: 45410 | CL6: 3754 | CM6: 37020 | CN6: Essex T | CO6: n | CP6: Former Colchester North Tp | CR6: Y | CS6: 3
A7: R0004 | B7: Other | C7: Y | D7: 4 | E7: Modified Percentage of Total Expenditures | F7: 3 | G7: Y | H7: 4 | I7: 2004 | J7: Y | K7: 4 | L7: Other | M7: Y | N7: 4 | O7: 170 | P7: Emergency Medical Services | Q7: 170 | R7: Y | S7: 2438 | T7: DSSAB Kenora D | U7: Y | V7: 4 | W7: Durham Region | X7: Y | Y7: 4 | Z7: 299 | AA7: GENERAL GOVERNMENT | AB7: 299 | AC7: Y | AD7: 2364 | AE7: 402 | AF7: Police Board | AG7: 402 | AH7: Y | AI7: 2322 | AJ7: Estimation | AK7: 4 | AL7: Y | AM7: 4 | AN7: 0.0925 | AO7: Y | AP7: 4 | AQ7: 10 | AR7: Y | AS7: 4 | AT7: T | AU7: Managed Forest | AV7: Y | AW7: 15 | AX7: F | AY7: Farmland | AZ7: F | BA7: F | BB7: Y | BC7: 10 | BD7: H | BE7: 3 | BF7: High Tax Band | BH7: H | BI7: 4 | BJ7: 9 | BK7: Creative Enterprise Facilities | BL7: 2 | BM7: 3 | BN7: M | BO7: 6 | BP7: X | BQ7: Y | BR7: 4 | BS7: R10 | BT7: 31 | BU7: Y | BV7: 4 | BW7: R1 | BX7: Y | BY7: 4 | BZ7: R20 | CA7: 1032 | CB7: Y | CC7: 389 | CD7: R2 | CE7: Y | CF7: 4 | CG7: Urban Area | CH7: 120 | CI7: Y | CJ7: 4 | CK7: 45410 | CL7: 3754 | CM7: 37020 | CN7: Essex T | CO7: s | CP7: Former Colchester South Tp | CR7: Y | CS7: 4
A8: R0005 | E8: Other Method (Please describe below) | F8: 9 | G8: Y | H8: 5 | I8: 2005 | J8: Y | K8: 5 | O8: 190 | P8: Engineering | Q8: 190 | R8: Y | S8: 2439 | T8: DSSAB Manitoulin-Sudbury D | U8: Y | V8: 5 | W8: Eastern Ontario | X8: Y | Y8: 5 | Z8: 410 | AA8: Fire | AB8: 410 | AC8: Y | AD8: 2365 | AE8: 403 | AF8: Conservation Board | AG8: 403 | AH8: Y | AI8: 2323 | AJ8: Applicant's Declared Value | AK8: 5 | AL8: Y | AM8: 5 | AN8: 0.09 | AO8: Y | AP8: 5 | AQ8: 5 | AR8: Y | AS8: 5 | AT8: C | AU8: Commercial | AV8: Y | AW8: 20 | AX8: T | AY8: Managed Forest | AZ8: T | BA8: T | BB8: Y | BC8: 15 | BJ8: D | BK8: Education Only | BL8: 3 | BM8: 5 | BN8: F | BO8: W | BP8: J | BQ8: Y | BR8: 5 | BS8: R40 | BT8: 34 | BU8: Y | BV8: 5 | BW8: R4 | BX8: Y | BY8: 5 | BZ8: R30 | CA8: 1033 | CB8: Y | CC8: 390 | CD8: R3 | CE8: Y | CF8: 5 | CG8: Rural Area | CH8: 130 | CI8: Y | CJ8: 5 | CK8: 46617 | CL8: 1001 | CM8: 10002 | CN8: Frontenac Islands Tp | CO8: w | CP8: Wolf Island | CR8: Y | CS8: 5
A9: R0006 | I9: 2006 | J9: Y | K9: 6 | O9: 210 | P9: Fire | Q9: 210 | R9: Y | S9: 2440 | T9: DSSAB Nipissing D | U9: Y | V9: 6 | W9: Elgin-St.Thomas | X9: Y | Y9: 6 | Z9: 420 | AA9: Police | AB9: 420 | AC9: Y | AD9: 2366 | AE9: 404 | AF9: Animal Control Board | AG9: 404 | AH9: Y | AI9: 2324 | AJ9: Other Method (Please describe below) | AK9: 6 | AL9: Y | AM9: 6 | AN9: 0.0875 | AO9: Y | AP9: 6 | AT9: G | AU9: Parking Lot | AV9: Y | AW9: 30 | AX9: C | AY9: Commercial | AZ9: C | BA9: A | BB9: Y | BC9: 20 | BJ9: 8 | BK9: Small Business | BL9: 5 | BM9: 6 | BN9: P | BO9: Z | BP9: V | BQ9: Y | BR9: 6 | BS9: RB0 | BT9: 42 | BU9: Y | BV9: 6 | BW9: RB | BX9: Y | BY9: 6 | BZ9: R50 | CA9: 1035 | CB9: Y | CC9: 391 | CD9: R5 | CE9: Y | CF9: 6 | CG9: Police Village | CH9: 140 | CI9: Y | CJ9: 6 | CK9: 46617 | CL9: 1001 | CM9: 10002 | CN9: Frontenac Islands Tp | CO9: h | CP9: Howe Island | CR9: Y | CS9: 6
A10: R0007 | I10: 2007 | J10: Y | K10: 7 | O10: 230 | P10: General Government | Q10: 230 | R10: Y | S10: 2441 | T10: DSSAB Parry Sound D | U10: Y | V10: 7 | W10: Grey Bruce | X10: Y | Y10: 7 | Z10: 421 | AA10: Court Security | AB10: 421 | AC10: Y | AD10: 2367 | AE10: 405 | AF10: Pollution Control Board | AG10: 405 | AH10: Y | AI10: 2325 | AN10: 0.085 | AO10: Y | AP10: 7 | AT10: D | AU10: Office Building | AV10: Y | AW10: 32 | AX10: A | AY10: Large Theatre | AZ10: C | BA10: P | BB10: Y | BC10: 22 | BJ10: 0 | BK10: Small Scale on Farm Business Discounted | BL10: 6 | BN10: G | BP10: Q | BQ10: Y | BR10: 7 | BS10: RC0 | BT10: 44 | BU10: Y | BV10: 7 | BW10: RC | BX10: Y | BY10: 7 | BZ10: R60 | CA10: 1036 | CB10: Y | CC10: 392 | CD10: R6 | CE10: Y | CF10: 7 | CG10: Debt | CH10: 150 | CI10: Y | CJ10: 7 | CK10: 57402 | CL10: 1121 | CM10: 11010 | CN10: Greater Napanee T | CO10: r | CP10: Rural - Greater Napanee | CR10: Y | CS10: 8
A11: R0008 | I11: 2008 | J11: Y | K11: 8 | O11: 250 | P11: Go Transit | Q11: 250 | R11: Y | S11: 2442 | T11: DSSAB Rainy River D | U11: Y | V11: 8 | W11: Haldimand-Norfolk | X11: Y | Y11: 8 | Z11: 422 | AA11: Prisoner Transportation | AB11: 422 | AC11: Y | AD11: 2368 | AE11: 406 | AF11: Emergency Measures Organization | AG11: 406 | AH11: Y | AI11: 2326 | AN11: 0.0825 | AO11: Y | AP11: 8 | AT11: S | AU11: Shopping Centre | AV11: Y | AW11: 34 | AX11: Q | AY11: Prof. Sports Facility | AZ11: C | BA11: O | BB11: Y | BC11: 26 | BJ11: M | BK11: General' Only (No Educ.) | BL11: V | BP11: W | BQ11: Y | BR11: 8 | BS11: RL0 | BT11: 46 | BU11: Y | BV11: 8 | BW11: RL | BX11: Y | BY11: 8 | BZ11: MF0 | CA11: 1050 | CB11: Y | CC11: 393 | CD11: MF | CE11: Y | CF11: 8 | CG11: Fire | CH11: 210 | CI11: Y | CJ11: 8 | CK11: 57402 | CL11: 1121 | CM11: 11010 | CN11: Greater Napanee T | CO11: u | CP11: Urban - Greater Napanee | CR11: Y | CS11: 9
A12: R0009 | I12: 2009 | J12: Y | K12: 9 | O12: 270 | P12: Homes for the Aged/Long Term Care | Q12: 270 | R12: Y | S12: 2443 | T12: DSSAB Thunder Bay D | U12: Y | V12: 9 | W12: Haliburton, Kawartha, Pine Ridge District | X12: Y | Y12: 9 | Z12: 430 | AA12: Conservation authority | AB12: 430 | AC12: Y | AD12: 2369 | AE12: 601 | AF12: Roads Commission | AG12: 601 | AH12: Y | AI12: 2327 | AN12: 0.08 | AO12: Y | AP12: 9 | AT12: I | AU12: Industrial | AV12: Y | AW12: 40 | AX12: G | AY12: Parking Lot | AZ12: G | BB12: Y | BC12: 30 | BJ12: B | BK12: Lower Tier Only | BL12: Q | BP12: Y | BQ12: Y | BR12: 10 | BS12: MT0 | BT12: 50 | BU12: Y | BV12: 9 | BW12: MT | BX12: Y | BY12: 9 | BZ12: MP0 | CA12: 1070 | CB12: Y | CC12: 394 | CD12: MP | CE12: Y | CF12: 9 | CG12: Police | CH12: 220 | CI12: Y | CJ12: 9 | CK12: 90405 | CL12: 5468 | CM12: 54068 | CN12: Kirkland Lake T | CO12: b | CP12: Bernhardt and Morrisette | CR12: Y | CS12: 10
A13: R0010 | I13: 2010 | J13: Y | K13: 10 | O13: 290 | P13: Indoor Recreation Services | Q13: 290 | R13: Y | S13: 2444 | T13: DSSAB Timiskaming | U13: Y | V13: 10 | W13: Halton Region | X13: Y | Y13: 10 | Z13: 440 | AA13: Protective inspection and control | AB13: 440 | AC13: Y | AD13: 2370 | AE13: 602 | AF13: Transit Commission | AG13: 602 | AH13: Y | AI13: 2328 | AN13: 0.0775 | AO13: Y | AP13: 10 | AT13: L | AU13: Large Industrial | AV13: Y | AW13: 45 | AX13: D | AY13: Office Building | AZ13: D | BB13: Y | BC13: 32 | BJ13: 1 | BK13: Farm. Awaiting Devel. - Ph I | BL13: W | BP13: R | BQ13: Y | BR13: 11 | BS13: M10 | BT13: 61 | BU13: Y | BV13: 10 | BW13: M1 | BX13: Y | BY13: 10 | BZ13: MG0 | CA13: 1058 | CB13: Y | CC13: 395 | CD13: MG | CE13: Y | CF13: 10 | CG13: Conservation Authority | CH13: 230 | CI13: Y | CJ13: 10 | CK13: 90405 | CL13: 5468 | CM13: 54068 | CN13: Kirkland Lake T | CO13: k | CP13: Kirkland Lake | CR13: Y | CS13: 11
A14: R0011 | I14: 2011 | J14: Y | K14: 11 | O14: 310 | P14: Library | Q14: 310 | R14: Y | S14: 2445 | W14: City of Hamilton | X14: Y | Y14: 11 | Z14: 445 | AA14: Building permit and inspection services | AB14: 445 | AC14: Y | AD14: 2371 | AE14: 603 | AF14: Parking Authority | AG14: 603 | AH14: Y | AI14: 2329 | AN14: 0.075 | AO14: Y | AP14: 11 | AT14: P | AU14: Pipeline | AV14: Y | AW14: 50 | AX14: S | AY14: Shopping Centre | AZ14: S | BB14: Y | BC14: 34 | BJ14: A | BK14: Excess/Vacant Land, Education Only (Loc. Bd of Educ) | BL14: Y | BP14: Z | BQ14: Y | BR14: 12 | BS14: M40 | BT14: 64 | BU14: Y | BV14: 11 | BW14: M4 | BX14: Y | BY14: 11 | BZ14: M20 | CA14: 1062 | CB14: Y | CC14: 396 | CD14: M2 | CE14: Y | CF14: 11 | CG14: Other Protection Services | CH14: 240 | CI14: Y | CJ14: 11 | CK14: 83403 | CL14: 5119 | CM14: 51015 | CN14: Northeastern Manitoulin & The Isl. T | CO14: h | CP14: Former Howland Tp (Ward 1) | CR14: Y | CS14: 12
A15: R0012 | I15: 2012 | J15: Y | K15: 12 | O15: 330 | P15: Long Term Care | Q15: 330 | R15: Y | S15: 2446 | W15: Hastings & Prince Edward Counties | X15: Y | Y15: 12 | Z15: 450 | AA15: Emergency measures | AB15: 450 | AC15: Y | AD15: 2372 | AE15: 604 | AF15: Airport Commission | AG15: 604 | AH15: Y | AI15: 2330 | AN15: 0.0725 | AO15: Y | AP15: 12 | AT15: O | AU15: Resort Condominium | AV15: Y | AW15: 55 | AX15: I | AY15: Industrial | AZ15: I | BB15: Y | BC15: 40 | BJ15: 4 | BK15: Farm. Awaiting Devel. - Ph II | BL15: R | BQ15: Y | BR15: 14 | BS15: MB0 | BT15: 72 | BU15: Y | BV15: 12 | BW15: MB | BX15: Y | BY15: 12 | BZ15: M30 | CA15: 1063 | CB15: Y | CC15: 397 | CD15: M3 | CE15: Y | CF15: 12 | CG15: Roads | CH15: 310 | CI15: Y | CJ15: 12 | CK15: 83403 | CL15: 5119 | CM15: 51015 | CN15: Northeastern Manitoulin & The Isl. T | CO15: l | CP15: Former Little Current T (Ward 2) | CR15: Y | CS15: 13
A16: R0013 | I16: 2013 | J16: Y | K16: 13 | O16: 350 | P16: Municipal Parking | Q16: 350 | R16: Y | S16: 2447 | W16: Huron County | X16: Y | Y16: 13 | Z16: 460 | AA16: Provincial Offences Act (POA) | AB16: 460 | AC16: Y | AD16: 2373 | AE16: 801 | AF16: Water - Public Utility | AG16: 801 | AH16: Y | AI16: 2331 | AN16: 0.07 | AO16: Y | AP16: 13 | AT16: J | AU16: Industrial (New Construction) | AV16: Y | AW16: 60 | AX16: L | AY16: Large Industrial | AZ16: L | BB16: Y | BC16: 45 | BJ16: I | BK16: Water Intake System, Shared PIL | BL16: Z | BQ16: Y | BR16: 19 | BS16: MC0 | BT16: 74 | BU16: Y | BV16: 13 | BW16: MC | BX16: Y | BY16: 13 | BZ16: M50 | CA16: 1065 | CB16: Y | CC16: 398 | CD16: M5 | CE16: Y | CF16: 13 | CG16: Transit | CH16: 320 | CI16: Y | CJ16: 13 | CK16: 83403 | CL16: 5119 | CM16: 51015 | CN16: Northeastern Manitoulin & The Isl. T | CO16: u | CP16: Former Unorganized area (Wards 3, 4) | CR16: Y | CS16: 14
A17: R0014 | I17: 2014 | J17: Y | K17: 14 | O17: 370 | P17: Other Transportation Service | Q17: 370 | R17: Y | S17: 2448 | W17: Kingston, Frontenac and Lennox & Addington | X17: Y | Y17: 14 | Z17: 498 | AA17: Other: Protection | AB17: 498 | AC17: Y | AD17: 2374 | AE17: 802 | AF17: Water Board | AG17: 802 | AH17: Y | AI17: 2332 | AN17: 0.0675 | AO17: Y | AP17: 14 | AT17: K | AU17: Large Industrial (New Construction) | AV17: Y | AW17: 65 | AX17: P | AY17: Pipeline | AZ17: P | BB17: Y | BC17: 50 | BJ17: U | BK17: Excess Land | BQ17: Y | BR17: 20 | BS17: MD0 | BT17: 76 | BU17: Y | BV17: 14 | BW17: MD | BX17: Y | BY17: 14 | BZ17: M60 | CA17: 1066 | CB17: Y | CC17: 399 | CD17: M6 | CE17: Y | CF17: 14 | CG17: Street Lighting | CH17: 330 | CI17: Y | CJ17: 14 | CK17: 21000 | CL17: 2100 | CM17: 21000 | CN17: Peel R | CO17: b | CP17: Brampton part | CQ17: 2110 | CR17: Y | CS17: 15
A18: R0015 | I18: 2015 | J18: Y | K18: 15 | O18: 390 | P18: Outdoor Recreation Services | Q18: 390 | R18: Y | S18: 2449 | W18: Lambton | X18: Y | Y18: 15 | Z18: 499 | AA18: PROTECTION SERVICES | AB18: 499 | AC18: Y | AD18: 2375 | AE18: 803 | AF18: Sewer Board | AG18: 803 | AH18: Y | AI18: 2333 | AN18: 0.065 | AO18: Y | AP18: 15 | AT18: X | AU18: Commercial (New Construction) | AV18: Y | AW18: 70 | AX18: O | AY18: Resort Condominium | AZ18: O | BB18: Y | BC18: 55 | BJ18: K | BK18: Excess Land, Shared PIL | BQ18: Y | BR18: 21 | BS18: ML0 | BT18: 78 | BU18: Y | BV18: 15 | BW18: ML | BX18: Y | BY18: 15 | BZ18: NF0 | CA18: 1080 | CB18: Y | CC18: 400 | CD18: NF | CE18: Y | CF18: 15 | CG18: Airport | CH18: 340 | CI18: Y | CJ18: 15 | CK18: 21000 | CL18: 2100 | CM18: 21000 | CN18: Peel R | CO18: c | CP18: Caledon part | CQ18: 2124 | CR18: Y | CS18: 16
A19: R0016 | I19: 2016 | J19: Y | K19: 16 | O19: 410 | P19: Parks and Recreation | Q19: 410 | R19: Y | S19: 2450 | W19: Leeds, Grenville & Lanark District | X19: Y | Y19: 16 | Z19: 611 | AA19: Roads - Paved | AB19: 611 | AC19: Y | AD19: 2376 | AE19: 804 | AF19: Waste Management Board | AG19: 804 | AH19: Y | AI19: 2334 | AN19: 0.0625 | AO19: Y | AP19: 16 | AT19: Y | AU19: Office Building (New Construction) | AV19: Y | AW19: 75 | AX19: J | AY19: Industrial, NConstr. | AZ19: J | BB19: Y | BC19: 60 | BJ19: N | BK19: Non-Generat. Station, Shared PIL | BQ19: Y | BR19: 22 | BS19: NT0 | BT19: 80 | BU19: Y | BV19: 16 | BW19: NT | BX19: Y | BY19: 16 | BZ19: NP0 | CA19: 1090 | CB19: Y | CC19: 401 | CD19: NP | CE19: Y | CF19: 16 | CG19: Water | CH19: 410 | CI19: Y | CJ19: 16 | CK19: 21000 | CL19: 2100 | CM19: 21000 | CN19: Peel R | CO19: m | CP19: Mississauga part | CQ19: 2105 | CR19: Y | CS19: 17
A20: R0017 | I20: 2017 | J20: Y | K20: 17 | O20: 430 | P20: Parks | Q20: 430 | R20: Y | S20: 2451 | W20: Middlesex-London | X20: Y | Y20: 17 | Z20: 612 | AA20: Roads - Unpaved | AB20: 612 | AC20: Y | AD20: 2377 | AE20: 805 | AF20: Waste Disposal Board (Landfill Comm.) | AG20: 805 | AH20: Y | AI20: 2335 | AN20: 0.06 | AO20: Y | AP20: 17 | AT20: Z | AU20: Shopping Centre (New Construction) | AV20: Y | AW20: 80 | AX20: K | AY20: Large Ind., NConstr. | AZ20: K | BB20: Y | BC20: 65 | BJ20: S | BK20: Generating Station, Shared PIL | BQ20: Y | BR20: 24 | BS20: NB0 | BT20: 82 | BU20: Y | BV20: 17 | BW20: NB | BX20: Y | BY20: 17 | BZ20: NG0 | CA20: 1088 | CB20: Y | CC20: 402 | CD20: NG | CE20: Y | CF20: 17 | CG20: Water and Sewer | CH20: 420 | CI20: Y | CJ20: 17 | CK20: 61409 | CL20: 1423 | CM20: 14022 | CN20: Port Hope M | CO20: p | CP20: Former Port Hope T (Ward 1) | CR20: Y | CS20: 18
A21: R0018 | I21: 2018 | J21: Y | K21: 18 | O21: 450 | P21: Police | Q21: 450 | R21: Y | S21: 2452 | W21: Niagara Region | X21: Y | Y21: 18 | Z21: 613 | AA21: Roads - Bridges and Culverts | AB21: 613 | AC21: Y | AD21: 2378 | AE21: 806 | AF21: Waste Collection Board | AG21: 806 | AH21: Y | AI21: 2336 | AT21: H | AU21: Landfill | AV21: Y | AW21: 82 | AX21: X | AY21: Commercial, NConstr. | AZ21: X | BB21: Y | BC21: 70 | BJ21: X | BK21: Vacant Land | BQ21: Y | BR21: 25 | BS21: NC0 | BT21: 84 | BU21: Y | BV21: 18 | BW21: NC | BX21: Y | BY21: 18 | BZ21: FF0 | CA21: 1100 | CB21: Y | CC21: 403 | CD21: FF | CE21: Y | CF21: 18 | CG21: Sewer (Sanitary / Storm) | CH21: 430 | CI21: Y | CJ21: 18 | CK21: 61409 | CL21: 1423 | CM21: 14022 | CN21: Port Hope M | CO21: h | CP21: Former Hope Tp (Ward 2) | CR21: Y | CS21: 19
A22: R0019 | I22: 2019 | J22: Y | K22: 19 | O22: 470 | P22: Public Health / Health Services | Q22: 470 | R22: Y | S22: 2453 | W22: North Bay Parry Sound District | X22: Y | Y22: 19 | Z22: 614 | AA22: Roadways - Traffic Operations & Roadside | AB22: 614 | AC22: Y | AD22: 2379 | AE22: 807 | AF22: Recycling Board | AG22: 807 | AH22: Y | AI22: 2337 | AX22: Y | AY22: Office Build., NConstr. | AZ22: Y | BB22: Y | BC22: 75 | BJ22: J | BK22: Vacant Land, Shared PIL | BQ22: Y | BR22: 26 | BS22: ND0 | BT22: 86 | BU22: Y | BV22: 19 | BW22: ND | BX22: Y | BY22: 19 | BZ22: FP0 | CA22: 1120 | CB22: Y | CC22: 404 | CD22: FP | CE22: Y | CF22: 19 | CG22: Sewer (Storm Only) | CH22: 440 | CI22: Y | CJ22: 19 | CK22: 52407 | CL22: 4010 | CM22: 40003 | CN22: South Huron M | CO22: r | CP22: Stephen and Usborne Ward | CR22: Y | CS22: 22
A23: R0020 | I23: 2020 | J23: Y | K23: 20 | O23: 490 | P23: Public Works | Q23: 490 | R23: Y | S23: 2454 | W23: Northwestern | X23: Y | Y23: 20 | Z23: 621 | AA23: Winter Control - Except sidewalks, Parking Lots | AB23: 621 | AC23: Y | AD23: 2380 | AE23: 1001 | AF23: Health Board (Unit), Medical Centre | AG23: 1001 | AH23: Y | AI23: 2338 | AX23: Z | AY23: Shopp. Centre, NConstr. | AZ23: Z | BB23: Y | BC23: 80 | BJ23: C | BK23: Lower Tier & Education Only | BQ23: Y | BR23: 27 | BS23: NL0 | BT23: 88 | BU23: Y | BV23: 20 | BW23: NL | BX23: Y | BY23: 20 | BZ23: FG0 | CA23: 1130 | CB23: Y | CC23: 405 | CD23: FG | CE23: Y | CF23: 20 | CG23: Waste Collection | CH23: 450 | CI23: Y | CJ23: 20 | CK23: 52407 | CL23: 4010 | CM23: 40003 | CN23: South Huron M | CO23: e | CP23: Exeter Ward | CR23: Y | CS23: 23
A24: R0021 | I24: 2021 | J24: Y | K24: 21 | O24: 510 | P24: Recreation | Q24: 510 | R24: Y | S24: 2455 | W24: City of Ottawa | X24: Y | Y24: 21 | Z24: 622 | AA24: Winter Control - Sidewalks, Parking Lots Only | AB24: 622 | AC24: Y | AD24: 2381 | AE24: 1002 | AF24: Cemetery Board | AG24: 1002 | AH24: Y | AI24: 2339 | AX24: H | AY24: Landfill | AZ24: H | BB24: Y | BC24: 82 | BJ24: L | BK24: Upper Tier & Education Only | BQ24: Y | BR24: 29 | BS24: FT0 | BT24: 110 | BU24: Y | BV24: 21 | BW24: FT | BX24: Y | BY24: 21 | BZ24: TF0 | CA24: 1140 | CB24: Y | CC24: 406 | CD24: TF | CE24: Y | CF24: 21 | CG24: Waste Disposal / Landfill | CH24: 460 | CI24: Y | CJ24: 21 | CK24: 82609 | CL24: 6008 | CM24: 60008 | CN24: Sioux Narrows - Nestor Falls Tp | CO24: s | CP24: Former Sioux Narrows Tp | CR24: Y | CS24: 56
A25: R0022 | I25: 2022 | J25: Y | K25: 22 | O25: 530 | P25: Roads | Q25: 530 | R25: Y | S25: 2456 | W25: Oxford County | X25: Y | Y25: 22 | Z25: 631 | AA25: Transit - Conventional | AB25: 631 | AC25: Y | AD25: 2382 | AE25: 1003 | AF25: Ambulance Board | AG25: 1003 | AH25: Y | AI25: 2340 | BJ25: F | BK25: PIL: Full Occupied | BQ25: Y | BR25: 30 | BS25: TT0 | BT25: 140 | BU25: Y | BV25: 22 | BW25: TT | BX25: Y | BY25: 22 | BZ25: TP0 | CA25: 1150 | CB25: Y | CC25: 407 | CD25: TP | CE25: Y | CF25: 22 | CG25: Waste Collection and Disposal | CH25: 470 | CI25: Y | CJ25: 22 | CK25: 82609 | CL25: 6008 | CM25: 60008 | CN25: Sioux Narrows - Nestor Falls Tp | CO25: u | CP25: Former Unorganized Area | CR25: Y | CS25: 57
A26: R0023 | O26: 550 | P26: Road Related | Q26: 550 | R26: Y | S26: 2457 | W26: Peel Region | X26: Y | Y26: 23 | Z26: 632 | AA26: Transit - Disabled & special needs | AB26: 632 | AC26: Y | AD26: 2383 | AE26: 1201 | AF26: Social Assistance (Welfare) Board | AG26: 1201 | AH26: Y | AI26: 2341 | BJ26: P | BK26: PIL: Full Occupied, Taxable Tenant of Province | BQ26: Y | BR26: 33 | BS26: CT0 | BT26: 210 | BU26: Y | BV26: 23 | BW26: CT | BX26: Y | BY26: 23 | BZ26: CF0 | CA26: 1210 | CB26: Y | CC26: 408 | CD26: CF | CE26: Y | CF26: 23 | CG26: Recycling | CH26: 480 | CI26: Y | CJ26: 23
A27: R0024 | O27: 570 | P27: Sewer | Q27: 570 | R27: Y | S27: 2458 | W27: Perth District | X27: Y | Y27: 24 | Z27: 640 | AA27: Parking | AB27: 640 | AC27: Y | AD27: 2384 | AE27: 1202 | AF27: Home for the Aged | AG27: 1202 | AH27: Y | AI27: 2342 | BJ27: G | BK27: PIL: 'General' Only (No Educ.) | BQ27: Y | BR27: 38 | BS27: CTL | BT27: 211 | BU27: Y | BV27: 24 | BW27: CH | BX27: Y | BY27: 24 | BZ27: CFL | CA27: 1211 | CB27: Y | CC27: 409 | CD27: CP | CE27: Y | CF27: 24 | CG27: Other Environmental Services | CH27: 490 | CI27: Y | CJ27: 24
A28: R0025 | O28: 590 | P28: Social Housing | Q28: 590 | R28: Y | S28: 2459 | W28: Peterborough County City | X28: Y | Y28: 25 | Z28: 650 | AA28: Street lighting | AB28: 650 | AC28: Y | AD28: 2385 | AE28: 1203 | AF28: Children's Aid Society (Children's Serv.) | AG28: 1203 | AH28: Y | AI28: 2343 | BJ28: 2 | BK28: PIL: Farm. Awaiting Devel. - Ph I | BQ28: Y | BR28: 42 | BS28: CTM | BT28: 212 | BU28: Y | BV28: 25 | BW28: CM | BX28: Y | BY28: 25 | BZ28: CFM | CA28: 1212 | CB28: Y | CC28: 410 | CD28: CG | CE28: Y | CF28: 25 | CG28: Hospitals | CH28: 510 | CI28: Y | CJ28: 25
A29: R0026 | O29: 610 | P29: Social Services | Q29: 610 | R29: Y | S29: 2460 | W29: Porcupine | X29: Y | Y29: 26 | Z29: 660 | AA29: Air transportation | AB29: 660 | AC29: Y | AD29: 2386 | AE29: 1401 | AF29: Housing Authority | AG29: 1401 | AH29: Y | AI29: 2344 | BJ29: 3 | BK29: PIL: Farm. Awaiting Devel. - Ph I, 'General' Only | BQ29: Y | BR29: 43 | BS29: CTH | BT29: 213 | BU29: Y | BV29: 26 | BW29: C1 | BX29: Y | BY29: 26 | BZ29: CFH | CA29: 1213 | CB29: Y | CC29: 411 | CD29: C2 | CE29: Y | CF29: 26 | CG29: Homes For The Aged | CH29: 610 | CI29: Y | CJ29: 26
A30: R0027 | O30: 630 | P30: Stormwater | Q30: 630 | R30: Y | S30: 2461 | W30: Renfrew County & District | X30: Y | Y30: 27 | Z30: 698 | AA30: Other: Transportation | AB30: 698 | AC30: Y | AD30: 2387 | AE30: 1601 | AF30: Parks Board | AG30: 1601 | AH30: Y | AI30: 2345 | BJ30: 5 | BK30: PIL: Farm. Awaiting Devel. - Ph II | BQ30: Y | BR30: 45 | BS30: CH0 | BT30: 215 | BU30: Y | BV30: 27 | BW30: C4 | BX30: Y | BY30: 27 | BZ30: CP0 | CA30: 1218 | CB30: Y | CC30: 412 | CD30: C3 | CE30: Y | CF30: 27 | CG30: Child Care | CH30: 620 | CI30: Y | CJ30: 27
A31: R0028 | O31: 650 | P31: Transit | Q31: 650 | R31: Y | S31: 2462 | W31: Simcoe Muskoka District | X31: Y | Y31: 28 | Z31: 699 | AA31: TRANSPORTATION SERVICES | AB31: 699 | AC31: Y | AD31: 2388 | AE31: 1602 | AF31: Recreation Commission | AG31: 1602 | AH31: Y | AI31: 2346 | BJ31: 6 | BK31: PIL: Farm. Awaiting Devel. - Ph II, 'General' Only | BQ31: Y | BR31: 46 | BS31: CHL | BT31: 216 | BU31: Y | BV31: 28 | BW31: CU | BX31: Y | BY31: 28 | BZ31: CPL | CA31: 1215 | CB31: Y | CC31: 413 | CD31: C5 | CE31: Y | CF31: 28 | CG31: Parks and Recreation | CH31: 710 | CI31: Y | CJ31: 28
A32: R0029 | O32: 670 | P32: Water | Q32: 670 | R32: Y | S32: 2463 | W32: Sudbury & District | X32: Y | Y32: 29 | Z32: 811 | AA32: Wastewater collection/conveyance | AB32: 811 | AC32: Y | AD32: 2389 | AE32: 1603 | AF32: Community Recreation Centre | AG32: 1603 | AH32: Y | AI32: 2347 | BJ32: V | BK32: PIL: Excess Land | BQ32: Y | BR32: 50 | BS32: CHM | BT32: 217 | BU32: Y | BV32: 29 | BW32: CK | BX32: Y | BY32: 29 | BZ32: CPM | CA32: 1216 | CB32: Y | CC32: 414 | CD32: C6 | CE32: Y | CF32: 29 | CG32: Recreation Facilities | CH32: 720 | CI32: Y | CJ32: 29
A33: R0030 | O33: 690 | P33: Wastewater | Q33: 690 | R33: Y | S33: 2464 | W33: Thunder Bay | X33: Y | Y33: 30 | Z33: 812 | AA33: Wastewater treatment & disposal | AB33: 812 | AC33: Y | AD33: 2390 | AE33: 1604 | AF33: Library Board | AG33: 1604 | AH33: Y | AI33: 2348 | BJ33: Q | BK33: PIL: Excess Land, Taxable Tenant of Province | BQ33: Y | BR33: 51 | BS33: CHH | BT33: 218 | BU33: Y | BV33: 30 | BW33: CB | BX33: Y | BY33: 30 | BZ33: CPH | CA33: 1217 | CB33: Y | CC33: 415 | CD33: CV | CE33: Y | CF33: 30 | CG33: Libraries | CH33: 730 | CI33: Y | CJ33: 30
A34: R0031 | O34: 710 | P34: Water Supply | Q34: 710 | R34: Y | S34: 2465 | W34: Timiskaming | X34: Y | Y34: 31 | Z34: 821 | AA34: Urban storm sewer system | AB34: 821 | AC34: Y | AD34: 2391 | AE34: 1605 | AF34: Museum | AG34: 1605 | AH34: Y | AI34: 2349 | BJ34: W | BK34: PIL: Excess Land, 'General' Only | BQ34: Y | BR34: 52 | BS34: CM0 | BT34: 228 | BU34: Y | BV34: 31 | BW34: CX | BX34: Y | BY34: 31 | BZ34: CG0 | CA34: 1220 | CB34: Y | CC34: 416 | CD34: CQ | CE34: Y | CF34: 31 | CG34: Museums | CH34: 740 | CI34: Y | CJ34: 31
A35: R0032 | O35: 730 | P35: Water Distribution | Q35: 730 | R35: Y | S35: 2466 | W35: City of Toronto | X35: Y | Y35: 32 | Z35: 822 | AA35: Rural storm sewer system | AB35: 822 | AC35: Y | AD35: 2392 | AE35: 1606 | AF35: Historical Society | AG35: 1606 | AH35: Y | AI35: 2350 | BJ35: Y | BK35: PIL: Vacant Land | BQ35: Y | BR35: 55 | BS35: CML | BT35: 225 | BU35: Y | BV35: 32 | BW35: CJ | BX35: Y | BY35: 32 | BZ35: CGL | CA35: 1221 | CB35: Y | CC35: 417 | CD35: CW | CE35: Y | CF35: 32 | CG35: Cultural Services | CH35: 750 | CI35: Y | CJ35: 32
A36: R0033 | O36: 750 | P36: Per Hectare | Q36: 750 | R36: Y | S36: 2467 | W36: Region Waterloo | X36: Y | Y36: 33 | Z36: 831 | AA36: Water treatment | AB36: 831 | AC36: Y | AD36: 2393 | AE36: 1801 | AF36: Planning Board | AG36: 1801 | AH36: Y | AI36: 2351 | BJ36: R | BK36: PIL: Vacant Land, Taxable Tenant of Province | BQ36: Y | BR36: 56 | BS36: CMM | BT36: 226 | BU36: Y | BV36: 33 | BW36: CA | BX36: Y | BY36: 33 | BZ36: CGM | CA36: 1222 | CB36: Y | CC36: 418 | CD36: CY | CE36: Y | CF36: 33 | CG36: Planning | CH36: 810 | CI36: Y | CJ36: 33
A37: R0034 | O37: 900 | P37: Other | Q37: 900 | R37: Y | S37: 2468 | W37: Wellington-Dufferin-Guelph | X37: Y | Y37: 34 | Z37: 832 | AA37: Water distribution/transmission | AB37: 832 | AC37: Y | AD37: 2394 | AE37: 1802 | AF37: Development Board | AG37: 1802 | AH37: Y | AI37: 2352 | BJ37: Z | BK37: PIL: Vacant Land, 'General' Only | BQ37: Y | BR37: 57 | BS37: CMH | BT37: 227 | BU37: Y | BV37: 34 | BW37: CC | BX37: Y | BY37: 34 | BZ37: CGH | CA37: 1223 | CB37: Y | CC37: 419 | CD37: CR | CE37: Y | CF37: 34 | CG37: Commercial / Industrial | CH37: 820 | CI37: Y | CJ37: 34
A38: R0035 | W38: Windsor Essex-County | X38: Y | Y38: 35 | Z38: 840 | AA38: Solid waste collection | AB38: 840 | AC38: Y | AD38: 2395 | AE38: 1803 | AF38: Land Division Board | AG38: 1803 | AH38: Y | AI38: 2353 | BS38: C10 | BT38: 231 | BU38: Y | BV38: 35 | BW38: CD | BX38: Y | BY38: 35 | BZ38: C20 | CA38: 1232 | CB38: Y | CC38: 420 | CD38: CZ | CE38: Y | CF38: 35 | CG38: Drainage | CH38: 830 | CI38: Y | CJ38: 35
A39: R0036 | W39: York Region | X39: Y | Y39: 36 | Z39: 850 | AA39: Solid waste disposal | AB39: 850 | AC39: Y | AD39: 2396 | AE39: 1804 | AF39: Industrial Commission | AG39: 1804 | AH39: Y | AI39: 2354 | BS39: C1L | BT39: 232 | BU39: Y | BV39: 36 | BW39: CL | BX39: Y | BY39: 36 | BZ39: C30 | CA39: 1233 | CB39: Y | CC39: 421 | CD39: AG | CE39: Y | CF39: 36 | CG39: Other Area Rates | CH39: 950 | CI39: Y | CJ39: 36
A40: R0037 | Z40: 860 | AA40: Waste diversion | AB40: 860 | AC40: Y | AD40: 2397 | AE40: 1805 | AF40: Business Improvement Area | AG40: 1805 | AH40: Y | AI40: 2355 | BS40: C1M | BT40: 233 | BU40: Y | BV40: 37 | BW40: AM | BX40: Y | BY40: 37 | BZ40: C50 | CA40: 1235 | CB40: Y | CC40: 422 | CD40: AQ | CE40: Y | CF40: 37
A41: R0038 | Z41: 898 | AA41: Other: Environmental | AB41: 898 | AC41: Y | AD41: 2398 | AE41: 1807 | AF41: Local Improvement Commission | AG41: 1807 | AH41: Y | AI41: 2356 | BS41: C1H | BT41: 235 | BU41: Y | BV41: 38 | BW41: QT | BX41: Y | BY41: 38 | BZ41: C60 | CA41: 1236 | CB41: Y | CC41: 423 | CD41: GF | CE41: Y | CF41: 38
A42: R0039 | Z42: 899 | AA42: ENVIRONMENTAL SERVICES | AB42: 899 | AC42: Y | AD42: 2399 | AE42: 1808 | AF42: Tile Drainage Board | AG42: 1808 | AH42: Y | AI42: 2357 | BS42: C40 | BT42: 234 | BU42: Y | BV42: 39 | BW42: QU | BX42: Y | BY42: 39 | BZ42: CV0 | CA42: 1250 | CB42: Y | CC42: 424 | CD42: GP | CE42: Y | CF42: 39
A43: R0040 | Z43: 1010 | AA43: Public health services | AB43: 1010 | AC43: Y | AD43: 2400 | AE43: 1809 | AF43: Sinking Fund Commission | AG43: 1809 | AH43: Y | AI43: 2358 | BS43: CU0 | BT43: 240 | BU43: Y | BV43: 40 | BW43: QX | BX43: Y | BY43: 40 | BZ43: CVL | CA43: 1251 | CB43: Y | CC43: 425 | CD43: GG | CE43: Y | CF43: 40
A44: R0041 | Z44: 1020 | AA44: Hospitals | AB44: 1020 | AC44: Y | AD44: 2401 | AE44: 1810 | AF44: Reforestation Board | AG44: 1810 | AH44: Y | AI44: 2359 | BS44: CUL | BT44: 241 | BU44: Y | BV44: 41 | BW44: GT | BX44: Y | BY44: 41 | BZ44: CVM | CA44: 1252 | CB44: Y | CC44: 426 | CD44: GR | CE44: Y | CF44: 41
A45: R0042 | Z45: 1030 | AA45: Ambulance services | AB45: 1030 | AC45: Y | AD45: 2402 | AE45: 9001 | AF45: Other | AG45: 9001 | AH45: Y | AI45: 2360 | BS45: CUM | BT45: 242 | BU45: Y | BV45: 42 | BW45: DT | BX45: Y | BY45: 42 | BZ45: CVH | CA45: 1253 | CB45: Y | CC45: 427 | CD45: DF | CE45: Y | CF45: 42
A46: R0043 | Z46: 1035 | AA46: Ambulance dispatch | AB46: 1035 | AC46: Y | AD46: 2403 | BS46: CUH | BT46: 243 | BU46: Y | BV46: 43 | BW46: DH | BX46: Y | BY46: 43 | BZ46: CQ0 | CA46: 1258 | CB46: Y | CC46: 428 | CD46: DP | CE46: Y | CF46: 43
A47: R0044 | Z47: 1040 | AA47: Cemeteries | AB47: 1040 | AC47: Y | AD47: 2404 | BS47: CK0 | BT47: 245 | BU47: Y | BV47: 44 | BW47: DU | BX47: Y | BY47: 44 | BZ47: CQL | CA47: 1255 | CB47: Y | CC47: 429 | CD47: DG | CE47: Y | CF47: 44
A48: R0045 | Z48: 1098 | AA48: Other: Health | AB48: 1098 | AC48: Y | AD48: 2405 | BS48: CKL | BT48: 246 | BU48: Y | BV48: 45 | BW48: DK | BX48: Y | BY48: 45 | BZ48: CQM | CA48: 1256 | CB48: Y | CC48: 430 | CD48: DV | CE48: Y | CF48: 45
A49: R0046 | Z49: 1099 | AA49: HEALTH SERVICES | AB49: 1099 | AC49: Y | AD49: 2406 | BS49: CKM | BT49: 247 | BU49: Y | BV49: 46 | BW49: DC | BX49: Y | BY49: 46 | BZ49: CQH | CA49: 1257 | CB49: Y | CC49: 431 | CD49: DQ | CE49: Y | CF49: 46
A50: R0047 | Z50: 1210 | AA50: General assistance | AB50: 1210 | AC50: Y | AD50: 2407 | BS50: CKH | BT50: 248 | BU50: Y | BV50: 47 | BW50: DD | BX50: Y | BY50: 47 | BZ50: CW0 | CA50: 1260 | CB50: Y | CC50: 432 | CD50: DW | CE50: Y | CF50: 47
A51: R0048 | Z51: 1220 | AA51: Assistance to aged persons | AB51: 1220 | AC51: Y | AD51: 2408 | BS51: CB0 | BT51: 900 | BU51: Y | BV51: 48 | BW51: DL | BX51: Y | BY51: 48 | BZ51: CWL | CA51: 1261 | CB51: Y | CC51: 433 | CD51: SF | CE51: Y | CF51: 48
A52: R0049 | Z52: 1230 | AA52: Child care | AB52: 1230 | AC52: Y | AD52: 2409 | BS52: CBL | BT52: 901 | BU52: Y | BV52: 49 | BW52: ST | BX52: Y | BY52: 49 | BZ52: CWM | CA52: 1262 | CB52: Y | CC52: 434 | CD52: SP | CE52: Y | CF52: 49
A53: R0050 | Z53: 1298 | AA53: Other: Social and Family | AB53: 1298 | AC53: Y | AD53: 2410 | BS53: CBM | BT53: 902 | BU53: Y | BV53: 50 | BW53: SH | BX53: Y | BY53: 50 | BZ53: CWH | CA53: 1263 | CB53: Y | CC53: 435 | CD53: SG | CE53: Y | CF53: 50
A54: R0051 | Z54: 1299 | AA54: SOCIAL AND FAMILY SERVICES | AB54: 1299 | AC54: Y | AD54: 2411 | BS54: CBH | BT54: 903 | BU54: Y | BV54: 51 | BW54: SU | BX54: Y | BY54: 51 | BZ54: CY0 | CA54: 1280 | CB54: Y | CC54: 436 | CD54: SV | CE54: Y | CF54: 51
A55: R0052 | Z55: 1410 | AA55: Public Housing | AB55: 1410 | AC55: Y | AD55: 2412 | BS55: CX0 | BT55: 270 | BU55: Y | BV55: 52 | BW55: SK | BX55: Y | BY55: 52 | BZ55: CYL | CA55: 1281 | CB55: Y | CC55: 437 | CD55: SQ | CE55: Y | CF55: 52
A56: R0053 | Z56: 1420 | AA56: Non-Profit/Cooperative Housing | AB56: 1420 | AC56: Y | AD56: 2413 | BS56: CXL | BT56: 271 | BU56: Y | BV56: 53 | BW56: SC | BX56: Y | BY56: 53 | BZ56: CYM | CA56: 1282 | CB56: Y | CC56: 438 | CD56: SW | CE56: Y | CF56: 53
A57: R0054 | Z57: 1430 | AA57: Rent Supplement Programs | AB57: 1430 | AC57: Y | AD57: 2414 | BS57: CXM | BT57: 272 | BU57: Y | BV57: 54 | BW57: SD | BX57: Y | BY57: 54 | BZ57: CYH | CA57: 1283 | CB57: Y | CC57: 439 | CD57: IF | CE57: Y | CF57: 54
A58: R0055 | Z58: 1497 | AA58: Other(1): Social Housing | AB58: 1497 | AC58: Y | AD58: 2415 | BS58: CXH | BT58: 273 | BU58: Y | BV58: 55 | BW58: SL | BX58: Y | BY58: 55 | BZ58: CR0 | CA58: 1285 | CB58: Y | CC58: 440 | CD58: IP | CE58: Y | CF58: 55
A59: R0056 | Z59: 1498 | AA59: Other(2): Social Housing | AB59: 1498 | AC59: Y | AD59: 2416 | BS59: CJ0 | BT59: 275 | BU59: Y | BV59: 56 | BW59: IT | BX59: Y | BY59: 56 | BZ59: CRL | CA59: 1286 | CB59: Y | CC59: 441 | CD59: IG | CE59: Y | CF59: 56
A60: R0057 | Z60: 1499 | AA60: SOCIAL HOUSING | AB60: 1499 | AC60: Y | AD60: 2417 | BS60: CJL | BT60: 276 | BU60: Y | BV60: 57 | BW60: IH | BX60: Y | BY60: 57 | BZ60: CRM | CA60: 1287 | CB60: Y | CC60: 442 | CD60: I2 | CE60: Y | CF60: 57
A61: R0058 | Z61: 1610 | AA61: Parks | AB61: 1610 | AC61: Y | AD61: 2418 | BS61: CJM | BT61: 277 | BU61: Y | BV61: 58 | BW61: IM | BX61: Y | BY61: 58 | BZ61: CRH | CA61: 1288 | CB61: Y | CC61: 443 | CD61: I3 | CE61: Y | CF61: 58
A62: R0059 | Z62: 1620 | AA62: Recreation programs | AB62: 1620 | AC62: Y | AD62: 2419 | BS62: CJH | BT62: 278 | BU62: Y | BV62: 59 | BW62: I1 | BX62: Y | BY62: 59 | BZ62: CZ0 | CA62: 1290 | CB62: Y | CC62: 444 | CD62: I5 | CE62: Y | CF62: 59
A63: R0060 | Z63: 1631 | AA63: Rec. Facility - Golf Course, Marina, Ski Hill | AB63: 1631 | AC63: Y | AD63: 2420 | BS63: CA0 | BT63: 910 | BU63: Y | BV63: 60 | BW63: I4 | BX63: Y | BY63: 60 | BZ63: CZL | CA63: 1291 | CB63: Y | CC63: 445 | CD63: I6 | CE63: Y | CF63: 60
A64: R0061 | Z64: 1634 | AA64: Rec. Facility - All Other | AB64: 1634 | AC64: Y | AD64: 2421 | BS64: CAL | BT64: 911 | BU64: Y | BV64: 61 | BW64: IU | BX64: Y | BY64: 61 | BZ64: CZM | CA64: 1292 | CB64: Y | CC64: 446 | CD64: IV | CE64: Y | CF64: 61
A65: R0062 | Z65: 1640 | AA65: Libraries | AB65: 1640 | AC65: Y | AD65: 2422 | BS65: CAM | BT65: 912 | BU65: Y | BV65: 62 | BW65: IK | BX65: Y | BY65: 62 | BZ65: CZH | CA65: 1293 | CB65: Y | CC65: 447 | CD65: IQ | CE65: Y | CF65: 62
A66: R0063 | Z66: 1645 | AA66: Museums | AB66: 1645 | AC66: Y | AD66: 2423 | BS66: CAH | BT66: 913 | BU66: Y | BV66: 63 | BW66: IX | BX66: Y | BY66: 63 | BZ66: AG0 | CA66: 1418 | CB66: Y | CC66: 448 | CD66: IW | CE66: Y | CF66: 63
A67: R0064 | Z67: 1650 | AA67: Cultural services | AB67: 1650 | AC67: Y | AD67: 2424 | BS67: CC0 | BT67: 290 | BU67: Y | BV67: 64 | BW67: IJ | BX67: Y | BY67: 64 | BZ67: AQ0 | CA67: 1430 | CB67: Y | CC67: 449 | CD67: IY | CE67: Y | CF67: 64
A68: R0065 | Z68: 1698 | AA68: Other: Rec. and Cultural Services | AB68: 1698 | AC68: Y | AD68: 2425 | BS68: CCL | BT68: 291 | BU68: Y | BV68: 65 | BW68: IA | BX68: Y | BY68: 65 | BZ68: GF0 | CA68: 1310 | CB68: Y | CC68: 450 | CD68: IR | CE68: Y | CF68: 65
A69: R0066 | Z69: 1699 | AA69: RECREATION AND CULTURAL SERVICES | AB69: 1699 | AC69: Y | AD69: 2426 | BS69: CCM | BT69: 292 | BU69: Y | BV69: 66 | BW69: II | BX69: Y | BY69: 66 | BZ69: GFL | CA69: 1311 | CB69: Y | CC69: 451 | CD69: IZ | CE69: Y | CF69: 66
A70: R0067 | Z70: 1810 | AA70: Planning and zoning | AB70: 1810 | AC70: Y | AD70: 2427 | BS70: CCH | BT70: 293 | BU70: Y | BV70: 67 | BW70: IB | BX70: Y | BY70: 67 | BZ70: GFM | CA70: 1312 | CB70: Y | CC70: 452 | CD70: LF | CE70: Y | CF70: 67
A71: R0068 | Z71: 1820 | AA71: Commercial and industrial | AB71: 1820 | AC71: Y | AD71: 2428 | BS71: CD0 | BT71: 294 | BU71: Y | BV71: 68 | BW71: IC | BX71: Y | BY71: 68 | BZ71: GFH | CA71: 1313 | CB71: Y | CC71: 453 | CD71: LP | CE71: Y | CF71: 68
A72: R0069 | Z72: 1830 | AA72: Residential development | AB72: 1830 | AC72: Y | AD72: 2429 | BS72: CL0 | BT72: 295 | BU72: Y | BV72: 69 | BW72: ID | BX72: Y | BY72: 69 | BZ72: GP0 | CA72: 1360 | CB72: Y | CC72: 454 | CD72: LG | CE72: Y | CF72: 69
A73: R0070 | Z73: 1840 | AA73: Agriculture and reforestation | AB73: 1840 | AC73: Y | AD73: 2430 | BS73: CLL | BT73: 296 | BU73: Y | BV73: 70 | BW73: IL | BX73: Y | BY73: 70 | BZ73: GPL | CA73: 1361 | CB73: Y | CC73: 455 | CD73: LV | CE73: Y | CF73: 70
A74: R0071 | Z74: 1850 | AA74: Tile drainage/shoreline assistance | AB74: 1850 | AC74: Y | AD74: 2431 | BS74: CLM | BT74: 297 | BU74: Y | BV74: 71 | BW74: IN | BX74: Y | BY74: 71 | BZ74: GPM | CA74: 1362 | CB74: Y | CC74: 456 | CD74: LQ | CE74: Y | CF74: 71
A75: R0072 | Z75: 1898 | AA75: Other: Planning and Development | AB75: 1898 | AC75: Y | AD75: 2432 | BS75: CLH | BT75: 298 | BU75: Y | BV75: 72 | BW75: IS | BX75: Y | BY75: 72 | BZ75: GPH | CA75: 1363 | CB75: Y | CC75: 457 | CD75: LW | CE75: Y | CF75: 72
A76: R0073 | Z76: 1899 | AA76: PLANNING AND DEVELOPMENT | AB76: 1899 | AC76: Y | AD76: 2433 | BS76: AM0 | BT76: 418 | BU76: Y | BV76: 73 | BW76: LT | BX76: Y | BY76: 73 | BZ76: GG0 | CA76: 1318 | CB76: Y | CC76: 458 | CD76: LR | CE76: Y | CF76: 73
A77: R0074 | Z77: 1910 | AA77: Other(1): | AB77: 1910 | AC77: Y | AD77: 2434 | BS77: QT0 | BT77: 420 | BU77: Y | BV77: 74 | BW77: LH | BX77: Y | BY77: 74 | BZ77: GGL | CA77: 1315 | CB77: Y | CC77: 459 | CD77: PP | CE77: Y | CF77: 74
A78: R0075 | BS78: QTL | BT78: 421 | BU78: Y | BV78: 75 | BW78: LM | BX78: Y | BY78: 75 | BZ78: GGM | CA78: 1316 | CB78: Y | CC78: 460 | CD78: PG | CE78: Y | CF78: 75
A79: R0076 | BS79: QTM | BT79: 422 | BU79: Y | BV79: 76 | BW79: LU | BX79: Y | BY79: 76 | BZ79: GGH | CA79: 1317 | CB79: Y | CC79: 461 | CD79: OF | CE79: Y | CF79: 76
A80: R0077 | BS80: QTH | BT80: 423 | BU80: Y | BV80: 77 | BW80: LK | BX80: Y | BY80: 77 | BZ80: GR0 | CA80: 1390 | CB80: Y | CC80: 462 | CD80: OG | CE80: Y | CF80: 77
A81: R0078 | BS81: QU0 | BT81: 430 | BU81: Y | BV81: 78 | BW81: LI | BX81: Y | BY81: 78 | BZ81: GRL | CA81: 1391 | CB81: Y | CC81: 463 | CD81: JF | CE81: Y | CF81: 78
A82: R0079 | BS82: QUL | BT82: 431 | BU82: Y | BV82: 79 | BW82: LN | BX82: Y | BY82: 79 | BZ82: GRM | CA82: 1392 | CB82: Y | CC82: 464 | CD82: JP | CE82: Y | CF82: 79
A83: R0080 | BS83: QUM | BT83: 432 | BU83: Y | BV83: 80 | BW83: LS | BX83: Y | BY83: 80 | BZ83: GRH | CA83: 1393 | CB83: Y | CC83: 465 | CD83: JQ | CE83: Y | CF83: 80
A84: R0081 | BS84: QUH | BT84: 433 | BU84: Y | BV84: 81 | BW84: LA | BX84: Y | BY84: 81 | BZ84: DF0 | CA84: 1320 | CB84: Y | CC84: 466 | CD84: JR | CE84: Y | CF84: 81
A85: R0082 | BS85: QX0 | BT85: 435 | BU85: Y | BV85: 82 | BW85: LD | BX85: Y | BY85: 82 | BZ85: DFL | CA85: 1321 | CB85: Y | CC85: 467 | CD85: JV | CE85: Y | CF85: 82
A86: R0083 | BS86: QXL | BT86: 436 | BU86: Y | BV86: 83 | BW86: LX | BX86: Y | BY86: 83 | BZ86: DFM | CA86: 1322 | CB86: Y | CC86: 468 | CD86: JY | CE86: Y | CF86: 83
A87: R0084 | BS87: QXM | BT87: 437 | BU87: Y | BV87: 84 | BW87: PT | BX87: Y | BY87: 84 | BZ87: DFH | CA87: 1323 | CB87: Y | CC87: 469 | CD87: KF | CE87: Y | CF87: 84
A88: R0085 | BS88: QXH | BT88: 438 | BU88: Y | BV88: 85 | BW88: OT | BX88: Y | BY88: 85 | BZ88: DP0 | CA88: 1370 | CB88: Y | CC88: 470 | CD88: KP | CE88: Y | CF88: 85
A89: R0086 | BS89: GT0 | BT89: 310 | BU89: Y | BV89: 86 | BW89: OD | BX89: Y | BY89: 86 | BZ89: DPL | CA89: 1371 | CB89: Y | CC89: 471 | CD89: KQ | CE89: Y | CF89: 86
A90: R0087 | BS90: GTL | BT90: 311 | BU90: Y | BV90: 87 | BW90: JH | BX90: Y | BY90: 87 | BZ90: DPM | CA90: 1372 | CB90: Y | CC90: 472 | CD90: KR | CE90: Y | CF90: 87
A91: R0088 | BS91: GTM | BT91: 312 | BU91: Y | BV91: 88 | BW91: JI | BX91: Y | BY91: 88 | BZ91: DPH | CA91: 1373 | CB91: Y | CC91: 473 | CD91: KV | CE91: Y | CF91: 88
A92: R0089 | BS92: GTH | BT92: 313 | BU92: Y | BV92: 89 | BW92: JJ | BX92: Y | BY92: 89 | BZ92: DG0 | CA92: 1328 | CB92: Y | CC92: 474 | CD92: XF | CE92: Y | CF92: 89
A93: R0090 | BS93: DT0 | BT93: 320 | BU93: Y | BV93: 90 | BW93: JK | BX93: Y | BY93: 90 | BZ93: DGL | CA93: 1325 | CB93: Y | CC93: 475 | CD93: XP | CE93: Y | CF93: 90
A94: R0091 | BS94: DTL | BT94: 321 | BU94: Y | BV94: 91 | BW94: JN | BX94: Y | BY94: 91 | BZ94: DGM | CA94: 1326 | CB94: Y | CC94: 476 | CD94: XQ | CE94: Y | CF94: 91
A95: R0092 | BS95: DTM | BT95: 322 | BU95: Y | BV95: 92 | BW95: JS | BX95: Y | BY95: 92 | BZ95: DGH | CA95: 1327 | CB95: Y | CC95: 477 | CD95: XR | CE95: Y | CF95: 92
A96: R0093 | BS96: DTH | BT96: 323 | BU96: Y | BV96: 93 | BW96: JT | BX96: Y | BY96: 93 | BZ96: DV0 | CA96: 1330 | CB96: Y | CC96: 478 | CD96: XV | CE96: Y | CF96: 93
A97: R0094 | BS97: DH0 | BT97: 460 | BU97: Y | BV97: 94 | BW97: JU | BX97: Y | BY97: 94 | BZ97: DVL | CA97: 1331 | CB97: Y | CC97: 479 | CD97: XY | CE97: Y | CF97: 94
A98: R0095 | BS98: DHL | BT98: 461 | BU98: Y | BV98: 95 | BW98: JX | BX98: Y | BY98: 95 | BZ98: DVM | CA98: 1332 | CB98: Y | CC98: 480 | CD98: YF | CE98: Y | CF98: 95
A99: R0096 | BS99: DHM | BT99: 462 | BU99: Y | BV99: 96 | BW99: KH | BX99: Y | BY99: 96 | BZ99: DVH | CA99: 1333 | CB99: Y | CC99: 481 | CD99: YP | CE99: Y | CF99: 96
A100: R0097 | BS100: DHH | BT100: 463 | BU100: Y | BV100: 97 | BW100: KI | BX100: Y | BY100: 97 | BZ100: DQ0 | CA100: 1378 | CB100: Y | CC100: 482 | CD100: YQ | CE100: Y | CF100: 97
A101: R0098 | BS101: DU0 | BT101: 330 | BU101: Y | BV101: 98 | BW101: KK | BX101: Y | BY101: 98 | BZ101: DQL | CA101: 1375 | CB101: Y | CC101: 483 | CD101: YV | CE101: Y | CF101: 98
A102: R0099 | BS102: DUL | BT102: 331 | BU102: Y | BV102: 99 | BW102: KN | BX102: Y | BY102: 99 | BZ102: DQM | CA102: 1376 | CB102: Y | CC102: 484 | CD102: ZF | CE102: Y | CF102: 99
A103: R0100 | BS103: DUM | BT103: 332 | BU103: Y | BV103: 100 | BW103: KS | BX103: Y | BY103: 100 | BZ103: DQH | CA103: 1377 | CB103: Y | CC103: 485 | CD103: ZP | CE103: Y | CF103: 100
A104: R0101 | BS104: DUH | BT104: 333 | BU104: Y | BV104: 101 | BW104: KT | BX104: Y | BY104: 101 | BZ104: DW0 | CA104: 1335 | CB104: Y | CC104: 486 | CD104: ZQ | CE104: Y | CF104: 101
A105: R0102 | BS105: DK0 | BT105: 465 | BU105: Y | BV105: 102 | BW105: KU | BX105: Y | BY105: 102 | BZ105: DWL | CA105: 1336 | CB105: Y | CC105: 487 | CD105: ZV | CE105: Y | CF105: 102
A106: R0103 | BS106: DKL | BT106: 466 | BU106: Y | BV106: 103 | BW106: KX | BX106: Y | BY106: 103 | BZ106: DWM | CA106: 1337 | CB106: Y | CC106: 488 | CD106: HF | CE106: Y | CF106: 103
A107: R0104 | BS107: DKM | BT107: 467 | BU107: Y | BV107: 104 | BW107: XC | BX107: Y | BY107: 104 | BZ107: DWH | CA107: 1338 | CB107: Y | CC107: 489 | CD107: HG | CE107: Y | CF107: 104
A108: R0105 | BS108: DKH | BT108: 468 | BU108: Y | BV108: 105 | BW108: XD | BX108: Y | BY108: 105 | BZ108: SF0 | CA108: 1340 | CB108: Y | CC108: 490 | CD108: HP | CE108: Y | CF108: 105
A109: R0106 | BS109: DC0 | BT109: 390 | BU109: Y | BV109: 106 | BW109: XH | BX109: Y | BY109: 106 | BZ109: SFL | CA109: 1341 | CB109: Y | CC109: 491
A110: R0107 | BS110: DCL | BT110: 391 | BU110: Y | BV110: 107 | BW110: XJ | BX110: Y | BY110: 107 | BZ110: SFM | CA110: 1342 | CB110: Y | CC110: 492
A111: R0108 | BS111: DCM | BT111: 392 | BU111: Y | BV111: 108 | BW111: XK | BX111: Y | BY111: 108 | BZ111: SFH | CA111: 1343 | CB111: Y | CC111: 493
A112: R0109 | BS112: DCH | BT112: 393 | BU112: Y | BV112: 109 | BW112: XL | BX112: Y | BY112: 109 | BZ112: SP0 | CA112: 1380 | CB112: Y | CC112: 494
A113: R0110 | BS113: DD0 | BT113: 394 | BU113: Y | BV113: 110 | BW113: XT | BX113: Y | BY113: 110 | BZ113: SPL | CA113: 1381 | CB113: Y | CC113: 495
A114: R0111 | BS114: DL0 | BT114: 395 | BU114: Y | BV114: 111 | BW114: XU | BX114: Y | BY114: 111 | BZ114: SPM | CA114: 1382 | CB114: Y | CC114: 496
A115: R0112 | BS115: DLL | BT115: 396 | BU115: Y | BV115: 112 | BW115: XX | BX115: Y | BY115: 112 | BZ115: SPH | CA115: 1383 | CB115: Y | CC115: 497
A116: R0113 | BS116: DLM | BT116: 397 | BU116: Y | BV116: 113 | BW116: YC | BX116: Y | BY116: 113 | BZ116: SG0 | CA116: 1348 | CB116: Y | CC116: 498
A117: R0114 | BS117: DLH | BT117: 398 | BU117: Y | BV117: 114 | BW117: YD | BX117: Y | BY117: 114 | BZ117: SGL | CA117: 1345 | CB117: Y | CC117: 499
A118: R0115 | BS118: ST0 | BT118: 340 | BU118: Y | BV118: 115 | BW118: YH | BX118: Y | BY118: 115 | BZ118: SGM | CA118: 1346 | CB118: Y | CC118: 500
A119: R0116 | BS119: STL | BT119: 341 | BU119: Y | BV119: 116 | BW119: YK | BX119: Y | BY119: 116 | BZ119: SGH | CA119: 1347 | CB119: Y | CC119: 501
A120: R0117 | BS120: STM | BT120: 342 | BU120: Y | BV120: 117 | BW120: YL | BX120: Y | BY120: 117 | BZ120: SV0 | CA120: 1350 | CB120: Y | CC120: 502
A121: R0118 | BS121: STH | BT121: 343 | BU121: Y | BV121: 118 | BW121: YT | BX121: Y | BY121: 118 | BZ121: SVL | CA121: 1351 | CB121: Y | CC121: 503
A122: R0119 | BS122: SH0 | BT122: 470 | BU122: Y | BV122: 119 | BW122: YU | BX122: Y | BY122: 119 | BZ122: SVM | CA122: 1352 | CB122: Y | CC122: 504
A123: R0120 | BS123: SHL | BT123: 471 | BU123: Y | BV123: 120 | BW123: ZC | BX123: Y | BY123: 120 | BZ123: SVH | CA123: 1353 | CB123: Y | CC123: 505
A124: R0121 | BS124: SHM | BT124: 472 | BU124: Y | BV124: 121 | BW124: ZD | BX124: Y | BY124: 121 | BZ124: SQ0 | CA124: 1388 | CB124: Y | CC124: 506
A125: R0122 | BS125: SHH | BT125: 473 | BU125: Y | BV125: 122 | BW125: ZH | BX125: Y | BY125: 122 | BZ125: SQL | CA125: 1385 | CB125: Y | CC125: 507
A126: R0123 | BS126: SU0 | BT126: 350 | BU126: Y | BV126: 123 | BW126: ZK | BX126: Y | BY126: 123 | BZ126: SQM | CA126: 1386 | CB126: Y | CC126: 508
A127: R0124 | BS127: SUL | BT127: 351 | BU127: Y | BV127: 124 | BW127: ZL | BX127: Y | BY127: 124 | BZ127: SQH | CA127: 1387 | CB127: Y | CC127: 509
A128: R0125 | BS128: SUM | BT128: 352 | BU128: Y | BV128: 125 | BW128: ZT | BX128: Y | BY128: 125 | BZ128: SW0 | CA128: 1355 | CB128: Y | CC128: 510
A129: R0126 | BS129: SUH | BT129: 353 | BU129: Y | BV129: 126 | BW129: ZU | BX129: Y | BY129: 126 | BZ129: SWL | CA129: 1356 | CB129: Y | CC129: 511
A130: R0127 | BS130: SK0 | BT130: 475 | BU130: Y | BV130: 127 | BW130: HA | BX130: Y | BY130: 127 | BZ130: SWM | CA130: 1357 | CB130: Y | CC130: 512
A131: R0128 | BS131: SKL | BT131: 476 | BU131: Y | BV131: 128 | BW131: HB | BX131: Y | BY131: 128 | BZ131: SWH | CA131: 1358 | CB131: Y | CC131: 513
A132: R0129 | BS132: SKM | BT132: 477 | BU132: Y | BV132: 129 | BW132: HC | BX132: Y | BY132: 129 | BZ132: IF0 | CA132: 1510 | CB132: Y | CC132: 514
A133: R0130 | BS133: SKH | BT133: 478 | BU133: Y | BV133: 130 | BW133: HD | BX133: Y | BY133: 130 | BZ133: IFL | CA133: 1511 | CB133: Y | CC133: 515
A134: R0131 | BS134: SC0 | BT134: 490 | BU134: Y | BV134: 131 | BW134: HH | BX134: Y | BY134: 131 | BZ134: IFM | CA134: 1512 | CB134: Y | CC134: 516
A135: R0132 | BS135: SCL | BT135: 491 | BU135: Y | BV135: 132 | BW135: HL | BX135: Y | BY135: 132 | BZ135: IFH | CA135: 1513 | CB135: Y | CC135: 517
A136: R0133 | BS136: SCM | BT136: 492 | BU136: Y | BV136: 133 | BW136: HM | BX136: Y | BY136: 133 | BZ136: IP0 | CA136: 1518 | CB136: Y | CC136: 518
A137: R0134 | BS137: SCH | BT137: 493 | BU137: Y | BV137: 134 | BW137: HT | BX137: Y | BY137: 134 | BZ137: IPL | CA137: 1515 | CB137: Y | CC137: 519
A138: R0135 | BS138: SD0 | BT138: 494 | BU138: Y | BV138: 135 | BW138: C7 | BX138: Y | BY138: 135 | BZ138: IPM | CA138: 1516 | CB138: Y | CC138: 520
A139: R0136 | BS139: SL0 | BT139: 495 | BU139: Y | BV139: 136 | BW139: C9 | BX139: Y | BY139: 136 | BZ139: IPH | CA139: 1517 | CB139: Y | CC139: 521
A140: R0137 | BS140: SLL | BT140: 496 | BU140: Y | BV140: 137 | BW140: I7 | BX140: Y | BY140: 137 | BZ140: IG0 | CA140: 1520 | CB140: Y | CC140: 522
A141: R0138 | BS141: SLM | BT141: 497 | BU141: Y | BV141: 138 | BW141: I9 | BX141: Y | BY141: 138 | BZ141: IGL | CA141: 1521 | CB141: Y | CC141: 523
A142: R0139 | BS142: SLH | BT142: 498 | BU142: Y | BV142: 139 | BW142: X7 | BX142: Y | BY142: 139 | BZ142: IGM | CA142: 1522 | CB142: Y | CC142: 524
A143: R0140 | BS143: IT0 | BT143: 510 | BU143: Y | BV143: 140 | BW143: J7 | BX143: Y | BY143: 140 | BZ143: IGH | CA143: 1523 | CB143: Y | CC143: 525
A144: R0141 | BS144: ITL | BT144: 511 | BU144: Y | BV144: 141 | BW144: Y7 | BX144: Y | BY144: 141 | BZ144: I20 | CA144: 1532 | CB144: Y | CC144: 526
A145: R0142 | BS145: ITM | BT145: 512 | BU145: Y | BV145: 142 | BW145: MM | BX145: Y | BY145: 142 | BZ145: I30 | CA145: 1533 | CB145: Y | CC145: 527
A146: R0143 | BS146: ITH | BT146: 513 | BU146: Y | BV146: 143 | BW146: NM | BX146: Y | BY146: 143 | BZ146: I50 | CA146: 1535 | CB146: Y | CC146: 528
A147: R0144 | BS147: IH0 | BT147: 515 | BU147: Y | BV147: 144 | BW147: D9 | BX147: Y | BY147: 144 | BZ147: I60 | CA147: 1536 | CB147: Y | CC147: 529
A148: R0145 | BS148: IHL | BT148: 516 | BU148: Y | BV148: 145 | BW148: DM | BX148: Y | BY148: 145 | BZ148: IV0 | CA148: 1550 | CB148: Y | CC148: 530
A149: R0146 | BS149: IHM | BT149: 517 | BU149: Y | BV149: 146 | BW149: S9 | BX149: Y | BY149: 146 | BZ149: IVL | CA149: 1551 | CB149: Y | CC149: 531
A150: R0147 | BS150: IHH | BT150: 518 | BU150: Y | BV150: 147 | BW150: X9 | BX150: Y | BY150: 147 | BZ150: IVM | CA150: 1552 | CB150: Y | CC150: 532
A151: R0148 | BS151: IML | BT151: 525 | BU151: Y | BV151: 148 | BW151: C8 | BX151: Y | BY151: 148 | BZ151: IVH | CA151: 1553 | CB151: Y | CC151: 533
A152: R0149 | BS152: IMM | BT152: 526 | BU152: Y | BV152: 149 | BW152: S8 | BX152: Y | BY152: 149 | BZ152: IQ0 | CA152: 1558 | CB152: Y | CC152: 534
A153: R0150 | BS153: IMH | BT153: 527 | BU153: Y | BV153: 150 | BW153: D8 | BX153: Y | BY153: 150 | BZ153: IQL | CA153: 1555 | CB153: Y | CC153: 535
A154: R0151 | BS154: IM0 | BT154: 528 | BU154: Y | BV154: 151 | BW154: X8 | BX154: Y | BY154: 151 | BZ154: IQM | CA154: 1556 | CB154: Y | CC154: 536
A155: R0152 | BS155: I10 | BT155: 531 | BU155: Y | BV155: 152 | BW155: Y8 | BX155: Y | BY155: 152 | BZ155: IQH | CA155: 1557 | CB155: Y | CC155: 537
A156: R0153 | BS156: I40 | BT156: 534 | BU156: Y | BV156: 153 | BW156: Z8 | BX156: Y | BY156: 153 | BZ156: IW0 | CA156: 1560 | CB156: Y | CC156: 538
A157: R0154 | BS157: IU0 | BT157: 540 | BU157: Y | BV157: 154 | BW157: I8 | BX157: Y | BY157: 154 | BZ157: IWL | CA157: 1561 | CB157: Y | CC157: 539
A158: R0155 | BS158: IUL | BT158: 541 | BU158: Y | BV158: 155 | BW158: J8 | BX158: Y | BY158: 155 | BZ158: IWM | CA158: 1562 | CB158: Y | CC158: 540
A159: R0156 | BS159: IUM | BT159: 542 | BU159: Y | BV159: 156 | BW159: C0 | BX159: Y | BY159: 156 | BZ159: IWH | CA159: 1563 | CB159: Y | CC159: 541
A160: R0157 | BS160: IUH | BT160: 543 | BU160: Y | BV160: 157 | BW160: X0 | BX160: Y | BY160: 157 | BZ160: IY0 | CA160: 1580 | CB160: Y | CC160: 542
A161: R0158 | BS161: IK0 | BT161: 545 | BU161: Y | BV161: 158 | BW161: I0 | BX161: Y | BY161: 158 | BZ161: IYL | CA161: 1581 | CB161: Y | CC161: 543
A162: R0159 | BS162: IKL | BT162: 546 | BU162: Y | BV162: 159 | BW162: J0 | BX162: Y | BY162: 159 | BZ162: IYM | CA162: 1582 | CB162: Y | CC162: 544
A163: R0160 | BS163: IKM | BT163: 547 | BU163: Y | BV163: 160 | BZ163: IYH | CA163: 1583 | CB163: Y | CC163: 545
A164: R0161 | BS164: IKH | BT164: 548 | BU164: Y | BV164: 161 | BZ164: IR0 | CA164: 1585 | CB164: Y | CC164: 546
A165: R0162 | BS165: IX0 | BT165: 570 | BU165: Y | BV165: 162 | BZ165: IRL | CA165: 1586 | CB165: Y | CC165: 547
A166: R0163 | BS166: IXL | BT166: 571 | BU166: Y | BV166: 163 | BZ166: IRM | CA166: 1587 | CB166: Y | CC166: 548
A167: R0164 | BS167: IXM | BT167: 572 | BU167: Y | BV167: 164 | BZ167: IRH | CA167: 1588 | CB167: Y | CC167: 549
A168: R0165 | BS168: IXH | BT168: 573 | BU168: Y | BV168: 165 | BZ168: IZ0 | CA168: 1590 | CB168: Y | CC168: 550
A169: R0166 | BS169: IJ0 | BT169: 575 | BU169: Y | BV169: 166 | BZ169: IZL | CA169: 1591 | CB169: Y | CC169: 551
A170: R0167 | BS170: IJL | BT170: 576 | BU170: Y | BV170: 167 | BZ170: IZM | CA170: 1592 | CB170: Y | CC170: 552
A171: R0168 | BS171: IJM | BT171: 577 | BU171: Y | BV171: 168 | BZ171: IZH | CA171: 1593 | CB171: Y | CC171: 553
A172: R0169 | BS172: IJH | BT172: 578 | BU172: Y | BV172: 169 | BZ172: LF0 | CA172: 1610 | CB172: Y | CC172: 554
A173: R0170 | BS173: IA0 | BT173: 915 | BU173: Y | BV173: 170 | BZ173: LFL | CA173: 1611 | CB173: Y | CC173: 555
A174: R0171 | BS174: IAL | BT174: 916 | BU174: Y | BV174: 171 | BZ174: LFM | CA174: 1612 | CB174: Y | CC174: 556
A175: R0172 | BS175: IAM | BT175: 917 | BU175: Y | BV175: 172 | BZ175: LFH | CA175: 1613 | CB175: Y | CC175: 557
A176: R0173 | BS176: IAH | BT176: 918 | BU176: Y | BV176: 173 | BZ176: LP0 | CA176: 1640 | CB176: Y | CC176: 558
A177: R0174 | BS177: II0 | BT177: 585 | BU177: Y | BV177: 174 | BZ177: LPL | CA177: 1641 | CB177: Y | CC177: 559
A178: R0175 | BS178: IIL | BT178: 586 | BU178: Y | BV178: 175 | BZ178: LPM | CA178: 1642 | CB178: Y | CC178: 560
A179: R0176 | BS179: IIM | BT179: 587 | BU179: Y | BV179: 176 | BZ179: LPH | CA179: 1643 | CB179: Y | CC179: 561
A180: R0177 | BS180: IIH | BT180: 588 | BU180: Y | BV180: 177 | BZ180: LG0 | CA180: 1618 | CB180: Y | CC180: 562
A181: R0178 | BS181: IB0 | BT181: 905 | BU181: Y | BV181: 178 | BZ181: LGL | CA181: 1615 | CB181: Y | CC181: 563
A182: R0179 | BS182: IBL | BT182: 906 | BU182: Y | BV182: 179 | BZ182: LGM | CA182: 1616 | CB182: Y | CC182: 564
A183: R0180 | BS183: IBM | BT183: 907 | BU183: Y | BV183: 180 | BZ183: LGH | CA183: 1617 | CB183: Y | CC183: 565
A184: R0181 | BS184: IBH | BT184: 908 | BU184: Y | BV184: 181 | BZ184: LV0 | CA184: 1620 | CB184: Y | CC184: 566
A185: R0182 | BS185: IC0 | BT185: 595 | BU185: Y | BV185: 182 | BZ185: LVL | CA185: 1621 | CB185: Y | CC185: 567
A186: R0183 | BS186: ICL | BT186: 596 | BU186: Y | BV186: 183 | BZ186: LVM | CA186: 1622 | CB186: Y | CC186: 568
A187: R0184 | BS187: ICM | BT187: 597 | BU187: Y | BV187: 184 | BZ187: LVH | CA187: 1623 | CB187: Y | CC187: 569
A188: R0185 | BS188: ICH | BT188: 598 | BU188: Y | BV188: 185 | BZ188: LQ0 | CA188: 1648 | CB188: Y | CC188: 570
A189: R0186 | BS189: ID0 | BT189: 594 | BU189: Y | BV189: 186 | BZ189: LQL | CA189: 1645 | CB189: Y | CC189: 571
A190: R0187 | BS190: IL0 | BT190: 560 | BU190: Y | BV190: 187 | BZ190: LQM | CA190: 1646 | CB190: Y | CC190: 572
A191: R0188 | BS191: ILL | BT191: 561 | BU191: Y | BV191: 188 | BZ191: LQH | CA191: 1647 | CB191: Y | CC191: 573
A192: R0189 | BS192: ILM | BT192: 562 | BU192: Y | BV192: 189 | BZ192: LW0 | CA192: 1625 | CB192: Y | CC192: 574
A193: R0190 | BS193: ILH | BT193: 563 | BU193: Y | BV193: 190 | BZ193: LWL | CA193: 1626 | CB193: Y | CC193: 575
A194: R0191 | BS194: IN0 | BT194: 565 | BU194: Y | BV194: 191 | BZ194: LWM | CA194: 1627 | CB194: Y | CC194: 576
A195: R0192 | BS195: INL | BT195: 566 | BU195: Y | BV195: 192 | BZ195: LWH | CA195: 1628 | CB195: Y | CC195: 577
A196: R0193 | BS196: INM | BT196: 567 | BU196: Y | BV196: 193 | BZ196: LR0 | CA196: 1650 | CB196: Y | CC196: 578
A197: R0194 | BS197: INH | BT197: 568 | BU197: Y | BV197: 194 | BZ197: LRL | CA197: 1651 | CB197: Y | CC197: 579
A198: R0195 | BS198: IS0 | BT198: 500 | BU198: Y | BV198: 195 | BZ198: LRM | CA198: 1652 | CB198: Y | CC198: 580
A199: R0196 | BS199: ISL | BT199: 501 | BU199: Y | BV199: 196 | BZ199: LRH | CA199: 1653 | CB199: Y | CC199: 581
A200: R0197 | BS200: ISM | BT200: 502 | BU200: Y | BV200: 197 | BZ200: PP0 | CA200: 1740 | CB200: Y | CC200: 582
... 319 more rows

Sheet LISTBOX_TABLES (hidden)
A1: TABLE_TAXGPL_SELECTED | E1: TABLE_PILGPL_SELECTED | I1: TABLE_SRA_SELECTED | O1: TABLE_UTSRA_SELECTED | U1: TABLE_PILSRA_SELECTED | AA1: TABLE_UTPIL_SELECTED | AG1: TABLE_DC_SELECTED | AK1: TABLE_DCSR_SELECTED
A2: ListName | B2: Code | C2: Description | D2: Range Name | E2: ListName | F2: Code | G2: Description | H2: Range Name | I2: ListName | J2: Code | K2: Sequence | L2: Levy Type | M2: Description | N2: Range Name | O2: ListName | P2: Code | Q2: Sequence | R2: Levy Type | S2: Description | T2: Range Name | U2: ListName | V2: Code | W2: Sequence | X2: Levy Type | Y2: Description | Z2: Range Name | AA2: ListName | AB2: Code | AC2: Sequence | AD2: Levy Type | AE2: Description | AF2: Range Name | AG2: ListName | AH2: Sequence | AI2: DCSRName | AJ2: Range Name | AK2: ListName | AL2: Sequence | AM2: DCSRName | AN2: Range Name
A3: 0 Tillsonburg T | B3: 0 | C3: Tillsonburg T | D3: TAXGPLRange1 | E3: 0 Tillsonburg T | F3: 0 | G3: Tillsonburg T | H3: PILGPLRange1 | I3: 950 01 Other Area Rates - Parking | J3: 950 | K3: 01 | L3: Other Area Rates | M3: Parking | N3: SRARange1 | AG3: 0 Municipal Wide Charges | AH3: 0 | AI3: Municipal Wide Charges | AJ3: DCRange1

Sheet TEMPLATES (hidden)
C1: 1 | D1: =C1+1 -> 2 | E1: =D1+1 -> 3 | F1: 4 | G1: 5 | H1: 6 | I1: 7 | J1: 8 | K1: 9 | L1: 10 | M1: 11 | N1: 12 | O1: 13 | P1: 14 | Q1: 15 | R1: 16 | S1: 17 | T1: 18 | U1: 19 | V1: 20 | W1: 21 | X1: 22 | Y1: 23 | Z1: 24 | AA1: 25 | AB1: 26 | AC1: 27 | AD1: 28 | AE1: 29 | AF1: 30 | AG1: 31 | AH1: 32 | AI1: 33 | AJ1: 34 | AK1: 35 | AL1: 36 | AM1: 37 | AN1: 38 | AO1: 39 | AP1: 40 | AQ1: 41 | AR1: 42 | AS1: 43 | AT1: 44 | AU1: 45 | AV1: 46 | AW1: 47 | AX1: 48 | AY1: 49 | AZ1: 50 | BA1: 51 | BB1: 52 | BC1: 53 | BD1: 54 | BE1: 55 | BF1: 56 | BG1: 57 | BH1: 58 | BI1: 59 | BJ1: 60 | BK1: 61 | BL1: 62 | BM1: 63 | BN1: 64 | BO1: 65 | BP1: 66 | BQ1: =BP1+1 -> 67 | BR1: 68 | BS1: 69 | BT1: 70 | BU1: 71 | BV1: 72 | BW1: 73 | BX1: 74 | BY1: 75 | BZ1: 76 | CA1: 77
B2: S22B: SRA_TEMPLATE
G3: Property | H3: Tax Rate | J3: Percent of | K3: CVA | L3: Phase-In | M3: Tax Rates | R3: Municipal Taxes | T3: Education
E4: RTC RTQ | F4: Tax Band | G4: Class | H4: Description | I4: Tax Ratio | J4: Full Rate | K4: Assessment | L4: Taxable Assessment | M4: LT / ST | N4: UT | O4: EDUC | P4: TOTAL | R4: LT / ST | S4: UT | T4: Taxes | V4: TOTAL | BE4: * | BX4: * | CC4: A | CD4: A | CE4: B | CF4: B | CG4: C | CH4: D | CI4: D | CJ4: D | CK4: E | CL4: F | CM4: G | CN4: H | CO4: I | CP4: I | CQ4: I | CR4: J | CS4: K | CT4: L | CU4: M | CV4: M | CW4: N | CX4: O | CY4: O | CZ4: P | DA4: Q | DB4: R | DC4: If RTC/RTQ is populated, then Tax Band, | DD4: Match Levy to
E5: 1 | F5: 2 | G5: 3 | H5: 4 | I5: 5 | J5: 6 | K5: 7 | L5: 16 | M5: 8 | N5: 9 | O5: 10 | P5: 11 | R5: 12 | S5: 13 | T5: 14 | V5: 15 | AW5: LineID | AX5: RTC/Q | AY5: Tax Band | AZ5: Phase-In | BA5: Group | BB5: RTC | BC5: RTQ | BE5: CHECK | BG5: POSSIBLE ERRORS | CC5: LT / ST Rate | CD5: 0.05 | CE5: UT Rate | CG5: Duplicate RTC/Q | CH5: Col 1 to 7, 11 | CI5: Col 1 to 7, 11 | CJ5: Col 1 to 7, 11 | CK5: Col 5 to 7 > 0 | CL5: ST Col 9 = 0 | CM5: Tier = UT | CN5: Applic. RTC/Q | CO5: RTC | CP5: RTQ | CQ5: Applic. Band | CR5: Band 0,L,M,H | CS5: RTC = R | CT5: RTC = F,T | CU5: RTQ=T,H,P,D,M | CV5: RTQ=T,H,P,D,M | CW5: RTQ = D | CX5: Gen Rates | CY5: Gen Rates | CZ5: Ed Rate | DA5: Ed Rate | DB5: Disc % <> 100% | DC5: Tax Ratio and Percent of | DD5: Levy Description, | DE5: Levy Area | DF5: Total | DH5: RTC/RTQ Entered,
E6: LIST | F6: LIST | J6: % | K6: $ | L6: $ | M6: 0.xxxxxx% | N6: 0.xxxxxx% | O6: 0.xxxxxx% | P6: 0.xxxxxx% | R6: $ | S6: $ | T6: $ | V6: $ | Y6: Duplicate_Eval_Range | Z6: SysR_Counter | AX6: Band | AY6: Range Name | AZ6: WTD, DISC | BD6: WTD, DISC | CC6: Not RTQ = D | CD6: Error? | CE6: NA | CF6: NA | CG6: Error? | CH6: All Filled? | CI6: All Blank? | CJ6: Error? | CK6: Error? | CL6: NA | CM6: Col 8, 10 = 0 | CN6: Error? | CP6: 1 to 6 | CQ6: Error? | CR6: Error? | CS6: Ratio = 1.0000 | CT6: Ratio = 0.2500 | CV6: Band=0, %=100% | CW6: EDUC Only | CX6: NA | CY6: NA | CZ6: NA | DA6: NA | DB6: Vacant, Excess Land | DC6: Full Rate must be completed | DD6: Flag the error | DE6: Entered | DF6: Entered | DG6: FLAG CRITICAL | DH6: Tax Band not Entered
B7: 1 | C7: 4001 | Y7: =ADDRESS(ROW(AX7),COLUMN(AX7))&":"&ADDRESS(ROW(AX28),COLUMN(AX28)) -> $AX$7:$AX$28 | Z7: 0 | AA7: ="B"&RIGHT("00" & B7,2) -> B01 | AB7: S22B-L4001 | AC7: =GetFIRMappingTEXT(E7) ->  | AD7: =GetFIRMappingTEXT(F7) ->  | AE7: =GetFIRMappingTEXT(G7) ->  | AF7: =GetFIRMappingTEXT(J7) ->  | AW7: =C7 -> 4001 | AZ7: Asmt | BD7: Asmt | BG7: =E7&" "&F7&" "&G7&": "&J7 -> : | DD7: =IF(AND($E7="105",$G7<>"SPECIAL BUDGETARY LEVY"),1,IF(AND($E7="107",$G7<>"MUNICIPAL RESTRUCTURING"),1,IF(AND($E7="110",$G7<>"TRANSITIONAL ADJUSTMENT"),1,IF(AND($E7="120",$G7<>"URBAN AREA"),1,IF(AND($E7="130",$G7<>"RURAL AREA"),1,IF(AND($E7="140",$G7<>"POLICE VILLAGE"),1,IF(AND($E7="150",$G7<>"DEBT"),1,IF(AND($E7="210",$G7<>"FIRE"),1,IF(AND($E7="220",$G7<>"POLICE"),1,IF(AND($E7="230",$G7<>"CONSERVATION AUTHORITY"),1,IF(AND($E7="240",$G7<>"OTHER PROTECTION SERVICES"),1,IF(AND($E7="310",$G7<>"ROADS"),1,IF(AND($E7="320",$G7<>"TRANSIT"),1,IF(AND($E7="330",$G7<>"STREET LIGHTING"),1,IF(AND($E7="340",$G7<>"AIRPORT"),1,IF(AND($E7="410",$G7<>"WATER"),1,IF(AND($E7="420",$G7<>"WATER AND SEWER"),1,IF(AND($E7="430",$G7<>"SEWER (SANITARY / STORM)"),1,IF(AND($E7="440",$G7<>"SEWER (STORM ONLY)"),1,IF(AND($E7="450",$G7<>"WASTE COLLECTION"),1,IF(AND($E7="460",$G7<>"WASTE DISPOSAL / LANDFILL"),1,IF(AND($E7="470",$G7<>"WASTE COLLECTION AND DISPOSAL"),1,IF(AND($E7="480",$G7<>"RECYCLING"),1,IF(AND($E7="490",$G7<>"OTHER ENVIRONMENTAL SERVICES"),1,IF(AND($E7="510",$G7<>"HOSPITALS"),1,IF(AND($E7="610",$G7<>"HOMES FOR THE AGED"),1,IF(AND($E7="620",$G7<>"CHILD CARE"),1,IF(AND($E7="710",$G7<>"PARKS AND RECREATION"),1,IF(AND($E7="720",$G7<>"RECREATION FACILITIES"),1,IF(AND($E7="730",$G7<>"LIBRARIES"),1,IF(AND($E7="740",$G7<>"MUSEUMS"),1,IF(AND($E7="750",$G7<>"CULTURAL SERVICES"),1,IF(AND($E7="810",$G7<>"PLANNING"),1,IF(AND($E7="820",$G7<>"COMMERCIAL / INDUSTRIAL"),1,IF(AND($E7="830",$G7<>"DRAINAGE"),1,IF(AND($E7="950",$G7<>"OTHER AREA RATES"),1,0)))))))))))))))))))))))))))))))))))) -> 0 | DE7: =IF(AND(E7<>"",F7<>"",G7<>""),1,0) -> 0 | DF7: =IF(V28>0,1,0) -> 0 | DG7: =IF(SUM(DE7:DF7)=1,"AA",0) -> 0
C8: =IF(E8="","",LEFT("0000",4 - LEN(VLOOKUP(AX8,RefTaxMapping,2,"FALSE")))&VLOOKUP(AX8,RefTaxMapping,2,"FALSE")) ->  | G8: =IF(E8="","",VLOOKUP(BB8,RefRTC,2,FALSE)) ->  | H8: =IF(E8="","",VLOOKUP(BC8,RefRTQ,2,FALSE)) ->  | P8: =IF(M8<>0,M8,"") ->  | R8: =ROUND(L8*M8,0) -> 0 | V8: =IF(AND(COUNTIF(INDIRECT(Y8),AX8)>1,AX8<>""),"Duplicate RTC/RTQ!",R8) -> 0 | Y8: =Y7 -> $AX$7:$AX$28 | Z8: =IF(ISERROR(C8),Z7+1,Z7) -> 0 | AA8: =AA7 -> B01 | AB8: =IF(ISNUMBER(VALUE(C8)),"S22B-L"&RIGHT("0000"&C8,4),IF(ISERROR(C8),"R"&RIGHT("0000"&Z8,4),"")) ->  | AC8: =AC7 ->  | AD8: =AD7 ->  | AE8: =GetFIRMappingTEXT(E8) ->  | AF8: =GetFIRMappingTEXT(F8) ->  | AG8: =GetFIRMappingTEXT(G8) ->  | AH8: =GetFIRMappingTEXT(H8) ->  | AI8: =GetFIRMapping(I8) ->  | AJ8: =GetFIRMapping(J8) ->  | AK8: =GetFIRMapping(K8) ->  | AL8: =GetFIRMapping(L8) ->  | AM8: =GetFIRMapping(M8) ->  | AP8: =GetFIRMapping(P8) ->  | AQ8: =GetFIRMapping(R8) ->  | AT8: =GetFIRMapping(V8) ->  | AX8: =E8&F8 ->  | AY8: =IF(E8="","",IF(AND(COUNTIF(RefRTCBand0Flag,BB8)=0,COUNTIF(RefRTQBand0Flag,BC8)=0),"RefTaxBandActiveFlag","RefTaxBand0Flag")) ->  | AZ8: =I8*J8*L8 -> 0 | BA8: =IF(E8="","",VLOOKUP(BB8,RefRTC,3,FALSE)) ->  | BB8: =IF(E8="","",LEFT(E8,1)) ->  | BC8: =IF(E8="","",RIGHT(E8,1)) ->  | BD8: =I8*J8*K8 -> 0 | BE8: =IF(TOTAL22B=0,"OK",IF(SUM(CD8,CF8:CG8,CJ8:CN8,CQ8:CT8,CV8:CW8,CY8:DB8)=0,"OK","VERIFY")) -> OK | BG8: =IF(TOTAL22B=0,"",IF(CD8=1,"A","")) ->  | BH8: =IF(TOTAL22B=0,"",IF(CF8=1,"B","")) ->  | BI8: =IF(TOTAL22B=0,"",IF(CG8=1,"C","")) ->  | BJ8: =IF(TOTAL22B=0,"",IF(CJ8=1,"D","")) ->  | BK8: =IF(TOTAL22B=0,"",IF(CK8=1,"E","")) ->  | BL8: =IF(TOTAL22B=0,"",IF(CL8=1,"F","")) ->  | BM8: =IF(TOTAL22B=0,"",IF(CM8=1,"G","")) ->  | BN8: =IF(TOTAL22B=0,"",IF(CN8=1,"H","")) ->  | BO8: =IF(TOTAL22B=0,"",IF(CQ8=1,"I","")) ->  | BP8: =IF(TOTAL22B=0,"",IF(CR8=1,"J","")) ->  | BQ8: =IF(TOTAL22B=0,"",IF(CS8=1,"K","")) ->  | BR8: =IF(TOTAL22B=0,"",IF(CT8=1,"L","")) ->  | BS8: =IF(TOTAL22B=0,"",IF(CV8=1,"M","")) ->  | BT8: =IF(TOTAL22B=0,"",IF(CW8=1,"N","")) ->  | BU8: =IF(TOTAL22B=0,"",IF(CY8=1,"O","")) ->  | BV8: =IF(TOTAL22B=0,"",IF(CZ8=1,"P","")) ->  | BW8: =IF(TOTAL22B=0,"",IF(DA8=1,"Q","")) ->  | BX8: =IF(TOTAL22B=0,"",IF(DB8=1,"R","")) ->  | BY8: =IF(AND(OR(C8="0010",C8="0027",C8="0031",C8="0034"),K8>0,I8<>1),"S","") ->  | BZ8: =IF(AND(OR(C8="0110",C8="0140"),K8>0,I8>0.25),"T","") ->  | CA8: =IF(AND(LEFT(MUNTIERCode,2)="UT",E8="RD"),"",IF(AND(L8>0,OR(P8<=0,P8="")),"U","")) ->  | CC8: =INDIRECT("M"&(ROW(INDIRECT(Y8))+1))*I8*J8 -> 0 | CD8: =IF(BC8="D",0,IF(ABS(CC8-M8)>(5%*CC8),1,0)) -> 0 | CG8: =IF(V8="Duplicate RTC/RTQ!",1,0) -> 0 | CH8: =IF(OR(E8="",F8="",G8="",H8="",I8=0,J8=0,L8=0,P8=""),0,1) -> 0 | CI8: =IF(AND(E8="",F8="",G8="",H8="",I8=0,J8=0,L8=0,P8=""),1,0) -> 1 | CJ8: 0 | CK8: =IF(E8="",0,IF(AND(I8>0,J8>0,L8>=0),0,1)) -> 0 | CM8: =IF(MUNTIERCode<>"UT_Tier",0,IF(AND(M8=0,O8=0),0,1)) -> 0 | CN8: =IF(E8="",0,IF(COUNTIF(INDEX(RefTaxClasses,0,1),E8)=1,0,1)) -> 0 | CO8: =IF(COUNTIF(RefRTCBand0Flag,BB8)=0,0,1) -> 0 | CP8: =IF(COUNTIF(RefRTQBand0Flag,BC8)=0,0,1) -> 0 | CQ8: =IF(OR(F8="0",F8=0),0,IF((OR(CO8=1,CP8=1)),1,0)) -> 0 | CR8: =IF(COUNTIF(RefTaxBandActiveFlag,F8)=1,0,1) -> 0 | CS8: =IF(AND(BB8="R",I8<>1),1,0) -> 0 | CT8: =IF(OR(AND(BB8="F",I8>0.25),(AND(BB8="T",I8>0.25))),1,0) -> 0 | CU8: =IF(COUNTIF(RefFullOccupiedFlag,BC8)=0,0,1) -> 0 | CV8: =IF(AND(CU8=1,(F8+0)=0,J8<>100%),1,0) -> 0 | CW8: =IF(MUNTIERCode="UT_Tier",0,IF(AND(BC8="D",OR(M8<>0,N8<>0)),1,0)) -> 0 | DB8: =IF(AND(COUNTIF(RefRTQDisc100Flag,BC8)=1,J8=100%),1,0) -> 0 | DC8: =IF(E8<>"",IF(OR(F8="",I8="",J8=""),1,0),0) -> 0 | DD8: =IF(AND($E8="105",$G8<>"SPECIAL BUDGETARY LEVY"),1,IF(AND($E8="107",$G8<>"MUNICIPAL RESTRUCTURING"),1,IF(AND($E8="110",$G8<>"TRANSITIONAL ADJUSTMENT"),1,IF(AND($E8="120",$G8<>"URBAN AREA"),1,IF(AND($E8="130",$G8<>"RURAL AREA"),1,IF(AND($E8="140",$G8<>"POLICE VILLAGE"),1,IF(AND($E8="150",$G8<>"DEBT"),1,IF(AND($E8="210",$G8<>"FIRE"),1,IF(AND($E8="220",$G8<>"POLICE"),1,IF(AND($E8="230",$G8<>"CONSERVATION AUTHORITY"),1,IF(AND($E8="240",$G8<>"OTHER PROTECTION SERVICES"),1,IF(AND($E8="310",$G8<>"ROADS"),1,IF(AND($E8="320",$G8<>"TRANSIT"),1,IF(AND($E8="330",$G8<>"STREET LIGHTING"),1,IF(AND($E8="340",$G8<>"AIRPORT"),1,IF(AND($E8="410",$G8<>"WATER"),1,IF(AND($E8="420",$G8<>"WATER AND SEWER"),1,IF(AND($E8="430",$G8<>"SEWER (SANITARY / STORM)"),1,IF(AND($E8="440",$G8<>"SEWER (STORM ONLY)"),1,IF(AND($E8="450",$G8<>"WASTE COLLECTION"),1,IF(AND($E8="460",$G8<>"WASTE DISPOSAL / LANDFILL"),1,IF(AND($E8="470",$G8<>"WASTE COLLECTION AND DISPOSAL"),1,IF(AND($E8="480",$G8<>"RECYCLING"),1,IF(AND($E8="490",$G8<>"OTHER ENVIRONMENTAL SERVICES"),1,IF(AND($E8="510",$G8<>"HOSPITALS"),1,IF(AND($E8="610",$G8<>"HOMES FOR THE AGED"),1,IF(AND($E8="620",$G8<>"CHILD CARE"),1,IF(AND($E8="710",$G8<>"PARKS AND RECREATION"),1,IF(AND($E8="720",$G8<>"RECREATION FACILITIES"),1,IF(AND($E8="730",$G8<>"LIBRARIES"),1,IF(AND($E8="740",$G8<>"MUSEUMS"),1,IF(AND($E8="750",$G8<>"CULTURAL SERVICES"),1,IF(AND($E8="810",$G8<>"PLANNING"),1,IF(AND($E8="820",$G8<>"COMMERCIAL / INDUSTRIAL"),1,IF(AND($E8="830",$G8<>"DRAINAGE"),1,IF(AND($E8="950",$G8<>"OTHER AREA RATES"),1,0)))))))))))))))))))))))))))))))))))) -> 0 | DH8: =IF(AND(E8<>"",F8=""),"AB",0) -> 0
G9: =IF(E9="","",VLOOKUP(BB9,RefRTC,2,FALSE)) ->  | H9: =IF(E9="","",VLOOKUP(BC9,RefRTQ,2,FALSE)) ->  | P9: =IF(M9<>0,M9,"") ->  | R9: =ROUND(L9*M9,0) -> 0 | V9: =IF(AND(COUNTIF(INDIRECT(Y9),AX9)>1,AX9<>""),"Duplicate RTC/RTQ!",R9) -> 0 | Y9: =Y8 -> $AX$7:$AX$28 | Z9: =IF(ISERROR(C9),Z8+1,Z8) -> 0 | AA9: =AA8 -> B01 | AC9: =AC8 ->  | AE9: =GetFIRMappingTEXT(E9) ->  | AF9: =GetFIRMappingTEXT(F9) ->  | AG9: =GetFIRMappingTEXT(G9) ->  | AH9: =GetFIRMappingTEXT(H9) ->  | AZ9: 0 | BD9: 0 | BE9: OK | BY9: =IF(AND(OR(C9="0010",C9="0027",C9="0031",C9="0034"),K9>0,I9<>1),"S","") ->  | BZ9: =IF(AND(OR(C9="0110",C9="0140"),K9>0,I9>0.25),"T","") ->  | CC9: 0 | CD9: 0 | CG9: 0 | CH9: 0 | CI9: 1 | CJ9: =IF(OR(CH9=1,CI9=1),0,1) -> 0 | CK9: =IF(E9="",0,IF(AND(I9>0,J9>0,L9>0),0,1)) -> 0 | CM9: 0 | CN9: 0 | CO9: 0 | CP9: 0 | CQ9: =IF(OR(F9="0",F9=0),0,IF((OR(CO9=1,CP9=1)),1,0)) -> 0 | CR9: 0 | CS9: 0 | CT9: =IF(OR(AND(BB9="F",I9>0.25),(AND(BB9="T",I9>0.25))),1,0) -> 0 | CU9: 0 | CV9: =IF(AND(CU9=1,(F9+0)=0,J9<>100%),1,0) -> 0 | CW9: 0 | DB9: 0 | DC9: =IF(E9<>"",IF(OR(F9="",I9="",J9=""),1,0),0) -> 0 | DD9: 0 | DH9: =IF(AND(E9<>"",F9=""),"AB",0) -> 0
G10: =IF(E10="","",VLOOKUP(BB10,RefRTC,2,FALSE)) ->  | R10: 0 | V10: 0 | Y10: $AX$7:$AX$28 | Z10: 0 | AA10: B01 | AZ10: 0 | BD10: 0 | BE10: OK | CC10: 0 | CD10: 0 | CG10: 0 | CH10: 0 | CI10: 1 | CJ10: 0 | CK10: 0 | CM10: 0 | CN10: 0 | CO10: 0 | CP10: 0 | CQ10: 0 | CR10: 0 | CS10: 0 | CT10: 0 | CU10: 0 | CV10: 0 | CW10: 0 | DB10: 0 | DC10: 0 | DD10: 0 | DH10: 0
R11: 0 | V11: 0 | Y11: $AX$7:$AX$28 | Z11: 0 | AA11: B01 | AZ11: 0 | BD11: 0 | BE11: OK | CC11: 0 | CD11: 0 | CG11: 0 | CH11: 0 | CI11: 1 | CJ11: 0 | CK11: 0 | CM11: 0 | CN11: 0 | CO11: 0 | CP11: 0 | CQ11: 0 | CR11: 0 | CS11: 0 | CT11: 0 | CU11: 0 | CV11: 0 | CW11: 0 | DB11: 0 | DC11: 0 | DD11: 0 | DH11: 0
R12: 0 | V12: 0 | Y12: $AX$7:$AX$28 | Z12: 0 | AA12: B01 | AZ12: 0 | BD12: 0 | BE12: OK | CC12: 0 | CD12: 0 | CG12: 0 | CH12: 0 | CI12: 1 | CJ12: 0 | CK12: 0 | CM12: 0 | CN12: 0 | CO12: 0 | CP12: 0 | CQ12: 0 | CR12: 0 | CS12: 0 | CT12: 0 | CU12: 0 | CV12: 0 | CW12: 0 | DB12: 0 | DC12: 0 | DD12: 0 | DH12: 0
